Workbook

Sheet Cover
B2: =Assumptions!$C$6 -> Alderway Home B.V. (fictional demonstration company)
B3: FINANCIAL MODEL AND MONTHLY REPORTING PACK
B4: Ecommerce demonstration: Shopify EU, Amazon EU FBA and Walmart US WFS
B6: FICTIONAL DEMONSTRATION. The company, financial records and figures are invented. Named commerce platforms identify example sales channels and do not imply client relationships or partnerships.
B8: Reporting month (last actual) | C8: =Assumptions!$C$9 -> 2026-08-31
B9: Forecast horizon | C9: ="Sep-26 to Dec-27 ("&Assumptions!$C$12&" scenario selected)" -> Sep-26 to Dec-27 (Base scenario selected)
B10: Currency | C10: EUR; Walmart inputs in USD converted at the monthly USD/EUR rate on Assumptions
B11: Integrity checks | C11: See the Checks sheet for current results.
B12: FY2026 net revenue, outlook | C12: =PL!$C$14 -> 4,310,521
B13: FY2026 EBITDA, outlook | C13: =PL!$C$48 -> 136,386
B14: Cash at the last actual month | C14: =INDEX(BS!$E$9:$AB$9,1,Assumptions!$C$10) -> 391,452
B15: 13-week lowest weekly closing cash | C15: =Cash_13W!C75 -> 290,055
B16: Prepared by | C16: BriQs Group. Fractional CFO leadership and a complete finance department.
B18: CONTENTS | C18: What the sheet holds | D18: Type
B19: Cover | C19: This page | D19: Report
B20: Guide | C20: Model map, conventions, month-end procedure, scenario refresh, information still needed | D20: Report
B21: Checks | C21: Every integrity check with live status; overall status | D21: Control
B22: CFO_Report | C22: Quantified findings, risks scored by likelihood and impact, actions with owners and dates | D22: Report
B23: KPIs | C23: Growth, margin, commercial, working capital, cash and people KPIs by month | D23: Report
B24: PL | C24: Monthly P&L, actual and forecast, with FY totals | D24: Statement
B25: BS | C25: Monthly balance sheet with zero check | D25: Statement
B26: CF | C26: Cash flow, indirect and direct, reconciled monthly | D26: Statement
B27: BvA | C27: Budget vs actual YTD and full-year outlook with revenue bridge | D27: Analysis
B28: Scenarios | C28: Base, downside and upside side by side with live selected column | D28: Analysis
B29: Cash_13W | C29: 13-week direct cash forecast with phasing rules, buffer control and reconciliation | D29: Analysis
B30: Channel_PL | C30: Contribution by channel to CM2 with channel KPIs | D30: Schedule
B31: Product_Contribution | C31: Contribution by product category with allocation keys and scorecard | D31: Schedule
B32: Settlements | C32: Gross-to-payout bridge and receivable roll per platform; refund liability | D32: Schedule
B33: Inventory | C33: On-hand roll by category, policy purchasing, in transit, deposits, provision | D33: Schedule
B34: Purchase_Orders | C34: PO register driving receipts, deposits, balances and in-transit dates | D34: Schedule
B35: AR_Aging | C35: Aged receivables at the last actual month, tied to the balance sheet | D35: Schedule
B36: AP_Aging | C36: Aged payables at the last actual month, tied to the AP schedule | D36: Schedule
B37: AP_Schedule | C37: Trade payables roll by supplier group with DPO | D37: Schedule
B38: VAT | C38: Output and input VAT, quarterly payable roll, Article 23 memo | D38: Schedule
B39: Opex | C39: Headcount table, opex lines, payroll taxes payable | D39: Schedule
B40: Fixed_Assets | C40: Cost, depreciation and NBV by class | D40: Schedule
B41: Debt | C41: Term loan annuity schedule, current and non-current split | D41: Schedule
B42: Volume_Price | C42: Bottom-up units, prices and unit costs by category and channel | D42: Engine
B43: Assumptions | C43: Scalars, timeline and scenario drivers with the scenario selector | D43: Inputs
B44: Inputs_Actuals | C44: Actual months and opening balances; the only place actual data is typed | D44: Inputs
B45: Budget_FY26 | C45: The original FY2026 budget, never overwritten | D45: Inputs
B47: COLOUR LEGEND
B48: Input (typed value)
B49: Formula (calculated)
B50: Link from another sheet
B51: Actual month (column header)
B52: Forecast month (column header)

Sheet Guide
A1: =Assumptions!$C$6 -> Alderway Home B.V. (fictional demonstration company)
A2: MODEL GUIDE
A4: PURPOSE
A5: A single integrated workbook that does what a finance department does for an ecommerce business each month: closes the books into a three-statement pack, compares to budget, forecasts by driver under three scenarios, projects cash week by week for 13 weeks, and reports to the owners with quantified findings and actions.
A6: It is built so that every number can be traced: from the P&L to the schedule, from the schedule to the input or driver, and from the input to the document that would evidence it in a real close.
A8: HOW THE MODEL FLOWS
A9: 1. Inputs_Actuals holds the actual months (orders, units, prices, fees, refunds, opex, capex, bank cash movements) and the opening balance sheet. Assumptions holds the timeline, the scalars and the scenario drivers, with the selector in C11.
A10: 2. Volume_Price builds units by category and channel (actual from inputs, forecast from Channel_PL run-rates and the latest category mix) and prices and landed unit costs.
A11: 3. Channel_PL turns volumes into gross sales, discounts, refunds, shipping income, cost of goods, marketplace and fulfilment fees and paid media, giving CM1 and CM2 per channel.
A12: 4. Product_Contribution restates the same economics by category using each category share of channel gross sales as the allocation key; it ties to Channel_PL.
A13: 5. Settlements converts channel sales into what each platform actually pays out (VAT-inclusive charges less refunds less fees) and rolls the receivable; it also carries the refund liability.
A14: 6. Purchase_Orders is the register of committed supplier orders. Inventory rolls stock on hand by category (committed receipts from the register, uncommitted purchases from the days-of-cover policy), tracks in-transit stock and supplier deposits, and computes write-offs and the slow-moving provision.
A15: 7. Opex holds the headcount table and the opex lines; AP_Schedule rolls trade payables by supplier group; VAT rolls the quarterly payable; Fixed_Assets and Debt hold their schedules.
A16: 8. PL, BS and CF link only to schedules. CF is built indirectly and reconciled to a direct build of the schedule cash lines every month.
A17: 9. BvA, KPIs, Scenarios, Cash_13W, AR_Aging, AP_Aging and CFO_Report are reporting layers on top; Checks proves the structure holds.
A19: CONVENTIONS
A20: Revenue and cash receipts positive; costs, payments and deductions negative on the P&L, channel and settlement sheets. Schedules that roll balances show movements with their natural sign and a closing line.
A21: Blue on yellow = input; black = formula; green = link from another sheet. Columns C and D are FY2026 and FY2027 totals (sum, average, or closing balance as labelled in column B).
A22: Row 5 of every monthly sheet flags A (actual) or F (forecast). A formula that reads =IF(flag="A", input, driver) is the standard actual-or-forecast switch; nothing is overwritten when a month becomes actual.
A23: Walmart inputs are entered in USD as reported by Walmart Seller Center and converted at the monthly USD/EUR rate on the Timeline. All other amounts are EUR.
A24: Editable drivers are labelled in Assumptions and the input schedules. Timing conventions and period offsets are visible in formulas.
A26: MONTH-END PROCEDURE (adding September as an actual month)
A27: 1. Paste the September order export, settlement reports, fee invoices, opex ledger, capex and bank movements into column M of Inputs_Actuals (all lines in the actual sections).
A28: 2. Set Assumptions!C9 to the new last actual month after completing every required input. Refresh source records and the date-specific cash window separately.
A29: 3. Update the PO register for orders placed, shipped or received in the month, and roll the 13-week window forward one month (opening date, week 1 date, settlement dates, VAT date, to-date column).
A30: 4. Refresh the AR and AP aging items from the settlement reports and the AP ledger listing; the tie-out rows must return zero.
A31: 5. Refresh the scenario snapshots (see below), reread Checks until the overall status is OK, then rewrite the CFO report findings against the new numbers.
A33: SCENARIO REFRESH
A34: Set Assumptions!C11 to 1 (Base), 2 (Downside) and 3 (Upside) in turn. After each recalculation copy Scenarios column F and paste values into column C, D or E respectively. The check column confirms the snapshot for the selected scenario matches the live model.
A36: KNOWN SIMPLIFICATIONS (documented so nobody mistakes them for facts)
A37: Payouts, payments and the VAT settlement are sized by lag and DPO assumptions in forecast months; in actual months they are the bank figures.
A38: Category allocations of discounts, refunds, fees and paid media use gross sales share; a client build would use SKU-level fee reports and ad-group attribution.
A39: Unit costs roll forward from the last actual month at the cost inflation driver; a live build would take the weighted average cost from the inventory sub-ledger.
A40: Uncommitted purchases beyond the model horizon are assumed equal to the last modelled month for lead-time phasing (see Inventory policy flows).
A41: Tax rates, blended VAT, import treatment and payment dates are simplified fictional planning assumptions. They do not establish filing obligations, eligibility or actual tax due. The budget uses a flat 19% assumption.
A42: Inventory location shares (FBA, WFS, 3PL) are memo assumptions, not a live FBA inventory ledger.
A44: INFORMATION NEEDED TO CONVERT THIS INTO A CLIENT BUILD
A45: Settlement reports by platform (Amazon Date Range Reports, Walmart Payment reports, Shopify Payments payouts) to replace the fee ratios with transaction-level fees.
A46: SKU master with landed cost by receipt (PO, freight, duty) and the inventory sub-ledger by location to replace the weighted average unit cost and the location memo.
A47: Ad platform exports (Meta, Google, Amazon Ads, Walmart Connect) at campaign level to attribute paid media to categories and to compute true new-customer CAC.
A48: Returns reports by reason code and disposition (restock, refurbish, dispose) to replace the flat recovery rate.
A49: Bank statements and the AP ledger listing at each month end to replace the payment sizing assumptions in actual months and to age payables from documents.
A50: OSS return workings by member state to replace the blended EU VAT rate.
A52: Negative forecast cash is an unfunded requirement before new borrowing or management action. The undrawn facility is a separate assumption and is not automatically drawn.
A54: The 13-week minimum is measured at weekly close. Payments earlier in a week can create lower daily balances. Review dated daily liquidity before approving commitments.
A56: Reviewed derivative. The original supplied workbook is unchanged. Website JSON contains evaluated scenario captures and must be regenerated after model edits.
A58: The supplied horizon is January 2026 to December 2027. Extending or moving it requires review of dated cash events, tax-payment prior-year references, and actual-input ranges.

Sheet Checks
A1: =Assumptions!$C$6 -> Alderway Home B.V. (fictional demonstration company)
A2: MODEL INTEGRITY CHECKS
A3: Every check is a live formula. A value of zero (or a positive minimum where stated) returns OK. The overall status is shown on the Cover.
A5: Check | B5: What it proves | C5: Value | D5: Tolerance | E5: Status
A6: STATEMENT INTEGRITY
A7: Balance sheet balances in every month | B7: Total assets less liabilities and equity, all 24 months | C7: =SUM(ABS(BS!E38),ABS(BS!F38),ABS(BS!G38),ABS(BS!H38),ABS(BS!I38),ABS(BS!J38),ABS(BS!K38),ABS(BS!L38),ABS(BS!M38),ABS(BS!N38),ABS(BS!O38),ABS(BS!P38),ABS(BS!Q38),ABS(BS!R38),ABS(BS!S38),ABS(BS!T38),ABS(BS!U38),ABS(BS!V38),ABS(BS!W38),ABS(BS!X38),ABS(BS!Y38),ABS(BS!Z38),ABS(BS!AA38),ABS(BS!AB38)) -> 0 | D7: 0.5 | E7: =IF(ABS(C7)<=D7,"OK","CHECK") -> OK
A8: Cash flow: indirect method equals direct method in every month | B8: Net cash flow built from P&L and balance sheet movements equals the sum of the schedule cash lines | C8: =SUM(ABS(CF!E55),ABS(CF!F55),ABS(CF!G55),ABS(CF!H55),ABS(CF!I55),ABS(CF!J55),ABS(CF!K55),ABS(CF!L55),ABS(CF!M55),ABS(CF!N55),ABS(CF!O55),ABS(CF!P55),ABS(CF!Q55),ABS(CF!R55),ABS(CF!S55),ABS(CF!T55),ABS(CF!U55),ABS(CF!V55),ABS(CF!W55),ABS(CF!X55),ABS(CF!Y55),ABS(CF!Z55),ABS(CF!AA55),ABS(CF!AB55)) -> 0 | D8: 0.5 | E8: =IF(ABS(C8)<=D8,"OK","CHECK") -> OK
A9: Closing cash on the cash flow equals balance sheet cash | B9: Link integrity | C9: =SUM(ABS(CF!E39-BS!E9),ABS(CF!F39-BS!F9),ABS(CF!G39-BS!G9),ABS(CF!H39-BS!H9),ABS(CF!I39-BS!I9),ABS(CF!J39-BS!J9),ABS(CF!K39-BS!K9),ABS(CF!L39-BS!L9),ABS(CF!M39-BS!M9),ABS(CF!N39-BS!N9),ABS(CF!O39-BS!O9),ABS(CF!P39-BS!P9),ABS(CF!Q39-BS!Q9),ABS(CF!R39-BS!R9),ABS(CF!S39-BS!S9),ABS(CF!T39-BS!T9),ABS(CF!U39-BS!U9),ABS(CF!V39-BS!V9),ABS(CF!W39-BS!W9),ABS(CF!X39-BS!X9),ABS(CF!Y39-BS!Y9),ABS(CF!Z39-BS!Z9),ABS(CF!AA39-BS!AA9),ABS(CF!AB39-BS!AB9)) -> 0 | D9: 0.5 | E9: =IF(ABS(C9)<=D9,"OK","CHECK") -> OK
A10: Retained earnings roll: closing equals opening plus cumulative profit less dividends | B10: Equity roll-forward to Dec-27 | C10: =BS!AB35-(Inputs_Actuals!$C$138+SUM(BS!$E$33:$AB$33)-SUM(BS!$E$34:$AB$34)) -> 0 | D10: 0.5 | E10: =IF(ABS(C10)<=D10,"OK","CHECK") -> OK
A11: EBITDA on the cash flow equals EBITDA on the P&L | B11: Add-backs are complete | C11: =SUM(ABS(CF!E13-PL!E48),ABS(CF!F13-PL!F48),ABS(CF!G13-PL!G48),ABS(CF!H13-PL!H48),ABS(CF!I13-PL!I48),ABS(CF!J13-PL!J48),ABS(CF!K13-PL!K48),ABS(CF!L13-PL!L48),ABS(CF!M13-PL!M48),ABS(CF!N13-PL!N48),ABS(CF!O13-PL!O48),ABS(CF!P13-PL!P48),ABS(CF!Q13-PL!Q48),ABS(CF!R13-PL!R48),ABS(CF!S13-PL!S48),ABS(CF!T13-PL!T48),ABS(CF!U13-PL!U48),ABS(CF!V13-PL!V48),ABS(CF!W13-PL!W48),ABS(CF!X13-PL!X48),ABS(CF!Y13-PL!Y48),ABS(CF!Z13-PL!Z48),ABS(CF!AA13-PL!AA48),ABS(CF!AB13-PL!AB48)) -> 0 | D11: 0.5 | E11: =IF(ABS(C11)<=D11,"OK","CHECK") -> OK
A12: Opening balance sheet balances | B12: FY25 closing balances entered on Inputs_Actuals | C12: =Inputs_Actuals!$C$139 -> 0 | D12: 0.5 | E12: =IF(ABS(C12)<=D12,"OK","CHECK") -> OK
A13: SCHEDULE TIE-OUTS
A14: Product contribution: sum of categories equals channel net revenue | B14: Allocation keys sum to 100% every month | C14: =SUM(ABS(Product_Contribution!E132),ABS(Product_Contribution!F132),ABS(Product_Contribution!G132),ABS(Product_Contribution!H132),ABS(Product_Contribution!I132),ABS(Product_Contribution!J132),ABS(Product_Contribution!K132),ABS(Product_Contribution!L132),ABS(Product_Contribution!M132),ABS(Product_Contribution!N132),ABS(Product_Contribution!O132),ABS(Product_Contribution!P132),ABS(Product_Contribution!Q132),ABS(Product_Contribution!R132),ABS(Product_Contribution!S132),ABS(Product_Contribution!T132),ABS(Product_Contribution!U132),ABS(Product_Contribution!V132),ABS(Product_Contribution!W132),ABS(Product_Contribution!X132),ABS(Product_Contribution!Y132),ABS(Product_Contribution!Z132),ABS(Product_Contribution!AA132),ABS(Product_Contribution!AB132)) -> 0 | D14: 0.5 | E14: =IF(ABS(C14)<=D14,"OK","CHECK") -> OK
A15: Product contribution: sum of categories equals channel CM2 | B15: Every allocated cost line is fully distributed | C15: =SUM(ABS(Product_Contribution!E133),ABS(Product_Contribution!F133),ABS(Product_Contribution!G133),ABS(Product_Contribution!H133),ABS(Product_Contribution!I133),ABS(Product_Contribution!J133),ABS(Product_Contribution!K133),ABS(Product_Contribution!L133),ABS(Product_Contribution!M133),ABS(Product_Contribution!N133),ABS(Product_Contribution!O133),ABS(Product_Contribution!P133),ABS(Product_Contribution!Q133),ABS(Product_Contribution!R133),ABS(Product_Contribution!S133),ABS(Product_Contribution!T133),ABS(Product_Contribution!U133),ABS(Product_Contribution!V133),ABS(Product_Contribution!W133),ABS(Product_Contribution!X133),ABS(Product_Contribution!Y133),ABS(Product_Contribution!Z133),ABS(Product_Contribution!AA133),ABS(Product_Contribution!AB133)) -> 0 | D15: 0.5 | E15: =IF(ABS(C15)<=D15,"OK","CHECK") -> OK
A16: Volume engine: category units equal channel units | B16: Mix shares sum to 100% | C16: =SUM(ABS(Volume_Price!E30-Channel_PL!E10),ABS(Volume_Price!F30-Channel_PL!F10),ABS(Volume_Price!G30-Channel_PL!G10),ABS(Volume_Price!H30-Channel_PL!H10),ABS(Volume_Price!I30-Channel_PL!I10),ABS(Volume_Price!J30-Channel_PL!J10),ABS(Volume_Price!K30-Channel_PL!K10),ABS(Volume_Price!L30-Channel_PL!L10),ABS(Volume_Price!M30-Channel_PL!M10),ABS(Volume_Price!N30-Channel_PL!N10),ABS(Volume_Price!O30-Channel_PL!O10),ABS(Volume_Price!P30-Channel_PL!P10),ABS(Volume_Price!Q30-Channel_PL!Q10),ABS(Volume_Price!R30-Channel_PL!R10),ABS(Volume_Price!S30-Channel_PL!S10),ABS(Volume_Price!T30-Channel_PL!T10),ABS(Volume_Price!U30-Channel_PL!U10),ABS(Volume_Price!V30-Channel_PL!V10),ABS(Volume_Price!W30-Channel_PL!W10),ABS(Volume_Price!X30-Channel_PL!X10),ABS(Volume_Price!Y30-Channel_PL!Y10),ABS(Volume_Price!Z30-Channel_PL!Z10),ABS(Volume_Price!AA30-Channel_PL!AA10),ABS(Volume_Price!AB30-Channel_PL!AB10))+SUM(ABS(Volume_Price!E70-Channel_PL!E48),ABS(Volume_Price!F70-Channel_PL!F48),ABS(Volume_Price!G70-Channel_PL!G48),ABS(Volume_Price!H70-Channel_PL!H48),ABS(Volume_Price!I70-Channel_PL!I48),ABS(Volume_Price!J70-Channel_PL!J48),ABS(Volume_Price!K70-Channel_PL!K48),ABS(Volume_Price!L70-Channel_PL!L48),ABS(Volume_Price!M70-Channel_PL!M48),ABS(Volume_Price!N70-Channel_PL!N48),ABS(Volume_Price!O70-Channel_PL!O48),ABS(Volume_Price!P70-Channel_PL!P48),ABS(Volume_Price!Q70-Channel_PL!Q48),ABS(Volume_Price!R70-Channel_PL!R48),ABS(Volume_Price!S70-Channel_PL!S48),ABS(Volume_Price!T70-Channel_PL!T48),ABS(Volume_Price!U70-Channel_PL!U48),ABS(Volume_Price!V70-Channel_PL!V48),ABS(Volume_Price!W70-Channel_PL!W48),ABS(Volume_Price!X70-Channel_PL!X48),ABS(Volume_Price!Y70-Channel_PL!Y48),ABS(Volume_Price!Z70-Channel_PL!Z48),ABS(Volume_Price!AA70-Channel_PL!AA48),ABS(Volume_Price!AB70-Channel_PL!AB48))+SUM(ABS(Volume_Price!E110-Channel_PL!E82),ABS(Volume_Price!F110-Channel_PL!F82),ABS(Volume_Price!G110-Channel_PL!G82),ABS(Volume_Price!H110-Channel_PL!H82),ABS(Volume_Price!I110-Channel_PL!I82),ABS(Volume_Price!J110-Channel_PL!J82),ABS(Volume_Price!K110-Channel_PL!K82),ABS(Volume_Price!L110-Channel_PL!L82),ABS(Volume_Price!M110-Channel_PL!M82),ABS(Volume_Price!N110-Channel_PL!N82),ABS(Volume_Price!O110-Channel_PL!O82),ABS(Volume_Price!P110-Channel_PL!P82),ABS(Volume_Price!Q110-Channel_PL!Q82),ABS(Volume_Price!R110-Channel_PL!R82),ABS(Volume_Price!S110-Channel_PL!S82),ABS(Volume_Price!T110-Channel_PL!T82),ABS(Volume_Price!U110-Channel_PL!U82),ABS(Volume_Price!V110-Channel_PL!V82),ABS(Volume_Price!W110-Channel_PL!W82),ABS(Volume_Price!X110-Channel_PL!X82),ABS(Volume_Price!Y110-Channel_PL!Y82),ABS(Volume_Price!Z110-Channel_PL!Z82),ABS(Volume_Price!AA110-Channel_PL!AA82),ABS(Volume_Price!AB110-Channel_PL!AB82)) -> 0 | D16: 0.5 | E16: =IF(ABS(C16)<=D16,"OK","CHECK") -> OK
A17: AR aging: marketplace receivables tie to the balance sheet | B17: Aging built from settlement reports agrees with the ledger at the last actual month | C17: =AR_Aging!H19 -> 0 | D17: 0.5 | E17: =IF(ABS(C17)<=D17,"OK","CHECK") -> OK
A18: AR aging: other receivables tie to the balance sheet | C18: =AR_Aging!H20 -> 0 | D18: 0.5 | E18: =IF(ABS(C18)<=D18,"OK","CHECK") -> OK
A19: AP aging: logistics group ties to the AP schedule | B19: Open invoices agree with the roll-forward closing balance | C19: =AP_Aging!H24 -> 0 | D19: 0.5 | E19: =IF(ABS(C19)<=D19,"OK","CHECK") -> OK
A20: AP aging: paid media group ties to the AP schedule | C20: =AP_Aging!H25 -> 0 | D20: 0.5 | E20: =IF(ABS(C20)<=D20,"OK","CHECK") -> OK
A21: AP aging: other opex group ties to the AP schedule | C21: =AP_Aging!H26 -> 0 | D21: 0.5 | E21: =IF(ABS(C21)<=D21,"OK","CHECK") -> OK
A22: PO register: deposits on unshipped POs equal supplier deposits at the last actual month | B22: Balance sheet prepayments are fully supported by the register | C22: =SUMIFS(Purchase_Orders!$G$6:$G$24,Purchase_Orders!$D$6:$D$24,"<="&Assumptions!$C$9,Purchase_Orders!$I$6:$I$24,">"&Assumptions!$C$9)-INDEX(Inventory!$E$111:$AB$111,1,Assumptions!$C$10) -> 0 | D22: 0.5 | E22: =IF(ABS(C22)<=D22,"OK","CHECK") -> OK
A23: PO register: FOB value of shipped, unarrived POs equals inventory in transit at the last actual month | B23: Balance sheet in-transit is fully supported by the register | C23: =SUMIFS(Purchase_Orders!$F$6:$F$24,Purchase_Orders!$I$6:$I$24,"<="&Assumptions!$C$9,Purchase_Orders!$L$6:$L$24,">"&Assumptions!$C$9)-INDEX(Inventory!$E$103:$AB$103,1,Assumptions!$C$10) -> 0 | D23: 0.5 | E23: =IF(ABS(C23)<=D23,"OK","CHECK") -> OK
A24: 13-week cash forecast reconciles to the monthly balance sheet at 31-Dec-26 | B24: Weekly phasing distributes exactly the monthly cash lines | C24: =Cash_13W!C86 -> 0 | D24: 0.5 | E24: =IF(ABS(C24)<=D24,"OK","CHECK") -> OK
A25: Scenario snapshots are current for the selected scenario | B25: Live column equals the stored snapshot | C25: =Scenarios!G31 -> 0 | D25: 0.5 | E25: =IF(ABS(C25)<=D25,"OK","CHECK") -> OK
A26: Budget vs actual revenue bridge reconciles to the P&L variance | B26: Channel volume, price/mix and refund adjustment reconcile to financial net revenue. | C26: =BvA!I51 -> 0 | D26: 0.5 | E26: =IF(ABS(C26)<=D26,"OK","CHECK") -> OK
A27: SIGN AND RANGE CHECKS (minimum values, must not be negative)
A28: Inventory on hand by category never negative | B28: Purchasing policy keeps stock available | C28: =MIN(MIN(Inventory!$E$16:$AB$16),MIN(Inventory!$E$30:$AB$30),MIN(Inventory!$E$44:$AB$44),MIN(Inventory!$E$58:$AB$58),MIN(Inventory!$E$72:$AB$72)) -> 26,147 | D28: 0.0 | E28: =IF(C28>=-D28,"OK","CHECK") -> OK
A29: Marketplace receivables never negative | B29: Payout sizing is bounded by the receivable | C29: =MIN(MIN(Settlements!$E$16:$AB$16),MIN(Settlements!$E$27:$AB$27),MIN(Settlements!$E$38:$AB$38)) -> 6,395 | D29: 0.0 | E29: =IF(C29>=-D29,"OK","CHECK") -> OK
A30: Trade payables never negative | C30: =MIN(AP_Schedule!$E$35:$AB$35) -> 62,533 | D30: 0.0 | E30: =IF(C30>=-D30,"OK","CHECK") -> OK
A31: Fixed asset net book value never negative | B31: Depreciation is capped at cost | C31: =MIN(Fixed_Assets!$E$29:$AB$29) -> 41,483 | D31: 0.0 | E31: =IF(C31>=-D31,"OK","CHECK") -> OK
A32: Term loan balance never negative | B32: Principal is capped at the balance | C32: =MIN(Debt!$E$14:$AB$14) -> 214,926 | D32: 0.0 | E32: =IF(C32>=-D32,"OK","CHECK") -> OK
A33: Timeline: months flagged actual equal the last actual month index | B33: Actual and forecast flags are consistent | C33: =COUNTIF(Assumptions!$E$63:$AB$63,"A")-Assumptions!$C$10 -> 0 | D33: 0.5 | E33: =IF(ABS(C33)<=D33,"OK","CHECK") -> OK
A34: Budget comparison net revenue agrees with financial P&L | B34: YTD and FY26 use the same financial net revenue basis. | C34: =ABS(BvA!B14-SUMIFS(PL!$E$14:$AB$14,Assumptions!$E$63:$AB$63,"A"))+ABS(BvA!F14-PL!C14) -> 0 | D34: 0.01 | E34: =IF(ABS(C34)<=D34,"OK","CHECK") -> OK
A35: OVERALL MODEL STATUS | E35: =IF(COUNTIF(E6:E34,"OK")=26,"OK","CHECK") -> OK
A37: BUSINESS WARNINGS (not model errors: flags for the CFO report)
A38: Lowest month-end cash in the forecast (selected scenario) | B38: Below the buffer means a facility draw or action is needed | C38: =MIN(BS!M9:AB9) -> 1,825
A39: Lowest 13-week closing cash | C39: =Cash_13W!C75 -> 290,055
A40: Highest days of inventory on hand in the forecast | B40: Over 150 days signals overstock | C40: =MAX(Inventory!M90:AB90) -> 128.2
A41: Amazon share of FY2026 net revenue | B41: Concentration above 50% is a dependency risk | C41: =KPIs!$C$30 -> 42.3%

Sheet CFO_Report
A1: =Assumptions!$C$6 -> Alderway Home B.V. (fictional demonstration company)
B2: CFO MANAGEMENT REPORT
B3: Selected scenario figures update with the model. Interpretations, risks and actions are illustrative editorial commentary and must be reviewed after any input changes.
B4: FICTIONAL DEMONSTRATION: Alderway Home B.V. and every figure in this report were generated for demonstration purposes.
B6: 1. HEADLINE
B7: ="YTD financial net revenue is EUR "&TEXT(BvA!B14,"#,##0")&", a variance of EUR "&TEXT(BvA!D14,"#,##0")&" against budget. Gross margin is "&TEXT(BvA!B17,"0.0%")&" compared with "&TEXT(BvA!C17,"0.0%")&" budget. Contribution after marketing is EUR "&TEXT(BvA!B21,"#,##0")&" and EBITDA is EUR "&TEXT(BvA!B36,"#,##0")&" compared with EUR "&TEXT(BvA!C36,"#,##0")&" budget." -> YTD financial net revenue is EUR 2,432,918, a variance of EUR -187,702 against budget. Gross margin is 63.3% compared with 62.5% budget. Contribution after marketing is EUR 647,256 and EBITDA is EUR 19,895 compared with EUR 172,743 budget.
B8: ="Full-year outlook (actual plus "&Assumptions!$C$12&" forecast): net revenue EUR "&TEXT((BvA!F14)/1000,"#,##0")&"k ("&TEXT((BvA!I14),"0.0%")&" vs budget), EBITDA EUR "&TEXT((BvA!F36)/1000,"#,##0")&"k ("&TEXT((BvA!F37),"0.0%")&" of revenue) and net profit EUR "&TEXT((BvA!F38)/1000,"#,##0")&"k. Cash closes December at EUR "&TEXT((BvA!F40)/1000,"#,##0")&"k, of which EUR "&TEXT((BS!C22)/1000,"#,##0")&"k is the Q4 VAT that leaves in January, so the underlying year-end position is EUR "&TEXT((BS!C9-BS!C22)/1000,"#,##0")&"k." -> Full-year outlook (actual plus Base forecast): net revenue EUR 4,311k (-5.7% vs budget), EBITDA EUR 136k (3.2% of revenue) and net profit EUR 63k. Cash closes December at EUR 611k, of which EUR 242k is the Q4 VAT that leaves in January, so the underlying year-end position is EUR 369k.
B9: The cash schedule measures weekly closing balances. Review payment dates and daily liquidity before approving commitments; a positive weekly close does not establish that cash remains above the reserve throughout the week.
B10: ="The selected "&Assumptions!$C$12&" case has a lowest forecast month-end cash balance of EUR "&TEXT(Scenarios!F22,"#,##0")&" in "&TEXT(Scenarios!F23,"mmm-yy")&". The gap against the cash reserve is EUR "&TEXT(Scenarios!F24,"#,##0")&". Negative cash represents an unfunded requirement. Facility availability, costs and management actions must be agreed separately." -> The selected Base case has a lowest forecast month-end cash balance of EUR 1,825 in Oct-27. The gap against the cash reserve is EUR -148,175. Negative cash represents an unfunded requirement. Facility availability, costs and management actions must be agreed separately.
B11: 2. WHAT HAPPENED YEAR TO DATE (figures from BvA and Channel_PL)
B12: ="Channel revenue is below budget by EUR "&TEXT(ABS(BvA!H49),"#,##0")&". The bridge shows EUR "&TEXT(BvA!F49,"#,##0")&" from unit volume and EUR "&TEXT(BvA!G49,"#,##0")&" from price and mix. A separate EUR "&TEXT(BvA!H50,"#,##0")&" refund provision adjustment completes the financial net revenue variance of EUR "&TEXT(BvA!D14,"#,##0")&". Walmart orders total "&TEXT(BvA!B9,"#,##0")&" against "&TEXT(BvA!C9,"#,##0")&" budget." -> Channel revenue is below budget by EUR 194,890. The bridge shows EUR -212,117 from unit volume and EUR 17,228 from price and mix. A separate EUR 7,188 refund provision adjustment completes the financial net revenue variance of EUR -187,702. Walmart orders total 3,488 against 5,220 budget.
B13: ="For January-August 2026, Shopify orders are "&TEXT(BvA!E7,"0.0%")&" vs budget and Amazon orders are "&TEXT(BvA!E8,"0.0%")&". Financial net revenue per order is EUR "&TEXT(SUM(PL!E14:L14)/SUM(Channel_PL!E114:L114),"#,##0.00")&" against a YTD budget of EUR "&TEXT(SUM(Budget_FY26!E24:L24)/SUM(Budget_FY26!E25:L25),"#,##0.00")&". YTD channel refunds are "&TEXT(-SUM(Channel_PL!E118:L118)/SUM(Channel_PL!E116:L116),"0.0%")&" of gross sales. Review the fictional Q2 Textiles quality issue against the returns schedule." -> For January-August 2026, Shopify orders are -5.7% vs budget and Amazon orders are -3.6%. Financial net revenue per order is EUR 64.28 against a YTD budget of EUR 63.58. YTD channel refunds are 6.9% of gross sales. Review the fictional Q2 Textiles quality issue against the returns schedule.
B14: ="Cost of selling is the second problem. Variable channel costs (payment, referral, fulfilment, storage and inbound) were EUR "&TEXT((ABS(BvA!B18))/1000,"#,##0")&"k, "&TEXT((ABS(BvA!E18)),"0.0%")&" over budget, driven by Amazon FBA fee changes and the peak storage multiplier. Paid media of EUR "&TEXT((ABS(BvA!B20))/1000,"#,##0")&"k is close to budget in total, but its efficiency is not: Shopify paid CAC moved from EUR "&TEXT((INDEX(Channel_PL!$E$44:$AB$44,1,1)),"#,##0")&" in January to EUR "&TEXT((INDEX(Channel_PL!$E$44:$AB$44,1,Assumptions!$C$10)),"#,##0")&" in "&TEXT(Assumptions!$C$9,"mmmm")&", and Shopify ROAS from "&TEXT((INDEX(KPIs!$E$23:$AB$23,1,1)),"0.0")&"x to "&TEXT((INDEX(KPIs!$E$23:$AB$23,1,Assumptions!$C$10)),"0.0")&"x. Contribution margin after marketing is "&TEXT((BvA!B22),"0.0%")&" against a "&TEXT((BvA!C22),"0.0%")&" budget: that "&TEXT((ABS(BvA!D22)*100),"0.0")&" point gap on the full-year revenue is EUR "&TEXT((ABS(BvA!D22)*BvA!F14)/1000,"#,##0")&"k of profit." -> Cost of selling is the second problem. Variable channel costs (payment, referral, fulfilment, storage and inbound) were EUR 550k, 5.1% over budget, driven by Amazon FBA fee changes and the peak storage multiplier. Paid media of EUR 342k is close to budget in total, but its efficiency is not: Shopify paid CAC moved from EUR 21 in January to EUR 26 in August, and Shopify ROAS from 5.9x to 5.0x. Contribution margin after marketing is 26.6% against a 29.8% budget: that 3.2 point gap on the full-year revenue is EUR 137k of profit.
B15: ="Operating expenses are EUR "&TEXT((ABS(BvA!B35))/1000,"#,##0")&"k, "&TEXT((ABS(BvA!E35)),"0.0%")&" over budget. Salaries are on plan; the overrun is discretionary: content and creative EUR "&TEXT((ABS(BvA!D30))/1000,"#,##0")&"k over ("&TEXT((ABS(BvA!E30)),"0%")&"), recruitment EUR "&TEXT((ABS(BvA!D34))/1000,"#,##0")&"k over, contractors EUR "&TEXT((ABS(BvA!D24))/1000,"#,##0")&"k over. None of these lines has an approval owner today; the action list fixes that." -> Operating expenses are EUR 627k, 3.2% over budget. Salaries are on plan; the overrun is discretionary: content and creative EUR 8k over (19%), recruitment EUR 3k over, contractors EUR 4k over. None of these lines has an approval owner today; the action list fixes that.
B16: 3. CASH, WORKING CAPITAL AND THE 13 WEEKS
B17: ="Cash at "&TEXT(Assumptions!$C$9,"mmm-yy")&" is EUR "&TEXT((INDEX(BS!$E$9:$AB$9,1,Assumptions!$C$10))/1000,"#,##0")&"k against a budgeted EUR "&TEXT((BvA!C40)/1000,"#,##0")&"k. Inventory on hand is EUR "&TEXT((INDEX(KPIs!$E$39:$AB$39,1,Assumptions!$C$10))/1000,"#,##0")&"k ("&TEXT((INDEX(KPIs!$E$32:$AB$32,1,Assumptions!$C$10)),"0")&" days), EUR "&TEXT((ABS(BvA!D41))/1000,"#,##0")&"k below budget, because the business ran stock down after a weak Q2 rather than because it bought well. The cash conversion cycle is "&TEXT((INDEX(KPIs!$E$35:$AB$35,1,Assumptions!$C$10)),"0")&" days (DIO "&TEXT((INDEX(KPIs!$E$32:$AB$32,1,Assumptions!$C$10)),"0")&", DSO "&TEXT((INDEX(KPIs!$E$33:$AB$33,1,Assumptions!$C$10)),"0")&", DPO "&TEXT((INDEX(KPIs!$E$34:$AB$34,1,Assumptions!$C$10)),"0")&")." -> Cash at Aug-26 is EUR 391k against a budgeted EUR 438k. Inventory on hand is EUR 383k (97 days), EUR 137k below budget, because the business ran stock down after a weak Q2 rather than because it bought well. The cash conversion cycle is 77 days (DIO 97, DSO 11, DPO 31).
B18: ="The 13-week forecast starts from EUR "&TEXT((Cash_13W!C68)/1000,"#,##0")&"k and ends the week of 11-Dec at EUR "&TEXT((Cash_13W!T69)/1000,"#,##0")&"k. Receipts of EUR "&TEXT((Cash_13W!U51)/1000,"#,##0")&"k are set against payments of EUR "&TEXT((ABS(Cash_13W!U65))/1000,"#,##0")&"k, of which committed purchase orders EUR "&TEXT((ABS(Cash_13W!U53))/1000,"#,##0")&"k and the Q3 VAT and OSS payment EUR "&TEXT((ABS(Cash_13W!U60))/1000,"#,##0")&"k on 31-Oct, which is what produces the low point in the following week. The forecast reconciles to the December balance sheet to the euro (Checks)." -> The 13-week forecast starts from EUR 351k and ends the week of 11-Dec at EUR 539k. Receipts of EUR 1,294k are set against payments of EUR 1,105k, of which committed purchase orders EUR 213k and the Q3 VAT and OSS payment EUR 150k on 31-Oct, which is what produces the low point in the following week. The forecast reconciles to the December balance sheet to the euro (Checks).
B19: ="Inventory is unbalanced rather than short. At the last actual month Cookware carried "&TEXT((Product_Contribution!C138),"0")&" days of cover and Knives "&TEXT((Product_Contribution!C142),"0")&", against Tableware at "&TEXT((Product_Contribution!C150),"0")&" days and Storage at "&TEXT((Product_Contribution!C154),"0")&". The register shows EUR "&TEXT((Purchase_Orders!F28)/1000,"#,##0")&"k FOB of open orders with EUR "&TEXT((Purchase_Orders!F31)/1000,"#,##0")&"k of cash still to pay; the two Cookware orders arriving in September and October cover peak, and the Tableware order placed for January should be cut or deferred while the slow-moving provision stands at EUR "&TEXT((INDEX(Inventory!$E$87:$AB$87,1,Assumptions!$C$10))/1000,"#,##0")&"k." -> Inventory is unbalanced rather than short. At the last actual month Cookware carried 23 days of cover and Knives 52, against Tableware at 208 days and Storage at 302. The register shows EUR 692k FOB of open orders with EUR 354k of cash still to pay; the two Cookware orders arriving in September and October cover peak, and the Tableware order placed for January should be cut or deferred while the slow-moving provision stands at EUR 7k.
B20: ="Receivables are clean apart from two items: an Amazon FBA reimbursement claim of EUR "&TEXT((AR_Aging!D13),"#,##0")&" open "&TEXT((AR_Aging!F13),"0")&" days and a disputed forwarder invoice of EUR "&TEXT((AP_Aging!D10),"#,##0")&" ("&TEXT((AP_Aging!F10),"0")&" days past due) on the payables side. Marketplace balances of EUR "&TEXT((INDEX(BS!$E$10:$AB$10,1,Assumptions!$C$10))/1000,"#,##0")&"k are "&TEXT((INDEX(Settlements!$E$48:$AB$48,1,Assumptions!$C$10)),"0")&" days of settlements, in line with the platform cycles." -> Receivables are clean apart from two items: an Amazon FBA reimbursement claim of EUR 4,120 open 47 days and a disputed forwarder invoice of EUR 2,000 (47 days past due) on the payables side. Marketplace balances of EUR 105k are 11 days of settlements, in line with the platform cycles.
B21: 4. SCENARIOS (Scenarios sheet; snapshot values from three full model runs)
B22: ="Base: FY2027 net revenue EUR "&TEXT((Scenarios!C10)/1000,"#,##0")&"k, EBITDA EUR "&TEXT((Scenarios!C18)/1000,"#,##0")&"k ("&TEXT((Scenarios!C30),"0.0%")&"), lowest cash EUR "&TEXT((Scenarios!C22)/1000,"#,##0")&"k. Downside: revenue EUR "&TEXT((Scenarios!D10)/1000,"#,##0")&"k, EBITDA EUR "&TEXT((Scenarios!D18)/1000,"#,##0")&"k, lowest cash EUR "&TEXT((Scenarios!D22)/1000,"#,##0")&"k, a funding need of EUR "&TEXT((ABS(MIN(0,Scenarios!D24)))/1000,"#,##0")&"k against the buffer. Upside: revenue EUR "&TEXT((Scenarios!E10)/1000,"#,##0")&"k, EBITDA EUR "&TEXT((Scenarios!E18)/1000,"#,##0")&"k, lowest cash EUR "&TEXT((Scenarios!E22)/1000,"#,##0")&"k." -> Base: FY2027 net revenue EUR 5,611k, EBITDA EUR 239k (4.3%), lowest cash EUR 2k. Downside: revenue EUR 4,478k, EBITDA EUR -263k, lowest cash EUR -215k, a funding need of EUR 365k against the buffer. Upside: revenue EUR 6,376k, EBITDA EUR 677k, lowest cash EUR 172k.
B23: ="The downside is the case that matters for the board: it combines slower growth, higher discounting and refunds, a heavier paid-media load and the current inventory policy, and it exhausts cash in the FY2027 peak build. The contingency plan is written now, with triggers on the monthly KPIs (CM2 % below "&TEXT((BvA!C22-0.05),"0.0%")&" for two months, or Shopify CAC above EUR "&TEXT((INDEX(Channel_PL!$E$44:$AB$44,1,Assumptions!$C$10)*1.15),"#,##0")&"), not when the trough arrives." -> The downside is the case that matters for the board: it combines slower growth, higher discounting and refunds, a heavier paid-media load and the current inventory policy, and it exhausts cash in the FY2027 peak build. The contingency plan is written now, with triggers on the monthly KPIs (CM2 % below 24.8% for two months, or Shopify CAC above EUR 30), not when the trough arrives.
B24: 5. RISK REGISTER (scored 1 to 5; score = likelihood x impact)
B25: Risk | C25: Likelihood | D25: Impact | E25: Score | F25: Mitigation and owner
B26: FY2027 peak-season funding gap: the Base case falls below the cash buffer in Oct-27 and the downside turns cash negative | C26: 4 | D26: 4 | E26: =C26*D26 -> 16 | F26: Evaluate an additional EUR 250k inventory facility alongside the assumed EUR 150k undrawn line, or alternative supplier terms. Confirm draw conditions, costs and timing before relying on either source.
B27: ="Amazon dependency: Amazon is "&TEXT(KPIs!C30,"0%")&" of FY2026 net revenue and holds a settlement reserve; an account health event stops both revenue and cash" -> Amazon dependency: Amazon is 42% of FY2026 net revenue and holds a settlement reserve; an account health event stops both revenue and cash | C27: 3 | D27: 5 | E27: =C27*D27 -> 15 | F27: Keep account health metrics above thresholds weekly, hold 14 days of Amazon settlements as buffer, grow Shopify share; Head of Ecommerce
B28: ="Cookware stock-out in Q4: cover fell to "&TEXT(Product_Contribution!C138,"0")&" days at the last actual month; peak depends on two POs arriving in Sep and Oct" -> Cookware stock-out in Q4: cover fell to 23 days at the last actual month; peak depends on two POs arriving in Sep and Oct | C28: 3 | D28: 4 | E28: =C28*D28 -> 12 | F28: Track PO-2026-024 and PO-2026-026 weekly against ETA; air-freight option priced now; Operations and Supply Chain Manager
B29: Overstock in Tableware and Storage: over 200 days of cover ties up cash and drives the slow-moving provision | C29: 4 | D29: 3 | E29: =C29*D29 -> 12 | F29: Freeze new Tableware and Storage orders, run a Q4 bundle promotion, defer PO-2026-043; Head of Ecommerce
B30: ="Paid media efficiency: Shopify CAC up "&TEXT(INDEX(Channel_PL!$E$44:$AB$44,1,Assumptions!$C$10)/INDEX(Channel_PL!$E$44:$AB$44,1,1)-1,"0%")&" since January; the budget assumed flat CAC" -> Paid media efficiency: Shopify CAC up 25% since January; the budget assumed flat CAC | C30: 4 | D30: 3 | E30: =C30*D30 -> 12 | F30: Weekly CAC and ROAS by campaign, cap Meta spend at the CM2 breakeven CAC, shift budget to email and retention; Performance Marketing Manager
B31: Walmart ramp: orders one third below budget; fixed WFS costs and ads spend do not scale down automatically | C31: 4 | D31: 2 | E31: =C31*D31 -> 8 | F31: Review Walmart trading at 900 monthly orders. Proposed interim Walmart Connect cap: 12% of net revenue, subject to campaign contribution.
B32: ="USD exposure: Walmart revenue in USD with EUR costs; a 5% move is worth about EUR "&TEXT(PL!D11*0.05/1000,"#,##0")&"k of FY2027 revenue" -> USD exposure: Walmart revenue in USD with EUR costs; a 5% move is worth about EUR 46k of FY2027 revenue | C32: 3 | D32: 2 | E32: =C32*D32 -> 6 | F32: No hedge below EUR 1m of USD revenue; review quarterly; BriQs CFO
B33: ="Supplier concentration: Foshan Crestware is "&TEXT(SUMIFS(Purchase_Orders!F6:F24,Purchase_Orders!B6:B24,"Foshan Crestware Manufacturing Co.")/Purchase_Orders!F25,"0%")&" of committed FOB value and the only cookware source" -> Supplier concentration: Foshan Crestware is 44% of committed FOB value and the only cookware source | C33: 2 | D33: 4 | E33: =C33*D33 -> 8 | F33: Qualify a second cookware supplier in Q1 FY2027; Operations and Supply Chain Manager
B34: ="VAT and OSS compliance: quarterly payables reach EUR "&TEXT(BS!C22/1000,"#,##0")&"k in December; late filing penalties and interest apply" -> VAT and OSS compliance: quarterly payables reach EUR 242k in December; late filing penalties and interest apply | C34: 2 | D34: 3 | E34: =C34*D34 -> 6 | F34: Reconcile VAT to the settlement reports monthly, not just at filing; BriQs finance team
B35: Disputed forwarder invoice and open Amazon reimbursement claim: small amounts, but both show control gaps in three-way matching | C35: 3 | D35: 1 | E35: =C35*D35 -> 3 | F35: Close both by 31-Oct; add PO-to-invoice matching for freight; BriQs finance team
B37: 6. ACTIONS (owner, due date, status)
B38: Action | C38: Owner | D38: Due | E38: Status | F38: Measure of done
B39: Evaluate an additional EUR 250k inventory facility alongside the assumed EUR 150k undrawn line, or alternative supplier terms; confirm the combined funding plan against the Downside reserve shortfall. | C39: CEO | D39: 2027-03-31 | E39: Open | F39: Signed facility or amended supplier terms before the Jun-27 deposits
B40: Cut Tableware and Storage purchasing: cancel or defer PO-2026-043 and run a Q4 bundle promotion to bring both categories under 120 days of cover by Dec-26 | C40: Head of Ecommerce | D40: 2026-10-15 | E40: Open | F40: DIO under 120 days on the Product_Contribution scorecard
B41: Weekly Q4 stock watch on Cookware and Knives against PO-2026-024, 025, 026 and 034 ETAs, with an air-freight fallback priced by 30-Sep | C41: Operations and Supply Chain Manager | D41: 2026-09-30 | E41: In progress | F41: Cover never below 30 days through December
B42: Paid media rules: Meta and Google capped at the CM2 breakeven CAC by campaign, weekly CAC and ROAS reporting, 10% of budget moved to retention | C42: Performance Marketing Manager | D42: 2026-10-01 | E42: Open | F42: Shopify CAC back under EUR 23 by Nov-26
B43: Walmart go or no-go review at 900 orders a month; until then Walmart Connect spend capped at 12% of net revenue | C43: Marketplace Specialist | D43: 2026-11-15 | E43: Open | F43: Decision minuted with the Q4 trading numbers
B44: Approval owner and monthly cap on content, recruitment and contractor spend; over-cap requests to the CEO in writing | C44: CEO | D44: 2026-09-30 | E44: Open | F44: Opex variance on those three lines at zero from October
B45: Close the Amazon FBA reimbursement claim (EUR 4,120) and the disputed Northsea invoice (EUR 2,000); add freight invoice matching to the AP checklist | C45: BriQs finance team | D45: 2026-10-31 | E45: In progress | F45: Both items off the aging, checklist updated
B46: Downside contingency plan written with KPI triggers (CM2 %, CAC, cash headroom) and the five cash levers on Cash_13W in priority order | C46: BriQs CFO | D46: 2026-10-15 | E46: Open | F46: Plan approved by the CEO and attached to the October pack
B47: Qualify a second cookware supplier and obtain samples; target 30% of FY2027 Cookware FOB | C47: Operations and Supply Chain Manager | D47: 2027-02-28 | E47: Open | F47: Supplier qualified with a first PO placed
B49: 7. INFORMATION NEEDED BEFORE THE OCTOBER PACK
B50: Amazon Date Range Reports and Walmart Payment reports for September, so fees and reserves are taken from the platform rather than from ratios.
B51: Returns report by reason code for Textiles, to confirm whether the Q2 quality issue is closed or still running in the refund rate.
B52: Confirmation from Foshan Crestware of the shipped date and container number for PO-2026-026, and a quote for a 40% air-freight split if the ETA slips past 25-Oct.
B53: The September bank statements and updated payable records are needed for the October pack. Refresh the to-date column and cash dates with the corresponding reporting cutoff.
B54: The signed facility term sheet or the amended supplier terms, whichever the CEO chooses, so the FY2027 forecast carries the real cost of funding.
B56: Prepared by BriQs Group. All company financial records and figures in this demonstration are fictional.

Sheet KPIs
A1: =Assumptions!$C$6 -> Alderway Home B.V. (fictional demonstration company)
A2: KPI DASHBOARD (EUR)
A3: Every figure is a live link into the statements and schedules. Summary block: C = YTD actual, D = FY2026 outlook. Monthly rows follow the Timeline.
A4: Line | B4: Basis | C4: FY2026 | D4: FY2027 | E4: =Assumptions!E$61 -> 2026-01-31 | F4: =Assumptions!F$61 -> 2026-02-28 | G4: =Assumptions!G$61 -> 2026-03-31 | H4: =Assumptions!H$61 -> 2026-04-30 | I4: =Assumptions!I$61 -> 2026-05-31 | J4: =Assumptions!J$61 -> 2026-06-30 | K4: =Assumptions!K$61 -> 2026-07-31 | L4: =Assumptions!L$61 -> 2026-08-31 | M4: =Assumptions!M$61 -> 2026-09-30 | N4: =Assumptions!N$61 -> 2026-10-31 | O4: =Assumptions!O$61 -> 2026-11-30 | P4: =Assumptions!P$61 -> 2026-12-31 | Q4: =Assumptions!Q$61 -> 2027-01-31 | R4: =Assumptions!R$61 -> 2027-02-28 | S4: =Assumptions!S$61 -> 2027-03-31 | T4: =Assumptions!T$61 -> 2027-04-30 | U4: =Assumptions!U$61 -> 2027-05-31 | V4: =Assumptions!V$61 -> 2027-06-30 | W4: =Assumptions!W$61 -> 2027-07-31 | X4: =Assumptions!X$61 -> 2027-08-31 | Y4: =Assumptions!Y$61 -> 2027-09-30 | Z4: =Assumptions!Z$61 -> 2027-10-31 | AA4: =Assumptions!AA$61 -> 2027-11-30 | AB4: =Assumptions!AB$61 -> 2027-12-31
A5: Actual (A) or Forecast (F) | C5: A + F | D5: F | E5: =Assumptions!E$63 -> A | F5: =Assumptions!F$63 -> A | G5: =Assumptions!G$63 -> A | H5: =Assumptions!H$63 -> A | I5: =Assumptions!I$63 -> A | J5: =Assumptions!J$63 -> A | K5: =Assumptions!K$63 -> A | L5: =Assumptions!L$63 -> A | M5: =Assumptions!M$63 -> F | N5: =Assumptions!N$63 -> F | O5: =Assumptions!O$63 -> F | P5: =Assumptions!P$63 -> F | Q5: =Assumptions!Q$63 -> F | R5: =Assumptions!R$63 -> F | S5: =Assumptions!S$63 -> F | T5: =Assumptions!T$63 -> F | U5: =Assumptions!U$63 -> F | V5: =Assumptions!V$63 -> F | W5: =Assumptions!W$63 -> F | X5: =Assumptions!X$63 -> F | Y5: =Assumptions!Y$63 -> F | Z5: =Assumptions!Z$63 -> F | AA5: =Assumptions!AA$63 -> F | AB5: =Assumptions!AB$63 -> F
A6: Month number | E6: =Assumptions!E$62 -> 1 | F6: =Assumptions!F$62 -> 2 | G6: =Assumptions!G$62 -> 3 | H6: =Assumptions!H$62 -> 4 | I6: =Assumptions!I$62 -> 5 | J6: =Assumptions!J$62 -> 6 | K6: =Assumptions!K$62 -> 7 | L6: =Assumptions!L$62 -> 8 | M6: =Assumptions!M$62 -> 9 | N6: =Assumptions!N$62 -> 10 | O6: =Assumptions!O$62 -> 11 | P6: =Assumptions!P$62 -> 12 | Q6: =Assumptions!Q$62 -> 13 | R6: =Assumptions!R$62 -> 14 | S6: =Assumptions!S$62 -> 15 | T6: =Assumptions!T$62 -> 16 | U6: =Assumptions!U$62 -> 17 | V6: =Assumptions!V$62 -> 18 | W6: =Assumptions!W$62 -> 19 | X6: =Assumptions!X$62 -> 20 | Y6: =Assumptions!Y$62 -> 21 | Z6: =Assumptions!Z$62 -> 22 | AA6: =Assumptions!AA$62 -> 23 | AB6: =Assumptions!AB$62 -> 24
A8: GROWTH AND MARGIN
A9: Net revenue | B9: PL | C9: =SUM(E9:P9) -> 4,310,577 | D9: =SUM(Q9:AB9) -> 5,617,560 | E9: =PL!E12 -> 267,554 | F9: =PL!F12 -> 250,862 | G9: =PL!G12 -> 294,378 | H9: =PL!H12 -> 310,999 | I9: =PL!I12 -> 348,898 | J9: =PL!J12 -> 331,947 | K9: =PL!K12 -> 306,561 | L9: =PL!L12 -> 314,532 | M9: =PL!M12 -> 353,616 | N9: =PL!N12 -> 409,700 | O9: =PL!O12 -> 591,955 | P9: =PL!P12 -> 529,576 | Q9: =PL!Q12 -> 338,065 | R9: =PL!R12 -> 322,166 | S9: =PL!S12 -> 371,326 | T9: =PL!T12 -> 393,147 | U9: =PL!U12 -> 424,517 | V9: =PL!V12 -> 421,722 | W9: =PL!W12 -> 409,466 | X9: =PL!X12 -> 410,364 | Y9: =PL!Y12 -> 473,230 | Z9: =PL!Z12 -> 548,841 | AA9: =PL!AA12 -> 793,811 | AB9: =PL!AB12 -> 710,906
A10: Growth vs prior month | F10: =IF(E9=0,0,F9/E9-1) -> (6.2%) | G10: =IF(F9=0,0,G9/F9-1) -> 17.3% | H10: =IF(G9=0,0,H9/G9-1) -> 5.6% | I10: =IF(H9=0,0,I9/H9-1) -> 12.2% | J10: =IF(I9=0,0,J9/I9-1) -> (4.9%) | K10: =IF(J9=0,0,K9/J9-1) -> (7.6%) | L10: =IF(K9=0,0,L9/K9-1) -> 2.6% | M10: =IF(L9=0,0,M9/L9-1) -> 12.4% | N10: =IF(M9=0,0,N9/M9-1) -> 15.9% | O10: =IF(N9=0,0,O9/N9-1) -> 44.5% | P10: =IF(O9=0,0,P9/O9-1) -> (10.5%) | Q10: =IF(P9=0,0,Q9/P9-1) -> (36.2%) | R10: =IF(Q9=0,0,R9/Q9-1) -> (4.7%) | S10: =IF(R9=0,0,S9/R9-1) -> 15.3% | T10: =IF(S9=0,0,T9/S9-1) -> 5.9% | U10: =IF(T9=0,0,U9/T9-1) -> 8.0% | V10: =IF(U9=0,0,V9/U9-1) -> (0.7%) | W10: =IF(V9=0,0,W9/V9-1) -> (2.9%) | X10: =IF(W9=0,0,X9/W9-1) -> 0.2% | Y10: =IF(X9=0,0,Y9/X9-1) -> 15.3% | Z10: =IF(Y9=0,0,Z9/Y9-1) -> 16.0% | AA10: =IF(Z9=0,0,AA9/Z9-1) -> 44.6% | AB10: =IF(AA9=0,0,AB9/AA9-1) -> (10.4%)
A11: Growth vs same month prior year | D11: =IF(C9=0,0,D9/C9-1) -> 30.3% | Q11: =IF(E9=0,0,Q9/E9-1) -> 26.4% | R11: =IF(F9=0,0,R9/F9-1) -> 28.4% | S11: =IF(G9=0,0,S9/G9-1) -> 26.1% | T11: =IF(H9=0,0,T9/H9-1) -> 26.4% | U11: =IF(I9=0,0,U9/I9-1) -> 21.7% | V11: =IF(J9=0,0,V9/J9-1) -> 27.0% | W11: =IF(K9=0,0,W9/K9-1) -> 33.6% | X11: =IF(L9=0,0,X9/L9-1) -> 30.5% | Y11: =IF(M9=0,0,Y9/M9-1) -> 33.8% | Z11: =IF(N9=0,0,Z9/N9-1) -> 34.0% | AA11: =IF(O9=0,0,AA9/O9-1) -> 34.1% | AB11: =IF(P9=0,0,AB9/P9-1) -> 34.2%
A12: Gross margin % | B12: PL | C12: =PL!C20 -> 62.9% | D12: =PL!D20 -> 62.0% | E12: =PL!E20 -> 62.2% | F12: =PL!F20 -> 61.5% | G12: =PL!G20 -> 63.5% | H12: =PL!H20 -> 65.9% | I12: =PL!I20 -> 65.8% | J12: =PL!J20 -> 61.4% | K12: =PL!K20 -> 64.4% | L12: =PL!L20 -> 60.7% | M12: =PL!M20 -> 63.1% | N12: =PL!N20 -> 61.3% | O12: =PL!O20 -> 63.0% | P12: =PL!P20 -> 62.4% | Q12: =PL!Q20 -> 63.0% | R12: =PL!R20 -> 62.1% | S12: =PL!S20 -> 62.1% | T12: =PL!T20 -> 62.0% | U12: =PL!U20 -> 62.0% | V12: =PL!V20 -> 62.0% | W12: =PL!W20 -> 62.1% | X12: =PL!X20 -> 62.0% | Y12: =PL!Y20 -> 61.8% | Z12: =PL!Z20 -> 61.8% | AA12: =PL!AA20 -> 61.5% | AB12: =PL!AB20 -> 62.1%
A13: CM1 % | B13: PL | C13: =PL!C26 -> 39.9% | D13: =PL!D26 -> 38.9% | E13: =PL!E26 -> 40.6% | F13: =PL!F26 -> 39.4% | G13: =PL!G26 -> 41.1% | H13: =PL!H26 -> 43.0% | I13: =PL!I26 -> 43.4% | J13: =PL!J26 -> 38.0% | K13: =PL!K26 -> 41.6% | L13: =PL!L26 -> 37.8% | M13: =PL!M26 -> 40.2% | N13: =PL!N26 -> 37.5% | O13: =PL!O26 -> 39.0% | P13: =PL!P26 -> 38.9% | Q13: =PL!Q26 -> 40.6% | R13: =PL!R26 -> 39.2% | S13: =PL!S26 -> 39.3% | T13: =PL!T26 -> 39.1% | U13: =PL!U26 -> 39.2% | V13: =PL!V26 -> 39.2% | W13: =PL!W26 -> 39.4% | X13: =PL!X26 -> 39.2% | Y13: =PL!Y26 -> 38.8% | Z13: =PL!Z26 -> 38.1% | AA13: =PL!AA26 -> 37.5% | AB13: =PL!AB26 -> 38.7%
A14: CM2 % | B14: PL | C14: =PL!C33 -> 25.8% | D14: =PL!D33 -> 24.8% | E14: =PL!E33 -> 28.2% | F14: =PL!F33 -> 25.7% | G14: =PL!G33 -> 26.7% | H14: =PL!H33 -> 29.3% | I14: =PL!I33 -> 29.4% | J14: =PL!J33 -> 23.6% | K14: =PL!K33 -> 27.0% | L14: =PL!L33 -> 22.8% | M14: =PL!M33 -> 26.0% | N14: =PL!N33 -> 23.3% | O14: =PL!O33 -> 24.7% | P14: =PL!P33 -> 24.8% | Q14: =PL!Q33 -> 26.8% | R14: =PL!R33 -> 25.1% | S14: =PL!S33 -> 25.2% | T14: =PL!T33 -> 25.0% | U14: =PL!U33 -> 25.1% | V14: =PL!V33 -> 25.2% | W14: =PL!W33 -> 25.4% | X14: =PL!X33 -> 25.2% | Y14: =PL!Y33 -> 24.8% | Z14: =PL!Z33 -> 24.1% | AA14: =PL!AA33 -> 23.4% | AB14: =PL!AB33 -> 24.8%
A15: EBITDA % | B15: PL | C15: =PL!C49 -> 3.2% | D15: =PL!D49 -> 4.3% | E15: =PL!E49 -> 0.5% | F15: =PL!F49 -> (4.0%) | G15: =PL!G49 -> 0.8% | H15: =PL!H49 -> 4.0% | I15: =PL!I49 -> 6.7% | J15: =PL!J49 -> (0.9%) | K15: =PL!K49 -> 1.2% | L15: =PL!L49 -> (3.3%) | M15: =PL!M49 -> 3.0% | N15: =PL!N49 -> 2.6% | O15: =PL!O49 -> 9.1% | P15: =PL!P49 -> 7.9% | Q15: =PL!Q49 -> 0.6% | R15: =PL!R49 -> (4.4%) | S15: =PL!S49 -> (0.6%) | T15: =PL!T49 -> 0.6% | U15: =PL!U49 -> 2.5% | V15: =PL!V49 -> 2.4% | W15: =PL!W49 -> 2.1% | X15: =PL!X49 -> 1.9% | Y15: =PL!Y49 -> 4.2% | Z15: =PL!Z49 -> 6.2% | AA15: =PL!AA49 -> 10.6% | AB15: =PL!AB49 -> 10.9%
A16: EBITDA | B16: PL | C16: =SUM(E16:P16) -> 136,386 | D16: =SUM(Q16:AB16) -> 238,866 | E16: =PL!E48 -> 1,509 | F16: =PL!F48 -> (9,916) | G16: =PL!G48 -> 2,270 | H16: =PL!H48 -> 12,347 | I16: =PL!I48 -> 23,379 | J16: =PL!J48 -> (3,007) | K16: =PL!K48 -> 3,675 | L16: =PL!L48 -> (10,363) | M16: =PL!M48 -> 10,540 | N16: =PL!N48 -> 10,575 | O16: =PL!O48 -> 53,221 | P16: =PL!P48 -> 42,154 | Q16: =PL!Q48 -> 2,174 | R16: =PL!R48 -> (14,112) | S16: =PL!S48 -> (2,170) | T16: =PL!T48 -> 2,308 | U16: =PL!U48 -> 10,438 | V16: =PL!V48 -> 10,008 | W16: =PL!W48 -> 8,437 | X16: =PL!X48 -> 7,628 | Y16: =PL!Y48 -> 19,809 | Z16: =PL!Z48 -> 33,940 | AA16: =PL!AA48 -> 82,736 | AB16: =PL!AB48 -> 77,671
A17: COMMERCIAL
A18: Orders (all channels) | B18: Channel_PL | C18: =SUM(E18:P18) -> 67,120 | D18: =SUM(Q18:AB18) -> 85,930 | E18: =Channel_PL!E114 -> 4,190 | F18: =Channel_PL!F114 -> 3,892 | G18: =Channel_PL!G114 -> 4,581 | H18: =Channel_PL!H114 -> 4,860 | I18: =Channel_PL!I114 -> 5,350 | J18: =Channel_PL!J114 -> 5,184 | K18: =Channel_PL!K114 -> 4,878 | L18: =Channel_PL!L114 -> 4,913 | M18: =Channel_PL!M114 -> 5,508 | N18: =Channel_PL!N114 -> 6,370 | O18: =Channel_PL!O114 -> 9,188 | P18: =Channel_PL!P114 -> 8,206 | Q18: =Channel_PL!Q114 -> 5,229 | R18: =Channel_PL!R114 -> 4,974 | S18: =Channel_PL!S114 -> 5,723 | T18: =Channel_PL!T114 -> 6,049 | U18: =Channel_PL!U114 -> 6,521 | V18: =Channel_PL!V114 -> 6,466 | W18: =Channel_PL!W114 -> 6,268 | X18: =Channel_PL!X114 -> 6,270 | Y18: =Channel_PL!Y114 -> 7,218 | Z18: =Channel_PL!Z114 -> 8,357 | AA18: =Channel_PL!AA114 -> 12,066 | AB18: =Channel_PL!AB114 -> 10,787
A19: Blended net revenue per order | C19: =IF(C18=0,0,C9/C18) -> 64.22 | D19: =IF(D18=0,0,D9/D18) -> 65.37 | E19: =IF(E18=0,0,E9/E18) -> 63.86 | F19: =IF(F18=0,0,F9/F18) -> 64.46 | G19: =IF(G18=0,0,G9/G18) -> 64.26 | H19: =IF(H18=0,0,H9/H18) -> 63.99 | I19: =IF(I18=0,0,I9/I18) -> 65.21 | J19: =IF(J18=0,0,J9/J18) -> 64.03 | K19: =IF(K18=0,0,K9/K18) -> 62.85 | L19: =IF(L18=0,0,L9/L18) -> 64.02 | M19: =IF(M18=0,0,M9/M18) -> 64.20 | N19: =IF(N18=0,0,N9/N18) -> 64.31 | O19: =IF(O18=0,0,O9/O18) -> 64.43 | P19: =IF(P18=0,0,P9/P18) -> 64.54 | Q19: =IF(Q18=0,0,Q9/Q18) -> 64.65 | R19: =IF(R18=0,0,R9/R18) -> 64.76 | S19: =IF(S18=0,0,S9/S18) -> 64.88 | T19: =IF(T18=0,0,T9/T18) -> 64.99 | U19: =IF(U18=0,0,U9/U18) -> 65.10 | V19: =IF(V18=0,0,V9/V18) -> 65.22 | W19: =IF(W18=0,0,W9/W18) -> 65.33 | X19: =IF(X18=0,0,X9/X18) -> 65.45 | Y19: =IF(Y18=0,0,Y9/Y18) -> 65.56 | Z19: =IF(Z18=0,0,Z9/Z18) -> 65.67 | AA19: =IF(AA18=0,0,AA9/AA18) -> 65.79 | AB19: =IF(AB18=0,0,AB9/AB18) -> 65.90
A20: Refund rate % of gross sales | C20: =IF(Channel_PL!C116=0,0,-Channel_PL!C118/Channel_PL!C116) -> 7.0% | D20: =IF(Channel_PL!D116=0,0,-Channel_PL!D118/Channel_PL!D116) -> 7.2% | E20: =IF(Channel_PL!E116=0,0,-Channel_PL!E118/Channel_PL!E116) -> 6.9% | F20: =IF(Channel_PL!F116=0,0,-Channel_PL!F118/Channel_PL!F116) -> 6.8% | G20: =IF(Channel_PL!G116=0,0,-Channel_PL!G118/Channel_PL!G116) -> 6.8% | H20: =IF(Channel_PL!H116=0,0,-Channel_PL!H118/Channel_PL!H116) -> 6.7% | I20: =IF(Channel_PL!I116=0,0,-Channel_PL!I118/Channel_PL!I116) -> 6.7% | J20: =IF(Channel_PL!J116=0,0,-Channel_PL!J118/Channel_PL!J116) -> 7.0% | K20: =IF(Channel_PL!K116=0,0,-Channel_PL!K118/Channel_PL!K116) -> 6.7% | L20: =IF(Channel_PL!L116=0,0,-Channel_PL!L118/Channel_PL!L116) -> 7.6% | M20: =IF(Channel_PL!M116=0,0,-Channel_PL!M118/Channel_PL!M116) -> 7.2% | N20: =IF(Channel_PL!N116=0,0,-Channel_PL!N118/Channel_PL!N116) -> 7.2% | O20: =IF(Channel_PL!O116=0,0,-Channel_PL!O118/Channel_PL!O116) -> 7.2% | P20: =IF(Channel_PL!P116=0,0,-Channel_PL!P118/Channel_PL!P116) -> 7.2% | Q20: =IF(Channel_PL!Q116=0,0,-Channel_PL!Q118/Channel_PL!Q116) -> 7.2% | R20: =IF(Channel_PL!R116=0,0,-Channel_PL!R118/Channel_PL!R116) -> 7.2% | S20: =IF(Channel_PL!S116=0,0,-Channel_PL!S118/Channel_PL!S116) -> 7.2% | T20: =IF(Channel_PL!T116=0,0,-Channel_PL!T118/Channel_PL!T116) -> 7.2% | U20: =IF(Channel_PL!U116=0,0,-Channel_PL!U118/Channel_PL!U116) -> 7.2% | V20: =IF(Channel_PL!V116=0,0,-Channel_PL!V118/Channel_PL!V116) -> 7.2% | W20: =IF(Channel_PL!W116=0,0,-Channel_PL!W118/Channel_PL!W116) -> 7.2% | X20: =IF(Channel_PL!X116=0,0,-Channel_PL!X118/Channel_PL!X116) -> 7.2% | Y20: =IF(Channel_PL!Y116=0,0,-Channel_PL!Y118/Channel_PL!Y116) -> 7.2% | Z20: =IF(Channel_PL!Z116=0,0,-Channel_PL!Z118/Channel_PL!Z116) -> 7.3% | AA20: =IF(Channel_PL!AA116=0,0,-Channel_PL!AA118/Channel_PL!AA116) -> 7.3% | AB20: =IF(Channel_PL!AB116=0,0,-Channel_PL!AB118/Channel_PL!AB116) -> 7.3%
A21: Paid media % of net revenue | C21: =Channel_PL!C139 -> 14.1% | D21: =Channel_PL!D139 -> 14.0% | E21: =Channel_PL!E139 -> 12.9% | F21: =Channel_PL!F139 -> 13.7% | G21: =Channel_PL!G139 -> 14.3% | H21: =Channel_PL!H139 -> 13.7% | I21: =Channel_PL!I139 -> 14.0% | J21: =Channel_PL!J139 -> 14.4% | K21: =Channel_PL!K139 -> 14.7% | L21: =Channel_PL!L139 -> 14.9% | M21: =Channel_PL!M139 -> 14.2% | N21: =Channel_PL!N139 -> 14.1% | O21: =Channel_PL!O139 -> 14.1% | P21: =Channel_PL!P139 -> 14.1% | Q21: =Channel_PL!Q139 -> 14.1% | R21: =Channel_PL!R139 -> 14.1% | S21: =Channel_PL!S139 -> 14.1% | T21: =Channel_PL!T139 -> 14.1% | U21: =Channel_PL!U139 -> 14.0% | V21: =Channel_PL!V139 -> 14.0% | W21: =Channel_PL!W139 -> 14.0% | X21: =Channel_PL!X139 -> 14.0% | Y21: =Channel_PL!Y139 -> 14.0% | Z21: =Channel_PL!Z139 -> 14.0% | AA21: =Channel_PL!AA139 -> 14.0% | AB21: =Channel_PL!AB139 -> 13.9%
A22: Marketing efficiency ratio (net revenue / paid media) | C22: =Channel_PL!C140 -> 7.09x | D22: =Channel_PL!D140 -> 7.14x | E22: =Channel_PL!E140 -> 7.77x | F22: =Channel_PL!F140 -> 7.32x | G22: =Channel_PL!G140 -> 6.98x | H22: =Channel_PL!H140 -> 7.30x | I22: =Channel_PL!I140 -> 7.15x | J22: =Channel_PL!J140 -> 6.96x | K22: =Channel_PL!K140 -> 6.80x | L22: =Channel_PL!L140 -> 6.70x | M22: =Channel_PL!M140 -> 7.06x | N22: =Channel_PL!N140 -> 7.07x | O22: =Channel_PL!O140 -> 7.08x | P22: =Channel_PL!P140 -> 7.08x | Q22: =Channel_PL!Q140 -> 7.09x | R22: =Channel_PL!R140 -> 7.10x | S22: =Channel_PL!S140 -> 7.11x | T22: =Channel_PL!T140 -> 7.11x | U22: =Channel_PL!U140 -> 7.12x | V22: =Channel_PL!V140 -> 7.13x | W22: =Channel_PL!W140 -> 7.14x | X22: =Channel_PL!X140 -> 7.14x | Y22: =Channel_PL!Y140 -> 7.15x | Z22: =Channel_PL!Z140 -> 7.16x | AA22: =Channel_PL!AA140 -> 7.17x | AB22: =Channel_PL!AB140 -> 7.17x
A23: Shopify EU (DTC): channel ROAS proxy (net revenue / paid media) | C23: =IF(Channel_PL!C33=0,0,-Channel_PL!C18/Channel_PL!C33) -> 5.35x | D23: =IF(Channel_PL!D33=0,0,-Channel_PL!D18/Channel_PL!D33) -> 5.26x | E23: =IF(Channel_PL!E33=0,0,-Channel_PL!E18/Channel_PL!E33) -> 5.93x | F23: =IF(Channel_PL!F33=0,0,-Channel_PL!F18/Channel_PL!F33) -> 5.66x | G23: =IF(Channel_PL!G33=0,0,-Channel_PL!G18/Channel_PL!G33) -> 5.24x | H23: =IF(Channel_PL!H33=0,0,-Channel_PL!H18/Channel_PL!H33) -> 5.61x | I23: =IF(Channel_PL!I33=0,0,-Channel_PL!I18/Channel_PL!I33) -> 5.57x | J23: =IF(Channel_PL!J33=0,0,-Channel_PL!J18/Channel_PL!J33) -> 5.36x | K23: =IF(Channel_PL!K33=0,0,-Channel_PL!K18/Channel_PL!K33) -> 5.11x | L23: =IF(Channel_PL!L33=0,0,-Channel_PL!L18/Channel_PL!L33) -> 4.99x | M23: =IF(Channel_PL!M33=0,0,-Channel_PL!M18/Channel_PL!M33) -> 5.26x | N23: =IF(Channel_PL!N33=0,0,-Channel_PL!N18/Channel_PL!N33) -> 5.26x | O23: =IF(Channel_PL!O33=0,0,-Channel_PL!O18/Channel_PL!O33) -> 5.26x | P23: =IF(Channel_PL!P33=0,0,-Channel_PL!P18/Channel_PL!P33) -> 5.26x | Q23: =IF(Channel_PL!Q33=0,0,-Channel_PL!Q18/Channel_PL!Q33) -> 5.26x | R23: =IF(Channel_PL!R33=0,0,-Channel_PL!R18/Channel_PL!R33) -> 5.26x | S23: =IF(Channel_PL!S33=0,0,-Channel_PL!S18/Channel_PL!S33) -> 5.26x | T23: =IF(Channel_PL!T33=0,0,-Channel_PL!T18/Channel_PL!T33) -> 5.26x | U23: =IF(Channel_PL!U33=0,0,-Channel_PL!U18/Channel_PL!U33) -> 5.26x | V23: =IF(Channel_PL!V33=0,0,-Channel_PL!V18/Channel_PL!V33) -> 5.26x | W23: =IF(Channel_PL!W33=0,0,-Channel_PL!W18/Channel_PL!W33) -> 5.26x | X23: =IF(Channel_PL!X33=0,0,-Channel_PL!X18/Channel_PL!X33) -> 5.26x | Y23: =IF(Channel_PL!Y33=0,0,-Channel_PL!Y18/Channel_PL!Y33) -> 5.26x | Z23: =IF(Channel_PL!Z33=0,0,-Channel_PL!Z18/Channel_PL!Z33) -> 5.26x | AA23: =IF(Channel_PL!AA33=0,0,-Channel_PL!AA18/Channel_PL!AA33) -> 5.26x | AB23: =IF(Channel_PL!AB33=0,0,-Channel_PL!AB18/Channel_PL!AB33) -> 5.26x
A24: Amazon EU (FBA): channel ROAS proxy (net revenue / paid media) | C24: =IF(Channel_PL!C69=0,0,-Channel_PL!C55/Channel_PL!C69) -> 10.57x | D24: =IF(Channel_PL!D69=0,0,-Channel_PL!D55/Channel_PL!D69) -> 10.53x | E24: =IF(Channel_PL!E69=0,0,-Channel_PL!E55/Channel_PL!E69) -> 11.49x | F24: =IF(Channel_PL!F69=0,0,-Channel_PL!F55/Channel_PL!F69) -> 11.50x | G24: =IF(Channel_PL!G69=0,0,-Channel_PL!G55/Channel_PL!G69) -> 11.17x | H24: =IF(Channel_PL!H69=0,0,-Channel_PL!H55/Channel_PL!H69) -> 10.56x | I24: =IF(Channel_PL!I69=0,0,-Channel_PL!I55/Channel_PL!I69) -> 10.10x | J24: =IF(Channel_PL!J69=0,0,-Channel_PL!J55/Channel_PL!J69) -> 10.05x | K24: =IF(Channel_PL!K69=0,0,-Channel_PL!K55/Channel_PL!K69) -> 9.97x | L24: =IF(Channel_PL!L69=0,0,-Channel_PL!L55/Channel_PL!L69) -> 10.59x | M24: =IF(Channel_PL!M69=0,0,-Channel_PL!M55/Channel_PL!M69) -> 10.53x | N24: =IF(Channel_PL!N69=0,0,-Channel_PL!N55/Channel_PL!N69) -> 10.53x | O24: =IF(Channel_PL!O69=0,0,-Channel_PL!O55/Channel_PL!O69) -> 10.53x | P24: =IF(Channel_PL!P69=0,0,-Channel_PL!P55/Channel_PL!P69) -> 10.53x | Q24: =IF(Channel_PL!Q69=0,0,-Channel_PL!Q55/Channel_PL!Q69) -> 10.53x | R24: =IF(Channel_PL!R69=0,0,-Channel_PL!R55/Channel_PL!R69) -> 10.53x | S24: =IF(Channel_PL!S69=0,0,-Channel_PL!S55/Channel_PL!S69) -> 10.53x | T24: =IF(Channel_PL!T69=0,0,-Channel_PL!T55/Channel_PL!T69) -> 10.53x | U24: =IF(Channel_PL!U69=0,0,-Channel_PL!U55/Channel_PL!U69) -> 10.53x | V24: =IF(Channel_PL!V69=0,0,-Channel_PL!V55/Channel_PL!V69) -> 10.53x | W24: =IF(Channel_PL!W69=0,0,-Channel_PL!W55/Channel_PL!W69) -> 10.53x | X24: =IF(Channel_PL!X69=0,0,-Channel_PL!X55/Channel_PL!X69) -> 10.53x | Y24: =IF(Channel_PL!Y69=0,0,-Channel_PL!Y55/Channel_PL!Y69) -> 10.53x | Z24: =IF(Channel_PL!Z69=0,0,-Channel_PL!Z55/Channel_PL!Z69) -> 10.53x | AA24: =IF(Channel_PL!AA69=0,0,-Channel_PL!AA55/Channel_PL!AA69) -> 10.53x | AB24: =IF(Channel_PL!AB69=0,0,-Channel_PL!AB55/Channel_PL!AB69) -> 10.53x
A25: Walmart US (WFS): channel ROAS proxy (net revenue / paid media) | C25: =IF(Channel_PL!C102=0,0,-Channel_PL!C89/Channel_PL!C102) -> 7.89x | D25: =IF(Channel_PL!D102=0,0,-Channel_PL!D89/Channel_PL!D102) -> 8.33x | E25: =IF(Channel_PL!E102=0,0,-Channel_PL!E89/Channel_PL!E102) -> 6.82x | F25: =IF(Channel_PL!F102=0,0,-Channel_PL!F89/Channel_PL!F102) -> 6.43x | G25: =IF(Channel_PL!G102=0,0,-Channel_PL!G89/Channel_PL!G102) -> 6.90x | H25: =IF(Channel_PL!H102=0,0,-Channel_PL!H89/Channel_PL!H102) -> 7.20x | I25: =IF(Channel_PL!I102=0,0,-Channel_PL!I89/Channel_PL!I102) -> 7.73x | J25: =IF(Channel_PL!J102=0,0,-Channel_PL!J89/Channel_PL!J102) -> 7.58x | K25: =IF(Channel_PL!K102=0,0,-Channel_PL!K89/Channel_PL!K102) -> 8.48x | L25: =IF(Channel_PL!L102=0,0,-Channel_PL!L89/Channel_PL!L102) -> 7.52x | M25: =IF(Channel_PL!M102=0,0,-Channel_PL!M89/Channel_PL!M102) -> 8.33x | N25: =IF(Channel_PL!N102=0,0,-Channel_PL!N89/Channel_PL!N102) -> 8.33x | O25: =IF(Channel_PL!O102=0,0,-Channel_PL!O89/Channel_PL!O102) -> 8.33x | P25: =IF(Channel_PL!P102=0,0,-Channel_PL!P89/Channel_PL!P102) -> 8.33x | Q25: =IF(Channel_PL!Q102=0,0,-Channel_PL!Q89/Channel_PL!Q102) -> 8.33x | R25: =IF(Channel_PL!R102=0,0,-Channel_PL!R89/Channel_PL!R102) -> 8.33x | S25: =IF(Channel_PL!S102=0,0,-Channel_PL!S89/Channel_PL!S102) -> 8.33x | T25: =IF(Channel_PL!T102=0,0,-Channel_PL!T89/Channel_PL!T102) -> 8.33x | U25: =IF(Channel_PL!U102=0,0,-Channel_PL!U89/Channel_PL!U102) -> 8.33x | V25: =IF(Channel_PL!V102=0,0,-Channel_PL!V89/Channel_PL!V102) -> 8.33x | W25: =IF(Channel_PL!W102=0,0,-Channel_PL!W89/Channel_PL!W102) -> 8.33x | X25: =IF(Channel_PL!X102=0,0,-Channel_PL!X89/Channel_PL!X102) -> 8.33x | Y25: =IF(Channel_PL!Y102=0,0,-Channel_PL!Y89/Channel_PL!Y102) -> 8.33x | Z25: =IF(Channel_PL!Z102=0,0,-Channel_PL!Z89/Channel_PL!Z102) -> 8.33x | AA25: =IF(Channel_PL!AA102=0,0,-Channel_PL!AA89/Channel_PL!AA102) -> 8.33x | AB25: =IF(Channel_PL!AB102=0,0,-Channel_PL!AB89/Channel_PL!AB102) -> 8.33x
A26: Shopify paid CAC | B26: Channel_PL | C26: =Channel_PL!C44 -> 23.31 | D26: =Channel_PL!D44 -> 24.14 | E26: =Channel_PL!E44 -> 20.76 | F26: =Channel_PL!F44 -> 22.29 | G26: =Channel_PL!G44 -> 23.81 | H26: =Channel_PL!H44 -> 23.13 | I26: =Channel_PL!I44 -> 22.20 | J26: =Channel_PL!J44 -> 21.69 | K26: =Channel_PL!K44 -> 24.59 | L26: =Channel_PL!L44 -> 25.97 | M26: =Channel_PL!M44 -> 23.57 | N26: =Channel_PL!N44 -> 23.62 | O26: =Channel_PL!O44 -> 23.68 | P26: =Channel_PL!P44 -> 23.73 | Q26: =Channel_PL!Q44 -> 23.79 | R26: =Channel_PL!R44 -> 23.84 | S26: =Channel_PL!S44 -> 23.90 | T26: =Channel_PL!T44 -> 23.96 | U26: =Channel_PL!U44 -> 24.01 | V26: =Channel_PL!V44 -> 24.07 | W26: =Channel_PL!W44 -> 24.13 | X26: =Channel_PL!X44 -> 24.18 | Y26: =Channel_PL!Y44 -> 24.24 | Z26: =Channel_PL!Z44 -> 24.30 | AA26: =Channel_PL!AA44 -> 24.35 | AB26: =Channel_PL!AB44 -> 24.41
A27: Shopify EU (DTC): CM2 per order | B27: Channel_PL | C27: =Channel_PL!C42 -> 21.34 | D27: =Channel_PL!D42 -> 21.83 | E27: =Channel_PL!E42 -> 23.51 | F27: =Channel_PL!F42 -> 23.09 | G27: =Channel_PL!G42 -> 21.11 | H27: =Channel_PL!H42 -> 21.89 | I27: =Channel_PL!I42 -> 22.64 | J27: =Channel_PL!J42 -> 20.58 | K27: =Channel_PL!K42 -> 19.17 | L27: =Channel_PL!L42 -> 19.98 | M27: =Channel_PL!M42 -> 21.09 | N27: =Channel_PL!N42 -> 21.16 | O27: =Channel_PL!O42 -> 21.23 | P27: =Channel_PL!P42 -> 21.30 | Q27: =Channel_PL!Q42 -> 21.38 | R27: =Channel_PL!R42 -> 21.45 | S27: =Channel_PL!S42 -> 21.52 | T27: =Channel_PL!T42 -> 21.59 | U27: =Channel_PL!U42 -> 21.66 | V27: =Channel_PL!V42 -> 21.74 | W27: =Channel_PL!W42 -> 21.81 | X27: =Channel_PL!X42 -> 21.88 | Y27: =Channel_PL!Y42 -> 21.95 | Z27: =Channel_PL!Z42 -> 22.03 | AA27: =Channel_PL!AA42 -> 22.10 | AB27: =Channel_PL!AB42 -> 22.17
A28: Amazon EU (FBA): CM2 per order | B28: Channel_PL | C28: =Channel_PL!C78 -> 12.52 | D28: =Channel_PL!D78 -> 12.41 | E28: =Channel_PL!E78 -> 14.07 | F28: =Channel_PL!F78 -> 13.57 | G28: =Channel_PL!G78 -> 13.55 | H28: =Channel_PL!H78 -> 13.19 | I28: =Channel_PL!I78 -> 13.35 | J28: =Channel_PL!J78 -> 12.11 | K28: =Channel_PL!K78 -> 12.55 | L28: =Channel_PL!L78 -> 12.55 | M28: =Channel_PL!M78 -> 12.68 | N28: =Channel_PL!N78 -> 11.50 | O28: =Channel_PL!O78 -> 11.51 | P28: =Channel_PL!P78 -> 11.53 | Q28: =Channel_PL!Q78 -> 12.74 | R28: =Channel_PL!R78 -> 12.76 | S28: =Channel_PL!S78 -> 12.77 | T28: =Channel_PL!T78 -> 12.79 | U28: =Channel_PL!U78 -> 12.80 | V28: =Channel_PL!V78 -> 12.82 | W28: =Channel_PL!W78 -> 12.83 | X28: =Channel_PL!X78 -> 12.85 | Y28: =Channel_PL!Y78 -> 12.87 | Z28: =Channel_PL!Z78 -> 11.68 | AA28: =Channel_PL!AA78 -> 11.70 | AB28: =Channel_PL!AB78 -> 11.71
A29: Walmart US (WFS): CM2 per order | B29: Channel_PL | C29: =Channel_PL!C111 -> 15.44 | D29: =Channel_PL!D111 -> 15.43 | E29: =Channel_PL!E111 -> 17.13 | F29: =Channel_PL!F111 -> 14.87 | G29: =Channel_PL!G111 -> 16.76 | H29: =Channel_PL!H111 -> 15.79 | I29: =Channel_PL!I111 -> 16.08 | J29: =Channel_PL!J111 -> 16.40 | K29: =Channel_PL!K111 -> 15.35 | L29: =Channel_PL!L111 -> 14.15 | M29: =Channel_PL!M111 -> 15.24 | N29: =Channel_PL!N111 -> 15.26 | O29: =Channel_PL!O111 -> 15.28 | P29: =Channel_PL!P111 -> 15.30 | Q29: =Channel_PL!Q111 -> 15.31 | R29: =Channel_PL!R111 -> 15.33 | S29: =Channel_PL!S111 -> 15.35 | T29: =Channel_PL!T111 -> 15.36 | U29: =Channel_PL!U111 -> 15.38 | V29: =Channel_PL!V111 -> 15.40 | W29: =Channel_PL!W111 -> 15.42 | X29: =Channel_PL!X111 -> 15.43 | Y29: =Channel_PL!Y111 -> 15.45 | Z29: =Channel_PL!Z111 -> 15.47 | AA29: =Channel_PL!AA111 -> 15.49 | AB29: =Channel_PL!AB111 -> 15.50
A30: Amazon share of net revenue (concentration) | C30: =IF(C9=0,0,PL!C10/C9) -> 42.3% | D30: =IF(D9=0,0,PL!D10/D9) -> 40.5% | E30: =IF(E9=0,0,Channel_PL!E55/E9) -> 47.5% | F30: =IF(F9=0,0,Channel_PL!F55/F9) -> 43.2% | G30: =IF(G9=0,0,Channel_PL!G55/G9) -> 43.5% | H30: =IF(H9=0,0,Channel_PL!H55/H9) -> 45.1% | I30: =IF(I9=0,0,Channel_PL!I55/I9) -> 43.7% | J30: =IF(J9=0,0,Channel_PL!J55/J9) -> 42.1% | K30: =IF(K9=0,0,Channel_PL!K55/K9) -> 41.0% | L30: =IF(L9=0,0,Channel_PL!L55/L9) -> 38.9% | M30: =IF(M9=0,0,Channel_PL!M55/M9) -> 41.4% | N30: =IF(N9=0,0,Channel_PL!N55/N9) -> 41.3% | O30: =IF(O9=0,0,Channel_PL!O55/O9) -> 41.3% | P30: =IF(P9=0,0,Channel_PL!P55/P9) -> 41.2% | Q30: =IF(Q9=0,0,Channel_PL!Q55/Q9) -> 41.1% | R30: =IF(R9=0,0,Channel_PL!R55/R9) -> 41.0% | S30: =IF(S9=0,0,Channel_PL!S55/S9) -> 40.9% | T30: =IF(T9=0,0,Channel_PL!T55/T9) -> 40.9% | U30: =IF(U9=0,0,Channel_PL!U55/U9) -> 40.8% | V30: =IF(V9=0,0,Channel_PL!V55/V9) -> 40.7% | W30: =IF(W9=0,0,Channel_PL!W55/W9) -> 40.6% | X30: =IF(X9=0,0,Channel_PL!X55/X9) -> 40.5% | Y30: =IF(Y9=0,0,Channel_PL!Y55/Y9) -> 40.4% | Z30: =IF(Z9=0,0,Channel_PL!Z55/Z9) -> 40.3% | AA30: =IF(AA9=0,0,Channel_PL!AA55/AA9) -> 40.2% | AB30: =IF(AB9=0,0,Channel_PL!AB55/AB9) -> 40.1%
A31: WORKING CAPITAL AND CASH
A32: Days of inventory on hand | B32: Inventory | C32: =P32 -> 64.5 | D32: =AB32 -> 75.0 | E32: =Inventory!E90 -> 223.7 | F32: =Inventory!F90 -> 202.1 | G32: =Inventory!G90 -> 182.6 | H32: =Inventory!H90 -> 138.7 | I32: =Inventory!I90 -> 135.6 | J32: =Inventory!J90 -> 123.0 | K32: =Inventory!K90 -> 120.5 | L32: =Inventory!L90 -> 97.3 | M32: =Inventory!M90 -> 111.5 | N32: =Inventory!N90 -> 121.0 | O32: =Inventory!O90 -> 61.4 | P32: =Inventory!P90 -> 64.5 | Q32: =Inventory!Q90 -> 128.2 | R32: =Inventory!R90 -> 105.1 | S32: =Inventory!S90 -> 98.8 | T32: =Inventory!T90 -> 87.3 | U32: =Inventory!U90 -> 80.8 | V32: =Inventory!V90 -> 70.6 | W32: =Inventory!W90 -> 75.2 | X32: =Inventory!X90 -> 89.4 | Y32: =Inventory!Y90 -> 84.2 | Z32: =Inventory!Z90 -> 112.2 | AA32: =Inventory!AA90 -> 65.0 | AB32: =Inventory!AB90 -> 75.0
A33: Days receivable (marketplace settlement lag) | B33: Settlements | C33: =P33 -> 11.2 | D33: =AB33 -> 11.8 | E33: =Settlements!E48 -> 10.0 | F33: =Settlements!F48 -> 10.8 | G33: =Settlements!G48 -> 11.5 | H33: =Settlements!H48 -> 11.5 | I33: =Settlements!I48 -> 11.8 | J33: =Settlements!J48 -> 12.0 | K33: =Settlements!K48 -> 10.7 | L33: =Settlements!L48 -> 10.8 | M33: =Settlements!M48 -> 11.2 | N33: =Settlements!N48 -> 11.2 | O33: =Settlements!O48 -> 11.2 | P33: =Settlements!P48 -> 11.2 | Q33: =Settlements!Q48 -> 11.4 | R33: =Settlements!R48 -> 11.4 | S33: =Settlements!S48 -> 11.5 | T33: =Settlements!T48 -> 11.5 | U33: =Settlements!U48 -> 11.6 | V33: =Settlements!V48 -> 11.6 | W33: =Settlements!W48 -> 11.7 | X33: =Settlements!X48 -> 11.7 | Y33: =Settlements!Y48 -> 11.7 | Z33: =Settlements!Z48 -> 11.7 | AA33: =Settlements!AA48 -> 11.8 | AB33: =Settlements!AB48 -> 11.8
A34: Days payable (logistics group) | B34: AP_Schedule | C34: =P34 -> 30.0 | D34: =AB34 -> 30.0 | E34: =AP_Schedule!E14 -> 34.7 | F34: =AP_Schedule!F14 -> 30.6 | G34: =AP_Schedule!G14 -> 24.2 | H34: =AP_Schedule!H14 -> 26.7 | I34: =AP_Schedule!I14 -> 28.8 | J34: =AP_Schedule!J14 -> 29.2 | K34: =AP_Schedule!K14 -> 29.9 | L34: =AP_Schedule!L14 -> 30.8 | M34: =AP_Schedule!M14 -> 30.0 | N34: =AP_Schedule!N14 -> 30.0 | O34: =AP_Schedule!O14 -> 30.0 | P34: =AP_Schedule!P14 -> 30.0 | Q34: =AP_Schedule!Q14 -> 30.0 | R34: =AP_Schedule!R14 -> 30.0 | S34: =AP_Schedule!S14 -> 30.0 | T34: =AP_Schedule!T14 -> 30.0 | U34: =AP_Schedule!U14 -> 30.0 | V34: =AP_Schedule!V14 -> 30.0 | W34: =AP_Schedule!W14 -> 30.0 | X34: =AP_Schedule!X14 -> 30.0 | Y34: =AP_Schedule!Y14 -> 30.0 | Z34: =AP_Schedule!Z14 -> 30.0 | AA34: =AP_Schedule!AA14 -> 30.0 | AB34: =AP_Schedule!AB14 -> 30.0
A35: Cash conversion cycle (DIO + DSO - DPO) | C35: =P35 -> 45.8 | D35: =AB35 -> 56.8 | E35: =E32+E33-E34 -> 199.1 | F35: =F32+F33-F34 -> 182.3 | G35: =G32+G33-G34 -> 170.0 | H35: =H32+H33-H34 -> 123.5 | I35: =I32+I33-I34 -> 118.5 | J35: =J32+J33-J34 -> 105.9 | K35: =K32+K33-K34 -> 101.4 | L35: =L32+L33-L34 -> 77.3 | M35: =M32+M33-M34 -> 92.7 | N35: =N32+N33-N34 -> 102.2 | O35: =O32+O33-O34 -> 42.6 | P35: =P32+P33-P34 -> 45.8 | Q35: =Q32+Q33-Q34 -> 109.6 | R35: =R32+R33-R34 -> 86.5 | S35: =S32+S33-S34 -> 80.3 | T35: =T32+T33-T34 -> 68.8 | U35: =U32+U33-U34 -> 62.4 | V35: =V32+V33-V34 -> 52.2 | W35: =W32+W33-W34 -> 56.9 | X35: =X32+X33-X34 -> 71.1 | Y35: =Y32+Y33-Y34 -> 66.0 | Z35: =Z32+Z33-Z34 -> 93.9 | AA35: =AA32+AA33-AA34 -> 46.8 | AB35: =AB32+AB33-AB34 -> 56.8
A36: Cash at bank | B36: BS | C36: =P36 -> 611,228 | D36: =AB36 -> 346,148 | E36: =BS!E9 -> 396,444 | F36: =BS!F9 -> 378,621 | G36: =BS!G9 -> 473,742 | H36: =BS!H9 -> 328,674 | I36: =BS!I9 -> 453,890 | J36: =BS!J9 -> 495,519 | K36: =BS!K9 -> 332,378 | L36: =BS!L9 -> 391,452 | M36: =BS!M9 -> 312,681 | N36: =BS!N9 -> 288,663 | O36: =BS!O9 -> 399,941 | P36: =BS!P9 -> 611,228 | Q36: =BS!Q9 -> 487,747 | R36: =BS!R9 -> 441,346 | S36: =BS!S9 -> 504,002 | T36: =BS!T9 -> 385,996 | U36: =BS!U9 -> 458,320 | V36: =BS!V9 -> 505,412 | W36: =BS!W9 -> 259,894 | X36: =BS!X9 -> 257,729 | Y36: =BS!Y9 -> 118,371 | Z36: =BS!Z9 -> 1,825 | AA36: =BS!AA9 -> 140,552 | AB36: =BS!AB9 -> 346,148
A37: Cash headroom over the minimum buffer | C37: =P37 -> 461,228 | D37: =AB37 -> 196,148 | E37: =E36-Assumptions!$C$13 -> 246,444 | F37: =F36-Assumptions!$C$13 -> 228,621 | G37: =G36-Assumptions!$C$13 -> 323,742 | H37: =H36-Assumptions!$C$13 -> 178,674 | I37: =I36-Assumptions!$C$13 -> 303,890 | J37: =J36-Assumptions!$C$13 -> 345,519 | K37: =K36-Assumptions!$C$13 -> 182,378 | L37: =L36-Assumptions!$C$13 -> 241,452 | M37: =M36-Assumptions!$C$13 -> 162,681 | N37: =N36-Assumptions!$C$13 -> 138,663 | O37: =O36-Assumptions!$C$13 -> 249,941 | P37: =P36-Assumptions!$C$13 -> 461,228 | Q37: =Q36-Assumptions!$C$13 -> 337,747 | R37: =R36-Assumptions!$C$13 -> 291,346 | S37: =S36-Assumptions!$C$13 -> 354,002 | T37: =T36-Assumptions!$C$13 -> 235,996 | U37: =U36-Assumptions!$C$13 -> 308,320 | V37: =V36-Assumptions!$C$13 -> 355,412 | W37: =W36-Assumptions!$C$13 -> 109,894 | X37: =X36-Assumptions!$C$13 -> 107,729 | Y37: =Y36-Assumptions!$C$13 -> (31,629) | Z37: =Z36-Assumptions!$C$13 -> (148,175) | AA37: =AA36-Assumptions!$C$13 -> (9,448) | AB37: =AB36-Assumptions!$C$13 -> 196,148
A38: Net debt / (net cash) | B38: BS | C38: =P38 -> (300,308) | D38: =AB38 -> (131,223) | E38: =BS!E41 -> (3,616) | F38: =BS!F41 -> 6,991 | G38: =BS!G41 -> (95,392) | H38: =BS!H41 -> 42,369 | I38: =BS!I41 -> (90,199) | J38: =BS!J41 -> (139,226) | K38: =BS!K41 -> 16,470 | L38: =BS!L41 -> (50,096) | M38: =BS!M41 -> 21,137 | N38: =BS!N41 -> 37,570 | O38: =BS!O41 -> (81,340) | P38: =BS!P41 -> (300,308) | Q38: =BS!Q41 -> (184,555) | R38: =BS!R41 -> (145,930) | S38: =BS!S41 -> (216,411) | T38: =BS!T41 -> (106,279) | U38: =BS!U41 -> (186,527) | V38: =BS!V41 -> (241,592) | W38: =BS!W41 -> (4,097) | X38: =BS!X41 -> (10,004) | Y38: =BS!Y41 -> 121,230 | Z38: =BS!Z41 -> 229,602 | AA38: =BS!AA41 -> 82,650 | AB38: =BS!AB41 -> (131,223)
A39: Inventory on hand, net | B39: BS | C39: =P39 -> 435,690 | D39: =AB39 -> 685,248 | E39: =BS!E11+BS!E12 -> 709,122 | F39: =BS!F11+BS!F12 -> 663,530 | G39: =BS!G11+BS!G12 -> 646,100 | H39: =BS!H11+BS!H12 -> 540,452 | I39: =BS!I11+BS!I12 -> 586,136 | J39: =BS!J11+BS!J12 -> 522,613 | K39: =BS!K11+BS!K12 -> 465,368 | L39: =BS!L11+BS!L12 -> 383,199 | M39: =BS!M11+BS!M12 -> 514,901 | N39: =BS!N11+BS!N12 -> 624,388 | O39: =BS!O11+BS!O12 -> 478,555 | P39: =BS!P11+BS!P12 -> 435,690 | Q39: =BS!Q11+BS!Q12 -> 552,789 | R39: =BS!R11+BS!R12 -> 478,425 | S39: =BS!S11+BS!S12 -> 468,862 | T39: =BS!T11+BS!T12 -> 453,386 | U39: =BS!U11+BS!U12 -> 438,795 | V39: =BS!V11+BS!V12 -> 393,633 | W39: =BS!W11+BS!W12 -> 394,471 | X39: =BS!X11+BS!X12 -> 470,385 | Y39: =BS!Y11+BS!Y12 -> 528,303 | Z39: =BS!Z11+BS!Z12 -> 790,119 | AA39: =BS!AA11+BS!AA12 -> 685,248 | AB39: =BS!AB11+BS!AB12 -> 685,248
A40: Net working capital | B40: BS | C40: =P40 -> 483,699 | D40: =AB40 -> 808,894 | E40: =BS!E40 -> 705,893 | F40: =BS!F40 -> 704,129 | G40: =BS!G40 -> 594,807 | H40: =BS!H40 -> 724,150 | I40: =BS!I40 -> 611,442 | J40: =BS!J40 -> 557,135 | K40: =BS!K40 -> 710,780 | L40: =BS!L40 -> 631,671 | M40: =BS!M40 -> 709,811 | N40: =BS!N40 -> 733,232 | O40: =BS!O40 -> 664,003 | P40: =BS!P40 -> 483,699 | Q40: =BS!Q40 -> 598,183 | R40: =BS!R40 -> 589,300 | S40: =BS!S40 -> 513,302 | T40: =BS!T40 -> 607,753 | U40: =BS!U40 -> 534,695 | V40: =BS!V40 -> 486,439 | W40: =BS!W40 -> 729,223 | X40: =BS!X40 -> 727,844 | Y40: =BS!Y40 -> 875,839 | Z40: =BS!Z40 -> 1,015,153 | AA40: =BS!AA40 -> 947,991 | AB40: =BS!AB40 -> 808,894
A41: Operating cash flow, trailing three months | B41: CF | E41: =SUM(CF!E27:CF27) -> 219,123 | F41: =SUM(CF!E27:CF27) -> 219,123 | G41: =SUM(CF!E27:CF27) -> 219,123 | H41: =SUM(CF!F27:CF27) -> 193,107 | I41: =SUM(CF!G27:CF27) -> 203,714 | J41: =SUM(CF!H27:CF27) -> 94,531 | K41: =SUM(CF!I27:CF27) -> 232,292 | L41: =SUM(CF!J27:CF27) -> 98,524 | M41: =SUM(CF!K27:CF27) -> 49,496 | N41: =SUM(CF!L27:CF27) -> 201,693 | O41: =SUM(CF!M27:CF27) -> 135,127 | P41: =SUM(CF!N27:CF27) -> 204,860 | Q41: =SUM(CF!O27:CF27) -> 219,793 | R41: =SUM(CF!P27:CF27) -> 99,383 | S41: =SUM(CF!Q27:CF27) -> (121,085) | T41: =SUM(CF!R27:CF27) -> (6,832) | U41: =SUM(CF!S27:CF27) -> 293 | V41: =SUM(CF!T27:CF27) -> (71,688) | W41: =SUM(CF!U27:CF27) -> 36,943 | X41: =SUM(CF!V27:CF27) -> (44,805) | Y41: =SUM(CF!W27:CF27) -> (101,369) | Z41: =SUM(CF!X27:CF27) -> 134,626 | AA41: =SUM(CF!Y27:CF27) -> 127,218 | AB41: =SUM(CF!Z27:CF27) -> 256,953
A42: Cash runway in months at the trailing burn (blank if cash generative) | E42: =IF(E41>=0,"n/a",E36/(-E41/3)) -> n/a | F42: =IF(F41>=0,"n/a",F36/(-F41/3)) -> n/a | G42: =IF(G41>=0,"n/a",G36/(-G41/3)) -> n/a | H42: =IF(H41>=0,"n/a",H36/(-H41/3)) -> n/a | I42: =IF(I41>=0,"n/a",I36/(-I41/3)) -> n/a | J42: =IF(J41>=0,"n/a",J36/(-J41/3)) -> n/a | K42: =IF(K41>=0,"n/a",K36/(-K41/3)) -> n/a | L42: =IF(L41>=0,"n/a",L36/(-L41/3)) -> n/a | M42: =IF(M41>=0,"n/a",M36/(-M41/3)) -> n/a | N42: =IF(N41>=0,"n/a",N36/(-N41/3)) -> n/a | O42: =IF(O41>=0,"n/a",O36/(-O41/3)) -> n/a | P42: =IF(P41>=0,"n/a",P36/(-P41/3)) -> n/a | Q42: =IF(Q41>=0,"n/a",Q36/(-Q41/3)) -> n/a | R42: =IF(R41>=0,"n/a",R36/(-R41/3)) -> n/a | S42: =IF(S41>=0,"n/a",S36/(-S41/3)) -> 12.5 | T42: =IF(T41>=0,"n/a",T36/(-T41/3)) -> 169.5 | U42: =IF(U41>=0,"n/a",U36/(-U41/3)) -> n/a | V42: =IF(V41>=0,"n/a",V36/(-V41/3)) -> 21.2 | W42: =IF(W41>=0,"n/a",W36/(-W41/3)) -> n/a | X42: =IF(X41>=0,"n/a",X36/(-X41/3)) -> 17.3 | Y42: =IF(Y41>=0,"n/a",Y36/(-Y41/3)) -> 3.5 | Z42: =IF(Z41>=0,"n/a",Z36/(-Z41/3)) -> n/a | AA42: =IF(AA41>=0,"n/a",AA36/(-AA41/3)) -> n/a | AB42: =IF(AB41>=0,"n/a",AB36/(-AB41/3)) -> n/a
A43: PEOPLE
A44: Headcount (FTE) | B44: Opex | C44: =P44 -> 13 | D44: =AB44 -> 14 | E44: =Opex!E24 -> 10 | F44: =Opex!F24 -> 10 | G44: =Opex!G24 -> 10 | H44: =Opex!H24 -> 11 | I44: =Opex!I24 -> 11 | J44: =Opex!J24 -> 11 | K44: =Opex!K24 -> 11 | L44: =Opex!L24 -> 11 | M44: =Opex!M24 -> 11 | N44: =Opex!N24 -> 12 | O44: =Opex!O24 -> 13 | P44: =Opex!P24 -> 13 | Q44: =Opex!Q24 -> 13 | R44: =Opex!R24 -> 14 | S44: =Opex!S24 -> 14 | T44: =Opex!T24 -> 14 | U44: =Opex!U24 -> 14 | V44: =Opex!V24 -> 14 | W44: =Opex!W24 -> 14 | X44: =Opex!X24 -> 14 | Y44: =Opex!Y24 -> 14 | Z44: =Opex!Z24 -> 14 | AA44: =Opex!AA24 -> 14 | AB44: =Opex!AB24 -> 14
A45: Annualised net revenue per FTE | C45: =IF(C44=0,0,C9/C44) -> 331,583 | D45: =IF(D44=0,0,D9/D44) -> 401,254 | E45: =IF(E44=0,0,E9*12/E44) -> 321,065 | F45: =IF(F44=0,0,F9*12/F44) -> 301,034 | G45: =IF(G44=0,0,G9*12/G44) -> 353,253 | H45: =IF(H44=0,0,H9*12/H44) -> 339,271 | I45: =IF(I44=0,0,I9*12/I44) -> 380,615 | J45: =IF(J44=0,0,J9*12/J44) -> 362,124 | K45: =IF(K44=0,0,K9*12/K44) -> 334,430 | L45: =IF(L44=0,0,L9*12/L44) -> 343,126 | M45: =IF(M44=0,0,M9*12/M44) -> 385,763 | N45: =IF(N44=0,0,N9*12/N44) -> 409,700 | O45: =IF(O44=0,0,O9*12/O44) -> 546,420 | P45: =IF(P44=0,0,P9*12/P44) -> 488,840 | Q45: =IF(Q44=0,0,Q9*12/Q44) -> 312,060 | R45: =IF(R44=0,0,R9*12/R44) -> 276,142 | S45: =IF(S44=0,0,S9*12/S44) -> 318,279 | T45: =IF(T44=0,0,T9*12/T44) -> 336,983 | U45: =IF(U44=0,0,U9*12/U44) -> 363,871 | V45: =IF(V44=0,0,V9*12/V44) -> 361,476 | W45: =IF(W44=0,0,W9*12/W44) -> 350,971 | X45: =IF(X44=0,0,X9*12/X44) -> 351,741 | Y45: =IF(Y44=0,0,Y9*12/Y44) -> 405,626 | Z45: =IF(Z44=0,0,Z9*12/Z44) -> 470,435 | AA45: =IF(AA44=0,0,AA9*12/AA44) -> 680,409 | AB45: =IF(AB44=0,0,AB9*12/AB44) -> 609,348
G48: Month | H48: Shopify | I48: Amazon | J48: Walmart | L48: Month | M48: Gross margin | N48: CM2 margin | O48: EBITDA margin | Q48: Month | R48: Cash | S48: Inventory | T48: Receivables
G49: =TEXT(Assumptions!E61,"mmm-yy") -> Jan-26 | H49: =PL!E9 -> 126518 | I49: =PL!E10 -> 127000.07 | J49: =PL!E11 -> 14036.14865 | L49: =TEXT(Assumptions!E61,"mmm-yy") -> Jan-26 | M49: =PL!E20 -> 0.6220342799 | N49: =PL!E33 -> 0.2820445988 | O49: =PL!E49 -> 0.0054373064 | Q49: =TEXT(Assumptions!E61,"mmm-yy") -> Jan-26 | R49: =BS!E9 -> 396444.4392 | S49: =BS!E11 -> 734632.17 | T49: =BS!E10 -> 85464.43072
G50: =TEXT(Assumptions!F61,"mmm-yy") -> Feb-26 | H50: =PL!F9 -> 127276.58 | I50: =PL!F10 -> 108247.38 | J50: =PL!F11 -> 15338.03074 | L50: =TEXT(Assumptions!F61,"mmm-yy") -> Feb-26 | M50: =PL!F20 -> 0.6150018712 | N50: =PL!F33 -> 0.2571607202 | O50: =PL!F49 -> -0.03957229907 | Q50: =TEXT(Assumptions!F61,"mmm-yy") -> Feb-26 | R50: =BS!F9 -> 378620.8784 | S50: =BS!F11 -> 693600.55 | T50: =BS!F10 -> 96314.43172
G51: =TEXT(Assumptions!G61,"mmm-yy") -> Mar-26 | H51: =PL!G9 -> 144241.58 | I51: =PL!G10 -> 127924.34 | J51: =PL!G11 -> 22211.673 | L51: =TEXT(Assumptions!G61,"mmm-yy") -> Mar-26 | M51: =PL!G20 -> 0.6346790441 | N51: =PL!G33 -> 0.2674362497 | O51: =PL!G49 -> 0.00772465258 | Q51: =TEXT(Assumptions!G61,"mmm-yy") -> Mar-26 | R51: =BS!G9 -> 473742.3177 | S51: =BS!G11 -> 671167.56 | T51: =BS!G10 -> 107908.89
G52: =TEXT(Assumptions!H61,"mmm-yy") -> Apr-26 | H52: =PL!H9 -> 143072.38 | I52: =PL!H10 -> 140331.46 | J52: =PL!H11 -> 27594.74026 | L52: =TEXT(Assumptions!H61,"mmm-yy") -> Apr-26 | M52: =PL!H20 -> 0.6593450045 | N52: =PL!H33 -> 0.2927115624 | O52: =PL!H49 -> 0.03981132326 | Q52: =TEXT(Assumptions!H61,"mmm-yy") -> Apr-26 | R52: =BS!H9 -> 328674.2766 | S52: =BS!H11 -> 555934.38 | T52: =BS!H10 -> 115541.1573
G53: =TEXT(Assumptions!I61,"mmm-yy") -> May-26 | H53: =PL!I9 -> 164600.64 | I53: =PL!I10 -> 152575.28 | J53: =PL!I11 -> 31721.59963 | L53: =TEXT(Assumptions!I61,"mmm-yy") -> May-26 | M53: =PL!I20 -> 0.6582604763 | N53: =PL!I33 -> 0.294160979 | O53: =PL!I49 -> 0.06718738445 | Q53: =TEXT(Assumptions!I61,"mmm-yy") -> May-26 | R53: =BS!I9 -> 453889.7159 | S53: =BS!I11 -> 591361.56 | T53: =BS!I10 -> 129081.4371
G54: =TEXT(Assumptions!J61,"mmm-yy") -> Jun-26 | H54: =PL!J9 -> 154082.25 | I54: =PL!J10 -> 139616.56 | J54: =PL!J11 -> 38248.36643 | L54: =TEXT(Assumptions!J61,"mmm-yy") -> Jun-26 | M54: =PL!J20 -> 0.6140500178 | N54: =PL!J33 -> 0.236181563 | O54: =PL!J49 -> -0.009065990291 | Q54: =TEXT(Assumptions!J61,"mmm-yy") -> Jun-26 | R54: =BS!J9 -> 495519.1551 | S54: =BS!J11 -> 532501.08 | T54: =BS!J10 -> 127648.2558
G55: =TEXT(Assumptions!K61,"mmm-yy") -> Jul-26 | H55: =PL!K9 -> 143338.43 | I55: =PL!K10 -> 125727.11 | J55: =PL!K11 -> 37495.63782 | L55: =TEXT(Assumptions!K61,"mmm-yy") -> Jul-26 | M55: =PL!K20 -> 0.6442084882 | N55: =PL!K33 -> 0.2698048695 | O55: =PL!K49 -> 0.01192233152 | Q55: =TEXT(Assumptions!K61,"mmm-yy") -> Jul-26 | R55: =BS!K9 -> 332377.757 | S55: =BS!K11 -> 467854.25 | T55: =BS!K10 -> 102297.3118
G56: =TEXT(Assumptions!L61,"mmm-yy") -> Aug-26 | H56: =PL!L9 -> 145932.25 | I56: =PL!L10 -> 122488.86 | J56: =PL!L11 -> 46110.94982 | L56: =TEXT(Assumptions!L61,"mmm-yy") -> Aug-26 | M56: =PL!L20 -> 0.6068784633 | N56: =PL!L33 -> 0.2278687614 | O56: =PL!L49 -> -0.03312980668 | Q56: =TEXT(Assumptions!L61,"mmm-yy") -> Aug-26 | R56: =BS!L9 -> 391452.1962 | S56: =BS!L11 -> 390173.13 | T56: =BS!L10 -> 105116.5236
G57: =TEXT(Assumptions!M61,"mmm-yy") -> Sep-26 | H57: =PL!M9 -> 161219.612 | I57: =PL!M10 -> 146368.4638 | J57: =PL!M11 -> 46028.05553 | L57: =TEXT(Assumptions!M61,"mmm-yy") -> Sep-26 | M57: =PL!M20 -> 0.6308638203 | N57: =PL!M33 -> 0.2598363957 | O57: =PL!M49 -> 0.0299071432 | Q57: =TEXT(Assumptions!M61,"mmm-yy") -> Sep-26 | R57: =BS!M9 -> 312681.1137 | S57: =BS!M11 -> 518586.508 | T57: =BS!M10 -> 127022.3806
G58: =TEXT(Assumptions!N61,"mmm-yy") -> Oct-26 | H58: =PL!N9 -> 185873.8532 | I58: =PL!N10 -> 169309.4457 | J58: =PL!N11 -> 54516.28009 | L58: =TEXT(Assumptions!N61,"mmm-yy") -> Oct-26 | M58: =PL!N20 -> 0.612822152 | N58: =PL!N33 -> 0.2328028766 | O58: =PL!N49 -> 0.02591412004 | Q58: =TEXT(Assumptions!N61,"mmm-yy") -> Oct-26 | R58: =BS!N9 -> 288663.1982 | S58: =BS!N11 -> 631432.3964 | T58: =BS!N10 -> 140287.9125
G59: =TEXT(Assumptions!O61,"mmm-yy") -> Nov-26 | H59: =PL!O9 -> 267223.7679 | I59: =PL!O10 -> 244214.3038 | J59: =PL!O11 -> 80516.71285 | L59: =TEXT(Assumptions!O61,"mmm-yy") -> Nov-26 | M59: =PL!O20 -> 0.6295934529 | N59: =PL!O33 -> 0.2465079662 | O59: =PL!O49 -> 0.09104977393 | Q59: =TEXT(Assumptions!O61,"mmm-yy") -> Nov-26 | R59: =BS!O9 -> 399941.0409 | S59: =BS!O11 -> 478554.8531 | T59: =BS!O10 -> 209973.4382
G60: =TEXT(Assumptions!P61,"mmm-yy") -> Dec-26 | H60: =PL!P9 -> 237856.4398 | I60: =PL!P10 -> 218094.1125 | J60: =PL!P11 -> 73625.59091 | L60: =TEXT(Assumptions!P61,"mmm-yy") -> Dec-26 | M60: =PL!P20 -> 0.6242383933 | N60: =PL!P33 -> 0.2483084202 | O60: =PL!P49 -> 0.07915188114 | Q60: =TEXT(Assumptions!P61,"mmm-yy") -> Dec-26 | R60: =BS!P9 -> 611228.1591 | S60: =BS!P11 -> 435689.7832 | T60: =BS!P10 -> 182242.7845
G61: =TEXT(Assumptions!Q61,"mmm-yy") -> Jan-27 | H61: =PL!Q9 -> 151060.9545 | I61: =PL!Q10 -> 138967.7902 | J61: =PL!Q11 -> 48036.23005 | L61: =TEXT(Assumptions!Q61,"mmm-yy") -> Jan-27 | M61: =PL!Q20 -> 0.6295794015 | N61: =PL!Q33 -> 0.2680683067 | O61: =PL!Q49 -> 0.006299642876 | Q61: =TEXT(Assumptions!Q61,"mmm-yy") -> Jan-27 | R61: =BS!Q9 -> 487746.8379 | S61: =BS!Q11 -> 552788.9753 | T61: =BS!Q10 -> 118649.7126
G62: =TEXT(Assumptions!R61,"mmm-yy") -> Feb-27 | H62: =PL!R9 -> 143206.1996 | I62: =PL!R10 -> 132177.1954 | J62: =PL!R11 -> 46782.26121 | L62: =TEXT(Assumptions!R61,"mmm-yy") -> Feb-27 | M62: =PL!R20 -> 0.6208313887 | N62: =PL!R33 -> 0.251196217 | O62: =PL!R49 -> -0.04389979101 | Q62: =TEXT(Assumptions!R61,"mmm-yy") -> Feb-27 | R62: =BS!R9 -> 441345.6715 | S62: =BS!R11 -> 478424.8827 | T62: =BS!R10 -> 125488.1531
G63: =TEXT(Assumptions!S61,"mmm-yy") -> Mar-27 | H63: =PL!S9 -> 164184.6362 | I63: =PL!S10 -> 152040.7139 | J63: =PL!S11 -> 55100.36678 | L63: =TEXT(Assumptions!S61,"mmm-yy") -> Mar-27 | M63: =PL!S20 -> 0.620855477 | N63: =PL!S33 -> 0.251656106 | O63: =PL!S49 -> -0.005853883046 | Q63: =TEXT(Assumptions!S61,"mmm-yy") -> Mar-27 | R63: =BS!S9 -> 504001.6102 | S63: =BS!S11 -> 468862.3207 | T63: =BS!S10 -> 130958.464
G64: =TEXT(Assumptions!T61,"mmm-yy") -> Apr-27 | H64: =PL!T9 -> 172898.5059 | I64: =PL!T10 -> 160639.0712 | J64: =PL!T11 -> 59609.5285 | L64: =TEXT(Assumptions!T61,"mmm-yy") -> Apr-27 | M64: =PL!T20 -> 0.6199271996 | N64: =PL!T33 -> 0.2502360463 | O64: =PL!T49 -> 0.005891172973 | Q64: =TEXT(Assumptions!T61,"mmm-yy") -> Apr-27 | R64: =BS!T9 -> 385995.6654 | S64: =BS!T11 -> 453385.6259 | T64: =BS!T10 -> 143627.6888
G65: =TEXT(Assumptions!U61,"mmm-yy") -> May-27 | H65: =PL!U9 -> 185674.7154 | I65: =PL!U10 -> 173079.3106 | J65: =PL!U11 -> 65762.6903 | L65: =TEXT(Assumptions!U61,"mmm-yy") -> May-27 | M65: =PL!U20 -> 0.6203334365 | N65: =PL!U33 -> 0.2514479511 | O65: =PL!U49 -> 0.02462846998 | Q65: =TEXT(Assumptions!U61,"mmm-yy") -> May-27 | R65: =BS!U9 -> 458320.2354 | S65: =BS!U11 -> 438794.7952 | T65: =BS!U10 -> 150455.0976
G66: =TEXT(Assumptions!V61,"mmm-yy") -> Jun-27 | H66: =PL!V9 -> 183429.3422 | I66: =PL!V10 -> 171551.1096 | J66: =PL!V11 -> 66741.79134 | L66: =TEXT(Assumptions!V61,"mmm-yy") -> Jun-27 | M66: =PL!V20 -> 0.6203238294 | N66: =PL!V33 -> 0.251838372 | O66: =PL!V49 -> 0.02375554532 | Q66: =TEXT(Assumptions!V61,"mmm-yy") -> Jun-27 | R66: =BS!V9 -> 505412.126 | S66: =BS!V11 -> 393633.428 | T66: =BS!V10 -> 154829.5449
G67: =TEXT(Assumptions!W61,"mmm-yy") -> Jul-27 | H67: =PL!W9 -> 177095.0155 | I67: =PL!W10 -> 166174.0791 | J67: =PL!W11 -> 66196.88001 | L67: =TEXT(Assumptions!W61,"mmm-yy") -> Jul-27 | M67: =PL!W20 -> 0.6213586507 | N67: =PL!W33 -> 0.2542845909 | O67: =PL!W49 -> 0.02055636501 | Q67: =TEXT(Assumptions!W61,"mmm-yy") -> Jul-27 | R67: =BS!W9 -> 259894.0613 | S67: =BS!W11 -> 394470.7432 | T67: =BS!W10 -> 145842.7246
G68: =TEXT(Assumptions!X61,"mmm-yy") -> Aug-27 | H68: =PL!X9 -> 176467.705 | I68: =PL!X10 -> 166132.3807 | J68: =PL!X11 -> 67763.90755 | L68: =TEXT(Assumptions!X61,"mmm-yy") -> Aug-27 | M68: =PL!X20 -> 0.6201886786 | N68: =PL!X33 -> 0.252387554 | O68: =PL!X49 -> 0.018589868 | Q68: =TEXT(Assumptions!X61,"mmm-yy") -> Aug-27 | R68: =BS!X9 -> 257728.9573 | S68: =BS!X11 -> 470384.7381 | T68: =BS!X10 -> 146528.2941
G69: =TEXT(Assumptions!Y61,"mmm-yy") -> Sep-27 | H69: =PL!Y9 -> 202318.9719 | I69: =PL!Y10 -> 191098.6663 | J69: =PL!Y11 -> 79812.64828 | L69: =TEXT(Assumptions!Y61,"mmm-yy") -> Sep-27 | M69: =PL!Y20 -> 0.6176251255 | N69: =PL!Y33 -> 0.2477502507 | O69: =PL!Y49 -> 0.04211897006 | Q69: =TEXT(Assumptions!Y61,"mmm-yy") -> Sep-27 | R69: =BS!Y9 -> 118370.8804 | S69: =BS!Y11 -> 528303.0173 | T69: =BS!Y10 -> 175047.4144
G70: =TEXT(Assumptions!Z61,"mmm-yy") -> Oct-27 | H70: =PL!Z9 -> 233258.9942 | I70: =PL!Z10 -> 221050.4123 | J70: =PL!Z11 -> 94531.22968 | L70: =TEXT(Assumptions!Z61,"mmm-yy") -> Oct-27 | M70: =PL!Z20 -> 0.6181918195 | N70: =PL!Z33 -> 0.2407284856 | O70: =PL!Z49 -> 0.06209219646 | Q70: =TEXT(Assumptions!Z61,"mmm-yy") -> Oct-27 | R70: =BS!Z9 -> 1825.216735 | S70: =BS!Z11 -> 790119.455 | T70: =BS!Z10 -> 193799.4589
G71: =TEXT(Assumptions!AA61,"mmm-yy") -> Nov-27 | H71: =PL!AA9 -> 335348.6293 | I71: =PL!AA10 -> 318846.195 | J71: =PL!AA11 -> 139615.9801 | L71: =TEXT(Assumptions!AA61,"mmm-yy") -> Nov-27 | M71: =PL!AA20 -> 0.6146011872 | N71: =PL!AA33 -> 0.2340408228 | O71: =PL!AA49 -> 0.1055692628 | Q71: =TEXT(Assumptions!AA61,"mmm-yy") -> Nov-27 | R71: =BS!AA9 -> 140551.6514 | S71: =BS!AA11 -> 685248.076 | T71: =BS!AA10 -> 290411.0974
G72: =TEXT(Assumptions!AB61,"mmm-yy") -> Dec-27 | H72: =PL!AB9 -> 298495.4525 | I72: =PL!AB10 -> 284743.6732 | J72: =PL!AB11 -> 127666.7746 | L72: =TEXT(Assumptions!AB61,"mmm-yy") -> Dec-27 | M72: =PL!AB20 -> 0.6214044637 | N72: =PL!AB33 -> 0.2480061855 | O72: =PL!AB49 -> 0.1086397397 | Q72: =TEXT(Assumptions!AB61,"mmm-yy") -> Dec-27 | R72: =BS!AB9 -> 346148.3018 | S72: =BS!AB11 -> 685248.076 | T72: =BS!AB10 -> 252361.3028

Sheet PL
A1: =Assumptions!$C$6 -> Alderway Home B.V. (fictional demonstration company)
A2: PROFIT AND LOSS (EUR)
A3: Monthly, actual Jan-26 to Aug-26 and forecast to Dec-27 for the selected scenario. Revenue positive, costs negative. Every line links to a schedule; nothing is typed here.
A4: Line | B4: Basis | C4: FY2026 | D4: FY2027 | E4: =Assumptions!E$61 -> 2026-01-31 | F4: =Assumptions!F$61 -> 2026-02-28 | G4: =Assumptions!G$61 -> 2026-03-31 | H4: =Assumptions!H$61 -> 2026-04-30 | I4: =Assumptions!I$61 -> 2026-05-31 | J4: =Assumptions!J$61 -> 2026-06-30 | K4: =Assumptions!K$61 -> 2026-07-31 | L4: =Assumptions!L$61 -> 2026-08-31 | M4: =Assumptions!M$61 -> 2026-09-30 | N4: =Assumptions!N$61 -> 2026-10-31 | O4: =Assumptions!O$61 -> 2026-11-30 | P4: =Assumptions!P$61 -> 2026-12-31 | Q4: =Assumptions!Q$61 -> 2027-01-31 | R4: =Assumptions!R$61 -> 2027-02-28 | S4: =Assumptions!S$61 -> 2027-03-31 | T4: =Assumptions!T$61 -> 2027-04-30 | U4: =Assumptions!U$61 -> 2027-05-31 | V4: =Assumptions!V$61 -> 2027-06-30 | W4: =Assumptions!W$61 -> 2027-07-31 | X4: =Assumptions!X$61 -> 2027-08-31 | Y4: =Assumptions!Y$61 -> 2027-09-30 | Z4: =Assumptions!Z$61 -> 2027-10-31 | AA4: =Assumptions!AA$61 -> 2027-11-30 | AB4: =Assumptions!AB$61 -> 2027-12-31
A5: Actual (A) or Forecast (F) | C5: A + F | D5: F | E5: =Assumptions!E$63 -> A | F5: =Assumptions!F$63 -> A | G5: =Assumptions!G$63 -> A | H5: =Assumptions!H$63 -> A | I5: =Assumptions!I$63 -> A | J5: =Assumptions!J$63 -> A | K5: =Assumptions!K$63 -> A | L5: =Assumptions!L$63 -> A | M5: =Assumptions!M$63 -> F | N5: =Assumptions!N$63 -> F | O5: =Assumptions!O$63 -> F | P5: =Assumptions!P$63 -> F | Q5: =Assumptions!Q$63 -> F | R5: =Assumptions!R$63 -> F | S5: =Assumptions!S$63 -> F | T5: =Assumptions!T$63 -> F | U5: =Assumptions!U$63 -> F | V5: =Assumptions!V$63 -> F | W5: =Assumptions!W$63 -> F | X5: =Assumptions!X$63 -> F | Y5: =Assumptions!Y$63 -> F | Z5: =Assumptions!Z$63 -> F | AA5: =Assumptions!AA$63 -> F | AB5: =Assumptions!AB$63 -> F
A6: Month number | E6: =Assumptions!E$62 -> 1 | F6: =Assumptions!F$62 -> 2 | G6: =Assumptions!G$62 -> 3 | H6: =Assumptions!H$62 -> 4 | I6: =Assumptions!I$62 -> 5 | J6: =Assumptions!J$62 -> 6 | K6: =Assumptions!K$62 -> 7 | L6: =Assumptions!L$62 -> 8 | M6: =Assumptions!M$62 -> 9 | N6: =Assumptions!N$62 -> 10 | O6: =Assumptions!O$62 -> 11 | P6: =Assumptions!P$62 -> 12 | Q6: =Assumptions!Q$62 -> 13 | R6: =Assumptions!R$62 -> 14 | S6: =Assumptions!S$62 -> 15 | T6: =Assumptions!T$62 -> 16 | U6: =Assumptions!U$62 -> 17 | V6: =Assumptions!V$62 -> 18 | W6: =Assumptions!W$62 -> 19 | X6: =Assumptions!X$62 -> 20 | Y6: =Assumptions!Y$62 -> 21 | Z6: =Assumptions!Z$62 -> 22 | AA6: =Assumptions!AA$62 -> 23 | AB6: =Assumptions!AB$62 -> 24
A8: REVENUE
A9: Shopify EU (DTC): net revenue | B9: Channel_PL | C9: =SUM(E9:P9) -> 2,001,236 | D9: =SUM(Q9:AB9) -> 2,423,439 | E9: =Channel_PL!E18 -> 126,518 | F9: =Channel_PL!F18 -> 127,277 | G9: =Channel_PL!G18 -> 144,242 | H9: =Channel_PL!H18 -> 143,072 | I9: =Channel_PL!I18 -> 164,601 | J9: =Channel_PL!J18 -> 154,082 | K9: =Channel_PL!K18 -> 143,338 | L9: =Channel_PL!L18 -> 145,932 | M9: =Channel_PL!M18 -> 161,220 | N9: =Channel_PL!N18 -> 185,874 | O9: =Channel_PL!O18 -> 267,224 | P9: =Channel_PL!P18 -> 237,856 | Q9: =Channel_PL!Q18 -> 151,061 | R9: =Channel_PL!R18 -> 143,206 | S9: =Channel_PL!S18 -> 164,185 | T9: =Channel_PL!T18 -> 172,899 | U9: =Channel_PL!U18 -> 185,675 | V9: =Channel_PL!V18 -> 183,429 | W9: =Channel_PL!W18 -> 177,095 | X9: =Channel_PL!X18 -> 176,468 | Y9: =Channel_PL!Y18 -> 202,319 | Z9: =Channel_PL!Z18 -> 233,259 | AA9: =Channel_PL!AA18 -> 335,349 | AB9: =Channel_PL!AB18 -> 298,495
A10: Amazon EU (FBA): net revenue | B10: Channel_PL | C10: =SUM(E10:P10) -> 1,821,897 | D10: =SUM(Q10:AB10) -> 2,276,501 | E10: =Channel_PL!E55 -> 127,000 | F10: =Channel_PL!F55 -> 108,247 | G10: =Channel_PL!G55 -> 127,924 | H10: =Channel_PL!H55 -> 140,331 | I10: =Channel_PL!I55 -> 152,575 | J10: =Channel_PL!J55 -> 139,617 | K10: =Channel_PL!K55 -> 125,727 | L10: =Channel_PL!L55 -> 122,489 | M10: =Channel_PL!M55 -> 146,368 | N10: =Channel_PL!N55 -> 169,309 | O10: =Channel_PL!O55 -> 244,214 | P10: =Channel_PL!P55 -> 218,094 | Q10: =Channel_PL!Q55 -> 138,968 | R10: =Channel_PL!R55 -> 132,177 | S10: =Channel_PL!S55 -> 152,041 | T10: =Channel_PL!T55 -> 160,639 | U10: =Channel_PL!U55 -> 173,079 | V10: =Channel_PL!V55 -> 171,551 | W10: =Channel_PL!W55 -> 166,174 | X10: =Channel_PL!X55 -> 166,132 | Y10: =Channel_PL!Y55 -> 191,099 | Z10: =Channel_PL!Z55 -> 221,050 | AA10: =Channel_PL!AA55 -> 318,846 | AB10: =Channel_PL!AB55 -> 284,744
A11: Walmart US (WFS): net revenue | B11: Channel_PL | C11: =SUM(E11:P11) -> 487,444 | D11: =SUM(Q11:AB11) -> 917,620 | E11: =Channel_PL!E89 -> 14,036 | F11: =Channel_PL!F89 -> 15,338 | G11: =Channel_PL!G89 -> 22,212 | H11: =Channel_PL!H89 -> 27,595 | I11: =Channel_PL!I89 -> 31,722 | J11: =Channel_PL!J89 -> 38,248 | K11: =Channel_PL!K89 -> 37,496 | L11: =Channel_PL!L89 -> 46,111 | M11: =Channel_PL!M89 -> 46,028 | N11: =Channel_PL!N89 -> 54,516 | O11: =Channel_PL!O89 -> 80,517 | P11: =Channel_PL!P89 -> 73,626 | Q11: =Channel_PL!Q89 -> 48,036 | R11: =Channel_PL!R89 -> 46,782 | S11: =Channel_PL!S89 -> 55,100 | T11: =Channel_PL!T89 -> 59,610 | U11: =Channel_PL!U89 -> 65,763 | V11: =Channel_PL!V89 -> 66,742 | W11: =Channel_PL!W89 -> 66,197 | X11: =Channel_PL!X89 -> 67,764 | Y11: =Channel_PL!Y89 -> 79,813 | Z11: =Channel_PL!Z89 -> 94,531 | AA11: =Channel_PL!AA89 -> 139,616 | AB11: =Channel_PL!AB89 -> 127,667
A12: NET REVENUE PER CHANNELS | B12: sum | C12: =SUM(E12:P12) -> 4,310,577 | D12: =SUM(Q12:AB12) -> 5,617,560 | E12: =E9+E10+E11 -> 267,554 | F12: =F9+F10+F11 -> 250,862 | G12: =G9+G10+G11 -> 294,378 | H12: =H9+H10+H11 -> 310,999 | I12: =I9+I10+I11 -> 348,898 | J12: =J9+J10+J11 -> 331,947 | K12: =K9+K10+K11 -> 306,561 | L12: =L9+L10+L11 -> 314,532 | M12: =M9+M10+M11 -> 353,616 | N12: =N9+N10+N11 -> 409,700 | O12: =O9+O10+O11 -> 591,955 | P12: =P9+P10+P11 -> 529,576 | Q12: =Q9+Q10+Q11 -> 338,065 | R12: =R9+R10+R11 -> 322,166 | S12: =S9+S10+S11 -> 371,326 | T12: =T9+T10+T11 -> 393,147 | U12: =U9+U10+U11 -> 424,517 | V12: =V9+V10+V11 -> 421,722 | W12: =W9+W10+W11 -> 409,466 | X12: =X9+X10+X11 -> 410,364 | Y12: =Y9+Y10+Y11 -> 473,230 | Z12: =Z9+Z10+Z11 -> 548,841 | AA12: =AA9+AA10+AA11 -> 793,811 | AB12: =AB9+AB10+AB11 -> 710,906
A13: Refund provision movement | B13: Settlements | C13: =SUM(E13:P13) -> (56) | D13: =SUM(Q13:AB13) -> (6,961) | E13: =Settlements!E53 -> 10,031 | F13: =Settlements!F53 -> (283) | G13: =Settlements!G53 -> (471) | H13: =Settlements!H53 -> (868) | I13: =Settlements!I53 -> (923) | J13: =Settlements!J53 -> (290) | K13: =Settlements!K53 -> 1,723 | L13: =Settlements!L53 -> (1,730) | M13: =Settlements!M53 -> (1,177) | N13: =Settlements!N53 -> (1,636) | O13: =Settlements!O53 -> (7,427) | P13: =Settlements!P53 -> 2,997 | Q13: =Settlements!Q53 -> 7,025 | R13: =Settlements!R53 -> (696) | S13: =Settlements!S53 -> (551) | T13: =Settlements!T53 -> (1,300) | U13: =Settlements!U53 -> (688) | V13: =Settlements!V53 -> (431) | W13: =Settlements!W53 -> 958 | X13: =Settlements!X53 -> (48) | Y13: =Settlements!Y53 -> (2,928) | Z13: =Settlements!Z53 -> (2,237) | AA13: =Settlements!AA53 -> (10,097) | AB13: =Settlements!AB53 -> 4,033
A14: NET REVENUE | B14: after refund provision movement | C14: =SUM(E14:P14) -> 4,310,521 | D14: =SUM(Q14:AB14) -> 5,610,599 | E14: =E12+E13 -> 277,585 | F14: =F12+F13 -> 250,579 | G14: =G12+G13 -> 293,907 | H14: =H12+H13 -> 310,130 | I14: =I12+I13 -> 347,974 | J14: =J12+J13 -> 331,657 | K14: =K12+K13 -> 308,284 | L14: =L12+L13 -> 312,802 | M14: =M12+M13 -> 352,439 | N14: =N12+N13 -> 408,064 | O14: =O12+O13 -> 584,528 | P14: =P12+P13 -> 532,573 | Q14: =Q12+Q13 -> 345,090 | R14: =R12+R13 -> 321,469 | S14: =S12+S13 -> 370,774 | T14: =T12+T13 -> 391,847 | U14: =U12+U13 -> 423,829 | V14: =V12+V13 -> 421,291 | W14: =W12+W13 -> 410,424 | X14: =X12+X13 -> 410,316 | Y14: =Y12+Y13 -> 470,302 | Z14: =Z12+Z13 -> 546,604 | AA14: =AA12+AA13 -> 783,714 | AB14: =AB12+AB13 -> 714,939
A15: Net revenue growth vs prior month | B15: memo | F15: =IF(E14=0,0,F14/E14-1) -> (9.7%) | G15: =IF(F14=0,0,G14/F14-1) -> 17.3% | H15: =IF(G14=0,0,H14/G14-1) -> 5.5% | I15: =IF(H14=0,0,I14/H14-1) -> 12.2% | J15: =IF(I14=0,0,J14/I14-1) -> (4.7%) | K15: =IF(J14=0,0,K14/J14-1) -> (7.0%) | L15: =IF(K14=0,0,L14/K14-1) -> 1.5% | M15: =IF(L14=0,0,M14/L14-1) -> 12.7% | N15: =IF(M14=0,0,N14/M14-1) -> 15.8% | O15: =IF(N14=0,0,O14/N14-1) -> 43.2% | P15: =IF(O14=0,0,P14/O14-1) -> (8.9%) | Q15: =IF(P14=0,0,Q14/P14-1) -> (35.2%) | R15: =IF(Q14=0,0,R14/Q14-1) -> (6.8%) | S15: =IF(R14=0,0,S14/R14-1) -> 15.3% | T15: =IF(S14=0,0,T14/S14-1) -> 5.7% | U15: =IF(T14=0,0,U14/T14-1) -> 8.2% | V15: =IF(U14=0,0,V14/U14-1) -> (0.6%) | W15: =IF(V14=0,0,W14/V14-1) -> (2.6%) | X15: =IF(W14=0,0,X14/W14-1) -> (0.0%) | Y15: =IF(X14=0,0,Y14/X14-1) -> 14.6% | Z15: =IF(Y14=0,0,Z14/Y14-1) -> 16.2% | AA15: =IF(Z14=0,0,AA14/Z14-1) -> 43.4% | AB15: =IF(AA14=0,0,AB14/AA14-1) -> (8.8%)
A16: COST OF SALES
A17: Cost of goods sold (shipped less returns recovered) | B17: Channel_PL | C17: =SUM(E17:P17) -> (1,608,573) | D17: =SUM(Q17:AB17) -> (2,125,892) | E17: =Channel_PL!E124 -> (97,408) | F17: =Channel_PL!F124 -> (91,912) | G17: =Channel_PL!G124 -> (108,573) | H17: =Channel_PL!H124 -> (115,233) | I17: =Channel_PL!I124 -> (129,173) | J17: =Channel_PL!J124 -> (123,340) | K17: =Channel_PL!K124 -> (114,987) | L17: =Channel_PL!L124 -> (118,481) | M17: =Channel_PL!M124 -> (132,968) | N17: =Channel_PL!N124 -> (154,149) | O17: =Channel_PL!O124 -> (222,856) | P17: =Channel_PL!P124 -> (199,493) | Q17: =Channel_PL!Q124 -> (127,427) | R17: =Channel_PL!R124 -> (121,509) | S17: =Channel_PL!S124 -> (140,136) | T17: =Channel_PL!T124 -> (148,463) | U17: =Channel_PL!U124 -> (160,409) | V17: =Channel_PL!V124 -> (159,452) | W17: =Channel_PL!W124 -> (154,916) | X17: =Channel_PL!X124 -> (155,354) | Y17: =Channel_PL!Y124 -> (179,267) | Z17: =Channel_PL!Z124 -> (208,043) | AA17: =Channel_PL!AA124 -> (301,094) | AB17: =Channel_PL!AB124 -> (269,823)
A18: Inventory write-offs and slow-moving provision movement | B18: Inventory | C18: =SUM(E18:P18) -> 9,867 | D18: =SUM(Q18:AB18) -> (6,693) | E18: =-Inventory!E85+Inventory!E89 -> (7,510) | F18: =-Inventory!F85+Inventory!F89 -> (4,561) | G18: =-Inventory!G85+Inventory!G89 -> 1,203 | H18: =-Inventory!H85+Inventory!H89 -> 9,586 | I18: =-Inventory!I85+Inventory!I89 -> 10,256 | J18: =-Inventory!J85+Inventory!J89 -> (4,662) | K18: =-Inventory!K85+Inventory!K89 -> 5,302 | L18: =-Inventory!L85+Inventory!L89 -> (4,488) | M18: =-Inventory!M85+Inventory!M89 -> 2,870 | N18: =-Inventory!N85+Inventory!N89 -> (3,844) | O18: =-Inventory!O85+Inventory!O89 -> 6,343 | P18: =-Inventory!P85+Inventory!P89 -> (628) | Q18: =-Inventory!Q85+Inventory!Q89 -> (401) | R18: =-Inventory!R85+Inventory!R89 -> (382) | S18: =-Inventory!S85+Inventory!S89 -> (441) | T18: =-Inventory!T85+Inventory!T89 -> (467) | U18: =-Inventory!U85+Inventory!U89 -> (505) | V18: =-Inventory!V85+Inventory!V89 -> (502) | W18: =-Inventory!W85+Inventory!W89 -> (488) | X18: =-Inventory!X85+Inventory!X89 -> (489) | Y18: =-Inventory!Y85+Inventory!Y89 -> (564) | Z18: =-Inventory!Z85+Inventory!Z89 -> (655) | AA18: =-Inventory!AA85+Inventory!AA89 -> (948) | AB18: =-Inventory!AB85+Inventory!AB89 -> (850)
A19: GROSS PROFIT | C19: =SUM(E19:P19) -> 2,711,815 | D19: =SUM(Q19:AB19) -> 3,478,013 | E19: =E14+E17+E18 -> 172,667 | F19: =F14+F17+F18 -> 154,106 | G19: =G14+G17+G18 -> 186,536 | H19: =H14+H17+H18 -> 204,483 | I19: =I14+I17+I18 -> 229,058 | J19: =J14+J17+J18 -> 203,654 | K19: =K14+K17+K18 -> 198,599 | L19: =L14+L17+L18 -> 189,833 | M19: =M14+M17+M18 -> 222,341 | N19: =N14+N17+N18 -> 250,070 | O19: =O14+O17+O18 -> 368,015 | P19: =P14+P17+P18 -> 332,453 | Q19: =Q14+Q17+Q18 -> 217,261 | R19: =R14+R17+R18 -> 199,578 | S19: =S14+S17+S18 -> 230,197 | T19: =T14+T17+T18 -> 242,916 | U19: =U14+U17+U18 -> 262,915 | V19: =V14+V17+V18 -> 261,337 | W19: =W14+W17+W18 -> 255,020 | X19: =X14+X17+X18 -> 254,473 | Y19: =Y14+Y17+Y18 -> 290,470 | Z19: =Z14+Z17+Z18 -> 337,906 | AA19: =AA14+AA17+AA18 -> 481,672 | AB19: =AB14+AB17+AB18 -> 444,266
A20: Gross margin % | C20: =IF(C14=0,0,C19/C14) -> 62.9% | D20: =IF(D14=0,0,D19/D14) -> 62.0% | E20: =IF(E14=0,0,E19/E14) -> 62.2% | F20: =IF(F14=0,0,F19/F14) -> 61.5% | G20: =IF(G14=0,0,G19/G14) -> 63.5% | H20: =IF(H14=0,0,H19/H14) -> 65.9% | I20: =IF(I14=0,0,I19/I14) -> 65.8% | J20: =IF(J14=0,0,J19/J14) -> 61.4% | K20: =IF(K14=0,0,K19/K14) -> 64.4% | L20: =IF(L14=0,0,L19/L14) -> 60.7% | M20: =IF(M14=0,0,M19/M14) -> 63.1% | N20: =IF(N14=0,0,N19/N14) -> 61.3% | O20: =IF(O14=0,0,O19/O14) -> 63.0% | P20: =IF(P14=0,0,P19/P14) -> 62.4% | Q20: =IF(Q14=0,0,Q19/Q14) -> 63.0% | R20: =IF(R14=0,0,R19/R14) -> 62.1% | S20: =IF(S14=0,0,S19/S14) -> 62.1% | T20: =IF(T14=0,0,T19/T14) -> 62.0% | U20: =IF(U14=0,0,U19/U14) -> 62.0% | V20: =IF(V14=0,0,V19/V14) -> 62.0% | W20: =IF(W14=0,0,W19/W14) -> 62.1% | X20: =IF(X14=0,0,X19/X14) -> 62.0% | Y20: =IF(Y14=0,0,Y19/Y14) -> 61.8% | Z20: =IF(Z14=0,0,Z19/Z14) -> 61.8% | AA20: =IF(AA14=0,0,AA19/AA14) -> 61.5% | AB20: =IF(AB14=0,0,AB19/AB14) -> 62.1%
A21: VARIABLE CHANNEL COSTS
A22: Marketplace, referral and payment fees | B22: Channel_PL | C22: =SUM(E22:P22) -> (409,440) | D22: =SUM(Q22:AB22) -> (555,660) | E22: =Channel_PL!E126 -> (25,180) | F22: =Channel_PL!F126 -> (22,539) | G22: =Channel_PL!G126 -> (27,026) | H22: =Channel_PL!H126 -> (29,644) | I22: =Channel_PL!I126 -> (32,835) | J22: =Channel_PL!J126 -> (31,540) | K22: =Channel_PL!K126 -> (28,941) | L22: =Channel_PL!L126 -> (29,922) | M22: =Channel_PL!M126 -> (33,951) | N22: =Channel_PL!N126 -> (39,444) | O22: =Channel_PL!O126 -> (57,149) | P22: =Channel_PL!P126 -> (51,270) | Q22: =Channel_PL!Q126 -> (32,821) | R22: =Channel_PL!R126 -> (31,367) | S22: =Channel_PL!S126 -> (36,256) | T22: =Channel_PL!T126 -> (38,498) | U22: =Channel_PL!U126 -> (41,690) | V22: =Channel_PL!V126 -> (41,537) | W22: =Channel_PL!W126 -> (40,449) | X22: =Channel_PL!X126 -> (40,658) | Y22: =Channel_PL!Y126 -> (47,027) | Z22: =Channel_PL!Z126 -> (54,705) | AA22: =Channel_PL!AA126 -> (79,362) | AB22: =Channel_PL!AB126 -> (71,290)
A23: Fulfilment, shipping, storage and inbound | B23: Channel_PL | C23: =SUM(E23:P23) -> (583,846) | D23: =SUM(Q23:AB23) -> (741,475) | E23: =Channel_PL!E127 -> (34,761) | F23: =Channel_PL!F127 -> (32,864) | G23: =Channel_PL!G127 -> (38,713) | H23: =Channel_PL!H127 -> (41,454) | I23: =Channel_PL!I127 -> (45,080) | J23: =Channel_PL!J127 -> (46,109) | K23: =Channel_PL!K127 -> (41,415) | L23: =Channel_PL!L127 -> (41,677) | M23: =Channel_PL!M127 -> (46,753) | N23: =Channel_PL!N127 -> (57,686) | O23: =Channel_PL!O127 -> (83,140) | P23: =Channel_PL!P127 -> (74,194) | Q23: =Channel_PL!Q127 -> (44,265) | R23: =Channel_PL!R127 -> (42,080) | S23: =Channel_PL!S127 -> (48,382) | T23: =Channel_PL!T127 -> (51,100) | U23: =Channel_PL!U127 -> (55,042) | V23: =Channel_PL!V127 -> (54,545) | W23: =Channel_PL!W127 -> (52,829) | X23: =Channel_PL!X127 -> (52,814) | Y23: =Channel_PL!Y127 -> (60,754) | Z23: =Channel_PL!Z127 -> (74,955) | AA23: =Channel_PL!AA127 -> (108,129) | AB23: =Channel_PL!AB127 -> (96,582)
A24: Total variable channel costs | C24: =SUM(E24:P24) -> (993,286) | D24: =SUM(Q24:AB24) -> (1,297,134) | E24: =E22+E23 -> (59,941) | F24: =F22+F23 -> (55,402) | G24: =G22+G23 -> (65,738) | H24: =H22+H23 -> (71,098) | I24: =I22+I23 -> (77,915) | J24: =J22+J23 -> (77,649) | K24: =K22+K23 -> (70,357) | L24: =L22+L23 -> (71,599) | M24: =M22+M23 -> (80,704) | N24: =N22+N23 -> (97,130) | O24: =O22+O23 -> (140,289) | P24: =P22+P23 -> (125,463) | Q24: =Q22+Q23 -> (77,086) | R24: =R22+R23 -> (73,446) | S24: =S22+S23 -> (84,639) | T24: =T22+T23 -> (89,598) | U24: =U22+U23 -> (96,732) | V24: =V22+V23 -> (96,082) | W24: =W22+W23 -> (93,278) | X24: =X22+X23 -> (93,472) | Y24: =Y22+Y23 -> (107,780) | Z24: =Z22+Z23 -> (129,660) | AA24: =AA22+AA23 -> (187,490) | AB24: =AB22+AB23 -> (167,872)
A25: CONTRIBUTION BEFORE MARKETING (CM1) | C25: =SUM(E25:P25) -> 1,718,529 | D25: =SUM(Q25:AB25) -> 2,180,879 | E25: =E19+E24 -> 112,726 | F25: =F19+F24 -> 98,704 | G25: =G19+G24 -> 120,798 | H25: =H19+H24 -> 133,385 | I25: =I19+I24 -> 151,143 | J25: =J19+J24 -> 126,004 | K25: =K19+K24 -> 128,243 | L25: =L19+L24 -> 118,234 | M25: =M19+M24 -> 141,636 | N25: =N19+N24 -> 152,941 | O25: =O19+O24 -> 227,726 | P25: =P19+P24 -> 206,989 | Q25: =Q19+Q24 -> 140,176 | R25: =R19+R24 -> 126,132 | S25: =S19+S24 -> 145,559 | T25: =T19+T24 -> 153,319 | U25: =U19+U24 -> 166,183 | V25: =V19+V24 -> 165,255 | W25: =W19+W24 -> 161,743 | X25: =X19+X24 -> 161,002 | Y25: =Y19+Y24 -> 182,690 | Z25: =Z19+Z24 -> 208,246 | AA25: =AA19+AA24 -> 294,182 | AB25: =AB19+AB24 -> 276,394
A26: CM1 % | C26: =IF(C14=0,0,C25/C14) -> 39.9% | D26: =IF(D14=0,0,D25/D14) -> 38.9% | E26: =IF(E14=0,0,E25/E14) -> 40.6% | F26: =IF(F14=0,0,F25/F14) -> 39.4% | G26: =IF(G14=0,0,G25/G14) -> 41.1% | H26: =IF(H14=0,0,H25/H14) -> 43.0% | I26: =IF(I14=0,0,I25/I14) -> 43.4% | J26: =IF(J14=0,0,J25/J14) -> 38.0% | K26: =IF(K14=0,0,K25/K14) -> 41.6% | L26: =IF(L14=0,0,L25/L14) -> 37.8% | M26: =IF(M14=0,0,M25/M14) -> 40.2% | N26: =IF(N14=0,0,N25/N14) -> 37.5% | O26: =IF(O14=0,0,O25/O14) -> 39.0% | P26: =IF(P14=0,0,P25/P14) -> 38.9% | Q26: =IF(Q14=0,0,Q25/Q14) -> 40.6% | R26: =IF(R14=0,0,R25/R14) -> 39.2% | S26: =IF(S14=0,0,S25/S14) -> 39.3% | T26: =IF(T14=0,0,T25/T14) -> 39.1% | U26: =IF(U14=0,0,U25/U14) -> 39.2% | V26: =IF(V14=0,0,V25/V14) -> 39.2% | W26: =IF(W14=0,0,W25/W14) -> 39.4% | X26: =IF(X14=0,0,X25/X14) -> 39.2% | Y26: =IF(Y14=0,0,Y25/Y14) -> 38.8% | Z26: =IF(Z14=0,0,Z25/Z14) -> 38.1% | AA26: =IF(AA14=0,0,AA25/AA14) -> 37.5% | AB26: =IF(AB14=0,0,AB25/AB14) -> 38.7%
A27: MARKETING
A28: Shopify paid media (Meta, Google) | B28: Channel_PL | C28: =SUM(E28:P28) -> (374,317) | D28: =SUM(Q28:AB28) -> (460,453) | E28: =Channel_PL!E33 -> (21,321) | F28: =Channel_PL!F33 -> (22,468) | G28: =Channel_PL!G33 -> (27,523) | H28: =Channel_PL!H33 -> (25,490) | I28: =Channel_PL!I33 -> (29,570) | J28: =Channel_PL!J33 -> (28,738) | K28: =Channel_PL!K33 -> (28,030) | L28: =Channel_PL!L33 -> (29,264) | M28: =Channel_PL!M33 -> (30,632) | N28: =Channel_PL!N33 -> (35,316) | O28: =Channel_PL!O33 -> (50,773) | P28: =Channel_PL!P33 -> (45,193) | Q28: =Channel_PL!Q33 -> (28,702) | R28: =Channel_PL!R33 -> (27,209) | S28: =Channel_PL!S33 -> (31,195) | T28: =Channel_PL!T33 -> (32,851) | U28: =Channel_PL!U33 -> (35,278) | V28: =Channel_PL!V33 -> (34,852) | W28: =Channel_PL!W33 -> (33,648) | X28: =Channel_PL!X33 -> (33,529) | Y28: =Channel_PL!Y33 -> (38,441) | Z28: =Channel_PL!Z33 -> (44,319) | AA28: =Channel_PL!AA33 -> (63,716) | AB28: =Channel_PL!AB33 -> (56,714)
A29: Amazon advertising | C29: =SUM(E29:P29) -> (172,294) | D29: =SUM(Q29:AB29) -> (216,268) | E29: =Channel_PL!E69 -> (11,057) | F29: =Channel_PL!F69 -> (9,410) | G29: =Channel_PL!G69 -> (11,456) | H29: =Channel_PL!H69 -> (13,283) | I29: =Channel_PL!I69 -> (15,111) | J29: =Channel_PL!J69 -> (13,890) | K29: =Channel_PL!K69 -> (12,615) | L29: =Channel_PL!L69 -> (11,563) | M29: =Channel_PL!M69 -> (13,905) | N29: =Channel_PL!N69 -> (16,084) | O29: =Channel_PL!O69 -> (23,200) | P29: =Channel_PL!P69 -> (20,719) | Q29: =Channel_PL!Q69 -> (13,202) | R29: =Channel_PL!R69 -> (12,557) | S29: =Channel_PL!S69 -> (14,444) | T29: =Channel_PL!T69 -> (15,261) | U29: =Channel_PL!U69 -> (16,443) | V29: =Channel_PL!V69 -> (16,297) | W29: =Channel_PL!W69 -> (15,787) | X29: =Channel_PL!X69 -> (15,783) | Y29: =Channel_PL!Y69 -> (18,154) | Z29: =Channel_PL!Z69 -> (21,000) | AA29: =Channel_PL!AA69 -> (30,290) | AB29: =Channel_PL!AB69 -> (27,051)
A30: Walmart Connect advertising | C30: =SUM(E30:P30) -> (61,754) | D30: =SUM(Q30:AB30) -> (110,114) | E30: =Channel_PL!E102 -> (2,057) | F30: =Channel_PL!F102 -> (2,387) | G30: =Channel_PL!G102 -> (3,218) | H30: =Channel_PL!H102 -> (3,833) | I30: =Channel_PL!I102 -> (4,101) | J30: =Channel_PL!J102 -> (5,045) | K30: =Channel_PL!K102 -> (4,421) | L30: =Channel_PL!L102 -> (6,129) | M30: =Channel_PL!M102 -> (5,523) | N30: =Channel_PL!N102 -> (6,542) | O30: =Channel_PL!O102 -> (9,662) | P30: =Channel_PL!P102 -> (8,835) | Q30: =Channel_PL!Q102 -> (5,764) | R30: =Channel_PL!R102 -> (5,614) | S30: =Channel_PL!S102 -> (6,612) | T30: =Channel_PL!T102 -> (7,153) | U30: =Channel_PL!U102 -> (7,892) | V30: =Channel_PL!V102 -> (8,009) | W30: =Channel_PL!W102 -> (7,944) | X30: =Channel_PL!X102 -> (8,132) | Y30: =Channel_PL!Y102 -> (9,578) | Z30: =Channel_PL!Z102 -> (11,344) | AA30: =Channel_PL!AA102 -> (16,754) | AB30: =Channel_PL!AB102 -> (15,320)
A31: Total paid media | C31: =SUM(E31:P31) -> (608,365) | D31: =SUM(Q31:AB31) -> (786,835) | E31: =E28+E29+E30 -> (34,435) | F31: =F28+F29+F30 -> (34,265) | G31: =G28+G29+G30 -> (42,197) | H31: =H28+H29+H30 -> (42,606) | I31: =I28+I29+I30 -> (48,782) | J31: =J28+J29+J30 -> (47,673) | K31: =K28+K29+K30 -> (45,066) | L31: =L28+L29+L30 -> (46,956) | M31: =M28+M29+M30 -> (50,060) | N31: =N28+N29+N30 -> (57,942) | O31: =O28+O29+O30 -> (83,635) | P31: =P28+P29+P30 -> (74,747) | Q31: =Q28+Q29+Q30 -> (47,668) | R31: =R28+R29+R30 -> (45,380) | S31: =S28+S29+S30 -> (52,251) | T31: =T28+T29+T30 -> (55,265) | U31: =U28+U29+U30 -> (59,612) | V31: =V28+V29+V30 -> (59,158) | W31: =W28+W29+W30 -> (57,378) | X31: =X28+X29+X30 -> (57,443) | Y31: =Y28+Y29+Y30 -> (66,172) | Z31: =Z28+Z29+Z30 -> (76,663) | AA31: =AA28+AA29+AA30 -> (110,761) | AB31: =AB28+AB29+AB30 -> (99,085)
A32: CONTRIBUTION AFTER MARKETING (CM2) | C32: =SUM(E32:P32) -> 1,110,164 | D32: =SUM(Q32:AB32) -> 1,394,043 | E32: =E25+E31 -> 78,291 | F32: =F25+F31 -> 64,439 | G32: =G25+G31 -> 78,601 | H32: =H25+H31 -> 90,779 | I32: =I25+I31 -> 102,360 | J32: =J25+J31 -> 78,331 | K32: =K25+K31 -> 83,176 | L32: =L25+L31 -> 71,278 | M32: =M25+M31 -> 91,576 | N32: =N25+N31 -> 94,998 | O32: =O25+O31 -> 144,091 | P32: =P25+P31 -> 132,242 | Q32: =Q25+Q31 -> 92,508 | R32: =R25+R31 -> 80,752 | S32: =S25+S31 -> 93,308 | T32: =T25+T31 -> 98,054 | U32: =U25+U31 -> 106,571 | V32: =V25+V31 -> 106,097 | W32: =W25+W31 -> 104,364 | X32: =X25+X31 -> 103,559 | Y32: =Y25+Y31 -> 116,517 | Z32: =Z25+Z31 -> 131,583 | AA32: =AA25+AA31 -> 183,421 | AB32: =AB25+AB31 -> 177,309
A33: CM2 % | C33: =IF(C14=0,0,C32/C14) -> 25.8% | D33: =IF(D14=0,0,D32/D14) -> 24.8% | E33: =IF(E14=0,0,E32/E14) -> 28.2% | F33: =IF(F14=0,0,F32/F14) -> 25.7% | G33: =IF(G14=0,0,G32/G14) -> 26.7% | H33: =IF(H14=0,0,H32/H14) -> 29.3% | I33: =IF(I14=0,0,I32/I14) -> 29.4% | J33: =IF(J14=0,0,J32/J14) -> 23.6% | K33: =IF(K14=0,0,K32/K14) -> 27.0% | L33: =IF(L14=0,0,L32/L14) -> 22.8% | M33: =IF(M14=0,0,M32/M14) -> 26.0% | N33: =IF(N14=0,0,N32/N14) -> 23.3% | O33: =IF(O14=0,0,O32/O14) -> 24.7% | P33: =IF(P14=0,0,P32/P14) -> 24.8% | Q33: =IF(Q14=0,0,Q32/Q14) -> 26.8% | R33: =IF(R14=0,0,R32/R14) -> 25.1% | S33: =IF(S14=0,0,S32/S14) -> 25.2% | T33: =IF(T14=0,0,T32/T14) -> 25.0% | U33: =IF(U14=0,0,U32/U14) -> 25.1% | V33: =IF(V14=0,0,V32/V14) -> 25.2% | W33: =IF(W14=0,0,W32/W14) -> 25.4% | X33: =IF(X14=0,0,X32/X14) -> 25.2% | Y33: =IF(Y14=0,0,Y32/Y14) -> 24.8% | Z33: =IF(Z14=0,0,Z32/Z14) -> 24.1% | AA33: =IF(AA14=0,0,AA32/AA14) -> 23.4% | AB33: =IF(AB14=0,0,AB32/AB14) -> 24.8%
A34: OPERATING EXPENSES
A35: Salaries and wages (incl. employer costs) | B35: Opex | C35: =SUM(E35:P35) -> (581,000) | D35: =SUM(Q35:AB35) -> (740,570) | E35: =-Opex!E38 -> (43,800) | F35: =-Opex!F38 -> (43,900) | G35: =-Opex!G38 -> (44,100) | H35: =-Opex!H38 -> (47,200) | I35: =-Opex!I38 -> (47,300) | J35: =-Opex!J38 -> (47,600) | K35: =-Opex!K38 -> (47,500) | L35: =-Opex!L38 -> (47,900) | M35: =-Opex!M38 -> (48,800) | N35: =-Opex!N38 -> (51,500) | O35: =-Opex!O38 -> (55,700) | P35: =-Opex!P38 -> (55,700) | Q35: =-Opex!Q38 -> (57,371) | R35: =-Opex!R38 -> (62,109) | S35: =-Opex!S38 -> (62,109) | T35: =-Opex!T38 -> (62,109) | U35: =-Opex!U38 -> (62,109) | V35: =-Opex!V38 -> (62,109) | W35: =-Opex!W38 -> (62,109) | X35: =-Opex!X38 -> (62,109) | Y35: =-Opex!Y38 -> (62,109) | Z35: =-Opex!Z38 -> (62,109) | AA35: =-Opex!AA38 -> (62,109) | AB35: =-Opex!AB38 -> (62,109)
A36: Contractors and freelancers | B36: Opex | C36: =SUM(E36:P36) -> (58,779) | D36: =SUM(Q36:AB36) -> (59,328) | E36: =-Opex!E39 -> (5,056) | F36: =-Opex!F39 -> (4,877) | G36: =-Opex!G39 -> (4,502) | H36: =-Opex!H39 -> (4,495) | I36: =-Opex!I39 -> (4,172) | J36: =-Opex!J39 -> (6,301) | K36: =-Opex!K39 -> (5,372) | L36: =-Opex!L39 -> (4,804) | M36: =-Opex!M39 -> (4,800) | N36: =-Opex!N39 -> (4,800) | O36: =-Opex!O39 -> (4,800) | P36: =-Opex!P39 -> (4,800) | Q36: =-Opex!Q39 -> (4,944) | R36: =-Opex!R39 -> (4,944) | S36: =-Opex!S39 -> (4,944) | T36: =-Opex!T39 -> (4,944) | U36: =-Opex!U39 -> (4,944) | V36: =-Opex!V39 -> (4,944) | W36: =-Opex!W39 -> (4,944) | X36: =-Opex!X39 -> (4,944) | Y36: =-Opex!Y39 -> (4,944) | Z36: =-Opex!Z39 -> (4,944) | AA36: =-Opex!AA39 -> (4,944) | AB36: =-Opex!AB39 -> (4,944)
A37: Rent and facilities | B37: Opex | C37: =SUM(E37:P37) -> (57,600) | D37: =SUM(Q37:AB37) -> (59,328) | E37: =-Opex!E40 -> (4,800) | F37: =-Opex!F40 -> (4,800) | G37: =-Opex!G40 -> (4,800) | H37: =-Opex!H40 -> (4,800) | I37: =-Opex!I40 -> (4,800) | J37: =-Opex!J40 -> (4,800) | K37: =-Opex!K40 -> (4,800) | L37: =-Opex!L40 -> (4,800) | M37: =-Opex!M40 -> (4,800) | N37: =-Opex!N40 -> (4,800) | O37: =-Opex!O40 -> (4,800) | P37: =-Opex!P40 -> (4,800) | Q37: =-Opex!Q40 -> (4,944) | R37: =-Opex!R40 -> (4,944) | S37: =-Opex!S40 -> (4,944) | T37: =-Opex!T40 -> (4,944) | U37: =-Opex!U40 -> (4,944) | V37: =-Opex!V40 -> (4,944) | W37: =-Opex!W40 -> (4,944) | X37: =-Opex!X40 -> (4,944) | Y37: =-Opex!Y40 -> (4,944) | Z37: =-Opex!Z40 -> (4,944) | AA37: =-Opex!AA40 -> (4,944) | AB37: =-Opex!AB40 -> (4,944)
A38: Software, apps and platform subscriptions | B38: Opex | C38: =SUM(E38:P38) -> (51,204) | D38: =SUM(Q38:AB38) -> (53,148) | E38: =-Opex!E41 -> (4,056) | F38: =-Opex!F41 -> (4,090) | G38: =-Opex!G41 -> (4,102) | H38: =-Opex!H41 -> (4,171) | I38: =-Opex!I41 -> (4,253) | J38: =-Opex!J41 -> (4,383) | K38: =-Opex!K41 -> (4,437) | L38: =-Opex!L41 -> (4,512) | M38: =-Opex!M41 -> (4,300) | N38: =-Opex!N41 -> (4,300) | O38: =-Opex!O41 -> (4,300) | P38: =-Opex!P41 -> (4,300) | Q38: =-Opex!Q41 -> (4,429) | R38: =-Opex!R41 -> (4,429) | S38: =-Opex!S41 -> (4,429) | T38: =-Opex!T41 -> (4,429) | U38: =-Opex!U41 -> (4,429) | V38: =-Opex!V41 -> (4,429) | W38: =-Opex!W41 -> (4,429) | X38: =-Opex!X41 -> (4,429) | Y38: =-Opex!Y41 -> (4,429) | Z38: =-Opex!Z41 -> (4,429) | AA38: =-Opex!AA41 -> (4,429) | AB38: =-Opex!AB41 -> (4,429)
A39: Professional fees (finance, legal, audit) | B39: Opex | C39: =SUM(E39:P39) -> (38,470) | D39: =SUM(Q39:AB39) -> (39,552) | E39: =-Opex!E42 -> (3,410) | F39: =-Opex!F42 -> (3,074) | G39: =-Opex!G42 -> (3,178) | H39: =-Opex!H42 -> (3,262) | I39: =-Opex!I42 -> (3,267) | J39: =-Opex!J42 -> (2,986) | K39: =-Opex!K42 -> (3,135) | L39: =-Opex!L42 -> (3,358) | M39: =-Opex!M42 -> (3,200) | N39: =-Opex!N42 -> (3,200) | O39: =-Opex!O42 -> (3,200) | P39: =-Opex!P42 -> (3,200) | Q39: =-Opex!Q42 -> (3,296) | R39: =-Opex!R42 -> (3,296) | S39: =-Opex!S42 -> (3,296) | T39: =-Opex!T42 -> (3,296) | U39: =-Opex!U42 -> (3,296) | V39: =-Opex!V42 -> (3,296) | W39: =-Opex!W42 -> (3,296) | X39: =-Opex!X42 -> (3,296) | Y39: =-Opex!Y42 -> (3,296) | Z39: =-Opex!Z42 -> (3,296) | AA39: =-Opex!AA42 -> (3,296) | AB39: =-Opex!AB42 -> (3,296)
A40: Insurance | B40: Opex | C40: =SUM(E40:P40) -> (13,800) | D40: =SUM(Q40:AB40) -> (14,214) | E40: =-Opex!E43 -> (1,150) | F40: =-Opex!F43 -> (1,150) | G40: =-Opex!G43 -> (1,150) | H40: =-Opex!H43 -> (1,150) | I40: =-Opex!I43 -> (1,150) | J40: =-Opex!J43 -> (1,150) | K40: =-Opex!K43 -> (1,150) | L40: =-Opex!L43 -> (1,150) | M40: =-Opex!M43 -> (1,150) | N40: =-Opex!N43 -> (1,150) | O40: =-Opex!O43 -> (1,150) | P40: =-Opex!P43 -> (1,150) | Q40: =-Opex!Q43 -> (1,185) | R40: =-Opex!R43 -> (1,185) | S40: =-Opex!S43 -> (1,185) | T40: =-Opex!T43 -> (1,185) | U40: =-Opex!U43 -> (1,185) | V40: =-Opex!V43 -> (1,185) | W40: =-Opex!W43 -> (1,185) | X40: =-Opex!X43 -> (1,185) | Y40: =-Opex!Y43 -> (1,185) | Z40: =-Opex!Z43 -> (1,185) | AA40: =-Opex!AA43 -> (1,185) | AB40: =-Opex!AB43 -> (1,185)
A41: Travel and entertainment | B41: Opex | C41: =SUM(E41:P41) -> (16,008) | D41: =SUM(Q41:AB41) -> (17,304) | E41: =-Opex!E44 -> (1,765) | F41: =-Opex!F44 -> (1,137) | G41: =-Opex!G44 -> (1,503) | H41: =-Opex!H44 -> (1,091) | I41: =-Opex!I44 -> (942) | J41: =-Opex!J44 -> (1,413) | K41: =-Opex!K44 -> (688) | L41: =-Opex!L44 -> (1,869) | M41: =-Opex!M44 -> (1,400) | N41: =-Opex!N44 -> (1,400) | O41: =-Opex!O44 -> (1,400) | P41: =-Opex!P44 -> (1,400) | Q41: =-Opex!Q44 -> (1,442) | R41: =-Opex!R44 -> (1,442) | S41: =-Opex!S44 -> (1,442) | T41: =-Opex!T44 -> (1,442) | U41: =-Opex!U44 -> (1,442) | V41: =-Opex!V44 -> (1,442) | W41: =-Opex!W44 -> (1,442) | X41: =-Opex!X44 -> (1,442) | Y41: =-Opex!Y44 -> (1,442) | Z41: =-Opex!Z44 -> (1,442) | AA41: =-Opex!AA44 -> (1,442) | AB41: =-Opex!AB44 -> (1,442)
A42: Content, creative and PR (non-media) | B42: Opex | C42: =SUM(E42:P42) -> (69,685) | D42: =SUM(Q42:AB42) -> (67,980) | E42: =-Opex!E45 -> (6,719) | F42: =-Opex!F45 -> (5,921) | G42: =-Opex!G45 -> (5,117) | H42: =-Opex!H45 -> (6,119) | I42: =-Opex!I45 -> (5,586) | J42: =-Opex!J45 -> (6,021) | K42: =-Opex!K45 -> (5,795) | L42: =-Opex!L45 -> (6,407) | M42: =-Opex!M45 -> (5,500) | N42: =-Opex!N45 -> (5,500) | O42: =-Opex!O45 -> (5,500) | P42: =-Opex!P45 -> (5,500) | Q42: =-Opex!Q45 -> (5,665) | R42: =-Opex!R45 -> (5,665) | S42: =-Opex!S45 -> (5,665) | T42: =-Opex!T45 -> (5,665) | U42: =-Opex!U45 -> (5,665) | V42: =-Opex!V45 -> (5,665) | W42: =-Opex!W45 -> (5,665) | X42: =-Opex!X45 -> (5,665) | Y42: =-Opex!Y45 -> (5,665) | Z42: =-Opex!Z45 -> (5,665) | AA42: =-Opex!AA45 -> (5,665) | AB42: =-Opex!AB45 -> (5,665)
A43: Customer service (per order) | B43: Opex | C43: =SUM(E43:P43) -> (47,496) | D43: =SUM(Q43:AB43) -> (61,955) | E43: =-Opex!E48 -> (2,946) | F43: =-Opex!F48 -> (2,812) | G43: =-Opex!G48 -> (3,283) | H43: =-Opex!H48 -> (3,431) | I43: =-Opex!I48 -> (3,890) | J43: =-Opex!J48 -> (3,713) | K43: =-Opex!K48 -> (3,512) | L43: =-Opex!L48 -> (3,419) | M43: =-Opex!M48 -> (3,856) | N43: =-Opex!N48 -> (4,459) | O43: =-Opex!O48 -> (6,432) | P43: =-Opex!P48 -> (5,744) | Q43: =-Opex!Q48 -> (3,770) | R43: =-Opex!R48 -> (3,587) | S43: =-Opex!S48 -> (4,127) | T43: =-Opex!T48 -> (4,362) | U43: =-Opex!U48 -> (4,701) | V43: =-Opex!V48 -> (4,662) | W43: =-Opex!W48 -> (4,519) | X43: =-Opex!X48 -> (4,521) | Y43: =-Opex!Y48 -> (5,204) | Z43: =-Opex!Z48 -> (6,025) | AA43: =-Opex!AA48 -> (8,700) | AB43: =-Opex!AB48 -> (7,778)
A44: Office and other G&A | B44: Opex | C44: =SUM(E44:P44) -> (21,320) | D44: =SUM(Q44:AB44) -> (22,248) | E44: =-Opex!E46 -> (1,825) | F44: =-Opex!F46 -> (1,606) | G44: =-Opex!G46 -> (1,720) | H44: =-Opex!H46 -> (1,762) | I44: =-Opex!I46 -> (2,110) | J44: =-Opex!J46 -> (1,495) | K44: =-Opex!K46 -> (1,774) | L44: =-Opex!L46 -> (1,828) | M44: =-Opex!M46 -> (1,800) | N44: =-Opex!N46 -> (1,800) | O44: =-Opex!O46 -> (1,800) | P44: =-Opex!P46 -> (1,800) | Q44: =-Opex!Q46 -> (1,854) | R44: =-Opex!R46 -> (1,854) | S44: =-Opex!S46 -> (1,854) | T44: =-Opex!T46 -> (1,854) | U44: =-Opex!U46 -> (1,854) | V44: =-Opex!V46 -> (1,854) | W44: =-Opex!W46 -> (1,854) | X44: =-Opex!X46 -> (1,854) | Y44: =-Opex!Y46 -> (1,854) | Z44: =-Opex!Z46 -> (1,854) | AA44: =-Opex!AA46 -> (1,854) | AB44: =-Opex!AB46 -> (1,854)
A45: Bank charges and FX costs | B45: Opex | C45: =SUM(E45:P45) -> (6,546) | D45: =SUM(Q45:AB45) -> (8,426) | E45: =-Opex!E49 -> (398) | F45: =-Opex!F49 -> (399) | G45: =-Opex!G49 -> (476) | H45: =-Opex!H49 -> (463) | I45: =-Opex!I49 -> (528) | J45: =-Opex!J49 -> (485) | K45: =-Opex!K49 -> (474) | L45: =-Opex!L49 -> (496) | M45: =-Opex!M49 -> (530) | N45: =-Opex!N49 -> (615) | O45: =-Opex!O49 -> (888) | P45: =-Opex!P49 -> (794) | Q45: =-Opex!Q49 -> (507) | R45: =-Opex!R49 -> (483) | S45: =-Opex!S49 -> (557) | T45: =-Opex!T49 -> (590) | U45: =-Opex!U49 -> (637) | V45: =-Opex!V49 -> (633) | W45: =-Opex!W49 -> (614) | X45: =-Opex!X49 -> (616) | Y45: =-Opex!Y49 -> (710) | Z45: =-Opex!Z49 -> (823) | AA45: =-Opex!AA49 -> (1,191) | AB45: =-Opex!AB49 -> (1,066)
A46: Recruitment and training | B46: Opex | C46: =SUM(E46:P46) -> (11,870) | D46: =SUM(Q46:AB46) -> (11,124) | E46: =-Opex!E47 -> (857) | F46: =-Opex!F47 -> (589) | G46: =-Opex!G47 -> (2,400) | H46: =-Opex!H47 -> (488) | I46: =-Opex!I47 -> (983) | J46: =-Opex!J47 -> (991) | K46: =-Opex!K47 -> (864) | L46: =-Opex!L47 -> (1,098) | M46: =-Opex!M47 -> (900) | N46: =-Opex!N47 -> (900) | O46: =-Opex!O47 -> (900) | P46: =-Opex!P47 -> (900) | Q46: =-Opex!Q47 -> (927) | R46: =-Opex!R47 -> (927) | S46: =-Opex!S47 -> (927) | T46: =-Opex!T47 -> (927) | U46: =-Opex!U47 -> (927) | V46: =-Opex!V47 -> (927) | W46: =-Opex!W47 -> (927) | X46: =-Opex!X47 -> (927) | Y46: =-Opex!Y47 -> (927) | Z46: =-Opex!Z47 -> (927) | AA46: =-Opex!AA47 -> (927) | AB46: =-Opex!AB47 -> (927)
A47: TOTAL OPERATING EXPENSES | C47: =SUM(E47:P47) -> (973,779) | D47: =SUM(Q47:AB47) -> (1,155,178) | E47: =-Opex!E50 -> (76,782) | F47: =-Opex!F50 -> (74,355) | G47: =-Opex!G50 -> (76,331) | H47: =-Opex!H50 -> (78,432) | I47: =-Opex!I50 -> (78,981) | J47: =-Opex!J50 -> (81,338) | K47: =-Opex!K50 -> (79,501) | L47: =-Opex!L50 -> (81,641) | M47: =-Opex!M50 -> (81,036) | N47: =-Opex!N50 -> (84,424) | O47: =-Opex!O50 -> (90,870) | P47: =-Opex!P50 -> (90,088) | Q47: =-Opex!Q50 -> (90,334) | R47: =-Opex!R50 -> (94,864) | S47: =-Opex!S50 -> (95,478) | T47: =-Opex!T50 -> (95,746) | U47: =-Opex!U50 -> (96,133) | V47: =-Opex!V50 -> (96,089) | W47: =-Opex!W50 -> (95,928) | X47: =-Opex!X50 -> (95,931) | Y47: =-Opex!Y50 -> (96,709) | Z47: =-Opex!Z50 -> (97,643) | AA47: =-Opex!AA50 -> (100,685) | AB47: =-Opex!AB50 -> (99,639)
A48: EBITDA | C48: =SUM(E48:P48) -> 136,386 | D48: =SUM(Q48:AB48) -> 238,866 | E48: =E32+E47 -> 1,509 | F48: =F32+F47 -> (9,916) | G48: =G32+G47 -> 2,270 | H48: =H32+H47 -> 12,347 | I48: =I32+I47 -> 23,379 | J48: =J32+J47 -> (3,007) | K48: =K32+K47 -> 3,675 | L48: =L32+L47 -> (10,363) | M48: =M32+M47 -> 10,540 | N48: =N32+N47 -> 10,575 | O48: =O32+O47 -> 53,221 | P48: =P32+P47 -> 42,154 | Q48: =Q32+Q47 -> 2,174 | R48: =R32+R47 -> (14,112) | S48: =S32+S47 -> (2,170) | T48: =T32+T47 -> 2,308 | U48: =U32+U47 -> 10,438 | V48: =V32+V47 -> 10,008 | W48: =W32+W47 -> 8,437 | X48: =X32+X47 -> 7,628 | Y48: =Y32+Y47 -> 19,809 | Z48: =Z32+Z47 -> 33,940 | AA48: =AA32+AA47 -> 82,736 | AB48: =AB32+AB47 -> 77,671
A49: EBITDA % | C49: =IF(C14=0,0,C48/C14) -> 3.2% | D49: =IF(D14=0,0,D48/D14) -> 4.3% | E49: =IF(E14=0,0,E48/E14) -> 0.5% | F49: =IF(F14=0,0,F48/F14) -> (4.0%) | G49: =IF(G14=0,0,G48/G14) -> 0.8% | H49: =IF(H14=0,0,H48/H14) -> 4.0% | I49: =IF(I14=0,0,I48/I14) -> 6.7% | J49: =IF(J14=0,0,J48/J14) -> (0.9%) | K49: =IF(K14=0,0,K48/K14) -> 1.2% | L49: =IF(L14=0,0,L48/L14) -> (3.3%) | M49: =IF(M14=0,0,M48/M14) -> 3.0% | N49: =IF(N14=0,0,N48/N14) -> 2.6% | O49: =IF(O14=0,0,O48/O14) -> 9.1% | P49: =IF(P14=0,0,P48/P14) -> 7.9% | Q49: =IF(Q14=0,0,Q48/Q14) -> 0.6% | R49: =IF(R14=0,0,R48/R14) -> (4.4%) | S49: =IF(S14=0,0,S48/S14) -> (0.6%) | T49: =IF(T14=0,0,T48/T14) -> 0.6% | U49: =IF(U14=0,0,U48/U14) -> 2.5% | V49: =IF(V14=0,0,V48/V14) -> 2.4% | W49: =IF(W14=0,0,W48/W14) -> 2.1% | X49: =IF(X14=0,0,X48/X14) -> 1.9% | Y49: =IF(Y14=0,0,Y48/Y14) -> 4.2% | Z49: =IF(Z14=0,0,Z48/Z14) -> 6.2% | AA49: =IF(AA14=0,0,AA48/AA14) -> 10.6% | AB49: =IF(AB14=0,0,AB48/AB14) -> 10.9%
A50: BELOW EBITDA
A51: Depreciation | B51: Fixed_Assets | C51: =SUM(E51:P51) -> (32,080) | D51: =SUM(Q51:AB51) -> (44,857) | E51: =-Fixed_Assets!E28 -> (2,507) | F51: =-Fixed_Assets!F28 -> (2,507) | G51: =-Fixed_Assets!G28 -> (2,620) | H51: =-Fixed_Assets!H28 -> (2,620) | I51: =-Fixed_Assets!I28 -> (2,653) | J51: =-Fixed_Assets!J28 -> (2,653) | K51: =-Fixed_Assets!K28 -> (2,712) | L51: =-Fixed_Assets!L28 -> (2,712) | M51: =-Fixed_Assets!M28 -> (2,737) | N51: =-Fixed_Assets!N28 -> (2,762) | O51: =-Fixed_Assets!O28 -> (2,787) | P51: =-Fixed_Assets!P28 -> (2,812) | Q51: =-Fixed_Assets!Q28 -> (2,837) | R51: =-Fixed_Assets!R28 -> (3,695) | S51: =-Fixed_Assets!S28 -> (3,720) | T51: =-Fixed_Assets!T28 -> (3,745) | U51: =-Fixed_Assets!U28 -> (3,770) | V51: =-Fixed_Assets!V28 -> (3,795) | W51: =-Fixed_Assets!W28 -> (3,820) | X51: =-Fixed_Assets!X28 -> (3,845) | Y51: =-Fixed_Assets!Y28 -> (3,870) | Z51: =-Fixed_Assets!Z28 -> (3,895) | AA51: =-Fixed_Assets!AA28 -> (3,920) | AB51: =-Fixed_Assets!AB28 -> (3,945)
A52: EBIT | C52: =SUM(E52:P52) -> 104,306 | D52: =SUM(Q52:AB52) -> 194,009 | E52: =E48+E51 -> (997) | F52: =F48+F51 -> (12,423) | G52: =G48+G51 -> (350) | H52: =H48+H51 -> 9,727 | I52: =I48+I51 -> 20,726 | J52: =J48+J51 -> (5,660) | K52: =K48+K51 -> 964 | L52: =L48+L51 -> (13,075) | M52: =M48+M51 -> 7,804 | N52: =N48+N51 -> 7,813 | O52: =O48+O51 -> 50,434 | P52: =P48+P51 -> 39,342 | Q52: =Q48+Q51 -> (663) | R52: =R48+R51 -> (17,807) | S52: =S48+S51 -> (5,890) | T52: =T48+T51 -> (1,437) | U52: =U48+U51 -> 6,668 | V52: =V48+V51 -> 6,213 | W52: =W48+W51 -> 4,617 | X52: =X48+X51 -> 3,783 | Y52: =Y48+Y51 -> 15,939 | Z52: =Z48+Z51 -> 30,045 | AA52: =AA48+AA51 -> 78,816 | AB52: =AB48+AB51 -> 73,726
A53: Interest on term loan | B53: Debt | C53: =SUM(E53:P53) -> (26,979) | D53: =SUM(Q53:AB53) -> (20,064) | E53: =-Debt!E12 -> (2,500) | F53: =-Debt!F12 -> (2,455) | G53: =-Debt!G12 -> (2,410) | H53: =-Debt!H12 -> (2,365) | I53: =-Debt!I12 -> (2,319) | J53: =-Debt!J12 -> (2,273) | K53: =-Debt!K12 -> (2,227) | L53: =-Debt!L12 -> (2,180) | M53: =-Debt!M12 -> (2,133) | N53: =-Debt!N12 -> (2,086) | O53: =-Debt!O12 -> (2,039) | P53: =-Debt!P12 -> (1,991) | Q53: =-Debt!Q12 -> (1,943) | R53: =-Debt!R12 -> (1,895) | S53: =-Debt!S12 -> (1,846) | T53: =-Debt!T12 -> (1,797) | U53: =-Debt!U12 -> (1,748) | V53: =-Debt!V12 -> (1,699) | W53: =-Debt!W12 -> (1,649) | X53: =-Debt!X12 -> (1,599) | Y53: =-Debt!Y12 -> (1,548) | Z53: =-Debt!Z12 -> (1,498) | AA53: =-Debt!AA12 -> (1,446) | AB53: =-Debt!AB12 -> (1,395)
A54: PROFIT BEFORE TAX | C54: =SUM(E54:P54) -> 77,327 | D54: =SUM(Q54:AB54) -> 173,945 | E54: =E52+E53 -> (3,497) | F54: =F52+F53 -> (14,878) | G54: =G52+G53 -> (2,760) | H54: =H52+H53 -> 7,362 | I54: =I52+I53 -> 18,407 | J54: =J52+J53 -> (7,933) | K54: =K52+K53 -> (1,263) | L54: =L52+L53 -> (15,255) | M54: =M52+M53 -> 5,670 | N54: =N52+N53 -> 5,727 | O54: =O52+O53 -> 48,395 | P54: =P52+P53 -> 37,351 | Q54: =Q52+Q53 -> (2,606) | R54: =R52+R53 -> (19,702) | S54: =S52+S53 -> (7,737) | T54: =T52+T53 -> (3,234) | U54: =U52+U53 -> 4,920 | V54: =V52+V53 -> 4,514 | W54: =W52+W53 -> 2,968 | X54: =X52+X53 -> 2,184 | Y54: =Y52+Y53 -> 14,390 | Z54: =Z52+Z53 -> 28,547 | AA54: =AA52+AA53 -> 77,370 | AB54: =AB52+AB53 -> 72,331
A55: Cumulative profit before tax in the financial year (memo) | B55: SUMIFS | E55: =SUMIFS(PL!$E$54:$AB$54,Assumptions!$E$64:$AB$64,Assumptions!E$64,Assumptions!$E$62:$AB$62,"<="&Assumptions!E$62) -> (3,497) | F55: =SUMIFS(PL!$E$54:$AB$54,Assumptions!$E$64:$AB$64,Assumptions!F$64,Assumptions!$E$62:$AB$62,"<="&Assumptions!F$62) -> (18,375) | G55: =SUMIFS(PL!$E$54:$AB$54,Assumptions!$E$64:$AB$64,Assumptions!G$64,Assumptions!$E$62:$AB$62,"<="&Assumptions!G$62) -> (21,135) | H55: =SUMIFS(PL!$E$54:$AB$54,Assumptions!$E$64:$AB$64,Assumptions!H$64,Assumptions!$E$62:$AB$62,"<="&Assumptions!H$62) -> (13,773) | I55: =SUMIFS(PL!$E$54:$AB$54,Assumptions!$E$64:$AB$64,Assumptions!I$64,Assumptions!$E$62:$AB$62,"<="&Assumptions!I$62) -> 4,634 | J55: =SUMIFS(PL!$E$54:$AB$54,Assumptions!$E$64:$AB$64,Assumptions!J$64,Assumptions!$E$62:$AB$62,"<="&Assumptions!J$62) -> (3,299) | K55: =SUMIFS(PL!$E$54:$AB$54,Assumptions!$E$64:$AB$64,Assumptions!K$64,Assumptions!$E$62:$AB$62,"<="&Assumptions!K$62) -> (4,562) | L55: =SUMIFS(PL!$E$54:$AB$54,Assumptions!$E$64:$AB$64,Assumptions!L$64,Assumptions!$E$62:$AB$62,"<="&Assumptions!L$62) -> (19,817) | M55: =SUMIFS(PL!$E$54:$AB$54,Assumptions!$E$64:$AB$64,Assumptions!M$64,Assumptions!$E$62:$AB$62,"<="&Assumptions!M$62) -> (14,147) | N55: =SUMIFS(PL!$E$54:$AB$54,Assumptions!$E$64:$AB$64,Assumptions!N$64,Assumptions!$E$62:$AB$62,"<="&Assumptions!N$62) -> (8,420) | O55: =SUMIFS(PL!$E$54:$AB$54,Assumptions!$E$64:$AB$64,Assumptions!O$64,Assumptions!$E$62:$AB$62,"<="&Assumptions!O$62) -> 39,975 | P55: =SUMIFS(PL!$E$54:$AB$54,Assumptions!$E$64:$AB$64,Assumptions!P$64,Assumptions!$E$62:$AB$62,"<="&Assumptions!P$62) -> 77,327 | Q55: =SUMIFS(PL!$E$54:$AB$54,Assumptions!$E$64:$AB$64,Assumptions!Q$64,Assumptions!$E$62:$AB$62,"<="&Assumptions!Q$62) -> (2,606) | R55: =SUMIFS(PL!$E$54:$AB$54,Assumptions!$E$64:$AB$64,Assumptions!R$64,Assumptions!$E$62:$AB$62,"<="&Assumptions!R$62) -> (22,308) | S55: =SUMIFS(PL!$E$54:$AB$54,Assumptions!$E$64:$AB$64,Assumptions!S$64,Assumptions!$E$62:$AB$62,"<="&Assumptions!S$62) -> (30,045) | T55: =SUMIFS(PL!$E$54:$AB$54,Assumptions!$E$64:$AB$64,Assumptions!T$64,Assumptions!$E$62:$AB$62,"<="&Assumptions!T$62) -> (33,279) | U55: =SUMIFS(PL!$E$54:$AB$54,Assumptions!$E$64:$AB$64,Assumptions!U$64,Assumptions!$E$62:$AB$62,"<="&Assumptions!U$62) -> (28,359) | V55: =SUMIFS(PL!$E$54:$AB$54,Assumptions!$E$64:$AB$64,Assumptions!V$64,Assumptions!$E$62:$AB$62,"<="&Assumptions!V$62) -> (23,845) | W55: =SUMIFS(PL!$E$54:$AB$54,Assumptions!$E$64:$AB$64,Assumptions!W$64,Assumptions!$E$62:$AB$62,"<="&Assumptions!W$62) -> (20,877) | X55: =SUMIFS(PL!$E$54:$AB$54,Assumptions!$E$64:$AB$64,Assumptions!X$64,Assumptions!$E$62:$AB$62,"<="&Assumptions!X$62) -> (18,693) | Y55: =SUMIFS(PL!$E$54:$AB$54,Assumptions!$E$64:$AB$64,Assumptions!Y$64,Assumptions!$E$62:$AB$62,"<="&Assumptions!Y$62) -> (4,303) | Z55: =SUMIFS(PL!$E$54:$AB$54,Assumptions!$E$64:$AB$64,Assumptions!Z$64,Assumptions!$E$62:$AB$62,"<="&Assumptions!Z$62) -> 24,245 | AA55: =SUMIFS(PL!$E$54:$AB$54,Assumptions!$E$64:$AB$64,Assumptions!AA$64,Assumptions!$E$62:$AB$62,"<="&Assumptions!AA$62) -> 101,614 | AB55: =SUMIFS(PL!$E$54:$AB$54,Assumptions!$E$64:$AB$64,Assumptions!AB$64,Assumptions!$E$62:$AB$62,"<="&Assumptions!AB$62) -> 173,945
A56: Cumulative tax on the year to date (two-bracket NL rates, no tax on losses) | B56: Assumptions | E56: =MAX(0,Assumptions!$C$16*MIN(E55,Assumptions!$C$15)+Assumptions!$C$17*MAX(E55-Assumptions!$C$15,0)) -> 0 | F56: =MAX(0,Assumptions!$C$16*MIN(F55,Assumptions!$C$15)+Assumptions!$C$17*MAX(F55-Assumptions!$C$15,0)) -> 0 | G56: =MAX(0,Assumptions!$C$16*MIN(G55,Assumptions!$C$15)+Assumptions!$C$17*MAX(G55-Assumptions!$C$15,0)) -> 0 | H56: =MAX(0,Assumptions!$C$16*MIN(H55,Assumptions!$C$15)+Assumptions!$C$17*MAX(H55-Assumptions!$C$15,0)) -> 0 | I56: =MAX(0,Assumptions!$C$16*MIN(I55,Assumptions!$C$15)+Assumptions!$C$17*MAX(I55-Assumptions!$C$15,0)) -> 881 | J56: =MAX(0,Assumptions!$C$16*MIN(J55,Assumptions!$C$15)+Assumptions!$C$17*MAX(J55-Assumptions!$C$15,0)) -> 0 | K56: =MAX(0,Assumptions!$C$16*MIN(K55,Assumptions!$C$15)+Assumptions!$C$17*MAX(K55-Assumptions!$C$15,0)) -> 0 | L56: =MAX(0,Assumptions!$C$16*MIN(L55,Assumptions!$C$15)+Assumptions!$C$17*MAX(L55-Assumptions!$C$15,0)) -> 0 | M56: =MAX(0,Assumptions!$C$16*MIN(M55,Assumptions!$C$15)+Assumptions!$C$17*MAX(M55-Assumptions!$C$15,0)) -> 0 | N56: =MAX(0,Assumptions!$C$16*MIN(N55,Assumptions!$C$15)+Assumptions!$C$17*MAX(N55-Assumptions!$C$15,0)) -> 0 | O56: =MAX(0,Assumptions!$C$16*MIN(O55,Assumptions!$C$15)+Assumptions!$C$17*MAX(O55-Assumptions!$C$15,0)) -> 7,595 | P56: =MAX(0,Assumptions!$C$16*MIN(P55,Assumptions!$C$15)+Assumptions!$C$17*MAX(P55-Assumptions!$C$15,0)) -> 14,692 | Q56: =MAX(0,Assumptions!$C$16*MIN(Q55,Assumptions!$C$15)+Assumptions!$C$17*MAX(Q55-Assumptions!$C$15,0)) -> 0 | R56: =MAX(0,Assumptions!$C$16*MIN(R55,Assumptions!$C$15)+Assumptions!$C$17*MAX(R55-Assumptions!$C$15,0)) -> 0 | S56: =MAX(0,Assumptions!$C$16*MIN(S55,Assumptions!$C$15)+Assumptions!$C$17*MAX(S55-Assumptions!$C$15,0)) -> 0 | T56: =MAX(0,Assumptions!$C$16*MIN(T55,Assumptions!$C$15)+Assumptions!$C$17*MAX(T55-Assumptions!$C$15,0)) -> 0 | U56: =MAX(0,Assumptions!$C$16*MIN(U55,Assumptions!$C$15)+Assumptions!$C$17*MAX(U55-Assumptions!$C$15,0)) -> 0 | V56: =MAX(0,Assumptions!$C$16*MIN(V55,Assumptions!$C$15)+Assumptions!$C$17*MAX(V55-Assumptions!$C$15,0)) -> 0 | W56: =MAX(0,Assumptions!$C$16*MIN(W55,Assumptions!$C$15)+Assumptions!$C$17*MAX(W55-Assumptions!$C$15,0)) -> 0 | X56: =MAX(0,Assumptions!$C$16*MIN(X55,Assumptions!$C$15)+Assumptions!$C$17*MAX(X55-Assumptions!$C$15,0)) -> 0 | Y56: =MAX(0,Assumptions!$C$16*MIN(Y55,Assumptions!$C$15)+Assumptions!$C$17*MAX(Y55-Assumptions!$C$15,0)) -> 0 | Z56: =MAX(0,Assumptions!$C$16*MIN(Z55,Assumptions!$C$15)+Assumptions!$C$17*MAX(Z55-Assumptions!$C$15,0)) -> 4,607 | AA56: =MAX(0,Assumptions!$C$16*MIN(AA55,Assumptions!$C$15)+Assumptions!$C$17*MAX(AA55-Assumptions!$C$15,0)) -> 19,307 | AB56: =MAX(0,Assumptions!$C$16*MIN(AB55,Assumptions!$C$15)+Assumptions!$C$17*MAX(AB55-Assumptions!$C$15,0)) -> 33,050
A57: Corporate income tax | B57: cumulative method | C57: =SUM(E57:P57) -> (14,692) | D57: =SUM(Q57:AB57) -> (33,050) | E57: =-(E56-IF(Assumptions!E$65=1,0,0)) -> 0 | F57: =-(F56-IF(Assumptions!F$65=1,0,E56)) -> 0 | G57: =-(G56-IF(Assumptions!G$65=1,0,F56)) -> 0 | H57: =-(H56-IF(Assumptions!H$65=1,0,G56)) -> 0 | I57: =-(I56-IF(Assumptions!I$65=1,0,H56)) -> (881) | J57: =-(J56-IF(Assumptions!J$65=1,0,I56)) -> 881 | K57: =-(K56-IF(Assumptions!K$65=1,0,J56)) -> 0 | L57: =-(L56-IF(Assumptions!L$65=1,0,K56)) -> 0 | M57: =-(M56-IF(Assumptions!M$65=1,0,L56)) -> 0 | N57: =-(N56-IF(Assumptions!N$65=1,0,M56)) -> 0 | O57: =-(O56-IF(Assumptions!O$65=1,0,N56)) -> (7,595) | P57: =-(P56-IF(Assumptions!P$65=1,0,O56)) -> (7,097) | Q57: =-(Q56-IF(Assumptions!Q$65=1,0,P56)) -> 0 | R57: =-(R56-IF(Assumptions!R$65=1,0,Q56)) -> 0 | S57: =-(S56-IF(Assumptions!S$65=1,0,R56)) -> 0 | T57: =-(T56-IF(Assumptions!T$65=1,0,S56)) -> 0 | U57: =-(U56-IF(Assumptions!U$65=1,0,T56)) -> 0 | V57: =-(V56-IF(Assumptions!V$65=1,0,U56)) -> 0 | W57: =-(W56-IF(Assumptions!W$65=1,0,V56)) -> 0 | X57: =-(X56-IF(Assumptions!X$65=1,0,W56)) -> 0 | Y57: =-(Y56-IF(Assumptions!Y$65=1,0,X56)) -> 0 | Z57: =-(Z56-IF(Assumptions!Z$65=1,0,Y56)) -> (4,607) | AA57: =-(AA56-IF(Assumptions!AA$65=1,0,Z56)) -> (14,700) | AB57: =-(AB56-IF(Assumptions!AB$65=1,0,AA56)) -> (13,743)
A58: NET PROFIT | C58: =SUM(E58:P58) -> 62,634 | D58: =SUM(Q58:AB58) -> 140,896 | E58: =E54+E57 -> (3,497) | F58: =F54+F57 -> (14,878) | G58: =G54+G57 -> (2,760) | H58: =H54+H57 -> 7,362 | I58: =I54+I57 -> 17,527 | J58: =J54+J57 -> (7,053) | K58: =K54+K57 -> (1,263) | L58: =L54+L57 -> (15,255) | M58: =M54+M57 -> 5,670 | N58: =N54+N57 -> 5,727 | O58: =O54+O57 -> 40,800 | P58: =P54+P57 -> 30,255 | Q58: =Q54+Q57 -> (2,606) | R58: =R54+R57 -> (19,702) | S58: =S54+S57 -> (7,737) | T58: =T54+T57 -> (3,234) | U58: =U54+U57 -> 4,920 | V58: =V54+V57 -> 4,514 | W58: =W54+W57 -> 2,968 | X58: =X54+X57 -> 2,184 | Y58: =Y54+Y57 -> 14,390 | Z58: =Z54+Z57 -> 23,941 | AA58: =AA54+AA57 -> 62,669 | AB58: =AB54+AB57 -> 58,588
A59: Net margin % | C59: =IF(C14=0,0,C58/C14) -> 1.5% | D59: =IF(D14=0,0,D58/D14) -> 2.5% | E59: =IF(E14=0,0,E58/E14) -> (1.3%) | F59: =IF(F14=0,0,F58/F14) -> (5.9%) | G59: =IF(G14=0,0,G58/G14) -> (0.9%) | H59: =IF(H14=0,0,H58/H14) -> 2.4% | I59: =IF(I14=0,0,I58/I14) -> 5.0% | J59: =IF(J14=0,0,J58/J14) -> (2.1%) | K59: =IF(K14=0,0,K58/K14) -> (0.4%) | L59: =IF(L14=0,0,L58/L14) -> (4.9%) | M59: =IF(M14=0,0,M58/M14) -> 1.6% | N59: =IF(N14=0,0,N58/N14) -> 1.4% | O59: =IF(O14=0,0,O58/O14) -> 7.0% | P59: =IF(P14=0,0,P58/P14) -> 5.7% | Q59: =IF(Q14=0,0,Q58/Q14) -> (0.8%) | R59: =IF(R14=0,0,R58/R14) -> (6.1%) | S59: =IF(S14=0,0,S58/S14) -> (2.1%) | T59: =IF(T14=0,0,T58/T14) -> (0.8%) | U59: =IF(U14=0,0,U58/U14) -> 1.2% | V59: =IF(V14=0,0,V58/V14) -> 1.1% | W59: =IF(W14=0,0,W58/W14) -> 0.7% | X59: =IF(X14=0,0,X58/X14) -> 0.5% | Y59: =IF(Y14=0,0,Y58/Y14) -> 3.1% | Z59: =IF(Z14=0,0,Z58/Z14) -> 4.4% | AA59: =IF(AA14=0,0,AA58/AA14) -> 8.0% | AB59: =IF(AB14=0,0,AB58/AB14) -> 8.2%
A60: Tax is accrued on cumulative profit at 19% to EUR 200,000 and 25.8% above (NL 2026), with no deferred tax on losses. Interest is paid monthly, so there is no interest accrual.

Sheet BS
A1: =Assumptions!$C$6 -> Alderway Home B.V. (fictional demonstration company)
A2: BALANCE SHEET (EUR)
A3: Balances link to supporting schedules. Negative forecast cash indicates funding or corrective action required; no overdraft draw is assumed.
A4: Line | B4: Basis | C4: FY2026 | D4: FY2027 | E4: =Assumptions!E$61 -> 2026-01-31 | F4: =Assumptions!F$61 -> 2026-02-28 | G4: =Assumptions!G$61 -> 2026-03-31 | H4: =Assumptions!H$61 -> 2026-04-30 | I4: =Assumptions!I$61 -> 2026-05-31 | J4: =Assumptions!J$61 -> 2026-06-30 | K4: =Assumptions!K$61 -> 2026-07-31 | L4: =Assumptions!L$61 -> 2026-08-31 | M4: =Assumptions!M$61 -> 2026-09-30 | N4: =Assumptions!N$61 -> 2026-10-31 | O4: =Assumptions!O$61 -> 2026-11-30 | P4: =Assumptions!P$61 -> 2026-12-31 | Q4: =Assumptions!Q$61 -> 2027-01-31 | R4: =Assumptions!R$61 -> 2027-02-28 | S4: =Assumptions!S$61 -> 2027-03-31 | T4: =Assumptions!T$61 -> 2027-04-30 | U4: =Assumptions!U$61 -> 2027-05-31 | V4: =Assumptions!V$61 -> 2027-06-30 | W4: =Assumptions!W$61 -> 2027-07-31 | X4: =Assumptions!X$61 -> 2027-08-31 | Y4: =Assumptions!Y$61 -> 2027-09-30 | Z4: =Assumptions!Z$61 -> 2027-10-31 | AA4: =Assumptions!AA$61 -> 2027-11-30 | AB4: =Assumptions!AB$61 -> 2027-12-31
A5: Actual (A) or Forecast (F) | C5: A + F | D5: F | E5: =Assumptions!E$63 -> A | F5: =Assumptions!F$63 -> A | G5: =Assumptions!G$63 -> A | H5: =Assumptions!H$63 -> A | I5: =Assumptions!I$63 -> A | J5: =Assumptions!J$63 -> A | K5: =Assumptions!K$63 -> A | L5: =Assumptions!L$63 -> A | M5: =Assumptions!M$63 -> F | N5: =Assumptions!N$63 -> F | O5: =Assumptions!O$63 -> F | P5: =Assumptions!P$63 -> F | Q5: =Assumptions!Q$63 -> F | R5: =Assumptions!R$63 -> F | S5: =Assumptions!S$63 -> F | T5: =Assumptions!T$63 -> F | U5: =Assumptions!U$63 -> F | V5: =Assumptions!V$63 -> F | W5: =Assumptions!W$63 -> F | X5: =Assumptions!X$63 -> F | Y5: =Assumptions!Y$63 -> F | Z5: =Assumptions!Z$63 -> F | AA5: =Assumptions!AA$63 -> F | AB5: =Assumptions!AB$63 -> F
A6: Month number | E6: =Assumptions!E$62 -> 1 | F6: =Assumptions!F$62 -> 2 | G6: =Assumptions!G$62 -> 3 | H6: =Assumptions!H$62 -> 4 | I6: =Assumptions!I$62 -> 5 | J6: =Assumptions!J$62 -> 6 | K6: =Assumptions!K$62 -> 7 | L6: =Assumptions!L$62 -> 8 | M6: =Assumptions!M$62 -> 9 | N6: =Assumptions!N$62 -> 10 | O6: =Assumptions!O$62 -> 11 | P6: =Assumptions!P$62 -> 12 | Q6: =Assumptions!Q$62 -> 13 | R6: =Assumptions!R$62 -> 14 | S6: =Assumptions!S$62 -> 15 | T6: =Assumptions!T$62 -> 16 | U6: =Assumptions!U$62 -> 17 | V6: =Assumptions!V$62 -> 18 | W6: =Assumptions!W$62 -> 19 | X6: =Assumptions!X$62 -> 20 | Y6: =Assumptions!Y$62 -> 21 | Z6: =Assumptions!Z$62 -> 22 | AA6: =Assumptions!AA$62 -> 23 | AB6: =Assumptions!AB$62 -> 24
A8: ASSETS
A9: Cash / (unfunded cash requirement) | B9: CF | C9: =P9 -> 611,228 | D9: =AB9 -> 346,148 | E9: =CF!E39 -> 396,444 | F9: =CF!F39 -> 378,621 | G9: =CF!G39 -> 473,742 | H9: =CF!H39 -> 328,674 | I9: =CF!I39 -> 453,890 | J9: =CF!J39 -> 495,519 | K9: =CF!K39 -> 332,378 | L9: =CF!L39 -> 391,452 | M9: =CF!M39 -> 312,681 | N9: =CF!N39 -> 288,663 | O9: =CF!O39 -> 399,941 | P9: =CF!P39 -> 611,228 | Q9: =CF!Q39 -> 487,747 | R9: =CF!R39 -> 441,346 | S9: =CF!S39 -> 504,002 | T9: =CF!T39 -> 385,996 | U9: =CF!U39 -> 458,320 | V9: =CF!V39 -> 505,412 | W9: =CF!W39 -> 259,894 | X9: =CF!X39 -> 257,729 | Y9: =CF!Y39 -> 118,371 | Z9: =CF!Z39 -> 1,825 | AA9: =CF!AA39 -> 140,552 | AB9: =CF!AB39 -> 346,148
A10: Marketplace and payment receivables (incl. reserves) | B10: Settlements | C10: =P10 -> 182,243 | D10: =AB10 -> 252,361 | E10: =Settlements!E47 -> 85,464 | F10: =Settlements!F47 -> 96,314 | G10: =Settlements!G47 -> 107,909 | H10: =Settlements!H47 -> 115,541 | I10: =Settlements!I47 -> 129,081 | J10: =Settlements!J47 -> 127,648 | K10: =Settlements!K47 -> 102,297 | L10: =Settlements!L47 -> 105,117 | M10: =Settlements!M47 -> 127,022 | N10: =Settlements!N47 -> 140,288 | O10: =Settlements!O47 -> 209,973 | P10: =Settlements!P47 -> 182,243 | Q10: =Settlements!Q47 -> 118,650 | R10: =Settlements!R47 -> 125,488 | S10: =Settlements!S47 -> 130,958 | T10: =Settlements!T47 -> 143,628 | U10: =Settlements!U47 -> 150,455 | V10: =Settlements!V47 -> 154,830 | W10: =Settlements!W47 -> 145,843 | X10: =Settlements!X47 -> 146,528 | Y10: =Settlements!Y47 -> 175,047 | Z10: =Settlements!Z47 -> 193,799 | AA10: =Settlements!AA47 -> 290,411 | AB10: =Settlements!AB47 -> 252,361
A11: Inventory on hand at landed cost | B11: Inventory | C11: =P11 -> 435,690 | D11: =AB11 -> 685,248 | E11: =Inventory!E86 -> 734,632 | F11: =Inventory!F86 -> 693,601 | G11: =Inventory!G86 -> 671,168 | H11: =Inventory!H86 -> 555,934 | I11: =Inventory!I86 -> 591,362 | J11: =Inventory!J86 -> 532,501 | K11: =Inventory!K86 -> 467,854 | L11: =Inventory!L86 -> 390,173 | M11: =Inventory!M86 -> 518,587 | N11: =Inventory!N86 -> 631,432 | O11: =Inventory!O86 -> 478,555 | P11: =Inventory!P86 -> 435,690 | Q11: =Inventory!Q86 -> 552,789 | R11: =Inventory!R86 -> 478,425 | S11: =Inventory!S86 -> 468,862 | T11: =Inventory!T86 -> 453,386 | U11: =Inventory!U86 -> 438,795 | V11: =Inventory!V86 -> 393,633 | W11: =Inventory!W86 -> 394,471 | X11: =Inventory!X86 -> 470,385 | Y11: =Inventory!Y86 -> 528,303 | Z11: =Inventory!Z86 -> 790,119 | AA11: =Inventory!AA86 -> 685,248 | AB11: =Inventory!AB86 -> 685,248
A12: Slow-moving provision | B12: Inventory | C12: =P12 -> 0 | D12: =AB12 -> 0 | E12: =-Inventory!E87 -> (25,510) | F12: =-Inventory!F87 -> (30,070) | G12: =-Inventory!G87 -> (25,068) | H12: =-Inventory!H87 -> (15,482) | I12: =-Inventory!I87 -> (5,226) | J12: =-Inventory!J87 -> (9,888) | K12: =-Inventory!K87 -> (2,486) | L12: =-Inventory!L87 -> (6,974) | M12: =-Inventory!M87 -> (3,686) | N12: =-Inventory!N87 -> (7,045) | O12: =-Inventory!O87 -> 0 | P12: =-Inventory!P87 -> 0 | Q12: =-Inventory!Q87 -> 0 | R12: =-Inventory!R87 -> 0 | S12: =-Inventory!S87 -> 0 | T12: =-Inventory!T87 -> 0 | U12: =-Inventory!U87 -> 0 | V12: =-Inventory!V87 -> 0 | W12: =-Inventory!W87 -> 0 | X12: =-Inventory!X87 -> 0 | Y12: =-Inventory!Y87 -> 0 | Z12: =-Inventory!Z87 -> 0 | AA12: =-Inventory!AA87 -> 0 | AB12: =-Inventory!AB87 -> 0
A13: Inventory in transit | B13: Inventory | C13: =P13 -> 204,369 | D13: =AB13 -> 230,101 | E13: =Inventory!E103 -> 41,000 | F13: =Inventory!F103 -> 77,000 | G13: =Inventory!G103 -> 0 | H13: =Inventory!H103 -> 194,000 | I13: =Inventory!I103 -> 52,000 | J13: =Inventory!J103 -> 46,000 | K13: =Inventory!K103 -> 154,000 | L13: =Inventory!L103 -> 234,000 | M13: =Inventory!M103 -> 280,000 | N13: =Inventory!N103 -> 90,000 | O13: =Inventory!O103 -> 231,705 | P13: =Inventory!P103 -> 204,369 | Q13: =Inventory!Q103 -> 43,238 | R13: =Inventory!R103 -> 112,869 | S13: =Inventory!S103 -> 114,704 | T13: =Inventory!T103 -> 125,534 | U13: =Inventory!U103 -> 98,477 | V13: =Inventory!V103 -> 132,845 | W13: =Inventory!W103 -> 197,037 | X13: =Inventory!X103 -> 202,123 | Y13: =Inventory!Y103 -> 400,012 | Z13: =Inventory!Z103 -> 167,594 | AA13: =Inventory!AA103 -> 230,101 | AB13: =Inventory!AB103 -> 230,101
A14: Supplier deposits | B14: Inventory | C14: =P14 -> 46,832 | D14: =AB14 -> 138,060 | E14: =Inventory!E111 -> 34,800 | F14: =Inventory!F111 -> 42,000 | G14: =Inventory!G111 -> 69,000 | H14: =Inventory!H111 -> 13,800 | I14: =Inventory!I111 -> 60,000 | J14: =Inventory!J111 -> 123,000 | K14: =Inventory!K111 -> 129,400 | L14: =Inventory!L111 -> 103,600 | M14: =Inventory!M111 -> 69,511 | N14: =Inventory!N111 -> 93,022 | O14: =Inventory!O111 -> 44,882 | P14: =Inventory!P111 -> 46,832 | Q14: =Inventory!Q111 -> 68,272 | R14: =Inventory!R111 -> 72,072 | S14: =Inventory!S111 -> 67,203 | T14: =Inventory!T111 -> 69,397 | U14: =Inventory!U111 -> 98,965 | V14: =Inventory!V111 -> 119,748 | W14: =Inventory!W111 -> 180,641 | X14: =Inventory!X111 -> 170,282 | Y14: =Inventory!Y111 -> 119,308 | Z14: =Inventory!Z111 -> 138,060 | AA14: =Inventory!AA111 -> 138,060 | AB14: =Inventory!AB111 -> 138,060
A15: Other receivables and prepaid expenses | B15: opening balance, no movement modelled | C15: =P15 -> 21,500 | D15: =AB15 -> 21,500 | E15: =Inputs_Actuals!$C$124 -> 21,500 | F15: =E15 -> 21,500 | G15: =F15 -> 21,500 | H15: =G15 -> 21,500 | I15: =H15 -> 21,500 | J15: =I15 -> 21,500 | K15: =J15 -> 21,500 | L15: =K15 -> 21,500 | M15: =L15 -> 21,500 | N15: =M15 -> 21,500 | O15: =N15 -> 21,500 | P15: =O15 -> 21,500 | Q15: =P15 -> 21,500 | R15: =Q15 -> 21,500 | S15: =R15 -> 21,500 | T15: =S15 -> 21,500 | U15: =T15 -> 21,500 | V15: =U15 -> 21,500 | W15: =V15 -> 21,500 | X15: =W15 -> 21,500 | Y15: =X15 -> 21,500 | Z15: =Y15 -> 21,500 | AA15: =Z15 -> 21,500 | AB15: =AA15 -> 21,500
A16: Fixed assets, net book value | B16: Fixed_Assets | C16: =P16 -> 42,820 | D16: =AB16 -> 45,963 | E16: =Fixed_Assets!E29 -> 54,893 | F16: =Fixed_Assets!F29 -> 52,387 | G16: =Fixed_Assets!G29 -> 56,567 | H16: =Fixed_Assets!H29 -> 53,947 | I16: =Fixed_Assets!I29 -> 52,493 | J16: =Fixed_Assets!J29 -> 49,840 | K16: =Fixed_Assets!K29 -> 50,628 | L16: =Fixed_Assets!L29 -> 47,917 | M16: =Fixed_Assets!M29 -> 46,680 | N16: =Fixed_Assets!N29 -> 45,418 | O16: =Fixed_Assets!O29 -> 44,132 | P16: =Fixed_Assets!P29 -> 42,820 | Q16: =Fixed_Assets!Q29 -> 41,483 | R16: =Fixed_Assets!R29 -> 69,288 | S16: =Fixed_Assets!S29 -> 67,068 | T16: =Fixed_Assets!T29 -> 64,823 | U16: =Fixed_Assets!U29 -> 62,553 | V16: =Fixed_Assets!V29 -> 60,258 | W16: =Fixed_Assets!W29 -> 57,938 | X16: =Fixed_Assets!X29 -> 55,593 | Y16: =Fixed_Assets!Y29 -> 53,223 | Z16: =Fixed_Assets!Z29 -> 50,828 | AA16: =Fixed_Assets!AA29 -> 48,408 | AB16: =Fixed_Assets!AB29 -> 45,963
A17: TOTAL ASSETS | C17: =P17 -> 1,544,682 | D17: =AB17 -> 1,719,382 | E17: =SUM(E9:E16) -> 1,343,225 | F17: =SUM(F9:F16) -> 1,331,352 | G17: =SUM(G9:G16) -> 1,374,818 | H17: =SUM(H9:H16) -> 1,267,914 | I17: =SUM(I9:I16) -> 1,355,100 | J17: =SUM(J9:J16) -> 1,386,120 | K17: =SUM(K9:K16) -> 1,255,572 | L17: =SUM(L9:L16) -> 1,286,784 | M17: =SUM(M9:M16) -> 1,372,296 | N17: =SUM(N9:N16) -> 1,303,279 | O17: =SUM(O9:O16) -> 1,430,688 | P17: =SUM(P9:P16) -> 1,544,682 | Q17: =SUM(Q9:Q16) -> 1,333,679 | R17: =SUM(R9:R16) -> 1,320,987 | S17: =SUM(S9:S16) -> 1,374,298 | T17: =SUM(T9:T16) -> 1,264,263 | U17: =SUM(U9:U16) -> 1,329,065 | V17: =SUM(V9:V16) -> 1,388,227 | W17: =SUM(W9:W16) -> 1,257,324 | X17: =SUM(X9:X16) -> 1,324,140 | Y17: =SUM(Y9:Y16) -> 1,415,765 | Z17: =SUM(Z9:Z16) -> 1,363,726 | AA17: =SUM(AA9:AA16) -> 1,554,280 | AB17: =SUM(AB9:AB16) -> 1,719,382
A18: LIABILITIES
A19: Trade payables | B19: AP_Schedule | C19: =P19 -> 106,284 | D19: =AB19 -> 137,684 | E19: =AP_Schedule!E35 -> 96,388 | F19: =AP_Schedule!F35 -> 64,532 | G19: =AP_Schedule!G35 -> 70,325 | H19: =AP_Schedule!H35 -> 62,533 | I19: =AP_Schedule!I35 -> 80,478 | J19: =AP_Schedule!J35 -> 73,888 | K19: =AP_Schedule!K35 -> 67,497 | L19: =AP_Schedule!L35 -> 71,999 | M19: =AP_Schedule!M35 -> 102,760 | N19: =AP_Schedule!N35 -> 118,709 | O19: =AP_Schedule!O35 -> 102,489 | P19: =AP_Schedule!P35 -> 106,284 | Q19: =AP_Schedule!Q35 -> 102,227 | R19: =AP_Schedule!R35 -> 72,137 | S19: =AP_Schedule!S35 -> 83,678 | T19: =AP_Schedule!T35 -> 89,235 | U19: =AP_Schedule!U35 -> 91,415 | V19: =AP_Schedule!V35 -> 89,372 | W19: =AP_Schedule!W35 -> 91,745 | X19: =AP_Schedule!X35 -> 102,506 | Y19: =AP_Schedule!Y35 -> 113,303 | Z19: =AP_Schedule!Z35 -> 150,890 | AA19: =AP_Schedule!AA35 -> 140,625 | AB19: =AP_Schedule!AB35 -> 137,684
A20: Wage tax and social charges payable | B20: Opex | C20: =P20 -> 17,824 | D20: =AB20 -> 19,875 | E20: =Opex!E57 -> 14,016 | F20: =Opex!F57 -> 14,048 | G20: =Opex!G57 -> 14,112 | H20: =Opex!H57 -> 15,104 | I20: =Opex!I57 -> 15,136 | J20: =Opex!J57 -> 15,232 | K20: =Opex!K57 -> 15,200 | L20: =Opex!L57 -> 15,328 | M20: =Opex!M57 -> 15,616 | N20: =Opex!N57 -> 16,480 | O20: =Opex!O57 -> 17,824 | P20: =Opex!P57 -> 17,824 | Q20: =Opex!Q57 -> 18,359 | R20: =Opex!R57 -> 19,875 | S20: =Opex!S57 -> 19,875 | T20: =Opex!T57 -> 19,875 | U20: =Opex!U57 -> 19,875 | V20: =Opex!V57 -> 19,875 | W20: =Opex!W57 -> 19,875 | X20: =Opex!X57 -> 19,875 | Y20: =Opex!Y57 -> 19,875 | Z20: =Opex!Z57 -> 19,875 | AA20: =Opex!AA57 -> 19,875 | AB20: =Opex!AB57 -> 19,875
A21: Refund liability | B21: Settlements | C21: =P21 -> 19,456 | D21: =AB21 -> 26,417 | E21: =Settlements!E52 -> 9,369 | F21: =Settlements!F52 -> 9,653 | G21: =Settlements!G52 -> 10,123 | H21: =Settlements!H52 -> 10,992 | I21: =Settlements!I52 -> 11,915 | J21: =Settlements!J52 -> 12,205 | K21: =Settlements!K52 -> 10,483 | L21: =Settlements!L52 -> 12,212 | M21: =Settlements!M52 -> 13,390 | N21: =Settlements!N52 -> 15,026 | O21: =Settlements!O52 -> 22,453 | P21: =Settlements!P52 -> 19,456 | Q21: =Settlements!Q52 -> 12,431 | R21: =Settlements!R52 -> 13,128 | S21: =Settlements!S52 -> 13,679 | T21: =Settlements!T52 -> 14,979 | U21: =Settlements!U52 -> 15,667 | V21: =Settlements!V52 -> 16,098 | W21: =Settlements!W52 -> 15,141 | X21: =Settlements!X52 -> 15,189 | Y21: =Settlements!Y52 -> 18,117 | Z21: =Settlements!Z52 -> 20,354 | AA21: =Settlements!AA52 -> 30,450 | AB21: =Settlements!AB52 -> 26,417
A22: VAT payable | B22: VAT | C22: =P22 -> 241,871 | D22: =AB22 -> 312,901 | E22: =VAT!E22 -> 44,720 | F22: =VAT!F22 -> 86,483 | G22: =VAT!G22 -> 133,641 | H22: =VAT!H22 -> 51,015 | I22: =VAT!I22 -> 108,246 | J22: =VAT!J22 -> 160,801 | K22: =VAT!K22 -> 47,106 | L22: =VAT!L22 -> 94,705 | M22: =VAT!M22 -> 149,858 | N22: =VAT!N22 -> 64,251 | O22: =VAT!O22 -> 158,346 | P22: =VAT!P22 -> 241,871 | Q22: =VAT!Q22 -> 51,749 | R22: =VAT!R22 -> 94,414 | S22: =VAT!S22 -> 151,194 | T22: =VAT!T22 -> 60,103 | U22: =VAT!U22 -> 125,040 | V22: =VAT!V22 -> 189,272 | W22: =VAT!W22 -> 62,009 | X22: =VAT!X22 -> 123,905 | Y22: =VAT!Y22 -> 195,537 | Z22: =VAT!Z22 -> 83,301 | AA22: =VAT!AA22 -> 204,878 | AB22: =VAT!AB22 -> 312,901
A23: Corporate income tax payable: opening (memo) | E23: =Inputs_Actuals!$C$135 -> 18,400 | F23: =E26 -> 18,400 | G23: =F26 -> 18,400 | H23: =G26 -> 18,400 | I23: =H26 -> 0 | J23: =I26 -> 881 | K23: =J26 -> 0 | L23: =K26 -> 0 | M23: =L26 -> 0 | N23: =M26 -> 0 | O23: =N26 -> 0 | P23: =O26 -> 7,595 | Q23: =P26 -> 14,692 | R23: =Q26 -> 14,692 | S23: =R26 -> 14,692 | T23: =S26 -> 14,692 | U23: =T26 -> 0 | V23: =U26 -> 0 | W23: =V26 -> 0 | X23: =W26 -> 0 | Y23: =X26 -> 0 | Z23: =Y26 -> 0 | AA23: =Z26 -> 4,607 | AB23: =AA26 -> 19,307
A24: Corporate income tax: charge (memo) | B24: PL | E24: =-PL!E57 -> 0 | F24: =-PL!F57 -> 0 | G24: =-PL!G57 -> 0 | H24: =-PL!H57 -> 0 | I24: =-PL!I57 -> 881 | J24: =-PL!J57 -> (881) | K24: =-PL!K57 -> 0 | L24: =-PL!L57 -> 0 | M24: =-PL!M57 -> 0 | N24: =-PL!N57 -> 0 | O24: =-PL!O57 -> 7,595 | P24: =-PL!P57 -> 7,097 | Q24: =-PL!Q57 -> 0 | R24: =-PL!R57 -> 0 | S24: =-PL!S57 -> 0 | T24: =-PL!T57 -> 0 | U24: =-PL!U57 -> 0 | V24: =-PL!V57 -> 0 | W24: =-PL!W57 -> 0 | X24: =-PL!X57 -> 0 | Y24: =-PL!Y57 -> 0 | Z24: =-PL!Z57 -> 4,607 | AA24: =-PL!AA57 -> 14,700 | AB24: =-PL!AB57 -> 13,743
A25: Corporate income tax: paid (prior year liability in the payment month, memo) | B25: Timeline flag | C25: =SUM(E25:P25) -> (18,400) | D25: =SUM(Q25:AB25) -> (14,692) | E25: =IF(Assumptions!E$73=1,-Inputs_Actuals!$C$135,0) -> 0 | F25: =IF(Assumptions!F$73=1,-Inputs_Actuals!$C$135,0) -> 0 | G25: =IF(Assumptions!G$73=1,-Inputs_Actuals!$C$135,0) -> 0 | H25: =IF(Assumptions!H$73=1,-Inputs_Actuals!$C$135,0) -> (18,400) | I25: =IF(Assumptions!I$73=1,-Inputs_Actuals!$C$135,0) -> 0 | J25: =IF(Assumptions!J$73=1,-Inputs_Actuals!$C$135,0) -> 0 | K25: =IF(Assumptions!K$73=1,-Inputs_Actuals!$C$135,0) -> 0 | L25: =IF(Assumptions!L$73=1,-Inputs_Actuals!$C$135,0) -> 0 | M25: =IF(Assumptions!M$73=1,-Inputs_Actuals!$C$135,0) -> 0 | N25: =IF(Assumptions!N$73=1,-Inputs_Actuals!$C$135,0) -> 0 | O25: =IF(Assumptions!O$73=1,-Inputs_Actuals!$C$135,0) -> 0 | P25: =IF(Assumptions!P$73=1,-Inputs_Actuals!$C$135,0) -> 0 | Q25: =IF(Assumptions!Q$73=1,-BS!$P$26,0) -> 0 | R25: =IF(Assumptions!R$73=1,-BS!$P$26,0) -> 0 | S25: =IF(Assumptions!S$73=1,-BS!$P$26,0) -> 0 | T25: =IF(Assumptions!T$73=1,-BS!$P$26,0) -> (14,692) | U25: =IF(Assumptions!U$73=1,-BS!$P$26,0) -> 0 | V25: =IF(Assumptions!V$73=1,-BS!$P$26,0) -> 0 | W25: =IF(Assumptions!W$73=1,-BS!$P$26,0) -> 0 | X25: =IF(Assumptions!X$73=1,-BS!$P$26,0) -> 0 | Y25: =IF(Assumptions!Y$73=1,-BS!$P$26,0) -> 0 | Z25: =IF(Assumptions!Z$73=1,-BS!$P$26,0) -> 0 | AA25: =IF(Assumptions!AA$73=1,-BS!$P$26,0) -> 0 | AB25: =IF(Assumptions!AB$73=1,-BS!$P$26,0) -> 0
A26: Corporate income tax payable | B26: opening + charge + paid | C26: =P26 -> 14,692 | D26: =AB26 -> 33,050 | E26: =E23+E24+E25 -> 18,400 | F26: =F23+F24+F25 -> 18,400 | G26: =G23+G24+G25 -> 18,400 | H26: =H23+H24+H25 -> 0 | I26: =I23+I24+I25 -> 881 | J26: =J23+J24+J25 -> 0 | K26: =K23+K24+K25 -> 0 | L26: =L23+L24+L25 -> 0 | M26: =M23+M24+M25 -> 0 | N26: =N23+N24+N25 -> 0 | O26: =O23+O24+O25 -> 7,595 | P26: =P23+P24+P25 -> 14,692 | Q26: =Q23+Q24+Q25 -> 14,692 | R26: =R23+R24+R25 -> 14,692 | S26: =S23+S24+S25 -> 14,692 | T26: =T23+T24+T25 -> 0 | U26: =U23+U24+U25 -> 0 | V26: =V23+V24+V25 -> 0 | W26: =W23+W24+W25 -> 0 | X26: =X23+X24+X25 -> 0 | Y26: =Y23+Y24+Y25 -> 0 | Z26: =Z23+Z24+Z25 -> 4,607 | AA26: =AA23+AA24+AA25 -> 19,307 | AB26: =AB23+AB24+AB25 -> 33,050
A27: Term loan: current portion | B27: Debt | C27: =P27 -> 95,995 | D27: =AB27 -> 103,447 | E27: =Debt!E16 -> 89,636 | F27: =Debt!F16 -> 90,196 | G27: =Debt!G16 -> 90,760 | H27: =Debt!H16 -> 91,327 | I27: =Debt!I16 -> 91,898 | J27: =Debt!J16 -> 92,473 | K27: =Debt!K16 -> 93,051 | L27: =Debt!L16 -> 93,632 | M27: =Debt!M16 -> 94,217 | N27: =Debt!N16 -> 94,806 | O27: =Debt!O16 -> 95,399 | P27: =Debt!P16 -> 95,995 | Q27: =Debt!Q16 -> 96,595 | R27: =Debt!R16 -> 97,199 | S27: =Debt!S16 -> 97,806 | T27: =Debt!T16 -> 98,417 | U27: =Debt!U16 -> 99,033 | V27: =Debt!V16 -> 99,652 | W27: =Debt!W16 -> 100,274 | X27: =Debt!X16 -> 100,901 | Y27: =Debt!Y16 -> 101,532 | Z27: =Debt!Z16 -> 102,166 | AA27: =Debt!AA16 -> 102,805 | AB27: =Debt!AB16 -> 103,447
A28: Term loan: non-current portion | B28: Debt | C28: =P28 -> 214,926 | D28: =AB28 -> 111,478 | E28: =Debt!E17 -> 303,192 | F28: =Debt!F17 -> 295,416 | G28: =Debt!G17 -> 287,590 | H28: =Debt!H17 -> 279,716 | I28: =Debt!I17 -> 271,793 | J28: =Debt!J17 -> 263,820 | K28: =Debt!K17 -> 255,797 | L28: =Debt!L17 -> 247,725 | M28: =Debt!M17 -> 239,601 | N28: =Debt!N17 -> 231,427 | O28: =Debt!O17 -> 223,202 | P28: =Debt!P17 -> 214,926 | Q28: =Debt!Q17 -> 206,597 | R28: =Debt!R17 -> 198,217 | S28: =Debt!S17 -> 189,784 | T28: =Debt!T17 -> 181,299 | U28: =Debt!U17 -> 172,760 | V28: =Debt!V17 -> 164,169 | W28: =Debt!W17 -> 155,523 | X28: =Debt!X17 -> 146,823 | Y28: =Debt!Y17 -> 138,070 | Z28: =Debt!Z17 -> 129,261 | AA28: =Debt!AA17 -> 120,397 | AB28: =Debt!AB17 -> 111,478
A29: TOTAL LIABILITIES | C29: =P29 -> 711,047 | D29: =AB29 -> 744,852 | E29: =E19+E20+E21+E22+E26+E27+E28 -> 575,722 | F29: =F19+F20+F21+F22+F26+F27+F28 -> 578,727 | G29: =G19+G20+G21+G22+G26+G27+G28 -> 624,953 | H29: =H19+H20+H21+H22+H26+H27+H28 -> 510,687 | I29: =I19+I20+I21+I22+I26+I27+I28 -> 580,347 | J29: =J19+J20+J21+J22+J26+J27+J28 -> 618,419 | K29: =K19+K20+K21+K22+K26+K27+K28 -> 489,134 | L29: =L19+L20+L21+L22+L26+L27+L28 -> 535,601 | M29: =M19+M20+M21+M22+M26+M27+M28 -> 615,443 | N29: =N19+N20+N21+N22+N26+N27+N28 -> 540,699 | O29: =O19+O20+O21+O22+O26+O27+O28 -> 627,308 | P29: =P19+P20+P21+P22+P26+P27+P28 -> 711,047 | Q29: =Q19+Q20+Q21+Q22+Q26+Q27+Q28 -> 502,650 | R29: =R19+R20+R21+R22+R26+R27+R28 -> 509,661 | S29: =S19+S20+S21+S22+S26+S27+S28 -> 570,709 | T29: =T19+T20+T21+T22+T26+T27+T28 -> 463,908 | U29: =U19+U20+U21+U22+U26+U27+U28 -> 523,790 | V29: =V19+V20+V21+V22+V26+V27+V28 -> 578,437 | W29: =W19+W20+W21+W22+W26+W27+W28 -> 444,566 | X29: =X19+X20+X21+X22+X26+X27+X28 -> 509,198 | Y29: =Y19+Y20+Y21+Y22+Y26+Y27+Y28 -> 586,433 | Z29: =Z19+Z20+Z21+Z22+Z26+Z27+Z28 -> 510,454 | AA29: =AA19+AA20+AA21+AA22+AA26+AA27+AA28 -> 638,338 | AB29: =AB19+AB20+AB21+AB22+AB26+AB27+AB28 -> 744,852
A30: EQUITY
A31: Share capital | B31: opening balance | C31: =P31 -> 250,000 | D31: =AB31 -> 250,000 | E31: =Inputs_Actuals!$C$137 -> 250,000 | F31: =E31 -> 250,000 | G31: =F31 -> 250,000 | H31: =G31 -> 250,000 | I31: =H31 -> 250,000 | J31: =I31 -> 250,000 | K31: =J31 -> 250,000 | L31: =K31 -> 250,000 | M31: =L31 -> 250,000 | N31: =M31 -> 250,000 | O31: =N31 -> 250,000 | P31: =O31 -> 250,000 | Q31: =P31 -> 250,000 | R31: =Q31 -> 250,000 | S31: =R31 -> 250,000 | T31: =S31 -> 250,000 | U31: =T31 -> 250,000 | V31: =U31 -> 250,000 | W31: =V31 -> 250,000 | X31: =W31 -> 250,000 | Y31: =X31 -> 250,000 | Z31: =Y31 -> 250,000 | AA31: =Z31 -> 250,000 | AB31: =AA31 -> 250,000
A32: Retained earnings: opening (memo) | E32: =Inputs_Actuals!$C$138 -> 521,000 | F32: =E35 -> 517,503 | G32: =F35 -> 502,625 | H32: =G35 -> 499,865 | I32: =H35 -> 507,227 | J32: =I35 -> 524,754 | K32: =J35 -> 517,701 | L32: =K35 -> 516,438 | M32: =L35 -> 501,183 | N32: =M35 -> 506,853 | O32: =N35 -> 512,580 | P32: =O35 -> 553,380 | Q32: =P35 -> 583,634 | R32: =Q35 -> 581,028 | S32: =R35 -> 561,326 | T32: =S35 -> 553,589 | U32: =T35 -> 550,355 | V32: =U35 -> 555,275 | W32: =V35 -> 559,790 | X32: =W35 -> 562,758 | Y32: =X35 -> 564,942 | Z32: =Y35 -> 579,332 | AA32: =Z35 -> 603,273 | AB32: =AA35 -> 665,942
A33: Net profit for the month (memo) | B33: PL | C33: =SUM(E33:P33) -> 62,634 | D33: =SUM(Q33:AB33) -> 140,896 | E33: =PL!E58 -> (3,497) | F33: =PL!F58 -> (14,878) | G33: =PL!G58 -> (2,760) | H33: =PL!H58 -> 7,362 | I33: =PL!I58 -> 17,527 | J33: =PL!J58 -> (7,053) | K33: =PL!K58 -> (1,263) | L33: =PL!L58 -> (15,255) | M33: =PL!M58 -> 5,670 | N33: =PL!N58 -> 5,727 | O33: =PL!O58 -> 40,800 | P33: =PL!P58 -> 30,255 | Q33: =PL!Q58 -> (2,606) | R33: =PL!R58 -> (19,702) | S33: =PL!S58 -> (7,737) | T33: =PL!T58 -> (3,234) | U33: =PL!U58 -> 4,920 | V33: =PL!V58 -> 4,514 | W33: =PL!W58 -> 2,968 | X33: =PL!X58 -> 2,184 | Y33: =PL!Y58 -> 14,390 | Z33: =PL!Z58 -> 23,941 | AA33: =PL!AA58 -> 62,669 | AB33: =PL!AB58 -> 58,588
A34: Dividends paid | B34: input (none planned) | C34: =SUM(E34:P34) -> 0 | D34: =SUM(Q34:AB34) -> 0 | E34: 0 | F34: 0 | G34: 0 | H34: 0 | I34: 0 | J34: 0 | K34: 0 | L34: 0 | M34: 0 | N34: 0 | O34: 0 | P34: 0 | Q34: 0 | R34: 0 | S34: 0 | T34: 0 | U34: 0 | V34: 0 | W34: 0 | X34: 0 | Y34: 0 | Z34: 0 | AA34: 0 | AB34: 0
A35: Retained earnings | B35: opening + profit - dividends | C35: =P35 -> 583,634 | D35: =AB35 -> 724,530 | E35: =E32+E33-E34 -> 517,503 | F35: =F32+F33-F34 -> 502,625 | G35: =G32+G33-G34 -> 499,865 | H35: =H32+H33-H34 -> 507,227 | I35: =I32+I33-I34 -> 524,754 | J35: =J32+J33-J34 -> 517,701 | K35: =K32+K33-K34 -> 516,438 | L35: =L32+L33-L34 -> 501,183 | M35: =M32+M33-M34 -> 506,853 | N35: =N32+N33-N34 -> 512,580 | O35: =O32+O33-O34 -> 553,380 | P35: =P32+P33-P34 -> 583,634 | Q35: =Q32+Q33-Q34 -> 581,028 | R35: =R32+R33-R34 -> 561,326 | S35: =S32+S33-S34 -> 553,589 | T35: =T32+T33-T34 -> 550,355 | U35: =U32+U33-U34 -> 555,275 | V35: =V32+V33-V34 -> 559,790 | W35: =W32+W33-W34 -> 562,758 | X35: =X32+X33-X34 -> 564,942 | Y35: =Y32+Y33-Y34 -> 579,332 | Z35: =Z32+Z33-Z34 -> 603,273 | AA35: =AA32+AA33-AA34 -> 665,942 | AB35: =AB32+AB33-AB34 -> 724,530
A36: TOTAL EQUITY | C36: =P36 -> 833,634 | D36: =AB36 -> 974,530 | E36: =E31+E35 -> 767,503 | F36: =F31+F35 -> 752,625 | G36: =G31+G35 -> 749,865 | H36: =H31+H35 -> 757,227 | I36: =I31+I35 -> 774,754 | J36: =J31+J35 -> 767,701 | K36: =K31+K35 -> 766,438 | L36: =L31+L35 -> 751,183 | M36: =M31+M35 -> 756,853 | N36: =N31+N35 -> 762,580 | O36: =O31+O35 -> 803,380 | P36: =P31+P35 -> 833,634 | Q36: =Q31+Q35 -> 831,028 | R36: =R31+R35 -> 811,326 | S36: =S31+S35 -> 803,589 | T36: =T31+T35 -> 800,355 | U36: =U31+U35 -> 805,275 | V36: =V31+V35 -> 809,790 | W36: =W31+W35 -> 812,758 | X36: =X31+X35 -> 814,942 | Y36: =Y31+Y35 -> 829,332 | Z36: =Z31+Z35 -> 853,273 | AA36: =AA31+AA35 -> 915,942 | AB36: =AB31+AB35 -> 974,530
A37: TOTAL LIABILITIES AND EQUITY | C37: =P37 -> 1,544,682 | D37: =AB37 -> 1,719,382 | E37: =E29+E36 -> 1,343,225 | F37: =F29+F36 -> 1,331,352 | G37: =G29+G36 -> 1,374,818 | H37: =H29+H36 -> 1,267,914 | I37: =I29+I36 -> 1,355,100 | J37: =J29+J36 -> 1,386,120 | K37: =K29+K36 -> 1,255,572 | L37: =L29+L36 -> 1,286,784 | M37: =M29+M36 -> 1,372,296 | N37: =N29+N36 -> 1,303,279 | O37: =O29+O36 -> 1,430,688 | P37: =P29+P36 -> 1,544,682 | Q37: =Q29+Q36 -> 1,333,679 | R37: =R29+R36 -> 1,320,987 | S37: =S29+S36 -> 1,374,298 | T37: =T29+T36 -> 1,264,263 | U37: =U29+U36 -> 1,329,065 | V37: =V29+V36 -> 1,388,227 | W37: =W29+W36 -> 1,257,324 | X37: =X29+X36 -> 1,324,140 | Y37: =Y29+Y36 -> 1,415,765 | Z37: =Z29+Z36 -> 1,363,726 | AA37: =AA29+AA36 -> 1,554,280 | AB37: =AB29+AB36 -> 1,719,382
A38: CHECK: assets less liabilities and equity (must be zero) | C38: =P38 -> 0 | D38: =AB38 -> 0 | E38: =ROUND(E17-E37,2) -> 0 | F38: =ROUND(F17-F37,2) -> 0 | G38: =ROUND(G17-G37,2) -> 0 | H38: =ROUND(H17-H37,2) -> 0 | I38: =ROUND(I17-I37,2) -> 0 | J38: =ROUND(J17-J37,2) -> 0 | K38: =ROUND(K17-K37,2) -> 0 | L38: =ROUND(L17-L37,2) -> 0 | M38: =ROUND(M17-M37,2) -> 0 | N38: =ROUND(N17-N37,2) -> 0 | O38: =ROUND(O17-O37,2) -> 0 | P38: =ROUND(P17-P37,2) -> 0 | Q38: =ROUND(Q17-Q37,2) -> 0 | R38: =ROUND(R17-R37,2) -> 0 | S38: =ROUND(S17-S37,2) -> 0 | T38: =ROUND(T17-T37,2) -> 0 | U38: =ROUND(U17-U37,2) -> 0 | V38: =ROUND(V17-V37,2) -> 0 | W38: =ROUND(W17-W37,2) -> 0 | X38: =ROUND(X17-X37,2) -> 0 | Y38: =ROUND(Y17-Y37,2) -> 0 | Z38: =ROUND(Z17-Z37,2) -> 0 | AA38: =ROUND(AA17-AA37,2) -> 0 | AB38: =ROUND(AB17-AB37,2) -> 0
A39: WORKING CAPITAL METRICS (memo)
A40: Net working capital (receivables + inventory + transit + deposits - payables - refund liability - VAT - payroll taxes) | C40: =P40 -> 483,699 | D40: =AB40 -> 808,894 | E40: =E10+E11+E12+E13+E14-E19-E21-E22-E20 -> 705,893 | F40: =F10+F11+F12+F13+F14-F19-F21-F22-F20 -> 704,129 | G40: =G10+G11+G12+G13+G14-G19-G21-G22-G20 -> 594,807 | H40: =H10+H11+H12+H13+H14-H19-H21-H22-H20 -> 724,150 | I40: =I10+I11+I12+I13+I14-I19-I21-I22-I20 -> 611,442 | J40: =J10+J11+J12+J13+J14-J19-J21-J22-J20 -> 557,135 | K40: =K10+K11+K12+K13+K14-K19-K21-K22-K20 -> 710,780 | L40: =L10+L11+L12+L13+L14-L19-L21-L22-L20 -> 631,671 | M40: =M10+M11+M12+M13+M14-M19-M21-M22-M20 -> 709,811 | N40: =N10+N11+N12+N13+N14-N19-N21-N22-N20 -> 733,232 | O40: =O10+O11+O12+O13+O14-O19-O21-O22-O20 -> 664,003 | P40: =P10+P11+P12+P13+P14-P19-P21-P22-P20 -> 483,699 | Q40: =Q10+Q11+Q12+Q13+Q14-Q19-Q21-Q22-Q20 -> 598,183 | R40: =R10+R11+R12+R13+R14-R19-R21-R22-R20 -> 589,300 | S40: =S10+S11+S12+S13+S14-S19-S21-S22-S20 -> 513,302 | T40: =T10+T11+T12+T13+T14-T19-T21-T22-T20 -> 607,753 | U40: =U10+U11+U12+U13+U14-U19-U21-U22-U20 -> 534,695 | V40: =V10+V11+V12+V13+V14-V19-V21-V22-V20 -> 486,439 | W40: =W10+W11+W12+W13+W14-W19-W21-W22-W20 -> 729,223 | X40: =X10+X11+X12+X13+X14-X19-X21-X22-X20 -> 727,844 | Y40: =Y10+Y11+Y12+Y13+Y14-Y19-Y21-Y22-Y20 -> 875,839 | Z40: =Z10+Z11+Z12+Z13+Z14-Z19-Z21-Z22-Z20 -> 1,015,153 | AA40: =AA10+AA11+AA12+AA13+AA14-AA19-AA21-AA22-AA20 -> 947,991 | AB40: =AB10+AB11+AB12+AB13+AB14-AB19-AB21-AB22-AB20 -> 808,894
A41: Net debt / (net cash) | B41: loan less cash | C41: =P41 -> (300,308) | D41: =AB41 -> (131,223) | E41: =E27+E28-E9 -> (3,616) | F41: =F27+F28-F9 -> 6,991 | G41: =G27+G28-G9 -> (95,392) | H41: =H27+H28-H9 -> 42,369 | I41: =I27+I28-I9 -> (90,199) | J41: =J27+J28-J9 -> (139,226) | K41: =K27+K28-K9 -> 16,470 | L41: =L27+L28-L9 -> (50,096) | M41: =M27+M28-M9 -> 21,137 | N41: =N27+N28-N9 -> 37,570 | O41: =O27+O28-O9 -> (81,340) | P41: =P27+P28-P9 -> (300,308) | Q41: =Q27+Q28-Q9 -> (184,555) | R41: =R27+R28-R9 -> (145,930) | S41: =S27+S28-S9 -> (216,411) | T41: =T27+T28-T9 -> (106,279) | U41: =U27+U28-U9 -> (186,527) | V41: =V27+V28-V9 -> (241,592) | W41: =W27+W28-W9 -> (4,097) | X41: =X27+X28-X9 -> (10,004) | Y41: =Y27+Y28-Y9 -> 121,230 | Z41: =Z27+Z28-Z9 -> 229,602 | AA41: =AA27+AA28-AA9 -> 82,650 | AB41: =AB27+AB28-AB9 -> (131,223)

Sheet CF
A1: =Assumptions!$C$6 -> Alderway Home B.V. (fictional demonstration company)
A2: CASH FLOW STATEMENT (EUR)
A3: Indirect method from the P&L and balance sheet movements, reconciled to a direct-method view built from the cash lines in each schedule. Closing cash feeds the balance sheet; the two methods must agree to the cent.
A4: Line | B4: Basis | C4: FY2026 | D4: FY2027 | E4: =Assumptions!E$61 -> 2026-01-31 | F4: =Assumptions!F$61 -> 2026-02-28 | G4: =Assumptions!G$61 -> 2026-03-31 | H4: =Assumptions!H$61 -> 2026-04-30 | I4: =Assumptions!I$61 -> 2026-05-31 | J4: =Assumptions!J$61 -> 2026-06-30 | K4: =Assumptions!K$61 -> 2026-07-31 | L4: =Assumptions!L$61 -> 2026-08-31 | M4: =Assumptions!M$61 -> 2026-09-30 | N4: =Assumptions!N$61 -> 2026-10-31 | O4: =Assumptions!O$61 -> 2026-11-30 | P4: =Assumptions!P$61 -> 2026-12-31 | Q4: =Assumptions!Q$61 -> 2027-01-31 | R4: =Assumptions!R$61 -> 2027-02-28 | S4: =Assumptions!S$61 -> 2027-03-31 | T4: =Assumptions!T$61 -> 2027-04-30 | U4: =Assumptions!U$61 -> 2027-05-31 | V4: =Assumptions!V$61 -> 2027-06-30 | W4: =Assumptions!W$61 -> 2027-07-31 | X4: =Assumptions!X$61 -> 2027-08-31 | Y4: =Assumptions!Y$61 -> 2027-09-30 | Z4: =Assumptions!Z$61 -> 2027-10-31 | AA4: =Assumptions!AA$61 -> 2027-11-30 | AB4: =Assumptions!AB$61 -> 2027-12-31
A5: Actual (A) or Forecast (F) | C5: A + F | D5: F | E5: =Assumptions!E$63 -> A | F5: =Assumptions!F$63 -> A | G5: =Assumptions!G$63 -> A | H5: =Assumptions!H$63 -> A | I5: =Assumptions!I$63 -> A | J5: =Assumptions!J$63 -> A | K5: =Assumptions!K$63 -> A | L5: =Assumptions!L$63 -> A | M5: =Assumptions!M$63 -> F | N5: =Assumptions!N$63 -> F | O5: =Assumptions!O$63 -> F | P5: =Assumptions!P$63 -> F | Q5: =Assumptions!Q$63 -> F | R5: =Assumptions!R$63 -> F | S5: =Assumptions!S$63 -> F | T5: =Assumptions!T$63 -> F | U5: =Assumptions!U$63 -> F | V5: =Assumptions!V$63 -> F | W5: =Assumptions!W$63 -> F | X5: =Assumptions!X$63 -> F | Y5: =Assumptions!Y$63 -> F | Z5: =Assumptions!Z$63 -> F | AA5: =Assumptions!AA$63 -> F | AB5: =Assumptions!AB$63 -> F
A6: Month number | E6: =Assumptions!E$62 -> 1 | F6: =Assumptions!F$62 -> 2 | G6: =Assumptions!G$62 -> 3 | H6: =Assumptions!H$62 -> 4 | I6: =Assumptions!I$62 -> 5 | J6: =Assumptions!J$62 -> 6 | K6: =Assumptions!K$62 -> 7 | L6: =Assumptions!L$62 -> 8 | M6: =Assumptions!M$62 -> 9 | N6: =Assumptions!N$62 -> 10 | O6: =Assumptions!O$62 -> 11 | P6: =Assumptions!P$62 -> 12 | Q6: =Assumptions!Q$62 -> 13 | R6: =Assumptions!R$62 -> 14 | S6: =Assumptions!S$62 -> 15 | T6: =Assumptions!T$62 -> 16 | U6: =Assumptions!U$62 -> 17 | V6: =Assumptions!V$62 -> 18 | W6: =Assumptions!W$62 -> 19 | X6: =Assumptions!X$62 -> 20 | Y6: =Assumptions!Y$62 -> 21 | Z6: =Assumptions!Z$62 -> 22 | AA6: =Assumptions!AA$62 -> 23 | AB6: =Assumptions!AB$62 -> 24
A8: OPERATING ACTIVITIES (indirect)
A9: Net profit | B9: PL | C9: =SUM(E9:P9) -> 62,634 | D9: =SUM(Q9:AB9) -> 140,896 | E9: =PL!E58 -> (3,497) | F9: =PL!F58 -> (14,878) | G9: =PL!G58 -> (2,760) | H9: =PL!H58 -> 7,362 | I9: =PL!I58 -> 17,527 | J9: =PL!J58 -> (7,053) | K9: =PL!K58 -> (1,263) | L9: =PL!L58 -> (15,255) | M9: =PL!M58 -> 5,670 | N9: =PL!N58 -> 5,727 | O9: =PL!O58 -> 40,800 | P9: =PL!P58 -> 30,255 | Q9: =PL!Q58 -> (2,606) | R9: =PL!R58 -> (19,702) | S9: =PL!S58 -> (7,737) | T9: =PL!T58 -> (3,234) | U9: =PL!U58 -> 4,920 | V9: =PL!V58 -> 4,514 | W9: =PL!W58 -> 2,968 | X9: =PL!X58 -> 2,184 | Y9: =PL!Y58 -> 14,390 | Z9: =PL!Z58 -> 23,941 | AA9: =PL!AA58 -> 62,669 | AB9: =PL!AB58 -> 58,588
A10: Add back: depreciation | C10: =SUM(E10:P10) -> 32,080 | D10: =SUM(Q10:AB10) -> 44,857 | E10: =-PL!E51 -> 2,507 | F10: =-PL!F51 -> 2,507 | G10: =-PL!G51 -> 2,620 | H10: =-PL!H51 -> 2,620 | I10: =-PL!I51 -> 2,653 | J10: =-PL!J51 -> 2,653 | K10: =-PL!K51 -> 2,712 | L10: =-PL!L51 -> 2,712 | M10: =-PL!M51 -> 2,737 | N10: =-PL!N51 -> 2,762 | O10: =-PL!O51 -> 2,787 | P10: =-PL!P51 -> 2,812 | Q10: =-PL!Q51 -> 2,837 | R10: =-PL!R51 -> 3,695 | S10: =-PL!S51 -> 3,720 | T10: =-PL!T51 -> 3,745 | U10: =-PL!U51 -> 3,770 | V10: =-PL!V51 -> 3,795 | W10: =-PL!W51 -> 3,820 | X10: =-PL!X51 -> 3,845 | Y10: =-PL!Y51 -> 3,870 | Z10: =-PL!Z51 -> 3,895 | AA10: =-PL!AA51 -> 3,920 | AB10: =-PL!AB51 -> 3,945
A11: Add back: interest | C11: =SUM(E11:P11) -> 26,979 | D11: =SUM(Q11:AB11) -> 20,064 | E11: =-PL!E53 -> 2,500 | F11: =-PL!F53 -> 2,455 | G11: =-PL!G53 -> 2,410 | H11: =-PL!H53 -> 2,365 | I11: =-PL!I53 -> 2,319 | J11: =-PL!J53 -> 2,273 | K11: =-PL!K53 -> 2,227 | L11: =-PL!L53 -> 2,180 | M11: =-PL!M53 -> 2,133 | N11: =-PL!N53 -> 2,086 | O11: =-PL!O53 -> 2,039 | P11: =-PL!P53 -> 1,991 | Q11: =-PL!Q53 -> 1,943 | R11: =-PL!R53 -> 1,895 | S11: =-PL!S53 -> 1,846 | T11: =-PL!T53 -> 1,797 | U11: =-PL!U53 -> 1,748 | V11: =-PL!V53 -> 1,699 | W11: =-PL!W53 -> 1,649 | X11: =-PL!X53 -> 1,599 | Y11: =-PL!Y53 -> 1,548 | Z11: =-PL!Z53 -> 1,498 | AA11: =-PL!AA53 -> 1,446 | AB11: =-PL!AB53 -> 1,395
A12: Add back: corporate income tax charge | C12: =SUM(E12:P12) -> 14,692 | D12: =SUM(Q12:AB12) -> 33,050 | E12: =-PL!E57 -> 0 | F12: =-PL!F57 -> 0 | G12: =-PL!G57 -> 0 | H12: =-PL!H57 -> 0 | I12: =-PL!I57 -> 881 | J12: =-PL!J57 -> (881) | K12: =-PL!K57 -> 0 | L12: =-PL!L57 -> 0 | M12: =-PL!M57 -> 0 | N12: =-PL!N57 -> 0 | O12: =-PL!O57 -> 7,595 | P12: =-PL!P57 -> 7,097 | Q12: =-PL!Q57 -> 0 | R12: =-PL!R57 -> 0 | S12: =-PL!S57 -> 0 | T12: =-PL!T57 -> 0 | U12: =-PL!U57 -> 0 | V12: =-PL!V57 -> 0 | W12: =-PL!W57 -> 0 | X12: =-PL!X57 -> 0 | Y12: =-PL!Y57 -> 0 | Z12: =-PL!Z57 -> 4,607 | AA12: =-PL!AA57 -> 14,700 | AB12: =-PL!AB57 -> 13,743
A13: EBITDA (check equals PL) | C13: =SUM(E13:P13) -> 136,386 | D13: =SUM(Q13:AB13) -> 238,866 | E13: =E9+E10+E11+E12 -> 1,509 | F13: =F9+F10+F11+F12 -> (9,916) | G13: =G9+G10+G11+G12 -> 2,270 | H13: =H9+H10+H11+H12 -> 12,347 | I13: =I9+I10+I11+I12 -> 23,379 | J13: =J9+J10+J11+J12 -> (3,007) | K13: =K9+K10+K11+K12 -> 3,675 | L13: =L9+L10+L11+L12 -> (10,363) | M13: =M9+M10+M11+M12 -> 10,540 | N13: =N9+N10+N11+N12 -> 10,575 | O13: =O9+O10+O11+O12 -> 53,221 | P13: =P9+P10+P11+P12 -> 42,154 | Q13: =Q9+Q10+Q11+Q12 -> 2,174 | R13: =R9+R10+R11+R12 -> (14,112) | S13: =S9+S10+S11+S12 -> (2,170) | T13: =T9+T10+T11+T12 -> 2,308 | U13: =U9+U10+U11+U12 -> 10,438 | V13: =V9+V10+V11+V12 -> 10,008 | W13: =W9+W10+W11+W12 -> 8,437 | X13: =X9+X10+X11+X12 -> 7,628 | Y13: =Y9+Y10+Y11+Y12 -> 19,809 | Z13: =Z9+Z10+Z11+Z12 -> 33,940 | AA13: =AA9+AA10+AA11+AA12 -> 82,736 | AB13: =AB9+AB10+AB11+AB12 -> 77,671
A14: (Increase) / decrease in marketplace receivables | B14: BS movement | C14: =SUM(E14:P14) -> (48,743) | D14: =SUM(Q14:AB14) -> (70,119) | E14: =-(BS!E10-(Inputs_Actuals!$C$113+Inputs_Actuals!$C$114+Inputs_Actuals!$C$115)) -> 48,036 | F14: =-(BS!F10-BS!E10) -> (10,850) | G14: =-(BS!G10-BS!F10) -> (11,594) | H14: =-(BS!H10-BS!G10) -> (7,632) | I14: =-(BS!I10-BS!H10) -> (13,540) | J14: =-(BS!J10-BS!I10) -> 1,433 | K14: =-(BS!K10-BS!J10) -> 25,351 | L14: =-(BS!L10-BS!K10) -> (2,819) | M14: =-(BS!M10-BS!L10) -> (21,906) | N14: =-(BS!N10-BS!M10) -> (13,266) | O14: =-(BS!O10-BS!N10) -> (69,686) | P14: =-(BS!P10-BS!O10) -> 27,731 | Q14: =-(BS!Q10-BS!P10) -> 63,593 | R14: =-(BS!R10-BS!Q10) -> (6,838) | S14: =-(BS!S10-BS!R10) -> (5,470) | T14: =-(BS!T10-BS!S10) -> (12,669) | U14: =-(BS!U10-BS!T10) -> (6,827) | V14: =-(BS!V10-BS!U10) -> (4,374) | W14: =-(BS!W10-BS!V10) -> 8,987 | X14: =-(BS!X10-BS!W10) -> (686) | Y14: =-(BS!Y10-BS!X10) -> (28,519) | Z14: =-(BS!Z10-BS!Y10) -> (18,752) | AA14: =-(BS!AA10-BS!Z10) -> (96,612) | AB14: =-(BS!AB10-BS!AA10) -> 38,050
A15: (Increase) / decrease in inventory on hand, net of provision | B15: BS movement | C15: =SUM(E15:P15) -> 189,310 | D15: =SUM(Q15:AB15) -> (249,558) | E15: =-((BS!E11+BS!E12)-((SUM(Inputs_Actuals!$C$116:$C$120)-Inputs_Actuals!$C$121))) -> (84,122) | F15: =-((BS!F11+BS!F12)-(BS!E11+BS!E12)) -> 45,592 | G15: =-((BS!G11+BS!G12)-(BS!F11+BS!F12)) -> 17,430 | H15: =-((BS!H11+BS!H12)-(BS!G11+BS!G12)) -> 105,647 | I15: =-((BS!I11+BS!I12)-(BS!H11+BS!H12)) -> (45,683) | J15: =-((BS!J11+BS!J12)-(BS!I11+BS!I12)) -> 63,523 | K15: =-((BS!K11+BS!K12)-(BS!J11+BS!J12)) -> 57,245 | L15: =-((BS!L11+BS!L12)-(BS!K11+BS!K12)) -> 82,169 | M15: =-((BS!M11+BS!M12)-(BS!L11+BS!L12)) -> (131,702) | N15: =-((BS!N11+BS!N12)-(BS!M11+BS!M12)) -> (109,487) | O15: =-((BS!O11+BS!O12)-(BS!N11+BS!N12)) -> 145,833 | P15: =-((BS!P11+BS!P12)-(BS!O11+BS!O12)) -> 42,865 | Q15: =-((BS!Q11+BS!Q12)-(BS!P11+BS!P12)) -> (117,099) | R15: =-((BS!R11+BS!R12)-(BS!Q11+BS!Q12)) -> 74,364 | S15: =-((BS!S11+BS!S12)-(BS!R11+BS!R12)) -> 9,563 | T15: =-((BS!T11+BS!T12)-(BS!S11+BS!S12)) -> 15,477 | U15: =-((BS!U11+BS!U12)-(BS!T11+BS!T12)) -> 14,591 | V15: =-((BS!V11+BS!V12)-(BS!U11+BS!U12)) -> 45,161 | W15: =-((BS!W11+BS!W12)-(BS!V11+BS!V12)) -> (837) | X15: =-((BS!X11+BS!X12)-(BS!W11+BS!W12)) -> (75,914) | Y15: =-((BS!Y11+BS!Y12)-(BS!X11+BS!X12)) -> (57,918) | Z15: =-((BS!Z11+BS!Z12)-(BS!Y11+BS!Y12)) -> (261,816) | AA15: =-((BS!AA11+BS!AA12)-(BS!Z11+BS!Z12)) -> 104,871 | AB15: =-((BS!AB11+BS!AB12)-(BS!AA11+BS!AA12)) -> 0
A16: of which provision movement (included above) | B16: memo | C16: =SUM(E16:P16) -> 18,000 | D16: =SUM(Q16:AB16) -> 0 | E16: =Inventory!E89 -> (7,510) | F16: =Inventory!F89 -> (4,561) | G16: =Inventory!G89 -> 5,003 | H16: =Inventory!H89 -> 9,586 | I16: =Inventory!I89 -> 10,256 | J16: =Inventory!J89 -> (4,662) | K16: =Inventory!K89 -> 7,402 | L16: =Inventory!L89 -> (4,488) | M16: =Inventory!M89 -> 3,289 | N16: =Inventory!N89 -> (3,359) | O16: =Inventory!O89 -> 7,045 | P16: =Inventory!P89 -> 0 | Q16: =Inventory!Q89 -> 0 | R16: =Inventory!R89 -> 0 | S16: =Inventory!S89 -> 0 | T16: =Inventory!T89 -> 0 | U16: =Inventory!U89 -> 0 | V16: =Inventory!V89 -> 0 | W16: =Inventory!W89 -> 0 | X16: =Inventory!X89 -> 0 | Y16: =Inventory!Y89 -> 0 | Z16: =Inventory!Z89 -> 0 | AA16: =Inventory!AA89 -> 0 | AB16: =Inventory!AB89 -> 0
A17: (Increase) / decrease in inventory in transit | B17: BS movement | C17: =SUM(E17:P17) -> (50,369) | D17: =SUM(Q17:AB17) -> (25,732) | E17: =-(BS!E13-Inputs_Actuals!$C$122) -> 113,000 | F17: =-(BS!F13-BS!E13) -> (36,000) | G17: =-(BS!G13-BS!F13) -> 77,000 | H17: =-(BS!H13-BS!G13) -> (194,000) | I17: =-(BS!I13-BS!H13) -> 142,000 | J17: =-(BS!J13-BS!I13) -> 6,000 | K17: =-(BS!K13-BS!J13) -> (108,000) | L17: =-(BS!L13-BS!K13) -> (80,000) | M17: =-(BS!M13-BS!L13) -> (46,000) | N17: =-(BS!N13-BS!M13) -> 190,000 | O17: =-(BS!O13-BS!N13) -> (141,705) | P17: =-(BS!P13-BS!O13) -> 27,336 | Q17: =-(BS!Q13-BS!P13) -> 161,131 | R17: =-(BS!R13-BS!Q13) -> (69,631) | S17: =-(BS!S13-BS!R13) -> (1,835) | T17: =-(BS!T13-BS!S13) -> (10,830) | U17: =-(BS!U13-BS!T13) -> 27,058 | V17: =-(BS!V13-BS!U13) -> (34,369) | W17: =-(BS!W13-BS!V13) -> (64,192) | X17: =-(BS!X13-BS!W13) -> (5,086) | Y17: =-(BS!Y13-BS!X13) -> (197,889) | Z17: =-(BS!Z13-BS!Y13) -> 232,419 | AA17: =-(BS!AA13-BS!Z13) -> (62,507) | AB17: =-(BS!AB13-BS!AA13) -> 0
A18: (Increase) / decrease in supplier deposits | B18: BS movement | C18: =SUM(E18:P18) -> (23,732) | D18: =SUM(Q18:AB18) -> (91,228) | E18: =-(BS!E14-Inputs_Actuals!$C$123) -> (11,700) | F18: =-(BS!F14-BS!E14) -> (7,200) | G18: =-(BS!G14-BS!F14) -> (27,000) | H18: =-(BS!H14-BS!G14) -> 55,200 | I18: =-(BS!I14-BS!H14) -> (46,200) | J18: =-(BS!J14-BS!I14) -> (63,000) | K18: =-(BS!K14-BS!J14) -> (6,400) | L18: =-(BS!L14-BS!K14) -> 25,800 | M18: =-(BS!M14-BS!L14) -> 34,089 | N18: =-(BS!N14-BS!M14) -> (23,511) | O18: =-(BS!O14-BS!N14) -> 48,140 | P18: =-(BS!P14-BS!O14) -> (1,950) | Q18: =-(BS!Q14-BS!P14) -> (21,440) | R18: =-(BS!R14-BS!Q14) -> (3,800) | S18: =-(BS!S14-BS!R14) -> 4,868 | T18: =-(BS!T14-BS!S14) -> (2,193) | U18: =-(BS!U14-BS!T14) -> (29,568) | V18: =-(BS!V14-BS!U14) -> (20,783) | W18: =-(BS!W14-BS!V14) -> (60,893) | X18: =-(BS!X14-BS!W14) -> 10,359 | Y18: =-(BS!Y14-BS!X14) -> 50,974 | Z18: =-(BS!Z14-BS!Y14) -> (18,752) | AA18: =-(BS!AA14-BS!Z14) -> 0 | AB18: =-(BS!AB14-BS!AA14) -> 0
A19: (Increase) / decrease in other receivables | B19: BS movement | C19: =SUM(E19:P19) -> 0 | D19: =SUM(Q19:AB19) -> 0 | E19: =-(BS!E15-Inputs_Actuals!$C$124) -> 0 | F19: =-(BS!F15-BS!E15) -> 0 | G19: =-(BS!G15-BS!F15) -> 0 | H19: =-(BS!H15-BS!G15) -> 0 | I19: =-(BS!I15-BS!H15) -> 0 | J19: =-(BS!J15-BS!I15) -> 0 | K19: =-(BS!K15-BS!J15) -> 0 | L19: =-(BS!L15-BS!K15) -> 0 | M19: =-(BS!M15-BS!L15) -> 0 | N19: =-(BS!N15-BS!M15) -> 0 | O19: =-(BS!O15-BS!N15) -> 0 | P19: =-(BS!P15-BS!O15) -> 0 | Q19: =-(BS!Q15-BS!P15) -> 0 | R19: =-(BS!R15-BS!Q15) -> 0 | S19: =-(BS!S15-BS!R15) -> 0 | T19: =-(BS!T15-BS!S15) -> 0 | U19: =-(BS!U15-BS!T15) -> 0 | V19: =-(BS!V15-BS!U15) -> 0 | W19: =-(BS!W15-BS!V15) -> 0 | X19: =-(BS!X15-BS!W15) -> 0 | Y19: =-(BS!Y15-BS!X15) -> 0 | Z19: =-(BS!Z15-BS!Y15) -> 0 | AA19: =-(BS!AA15-BS!Z15) -> 0 | AB19: =-(BS!AB15-BS!AA15) -> 0
A20: Increase / (decrease) in trade payables | B20: BS movement | C20: =SUM(E20:P20) -> (22,416) | D20: =SUM(Q20:AB20) -> 31,400 | E20: =(BS!E19-(Inputs_Actuals!$C$129+Inputs_Actuals!$C$130+Inputs_Actuals!$C$131)) -> (32,312) | F20: =(BS!F19-BS!E19) -> (31,857) | G20: =(BS!G19-BS!F19) -> 5,794 | H20: =(BS!H19-BS!G19) -> (7,792) | I20: =(BS!I19-BS!H19) -> 17,945 | J20: =(BS!J19-BS!I19) -> (6,590) | K20: =(BS!K19-BS!J19) -> (6,391) | L20: =(BS!L19-BS!K19) -> 4,502 | M20: =(BS!M19-BS!L19) -> 30,761 | N20: =(BS!N19-BS!M19) -> 15,949 | O20: =(BS!O19-BS!N19) -> (16,220) | P20: =(BS!P19-BS!O19) -> 3,795 | Q20: =(BS!Q19-BS!P19) -> (4,057) | R20: =(BS!R19-BS!Q19) -> (30,090) | S20: =(BS!S19-BS!R19) -> 11,541 | T20: =(BS!T19-BS!S19) -> 5,557 | U20: =(BS!U19-BS!T19) -> 2,180 | V20: =(BS!V19-BS!U19) -> (2,042) | W20: =(BS!W19-BS!V19) -> 2,372 | X20: =(BS!X19-BS!W19) -> 10,761 | Y20: =(BS!Y19-BS!X19) -> 10,797 | Z20: =(BS!Z19-BS!Y19) -> 37,587 | AA20: =(BS!AA19-BS!Z19) -> (10,264) | AB20: =(BS!AB19-BS!AA19) -> (2,941)
A21: Increase / (decrease) in wage tax and social charges payable | B21: BS movement | C21: =SUM(E21:P21) -> 1,924 | D21: =SUM(Q21:AB21) -> 2,051 | E21: =(BS!E20-Inputs_Actuals!$C$132) -> (1,884) | F21: =(BS!F20-BS!E20) -> 32 | G21: =(BS!G20-BS!F20) -> 64 | H21: =(BS!H20-BS!G20) -> 992 | I21: =(BS!I20-BS!H20) -> 32 | J21: =(BS!J20-BS!I20) -> 96 | K21: =(BS!K20-BS!J20) -> (32) | L21: =(BS!L20-BS!K20) -> 128 | M21: =(BS!M20-BS!L20) -> 288 | N21: =(BS!N20-BS!M20) -> 864 | O21: =(BS!O20-BS!N20) -> 1,344 | P21: =(BS!P20-BS!O20) -> 0 | Q21: =(BS!Q20-BS!P20) -> 535 | R21: =(BS!R20-BS!Q20) -> 1,516 | S21: =(BS!S20-BS!R20) -> 0 | T21: =(BS!T20-BS!S20) -> 0 | U21: =(BS!U20-BS!T20) -> 0 | V21: =(BS!V20-BS!U20) -> 0 | W21: =(BS!W20-BS!V20) -> 0 | X21: =(BS!X20-BS!W20) -> 0 | Y21: =(BS!Y20-BS!X20) -> 0 | Z21: =(BS!Z20-BS!Y20) -> 0 | AA21: =(BS!AA20-BS!Z20) -> 0 | AB21: =(BS!AB20-BS!AA20) -> 0
A22: Increase / (decrease) in refund liability | B22: BS movement | C22: =SUM(E22:P22) -> 56 | D22: =SUM(Q22:AB22) -> 6,961 | E22: =(BS!E21-Inputs_Actuals!$C$133) -> (10,031) | F22: =(BS!F21-BS!E21) -> 283 | G22: =(BS!G21-BS!F21) -> 471 | H22: =(BS!H21-BS!G21) -> 868 | I22: =(BS!I21-BS!H21) -> 923 | J22: =(BS!J21-BS!I21) -> 290 | K22: =(BS!K21-BS!J21) -> (1,723) | L22: =(BS!L21-BS!K21) -> 1,730 | M22: =(BS!M21-BS!L21) -> 1,177 | N22: =(BS!N21-BS!M21) -> 1,636 | O22: =(BS!O21-BS!N21) -> 7,427 | P22: =(BS!P21-BS!O21) -> (2,997) | Q22: =(BS!Q21-BS!P21) -> (7,025) | R22: =(BS!R21-BS!Q21) -> 696 | S22: =(BS!S21-BS!R21) -> 551 | T22: =(BS!T21-BS!S21) -> 1,300 | U22: =(BS!U21-BS!T21) -> 688 | V22: =(BS!V21-BS!U21) -> 431 | W22: =(BS!W21-BS!V21) -> (958) | X22: =(BS!X21-BS!W21) -> 48 | Y22: =(BS!Y21-BS!X21) -> 2,928 | Z22: =(BS!Z21-BS!Y21) -> 2,237 | AA22: =(BS!AA21-BS!Z21) -> 10,097 | AB22: =(BS!AB21-BS!AA21) -> (4,033)
A23: Increase / (decrease) in VAT payable | B23: BS movement | C23: =SUM(E23:P23) -> 203,171 | D23: =SUM(Q23:AB23) -> 71,030 | E23: =(BS!E22-Inputs_Actuals!$C$134) -> 6,020 | F23: =(BS!F22-BS!E22) -> 41,763 | G23: =(BS!G22-BS!F22) -> 47,158 | H23: =(BS!H22-BS!G22) -> (82,627) | I23: =(BS!I22-BS!H22) -> 57,231 | J23: =(BS!J22-BS!I22) -> 52,555 | K23: =(BS!K22-BS!J22) -> (113,695) | L23: =(BS!L22-BS!K22) -> 47,599 | M23: =(BS!M22-BS!L22) -> 55,153 | N23: =(BS!N22-BS!M22) -> (85,607) | O23: =(BS!O22-BS!N22) -> 94,095 | P23: =(BS!P22-BS!O22) -> 83,525 | Q23: =(BS!Q22-BS!P22) -> (190,122) | R23: =(BS!R22-BS!Q22) -> 42,665 | S23: =(BS!S22-BS!R22) -> 56,780 | T23: =(BS!T22-BS!S22) -> (91,092) | U23: =(BS!U22-BS!T22) -> 64,937 | V23: =(BS!V22-BS!U22) -> 64,232 | W23: =(BS!W22-BS!V22) -> (127,263) | X23: =(BS!X22-BS!W22) -> 61,896 | Y23: =(BS!Y22-BS!X22) -> 71,633 | Z23: =(BS!Z22-BS!Y22) -> (112,236) | AA23: =(BS!AA22-BS!Z22) -> 121,577 | AB23: =(BS!AB22-BS!AA22) -> 108,022
A24: Cash generated from operations before interest and tax | C24: =SUM(E24:P24) -> 385,587 | D24: =SUM(Q24:AB24) -> (86,329) | E24: =E13+E14+E15+E17+E18+E19+E20+E21+E22+E23 -> 28,516 | F24: =F13+F14+F15+F17+F18+F19+F20+F21+F22+F23 -> (8,152) | G24: =G13+G14+G15+G17+G18+G19+G20+G21+G22+G23 -> 111,593 | H24: =H13+H14+H15+H17+H18+H19+H20+H21+H22+H23 -> (116,996) | I24: =I13+I14+I15+I17+I18+I19+I20+I21+I22+I23 -> 136,087 | J24: =J13+J14+J15+J17+J18+J19+J20+J21+J22+J23 -> 51,301 | K24: =K13+K14+K15+K17+K18+K19+K20+K21+K22+K23 -> (149,970) | L24: =L13+L14+L15+L17+L18+L19+L20+L21+L22+L23 -> 68,746 | M24: =M13+M14+M15+M17+M18+M19+M20+M21+M22+M23 -> (67,600) | N24: =N13+N14+N15+N17+N18+N19+N20+N21+N22+N23 -> (12,846) | O24: =O13+O14+O15+O17+O18+O19+O20+O21+O22+O23 -> 122,449 | P24: =P13+P14+P15+P17+P18+P19+P20+P21+P22+P23 -> 222,459 | Q24: =Q13+Q14+Q15+Q17+Q18+Q19+Q20+Q21+Q22+Q23 -> (112,310) | R24: =R13+R14+R15+R17+R18+R19+R20+R21+R22+R23 -> (5,230) | S24: =S13+S14+S15+S17+S18+S19+S20+S21+S22+S23 -> 73,827 | T24: =T13+T14+T15+T17+T18+T19+T20+T21+T22+T23 -> (92,142) | U24: =U13+U14+U15+U17+U18+U19+U20+U21+U22+U23 -> 83,496 | V24: =V13+V14+V15+V17+V18+V19+V20+V21+V22+V23 -> 58,263 | W24: =W13+W14+W15+W17+W18+W19+W20+W21+W22+W23 -> (234,347) | X24: =X13+X14+X15+X17+X18+X19+X20+X21+X22+X23 -> 9,006 | Y24: =Y13+Y14+Y15+Y17+Y18+Y19+Y20+Y21+Y22+Y23 -> (128,187) | Z24: =Z13+Z14+Z15+Z17+Z18+Z19+Z20+Z21+Z22+Z23 -> (105,374) | AA24: =AA13+AA14+AA15+AA17+AA18+AA19+AA20+AA21+AA22+AA23 -> 149,898 | AB24: =AB13+AB14+AB15+AB17+AB18+AB19+AB20+AB21+AB22+AB23 -> 216,768
A25: Interest paid | B25: Debt | C25: =SUM(E25:P25) -> (26,979) | D25: =SUM(Q25:AB25) -> (20,064) | E25: =-Debt!E12 -> (2,500) | F25: =-Debt!F12 -> (2,455) | G25: =-Debt!G12 -> (2,410) | H25: =-Debt!H12 -> (2,365) | I25: =-Debt!I12 -> (2,319) | J25: =-Debt!J12 -> (2,273) | K25: =-Debt!K12 -> (2,227) | L25: =-Debt!L12 -> (2,180) | M25: =-Debt!M12 -> (2,133) | N25: =-Debt!N12 -> (2,086) | O25: =-Debt!O12 -> (2,039) | P25: =-Debt!P12 -> (1,991) | Q25: =-Debt!Q12 -> (1,943) | R25: =-Debt!R12 -> (1,895) | S25: =-Debt!S12 -> (1,846) | T25: =-Debt!T12 -> (1,797) | U25: =-Debt!U12 -> (1,748) | V25: =-Debt!V12 -> (1,699) | W25: =-Debt!W12 -> (1,649) | X25: =-Debt!X12 -> (1,599) | Y25: =-Debt!Y12 -> (1,548) | Z25: =-Debt!Z12 -> (1,498) | AA25: =-Debt!AA12 -> (1,446) | AB25: =-Debt!AB12 -> (1,395)
A26: Corporate income tax paid | B26: BS | C26: =SUM(E26:P26) -> (18,400) | D26: =SUM(Q26:AB26) -> (14,692) | E26: =BS!E25 -> 0 | F26: =BS!F25 -> 0 | G26: =BS!G25 -> 0 | H26: =BS!H25 -> (18,400) | I26: =BS!I25 -> 0 | J26: =BS!J25 -> 0 | K26: =BS!K25 -> 0 | L26: =BS!L25 -> 0 | M26: =BS!M25 -> 0 | N26: =BS!N25 -> 0 | O26: =BS!O25 -> 0 | P26: =BS!P25 -> 0 | Q26: =BS!Q25 -> 0 | R26: =BS!R25 -> 0 | S26: =BS!S25 -> 0 | T26: =BS!T25 -> (14,692) | U26: =BS!U25 -> 0 | V26: =BS!V25 -> 0 | W26: =BS!W25 -> 0 | X26: =BS!X25 -> 0 | Y26: =BS!Y25 -> 0 | Z26: =BS!Z25 -> 0 | AA26: =BS!AA25 -> 0 | AB26: =BS!AB25 -> 0
A27: NET CASH FROM OPERATING ACTIVITIES | C27: =SUM(E27:P27) -> 340,208 | D27: =SUM(Q27:AB27) -> (121,085) | E27: =E24+E25+E26 -> 26,016 | F27: =F24+F25+F26 -> (10,607) | G27: =G24+G25+G26 -> 109,183 | H27: =H24+H25+H26 -> (137,761) | I27: =I24+I25+I26 -> 133,768 | J27: =J24+J25+J26 -> 49,028 | K27: =K24+K25+K26 -> (152,197) | L27: =L24+L25+L26 -> 66,566 | M27: =M24+M25+M26 -> (69,733) | N27: =N24+N25+N26 -> (14,933) | O27: =O24+O25+O26 -> 120,410 | P27: =P24+P25+P26 -> 220,467 | Q27: =Q24+Q25+Q26 -> (114,253) | R27: =R24+R25+R26 -> (7,125) | S27: =S24+S25+S26 -> 71,981 | T27: =T24+T25+T26 -> (108,632) | U27: =U24+U25+U26 -> 81,748 | V27: =V24+V25+V26 -> 56,565 | W27: =W24+W25+W26 -> (235,995) | X27: =X24+X25+X26 -> 7,408 | Y27: =Y24+Y25+Y26 -> (129,735) | Z27: =Z24+Z25+Z26 -> (106,872) | AA27: =AA24+AA25+AA26 -> 148,452 | AB27: =AB24+AB25+AB26 -> 215,373
A28: INVESTING ACTIVITIES
A29: Capital expenditure | B29: Fixed_Assets | C29: =SUM(E29:P29) -> (19,900) | D29: =SUM(Q29:AB29) -> (48,000) | E29: =-Fixed_Assets!E27 -> (2,400) | F29: =-Fixed_Assets!F27 -> 0 | G29: =-Fixed_Assets!G27 -> (6,800) | H29: =-Fixed_Assets!H27 -> 0 | I29: =-Fixed_Assets!I27 -> (1,200) | J29: =-Fixed_Assets!J27 -> 0 | K29: =-Fixed_Assets!K27 -> (3,500) | L29: =-Fixed_Assets!L27 -> 0 | M29: =-Fixed_Assets!M27 -> (1,500) | N29: =-Fixed_Assets!N27 -> (1,500) | O29: =-Fixed_Assets!O27 -> (1,500) | P29: =-Fixed_Assets!P27 -> (1,500) | Q29: =-Fixed_Assets!Q27 -> (1,500) | R29: =-Fixed_Assets!R27 -> (31,500) | S29: =-Fixed_Assets!S27 -> (1,500) | T29: =-Fixed_Assets!T27 -> (1,500) | U29: =-Fixed_Assets!U27 -> (1,500) | V29: =-Fixed_Assets!V27 -> (1,500) | W29: =-Fixed_Assets!W27 -> (1,500) | X29: =-Fixed_Assets!X27 -> (1,500) | Y29: =-Fixed_Assets!Y27 -> (1,500) | Z29: =-Fixed_Assets!Z27 -> (1,500) | AA29: =-Fixed_Assets!AA27 -> (1,500) | AB29: =-Fixed_Assets!AB27 -> (1,500)
A30: NET CASH FROM INVESTING ACTIVITIES | C30: =SUM(E30:P30) -> (19,900) | D30: =SUM(Q30:AB30) -> (48,000) | E30: =E29 -> (2,400) | F30: =F29 -> 0 | G30: =G29 -> (6,800) | H30: =H29 -> 0 | I30: =I29 -> (1,200) | J30: =J29 -> 0 | K30: =K29 -> (3,500) | L30: =L29 -> 0 | M30: =M29 -> (1,500) | N30: =N29 -> (1,500) | O30: =O29 -> (1,500) | P30: =P29 -> (1,500) | Q30: =Q29 -> (1,500) | R30: =R29 -> (31,500) | S30: =S29 -> (1,500) | T30: =T29 -> (1,500) | U30: =U29 -> (1,500) | V30: =V29 -> (1,500) | W30: =W29 -> (1,500) | X30: =X29 -> (1,500) | Y30: =Y29 -> (1,500) | Z30: =Z29 -> (1,500) | AA30: =AA29 -> (1,500) | AB30: =AB29 -> (1,500)
A31: FINANCING ACTIVITIES
A32: Term loan drawdowns | B32: Debt | C32: =SUM(E32:P32) -> 0 | D32: =SUM(Q32:AB32) -> 0 | E32: =Debt!E11 -> 0 | F32: =Debt!F11 -> 0 | G32: =Debt!G11 -> 0 | H32: =Debt!H11 -> 0 | I32: =Debt!I11 -> 0 | J32: =Debt!J11 -> 0 | K32: =Debt!K11 -> 0 | L32: =Debt!L11 -> 0 | M32: =Debt!M11 -> 0 | N32: =Debt!N11 -> 0 | O32: =Debt!O11 -> 0 | P32: =Debt!P11 -> 0 | Q32: =Debt!Q11 -> 0 | R32: =Debt!R11 -> 0 | S32: =Debt!S11 -> 0 | T32: =Debt!T11 -> 0 | U32: =Debt!U11 -> 0 | V32: =Debt!V11 -> 0 | W32: =Debt!W11 -> 0 | X32: =Debt!X11 -> 0 | Y32: =Debt!Y11 -> 0 | Z32: =Debt!Z11 -> 0 | AA32: =Debt!AA11 -> 0 | AB32: =Debt!AB11 -> 0
A33: Term loan principal repaid | B33: Debt | C33: =SUM(E33:P33) -> (89,080) | D33: =SUM(Q33:AB33) -> (95,995) | E33: =Debt!E13 -> (7,172) | F33: =Debt!F13 -> (7,216) | G33: =Debt!G13 -> (7,261) | H33: =Debt!H13 -> (7,307) | I33: =Debt!I13 -> (7,353) | J33: =Debt!J13 -> (7,398) | K33: =Debt!K13 -> (7,445) | L33: =Debt!L13 -> (7,491) | M33: =Debt!M13 -> (7,538) | N33: =Debt!N13 -> (7,585) | O33: =Debt!O13 -> (7,633) | P33: =Debt!P13 -> (7,680) | Q33: =Debt!Q13 -> (7,728) | R33: =Debt!R13 -> (7,777) | S33: =Debt!S13 -> (7,825) | T33: =Debt!T13 -> (7,874) | U33: =Debt!U13 -> (7,923) | V33: =Debt!V13 -> (7,973) | W33: =Debt!W13 -> (8,023) | X33: =Debt!X13 -> (8,073) | Y33: =Debt!Y13 -> (8,123) | Z33: =Debt!Z13 -> (8,174) | AA33: =Debt!AA13 -> (8,225) | AB33: =Debt!AB13 -> (8,277)
A34: Dividends paid | B34: BS | C34: =SUM(E34:P34) -> 0 | D34: =SUM(Q34:AB34) -> 0 | E34: =-BS!E34 -> 0 | F34: =-BS!F34 -> 0 | G34: =-BS!G34 -> 0 | H34: =-BS!H34 -> 0 | I34: =-BS!I34 -> 0 | J34: =-BS!J34 -> 0 | K34: =-BS!K34 -> 0 | L34: =-BS!L34 -> 0 | M34: =-BS!M34 -> 0 | N34: =-BS!N34 -> 0 | O34: =-BS!O34 -> 0 | P34: =-BS!P34 -> 0 | Q34: =-BS!Q34 -> 0 | R34: =-BS!R34 -> 0 | S34: =-BS!S34 -> 0 | T34: =-BS!T34 -> 0 | U34: =-BS!U34 -> 0 | V34: =-BS!V34 -> 0 | W34: =-BS!W34 -> 0 | X34: =-BS!X34 -> 0 | Y34: =-BS!Y34 -> 0 | Z34: =-BS!Z34 -> 0 | AA34: =-BS!AA34 -> 0 | AB34: =-BS!AB34 -> 0
A35: NET CASH FROM FINANCING ACTIVITIES | C35: =SUM(E35:P35) -> (89,080) | D35: =SUM(Q35:AB35) -> (95,995) | E35: =E32+E33+E34 -> (7,172) | F35: =F32+F33+F34 -> (7,216) | G35: =G32+G33+G34 -> (7,261) | H35: =H32+H33+H34 -> (7,307) | I35: =I32+I33+I34 -> (7,353) | J35: =J32+J33+J34 -> (7,398) | K35: =K32+K33+K34 -> (7,445) | L35: =L32+L33+L34 -> (7,491) | M35: =M32+M33+M34 -> (7,538) | N35: =N32+N33+N34 -> (7,585) | O35: =O32+O33+O34 -> (7,633) | P35: =P32+P33+P34 -> (7,680) | Q35: =Q32+Q33+Q34 -> (7,728) | R35: =R32+R33+R34 -> (7,777) | S35: =S32+S33+S34 -> (7,825) | T35: =T32+T33+T34 -> (7,874) | U35: =U32+U33+U34 -> (7,923) | V35: =V32+V33+V34 -> (7,973) | W35: =W32+W33+W34 -> (8,023) | X35: =X32+X33+X34 -> (8,073) | Y35: =Y32+Y33+Y34 -> (8,123) | Z35: =Z32+Z33+Z34 -> (8,174) | AA35: =AA32+AA33+AA34 -> (8,225) | AB35: =AB32+AB33+AB34 -> (8,277)
A36: CASH
A37: NET CASH FLOW FOR THE MONTH | C37: =SUM(E37:P37) -> 231,228 | D37: =SUM(Q37:AB37) -> (265,080) | E37: =E27+E30+E35 -> 16,444 | F37: =F27+F30+F35 -> (17,824) | G37: =G27+G30+G35 -> 95,121 | H37: =H27+H30+H35 -> (145,068) | I37: =I27+I30+I35 -> 125,215 | J37: =J27+J30+J35 -> 41,629 | K37: =K27+K30+K35 -> (163,141) | L37: =L27+L30+L35 -> 59,074 | M37: =M27+M30+M35 -> (78,771) | N37: =N27+N30+N35 -> (24,018) | O37: =O27+O30+O35 -> 111,278 | P37: =P27+P30+P35 -> 211,287 | Q37: =Q27+Q30+Q35 -> (123,481) | R37: =R27+R30+R35 -> (46,401) | S37: =S27+S30+S35 -> 62,656 | T37: =T27+T30+T35 -> (118,006) | U37: =U27+U30+U35 -> 72,325 | V37: =V27+V30+V35 -> 47,092 | W37: =W27+W30+W35 -> (245,518) | X37: =X27+X30+X35 -> (2,165) | Y37: =Y27+Y30+Y35 -> (139,358) | Z37: =Z27+Z30+Z35 -> (116,546) | AA37: =AA27+AA30+AA35 -> 138,726 | AB37: =AB27+AB30+AB35 -> 205,597
A38: Opening cash | E38: =Inputs_Actuals!$C$112 -> 380,000 | F38: =E39 -> 396,444 | G38: =F39 -> 378,621 | H38: =G39 -> 473,742 | I38: =H39 -> 328,674 | J38: =I39 -> 453,890 | K38: =J39 -> 495,519 | L38: =K39 -> 332,378 | M38: =L39 -> 391,452 | N38: =M39 -> 312,681 | O38: =N39 -> 288,663 | P38: =O39 -> 399,941 | Q38: =P39 -> 611,228 | R38: =Q39 -> 487,747 | S38: =R39 -> 441,346 | T38: =S39 -> 504,002 | U38: =T39 -> 385,996 | V38: =U39 -> 458,320 | W38: =V39 -> 505,412 | X38: =W39 -> 259,894 | Y38: =X39 -> 257,729 | Z38: =Y39 -> 118,371 | AA38: =Z39 -> 1,825 | AB38: =AA39 -> 140,552
A39: CLOSING CASH (to balance sheet) | C39: =P39 -> 611,228 | D39: =AB39 -> 346,148 | E39: =E38+E37 -> 396,444 | F39: =F38+F37 -> 378,621 | G39: =G38+G37 -> 473,742 | H39: =H38+H37 -> 328,674 | I39: =I38+I37 -> 453,890 | J39: =J38+J37 -> 495,519 | K39: =K38+K37 -> 332,378 | L39: =L38+L37 -> 391,452 | M39: =M38+M37 -> 312,681 | N39: =N38+N37 -> 288,663 | O39: =O38+O37 -> 399,941 | P39: =P38+P37 -> 611,228 | Q39: =Q38+Q37 -> 487,747 | R39: =R38+R37 -> 441,346 | S39: =S38+S37 -> 504,002 | T39: =T38+T37 -> 385,996 | U39: =U38+U37 -> 458,320 | V39: =V38+V37 -> 505,412 | W39: =W38+W37 -> 259,894 | X39: =X38+X37 -> 257,729 | Y39: =Y38+Y37 -> 118,371 | Z39: =Z38+Z37 -> 1,825 | AA39: =AA38+AA37 -> 140,552 | AB39: =AB38+AB37 -> 346,148
A40: Free cash flow (operating less capex) | B40: memo | C40: =SUM(E40:P40) -> 320,308 | D40: =SUM(Q40:AB40) -> (169,085) | E40: =E27+E30 -> 23,616 | F40: =F27+F30 -> (10,607) | G40: =G27+G30 -> 102,383 | H40: =H27+H30 -> (137,761) | I40: =I27+I30 -> 132,568 | J40: =J27+J30 -> 49,028 | K40: =K27+K30 -> (155,697) | L40: =L27+L30 -> 66,566 | M40: =M27+M30 -> (71,233) | N40: =N27+N30 -> (16,433) | O40: =O27+O30 -> 118,910 | P40: =P27+P30 -> 218,967 | Q40: =Q27+Q30 -> (115,753) | R40: =R27+R30 -> (38,625) | S40: =S27+S30 -> 70,481 | T40: =T27+T30 -> (110,132) | U40: =U27+U30 -> 80,248 | V40: =V27+V30 -> 55,065 | W40: =W27+W30 -> (237,495) | X40: =X27+X30 -> 5,908 | Y40: =Y27+Y30 -> (131,235) | Z40: =Z27+Z30 -> (108,372) | AA40: =AA27+AA30 -> 146,952 | AB40: =AB27+AB30 -> 213,873
A41: DIRECT METHOD (built from the cash lines of each schedule)
A42: Payouts received from Shopify Payments, Amazon and Walmart | B42: schedule cash line | C42: =SUM(E42:P42) -> 4,108,549 | D42: =SUM(Q42:AB42) -> 5,230,865 | E42: =-Settlements!E46 -> 312,453 | F42: =-Settlements!F46 -> 239,161 | G42: =-Settlements!G46 -> 279,131 | H42: =-Settlements!H46 -> 294,398 | I42: =-Settlements!I46 -> 326,785 | J42: =-Settlements!J46 -> 319,701 | K42: =-Settlements!K46 -> 321,425 | L42: =-Settlements!L46 -> 298,658 | M42: =-Settlements!M46 -> 317,984 | N42: =-Settlements!N46 -> 376,356 | O42: =-Settlements!O46 -> 492,504 | P42: =-Settlements!P46 -> 529,992 | Q42: =-Settlements!Q46 -> 386,757 | R42: =-Settlements!R46 -> 300,687 | S42: =-Settlements!S46 -> 348,468 | T42: =-Settlements!T46 -> 361,516 | U42: =-Settlements!U46 -> 396,610 | V42: =-Settlements!V46 -> 395,798 | W42: =-Settlements!W46 -> 396,929 | X42: =-Settlements!X46 -> 387,498 | Y42: =-Settlements!Y46 -> 418,420 | Z42: =-Settlements!Z46 -> 494,088 | AA42: =-Settlements!AA46 -> 643,931 | AB42: =-Settlements!AB46 -> 700,163
A43: Paid to inventory suppliers (deposits and balances) | B43: schedule cash line | C43: =SUM(E43:P43) -> (1,266,806) | D43: =SUM(Q43:AB43) -> (2,145,863) | E43: =-Inventory!E112 -> (52,700) | F43: =-Inventory!F112 -> (91,200) | G43: =-Inventory!G112 -> (27,000) | H43: =-Inventory!H112 -> (138,800) | I43: =-Inventory!I112 -> (46,200) | J43: =-Inventory!J112 -> (109,000) | K43: =-Inventory!K112 -> (160,400) | L43: =-Inventory!L112 -> (88,200) | M43: =-Inventory!M112 -> (237,911) | N43: =-Inventory!N112 -> (51,511) | O43: =-Inventory!O112 -> (155,565) | P43: =-Inventory!P112 -> (108,319) | Q43: =-Inventory!Q112 -> (64,678) | R43: =-Inventory!R112 -> (116,668) | S43: =-Inventory!S112 -> (109,836) | T43: =-Inventory!T112 -> (127,728) | U43: =-Inventory!U112 -> (128,045) | V43: =-Inventory!V112 -> (153,629) | W43: =-Inventory!W112 -> (257,930) | X43: =-Inventory!X112 -> (191,764) | Y43: =-Inventory!Y112 -> (349,039) | Z43: =-Inventory!Z112 -> (186,346) | AA43: =-Inventory!AA112 -> (230,101) | AB43: =-Inventory!AB112 -> (230,101)
A44: Paid to logistics, media and other opex suppliers | B44: schedule cash line | C44: =SUM(E44:P44) -> (1,383,354) | D44: =SUM(Q44:AB44) -> (1,636,432) | E44: =AP_Schedule!E34 -> (145,951) | F44: =AP_Schedule!F34 -> (111,846) | G44: =AP_Schedule!G34 -> (94,598) | H44: =AP_Schedule!H34 -> (92,282) | I44: =AP_Schedule!I34 -> (96,450) | J44: =AP_Schedule!J34 -> (111,411) | K44: =AP_Schedule!K34 -> (101,453) | L44: =AP_Schedule!L34 -> (93,444) | M44: =AP_Schedule!M34 -> (98,315) | N44: =AP_Schedule!N34 -> (136,268) | O44: =AP_Schedule!O34 -> (158,931) | P44: =AP_Schedule!P34 -> (142,406) | Q44: =AP_Schedule!Q34 -> (134,860) | R44: =AP_Schedule!R34 -> (121,558) | S44: =AP_Schedule!S34 -> (101,823) | T44: =AP_Schedule!T34 -> (111,723) | U44: =AP_Schedule!U34 -> (122,008) | V44: =AP_Schedule!V34 -> (120,849) | W44: =AP_Schedule!W34 -> (121,036) | X44: =AP_Schedule!X34 -> (123,688) | Y44: =AP_Schedule!Y34 -> (134,434) | Z44: =AP_Schedule!Z34 -> (154,332) | AA44: =AP_Schedule!AA34 -> (200,318) | AB44: =AP_Schedule!AB34 -> (189,803)
A45: Net salaries paid | B45: schedule cash line | C45: =SUM(E45:P45) -> (395,080) | D45: =SUM(Q45:AB45) -> (503,588) | E45: =-Opex!E58 -> (29,784) | F45: =-Opex!F58 -> (29,852) | G45: =-Opex!G58 -> (29,988) | H45: =-Opex!H58 -> (32,096) | I45: =-Opex!I58 -> (32,164) | J45: =-Opex!J58 -> (32,368) | K45: =-Opex!K58 -> (32,300) | L45: =-Opex!L58 -> (32,572) | M45: =-Opex!M58 -> (33,184) | N45: =-Opex!N58 -> (35,020) | O45: =-Opex!O58 -> (37,876) | P45: =-Opex!P58 -> (37,876) | Q45: =-Opex!Q58 -> (39,012) | R45: =-Opex!R58 -> (42,234) | S45: =-Opex!S58 -> (42,234) | T45: =-Opex!T58 -> (42,234) | U45: =-Opex!U58 -> (42,234) | V45: =-Opex!V58 -> (42,234) | W45: =-Opex!W58 -> (42,234) | X45: =-Opex!X58 -> (42,234) | Y45: =-Opex!Y58 -> (42,234) | Z45: =-Opex!Z58 -> (42,234) | AA45: =-Opex!AA58 -> (42,234) | AB45: =-Opex!AB58 -> (42,234)
A46: Wage tax and social charges remitted | B46: schedule cash line | C46: =SUM(E46:P46) -> (183,996) | D46: =SUM(Q46:AB46) -> (234,932) | E46: =Opex!E56 -> (15,900) | F46: =Opex!F56 -> (14,016) | G46: =Opex!G56 -> (14,048) | H46: =Opex!H56 -> (14,112) | I46: =Opex!I56 -> (15,104) | J46: =Opex!J56 -> (15,136) | K46: =Opex!K56 -> (15,232) | L46: =Opex!L56 -> (15,200) | M46: =Opex!M56 -> (15,328) | N46: =Opex!N56 -> (15,616) | O46: =Opex!O56 -> (16,480) | P46: =Opex!P56 -> (17,824) | Q46: =Opex!Q56 -> (17,824) | R46: =Opex!R56 -> (18,359) | S46: =Opex!S56 -> (19,875) | T46: =Opex!T56 -> (19,875) | U46: =Opex!U56 -> (19,875) | V46: =Opex!V56 -> (19,875) | W46: =Opex!W56 -> (19,875) | X46: =Opex!X56 -> (19,875) | Y46: =Opex!Y56 -> (19,875) | Z46: =Opex!Z56 -> (19,875) | AA46: =Opex!AA56 -> (19,875) | AB46: =Opex!AB56 -> (19,875)
A47: VAT paid | B47: schedule cash line | C47: =SUM(E47:P47) -> (483,001) | D47: =SUM(Q47:AB47) -> (777,874) | E47: =VAT!E21 -> (38,700) | F47: =VAT!F21 -> 0 | G47: =VAT!G21 -> 0 | H47: =VAT!H21 -> (133,641) | I47: =VAT!I21 -> 0 | J47: =VAT!J21 -> 0 | K47: =VAT!K21 -> (160,801) | L47: =VAT!L21 -> 0 | M47: =VAT!M21 -> 0 | N47: =VAT!N21 -> (149,858) | O47: =VAT!O21 -> 0 | P47: =VAT!P21 -> 0 | Q47: =VAT!Q21 -> (241,871) | R47: =VAT!R21 -> 0 | S47: =VAT!S21 -> 0 | T47: =VAT!T21 -> (151,194) | U47: =VAT!U21 -> 0 | V47: =VAT!V21 -> 0 | W47: =VAT!W21 -> (189,272) | X47: =VAT!X21 -> 0 | Y47: =VAT!Y21 -> 0 | Z47: =VAT!Z21 -> (195,537) | AA47: =VAT!AA21 -> 0 | AB47: =VAT!AB21 -> 0
A48: Corporate income tax paid | B48: schedule cash line | C48: =SUM(E48:P48) -> (18,400) | D48: =SUM(Q48:AB48) -> (14,692) | E48: =BS!E25 -> 0 | F48: =BS!F25 -> 0 | G48: =BS!G25 -> 0 | H48: =BS!H25 -> (18,400) | I48: =BS!I25 -> 0 | J48: =BS!J25 -> 0 | K48: =BS!K25 -> 0 | L48: =BS!L25 -> 0 | M48: =BS!M25 -> 0 | N48: =BS!N25 -> 0 | O48: =BS!O25 -> 0 | P48: =BS!P25 -> 0 | Q48: =BS!Q25 -> 0 | R48: =BS!R25 -> 0 | S48: =BS!S25 -> 0 | T48: =BS!T25 -> (14,692) | U48: =BS!U25 -> 0 | V48: =BS!V25 -> 0 | W48: =BS!W25 -> 0 | X48: =BS!X25 -> 0 | Y48: =BS!Y25 -> 0 | Z48: =BS!Z25 -> 0 | AA48: =BS!AA25 -> 0 | AB48: =BS!AB25 -> 0
A49: Interest paid | B49: schedule cash line | C49: =SUM(E49:P49) -> (26,979) | D49: =SUM(Q49:AB49) -> (20,064) | E49: =-Debt!E12 -> (2,500) | F49: =-Debt!F12 -> (2,455) | G49: =-Debt!G12 -> (2,410) | H49: =-Debt!H12 -> (2,365) | I49: =-Debt!I12 -> (2,319) | J49: =-Debt!J12 -> (2,273) | K49: =-Debt!K12 -> (2,227) | L49: =-Debt!L12 -> (2,180) | M49: =-Debt!M12 -> (2,133) | N49: =-Debt!N12 -> (2,086) | O49: =-Debt!O12 -> (2,039) | P49: =-Debt!P12 -> (1,991) | Q49: =-Debt!Q12 -> (1,943) | R49: =-Debt!R12 -> (1,895) | S49: =-Debt!S12 -> (1,846) | T49: =-Debt!T12 -> (1,797) | U49: =-Debt!U12 -> (1,748) | V49: =-Debt!V12 -> (1,699) | W49: =-Debt!W12 -> (1,649) | X49: =-Debt!X12 -> (1,599) | Y49: =-Debt!Y12 -> (1,548) | Z49: =-Debt!Z12 -> (1,498) | AA49: =-Debt!AA12 -> (1,446) | AB49: =-Debt!AB12 -> (1,395)
A50: Bank charges and FX costs paid in the month | B50: schedule cash line | C50: =SUM(E50:P50) -> (6,546) | D50: =SUM(Q50:AB50) -> (8,426) | E50: =-Opex!E49 -> (398) | F50: =-Opex!F49 -> (399) | G50: =-Opex!G49 -> (476) | H50: =-Opex!H49 -> (463) | I50: =-Opex!I49 -> (528) | J50: =-Opex!J49 -> (485) | K50: =-Opex!K49 -> (474) | L50: =-Opex!L49 -> (496) | M50: =-Opex!M49 -> (530) | N50: =-Opex!N49 -> (615) | O50: =-Opex!O49 -> (888) | P50: =-Opex!P49 -> (794) | Q50: =-Opex!Q49 -> (507) | R50: =-Opex!R49 -> (483) | S50: =-Opex!S49 -> (557) | T50: =-Opex!T49 -> (590) | U50: =-Opex!U49 -> (637) | V50: =-Opex!V49 -> (633) | W50: =-Opex!W49 -> (614) | X50: =-Opex!X49 -> (616) | Y50: =-Opex!Y49 -> (710) | Z50: =-Opex!Z49 -> (823) | AA50: =-Opex!AA49 -> (1,191) | AB50: =-Opex!AB49 -> (1,066)
A51: Capex paid, VAT-inclusive | B51: schedule cash line | C51: =SUM(E51:P51) -> (24,079) | D51: =SUM(Q51:AB51) -> (58,080) | E51: =-Fixed_Assets!E27*(1+Assumptions!$C$19*Assumptions!$C$25) -> (2,904) | F51: =-Fixed_Assets!F27*(1+Assumptions!$C$19*Assumptions!$C$25) -> 0 | G51: =-Fixed_Assets!G27*(1+Assumptions!$C$19*Assumptions!$C$25) -> (8,228) | H51: =-Fixed_Assets!H27*(1+Assumptions!$C$19*Assumptions!$C$25) -> 0 | I51: =-Fixed_Assets!I27*(1+Assumptions!$C$19*Assumptions!$C$25) -> (1,452) | J51: =-Fixed_Assets!J27*(1+Assumptions!$C$19*Assumptions!$C$25) -> 0 | K51: =-Fixed_Assets!K27*(1+Assumptions!$C$19*Assumptions!$C$25) -> (4,235) | L51: =-Fixed_Assets!L27*(1+Assumptions!$C$19*Assumptions!$C$25) -> 0 | M51: =-Fixed_Assets!M27*(1+Assumptions!$C$19*Assumptions!$C$25) -> (1,815) | N51: =-Fixed_Assets!N27*(1+Assumptions!$C$19*Assumptions!$C$25) -> (1,815) | O51: =-Fixed_Assets!O27*(1+Assumptions!$C$19*Assumptions!$C$25) -> (1,815) | P51: =-Fixed_Assets!P27*(1+Assumptions!$C$19*Assumptions!$C$25) -> (1,815) | Q51: =-Fixed_Assets!Q27*(1+Assumptions!$C$19*Assumptions!$C$25) -> (1,815) | R51: =-Fixed_Assets!R27*(1+Assumptions!$C$19*Assumptions!$C$25) -> (38,115) | S51: =-Fixed_Assets!S27*(1+Assumptions!$C$19*Assumptions!$C$25) -> (1,815) | T51: =-Fixed_Assets!T27*(1+Assumptions!$C$19*Assumptions!$C$25) -> (1,815) | U51: =-Fixed_Assets!U27*(1+Assumptions!$C$19*Assumptions!$C$25) -> (1,815) | V51: =-Fixed_Assets!V27*(1+Assumptions!$C$19*Assumptions!$C$25) -> (1,815) | W51: =-Fixed_Assets!W27*(1+Assumptions!$C$19*Assumptions!$C$25) -> (1,815) | X51: =-Fixed_Assets!X27*(1+Assumptions!$C$19*Assumptions!$C$25) -> (1,815) | Y51: =-Fixed_Assets!Y27*(1+Assumptions!$C$19*Assumptions!$C$25) -> (1,815) | Z51: =-Fixed_Assets!Z27*(1+Assumptions!$C$19*Assumptions!$C$25) -> (1,815) | AA51: =-Fixed_Assets!AA27*(1+Assumptions!$C$19*Assumptions!$C$25) -> (1,815) | AB51: =-Fixed_Assets!AB27*(1+Assumptions!$C$19*Assumptions!$C$25) -> (1,815)
A52: Term loan principal repaid net of drawdowns | B52: schedule cash line | C52: =SUM(E52:P52) -> (89,080) | D52: =SUM(Q52:AB52) -> (95,995) | E52: =Debt!E13+Debt!E11 -> (7,172) | F52: =Debt!F13+Debt!F11 -> (7,216) | G52: =Debt!G13+Debt!G11 -> (7,261) | H52: =Debt!H13+Debt!H11 -> (7,307) | I52: =Debt!I13+Debt!I11 -> (7,353) | J52: =Debt!J13+Debt!J11 -> (7,398) | K52: =Debt!K13+Debt!K11 -> (7,445) | L52: =Debt!L13+Debt!L11 -> (7,491) | M52: =Debt!M13+Debt!M11 -> (7,538) | N52: =Debt!N13+Debt!N11 -> (7,585) | O52: =Debt!O13+Debt!O11 -> (7,633) | P52: =Debt!P13+Debt!P11 -> (7,680) | Q52: =Debt!Q13+Debt!Q11 -> (7,728) | R52: =Debt!R13+Debt!R11 -> (7,777) | S52: =Debt!S13+Debt!S11 -> (7,825) | T52: =Debt!T13+Debt!T11 -> (7,874) | U52: =Debt!U13+Debt!U11 -> (7,923) | V52: =Debt!V13+Debt!V11 -> (7,973) | W52: =Debt!W13+Debt!W11 -> (8,023) | X52: =Debt!X13+Debt!X11 -> (8,073) | Y52: =Debt!Y13+Debt!Y11 -> (8,123) | Z52: =Debt!Z13+Debt!Z11 -> (8,174) | AA52: =Debt!AA13+Debt!AA11 -> (8,225) | AB52: =Debt!AB13+Debt!AB11 -> (8,277)
A53: Dividends paid | B53: schedule cash line | C53: =SUM(E53:P53) -> 0 | D53: =SUM(Q53:AB53) -> 0 | E53: =-BS!E34 -> 0 | F53: =-BS!F34 -> 0 | G53: =-BS!G34 -> 0 | H53: =-BS!H34 -> 0 | I53: =-BS!I34 -> 0 | J53: =-BS!J34 -> 0 | K53: =-BS!K34 -> 0 | L53: =-BS!L34 -> 0 | M53: =-BS!M34 -> 0 | N53: =-BS!N34 -> 0 | O53: =-BS!O34 -> 0 | P53: =-BS!P34 -> 0 | Q53: =-BS!Q34 -> 0 | R53: =-BS!R34 -> 0 | S53: =-BS!S34 -> 0 | T53: =-BS!T34 -> 0 | U53: =-BS!U34 -> 0 | V53: =-BS!V34 -> 0 | W53: =-BS!W34 -> 0 | X53: =-BS!X34 -> 0 | Y53: =-BS!Y34 -> 0 | Z53: =-BS!Z34 -> 0 | AA53: =-BS!AA34 -> 0 | AB53: =-BS!AB34 -> 0
A54: NET CASH FLOW, DIRECT METHOD | C54: =SUM(E54:P54) -> 231,228 | D54: =SUM(Q54:AB54) -> (265,080) | E54: =E42+E43+E44+E45+E46+E47+E48+E49+E50+E51+E52+E53 -> 16,444 | F54: =F42+F43+F44+F45+F46+F47+F48+F49+F50+F51+F52+F53 -> (17,824) | G54: =G42+G43+G44+G45+G46+G47+G48+G49+G50+G51+G52+G53 -> 95,121 | H54: =H42+H43+H44+H45+H46+H47+H48+H49+H50+H51+H52+H53 -> (145,068) | I54: =I42+I43+I44+I45+I46+I47+I48+I49+I50+I51+I52+I53 -> 125,215 | J54: =J42+J43+J44+J45+J46+J47+J48+J49+J50+J51+J52+J53 -> 41,629 | K54: =K42+K43+K44+K45+K46+K47+K48+K49+K50+K51+K52+K53 -> (163,141) | L54: =L42+L43+L44+L45+L46+L47+L48+L49+L50+L51+L52+L53 -> 59,074 | M54: =M42+M43+M44+M45+M46+M47+M48+M49+M50+M51+M52+M53 -> (78,771) | N54: =N42+N43+N44+N45+N46+N47+N48+N49+N50+N51+N52+N53 -> (24,018) | O54: =O42+O43+O44+O45+O46+O47+O48+O49+O50+O51+O52+O53 -> 111,278 | P54: =P42+P43+P44+P45+P46+P47+P48+P49+P50+P51+P52+P53 -> 211,287 | Q54: =Q42+Q43+Q44+Q45+Q46+Q47+Q48+Q49+Q50+Q51+Q52+Q53 -> (123,481) | R54: =R42+R43+R44+R45+R46+R47+R48+R49+R50+R51+R52+R53 -> (46,401) | S54: =S42+S43+S44+S45+S46+S47+S48+S49+S50+S51+S52+S53 -> 62,656 | T54: =T42+T43+T44+T45+T46+T47+T48+T49+T50+T51+T52+T53 -> (118,006) | U54: =U42+U43+U44+U45+U46+U47+U48+U49+U50+U51+U52+U53 -> 72,325 | V54: =V42+V43+V44+V45+V46+V47+V48+V49+V50+V51+V52+V53 -> 47,092 | W54: =W42+W43+W44+W45+W46+W47+W48+W49+W50+W51+W52+W53 -> (245,518) | X54: =X42+X43+X44+X45+X46+X47+X48+X49+X50+X51+X52+X53 -> (2,165) | Y54: =Y42+Y43+Y44+Y45+Y46+Y47+Y48+Y49+Y50+Y51+Y52+Y53 -> (139,358) | Z54: =Z42+Z43+Z44+Z45+Z46+Z47+Z48+Z49+Z50+Z51+Z52+Z53 -> (116,546) | AA54: =AA42+AA43+AA44+AA45+AA46+AA47+AA48+AA49+AA50+AA51+AA52+AA53 -> 138,726 | AB54: =AB42+AB43+AB44+AB45+AB46+AB47+AB48+AB49+AB50+AB51+AB52+AB53 -> 205,597
A55: CHECK: indirect less direct (must be zero) | C55: =SUM(E55:P55) -> 0 | D55: =SUM(Q55:AB55) -> 0 | E55: =ROUND(E37-E54,2) -> 0 | F55: =ROUND(F37-F54,2) -> 0 | G55: =ROUND(G37-G54,2) -> 0 | H55: =ROUND(H37-H54,2) -> 0 | I55: =ROUND(I37-I54,2) -> 0 | J55: =ROUND(J37-J54,2) -> 0 | K55: =ROUND(K37-K54,2) -> 0 | L55: =ROUND(L37-L54,2) -> 0 | M55: =ROUND(M37-M54,2) -> 0 | N55: =ROUND(N37-N54,2) -> 0 | O55: =ROUND(O37-O54,2) -> 0 | P55: =ROUND(P37-P54,2) -> 0 | Q55: =ROUND(Q37-Q54,2) -> 0 | R55: =ROUND(R37-R54,2) -> 0 | S55: =ROUND(S37-S54,2) -> 0 | T55: =ROUND(T37-T54,2) -> 0 | U55: =ROUND(U37-U54,2) -> 0 | V55: =ROUND(V37-V54,2) -> 0 | W55: =ROUND(W37-W54,2) -> 0 | X55: =ROUND(X37-X54,2) -> 0 | Y55: =ROUND(Y37-Y54,2) -> 0 | Z55: =ROUND(Z37-Z54,2) -> 0 | AA55: =ROUND(AA37-AA54,2) -> 0 | AB55: =ROUND(AB37-AB54,2) -> 0

Sheet BvA
A1: =Assumptions!$C$6 -> Alderway Home B.V. (fictional demonstration company)
A2: BUDGET VS ACTUAL: YEAR TO DATE AND FULL-YEAR OUTLOOK (EUR)
A3: YTD = actual months per the Timeline. Outlook = actual months plus the selected scenario forecast for the rest of FY2026. Variance = actual or outlook less budget; favourable is positive for revenue and profit lines.
A5: Line | B5: YTD actual | C5: YTD budget | D5: Variance | E5: Variance % | F5: FY26 outlook | G5: FY26 budget | H5: Variance | I5: Variance % | J5: Commentary
A6: VOLUMES
A7: Shopify EU (DTC): orders | B7: =SUMIFS(Channel_PL!$E$11:$AB$11,Assumptions!$E$63:$AB$63,"A") -> 15,614 | C7: =SUMIFS(Budget_FY26!$E$9:$P$9,Assumptions!$E$62:$P$62,"<="&Assumptions!$C$10) -> 16,560 | D7: =B7-C7 -> (946) | E7: =IF(C7=0,0,D7/ABS(C7)) -> (5.7%) | F7: =Channel_PL!$C$11 -> 27,020 | G7: =Budget_FY26!$C$9 -> 28,221 | H7: =F7-G7 -> (1,201) | I7: =IF(G7=0,0,H7/ABS(G7)) -> (4.3%)
A8: Amazon EU (FBA): orders | B8: =SUMIFS(Channel_PL!$E$49:$AB$49,Assumptions!$E$63:$AB$63,"A") -> 18,746 | C8: =SUMIFS(Budget_FY26!$E$10:$P$10,Assumptions!$E$62:$P$62,"<="&Assumptions!$C$10) -> 19,440 | D8: =B8-C8 -> (694) | E8: =IF(C8=0,0,D8/ABS(C8)) -> (3.6%) | F8: =Channel_PL!$C$49 -> 32,694 | G8: =Budget_FY26!$C$10 -> 33,129 | H8: =F8-G8 -> (435) | I8: =IF(G8=0,0,H8/ABS(G8)) -> (1.3%)
A9: Walmart US (WFS): orders | B9: =SUMIFS(Channel_PL!$E$83:$AB$83,Assumptions!$E$63:$AB$63,"A") -> 3,488 | C9: =SUMIFS(Budget_FY26!$E$11:$P$11,Assumptions!$E$62:$P$62,"<="&Assumptions!$C$10) -> 5,220 | D9: =B9-C9 -> (1,732) | E9: =IF(C9=0,0,D9/ABS(C9)) -> (33.2%) | F9: =Channel_PL!$C$83 -> 7,406 | G9: =Budget_FY26!$C$11 -> 10,770 | H9: =F9-G9 -> (3,364) | I9: =IF(G9=0,0,H9/ABS(G9)) -> (31.2%) | J9: ="Walmart ramp "&TEXT(ABS(E9),"0%")&" behind the budgeted launch curve; go or no-go review at 900 orders a month." -> Walmart ramp 33% behind the budgeted launch curve; go or no-go review at 900 orders a month.
A10: PROFIT AND LOSS
A11: Shopify EU (DTC): net revenue | B11: =SUMIFS(PL!$E$9:$AB$9,Assumptions!$E$63:$AB$63,"A") -> 1,149,062 | C11: =SUMIFS(Budget_FY26!$E$21:$P$21,Assumptions!$E$62:$P$62,"<="&Assumptions!$C$10) -> 1,225,440 | D11: =B11-C11 -> (76,378) | E11: =IF(C11=0,0,D11/ABS(C11)) -> (6.2%) | F11: =PL!$C$9 -> 2,001,236 | G11: =Budget_FY26!$C$21 -> 2,088,354 | H11: =F11-G11 -> (87,118) | I11: =IF(G11=0,0,H11/ABS(G11)) -> (4.2%)
A12: Amazon EU (FBA): net revenue | B12: =SUMIFS(PL!$E$10:$AB$10,Assumptions!$E$63:$AB$63,"A") -> 1,043,911 | C12: =SUMIFS(Budget_FY26!$E$22:$P$22,Assumptions!$E$62:$P$62,"<="&Assumptions!$C$10) -> 1,108,080 | D12: =B12-C12 -> (64,169) | E12: =IF(C12=0,0,D12/ABS(C12)) -> (5.8%) | F12: =PL!$C$10 -> 1,821,897 | G12: =Budget_FY26!$C$22 -> 1,888,353 | H12: =F12-G12 -> (66,456) | I12: =IF(G12=0,0,H12/ABS(G12)) -> (3.5%)
A13: Walmart US (WFS): net revenue | B13: =SUMIFS(PL!$E$11:$AB$11,Assumptions!$E$63:$AB$63,"A") -> 232,757 | C13: =SUMIFS(Budget_FY26!$E$23:$P$23,Assumptions!$E$62:$P$62,"<="&Assumptions!$C$10) -> 287,100 | D13: =B13-C13 -> (54,343) | E13: =IF(C13=0,0,D13/ABS(C13)) -> (18.9%) | F13: =PL!$C$11 -> 487,444 | G13: =Budget_FY26!$C$23 -> 592,350 | H13: =F13-G13 -> (104,906) | I13: =IF(G13=0,0,H13/ABS(G13)) -> (17.7%)
A14: NET REVENUE | B14: =SUMIFS(PL!$E$14:$AB$14,Assumptions!$E$63:$AB$63,"A") -> 2,432,918 | C14: =SUMIFS(Budget_FY26!$E$24:$P$24,Assumptions!$E$62:$P$62,"<="&Assumptions!$C$10) -> 2,620,620 | D14: =B14-C14 -> (187,702) | E14: =IF(C14=0,0,D14/ABS(C14)) -> (7.2%) | F14: =PL!$C$14 -> 4,310,521 | G14: =Budget_FY26!$C$24 -> 4,569,057 | H14: =F14-G14 -> (258,536) | I14: =IF(G14=0,0,H14/ABS(G14)) -> (5.7%) | J14: Channel volume and price/mix, plus the separately shown refund provision adjustment (bridge below).
A15: Cost of goods sold (incl. inventory adjustments) | B15: =SUMIFS(PL!$E$17:$AB$17,Assumptions!$E$63:$AB$63,"A")+SUMIFS(PL!$E$18:$AB$18,Assumptions!$E$63:$AB$63,"A") -> (893,981) | C15: =SUMIFS(Budget_FY26!$E$29:$P$29,Assumptions!$E$62:$P$62,"<="&Assumptions!$C$10) -> (982,733) | D15: =B15-C15 -> 88,751 | E15: =IF(C15=0,0,D15/ABS(C15)) -> 9.0% | F15: =PL!$C$17+PL!$C$18 -> (1,598,706) | G15: =Budget_FY26!$C$29 -> (1,713,396) | H15: =F15-G15 -> 114,691 | I15: =IF(G15=0,0,H15/ABS(G15)) -> 6.7%
A16: GROSS PROFIT | B16: =SUMIFS(PL!$E$19:$AB$19,Assumptions!$E$63:$AB$63,"A") -> 1,538,937 | C16: =SUMIFS(Budget_FY26!$E$30:$P$30,Assumptions!$E$62:$P$62,"<="&Assumptions!$C$10) -> 1,637,888 | D16: =B16-C16 -> (98,951) | E16: =IF(C16=0,0,D16/ABS(C16)) -> (6.0%) | F16: =PL!$C$19 -> 2,711,815 | G16: =Budget_FY26!$C$30 -> 2,855,661 | H16: =F16-G16 -> (143,845) | I16: =IF(G16=0,0,H16/ABS(G16)) -> (5.0%)
A17: Gross margin % | B17: =IF(B14=0,0,B16/B14) -> 63.3% | C17: =IF(C14=0,0,C16/C14) -> 62.5% | D17: =B17-C17 -> 0.8% | F17: =IF(F14=0,0,F16/F14) -> 62.9% | G17: =IF(G14=0,0,G16/G14) -> 62.5% | H17: =F17-G17 -> 0.4% | J17: ="Product margin "&TEXT(ABS(D17)*100,"0.0")&" points "&IF(D17>=0,"better","worse")&" than budget: landed cost inflation below plan, recovery of returned stock included." -> Product margin 0.8 points better than budget: landed cost inflation below plan, recovery of returned stock included.
A18: Variable channel costs | B18: =SUMIFS(PL!$E$24:$AB$24,Assumptions!$E$63:$AB$63,"A") -> (549,700) | C18: =SUMIFS(Budget_FY26!$E$34:$P$34,Assumptions!$E$62:$P$62,"<="&Assumptions!$C$10) -> (523,228) | D18: =B18-C18 -> (26,472) | E18: =IF(C18=0,0,D18/ABS(C18)) -> (5.1%) | F18: =PL!$C$24 -> (993,286) | G18: =Budget_FY26!$C$34 -> (918,469) | H18: =F18-G18 -> (74,818) | I18: =IF(G18=0,0,H18/ABS(G18)) -> (8.1%) | J18: ="Amazon fee changes and peak storage multiplier; "&TEXT(ABS(E18),"0.0%")&" over budget on "&TEXT(E14,"0.0%")&" revenue." -> Amazon fee changes and peak storage multiplier; 5.1% over budget on -7.2% revenue.
A19: CONTRIBUTION BEFORE MARKETING (CM1) | B19: =SUMIFS(PL!$E$25:$AB$25,Assumptions!$E$63:$AB$63,"A") -> 989,237 | C19: =SUMIFS(Budget_FY26!$E$35:$P$35,Assumptions!$E$62:$P$62,"<="&Assumptions!$C$10) -> 1,114,660 | D19: =B19-C19 -> (125,423) | E19: =IF(C19=0,0,D19/ABS(C19)) -> (11.3%) | F19: =PL!$C$25 -> 1,718,529 | G19: =Budget_FY26!$C$35 -> 1,937,192 | H19: =F19-G19 -> (218,663) | I19: =IF(G19=0,0,H19/ABS(G19)) -> (11.3%)
A20: Paid media | B20: =SUMIFS(PL!$E$31:$AB$31,Assumptions!$E$63:$AB$63,"A") -> (341,980) | C20: =SUMIFS(Budget_FY26!$E$42:$P$42,Assumptions!$E$62:$P$62,"<="&Assumptions!$C$10) -> (334,093) | D20: =B20-C20 -> (7,888) | E20: =IF(C20=0,0,D20/ABS(C20)) -> (2.4%) | F20: =PL!$C$31 -> (608,365) | G20: =Budget_FY26!$C$42 -> (580,689) | H20: =F20-G20 -> (27,676) | I20: =IF(G20=0,0,H20/ABS(G20)) -> (4.8%) | J20: ="Spend near budget, efficiency not: Shopify CAC EUR "&TEXT(INDEX(Channel_PL!$E$44:$AB$44,1,1),"0")&" in Jan vs EUR "&TEXT(INDEX(Channel_PL!$E$44:$AB$44,1,Assumptions!$C$10),"0")&" at the last actual month." -> Spend near budget, efficiency not: Shopify CAC EUR 21 in Jan vs EUR 26 at the last actual month.
A21: CONTRIBUTION AFTER MARKETING (CM2) | B21: =SUMIFS(PL!$E$32:$AB$32,Assumptions!$E$63:$AB$63,"A") -> 647,256 | C21: =SUMIFS(Budget_FY26!$E$43:$P$43,Assumptions!$E$62:$P$62,"<="&Assumptions!$C$10) -> 780,567 | D21: =B21-C21 -> (133,311) | E21: =IF(C21=0,0,D21/ABS(C21)) -> (17.1%) | F21: =PL!$C$32 -> 1,110,164 | G21: =Budget_FY26!$C$43 -> 1,356,503 | H21: =F21-G21 -> (246,339) | I21: =IF(G21=0,0,H21/ABS(G21)) -> (18.2%)
A22: CM2 % | B22: =IF(B14=0,0,B21/B14) -> 26.6% | C22: =IF(C14=0,0,C21/C14) -> 29.8% | D22: =B22-C22 -> (3.2%) | F22: =IF(F14=0,0,F21/F14) -> 25.8% | G22: =IF(G14=0,0,G21/G14) -> 29.7% | H22: =F22-G22 -> (3.9%) | J22: ="Gap of "&TEXT(ABS(D22)*100,"0.0")&" points on full-year revenue is worth EUR "&TEXT(ABS(D22)*F14/1000,"#,##0")&"k." -> Gap of 3.2 points on full-year revenue is worth EUR 137k.
A23: Salaries and wages (incl. employer costs) | B23: =SUMIFS(PL!$E$35:$AB$35,Assumptions!$E$63:$AB$63,"A") -> (369,300) | C23: =SUMIFS(Budget_FY26!$E$45:$P$45,Assumptions!$E$62:$P$62,"<="&Assumptions!$C$10) -> (369,500) | D23: =B23-C23 -> 200 | E23: =IF(C23=0,0,D23/ABS(C23)) -> 0.1% | F23: =PL!$C$35 -> (581,000) | G23: =Budget_FY26!$C$45 -> (570,300) | H23: =F23-G23 -> (10,700) | I23: =IF(G23=0,0,H23/ABS(G23)) -> (1.9%)
A24: Contractors and freelancers | B24: =SUMIFS(PL!$E$36:$AB$36,Assumptions!$E$63:$AB$63,"A") -> (39,579) | C24: =SUMIFS(Budget_FY26!$E$46:$P$46,Assumptions!$E$62:$P$62,"<="&Assumptions!$C$10) -> (36,000) | D24: =B24-C24 -> (3,579) | E24: =IF(C24=0,0,D24/ABS(C24)) -> (9.9%) | F24: =PL!$C$36 -> (58,779) | G24: =Budget_FY26!$C$46 -> (54,000) | H24: =F24-G24 -> (4,779) | I24: =IF(G24=0,0,H24/ABS(G24)) -> (8.9%)
A25: Rent and facilities | B25: =SUMIFS(PL!$E$37:$AB$37,Assumptions!$E$63:$AB$63,"A") -> (38,400) | C25: =SUMIFS(Budget_FY26!$E$47:$P$47,Assumptions!$E$62:$P$62,"<="&Assumptions!$C$10) -> (38,400) | D25: =B25-C25 -> 0 | E25: =IF(C25=0,0,D25/ABS(C25)) -> 0 | F25: =PL!$C$37 -> (57,600) | G25: =Budget_FY26!$C$47 -> (57,600) | H25: =F25-G25 -> 0 | I25: =IF(G25=0,0,H25/ABS(G25)) -> 0
A26: Software, apps and platform subscriptions | B26: =SUMIFS(PL!$E$38:$AB$38,Assumptions!$E$63:$AB$63,"A") -> (34,004) | C26: =SUMIFS(Budget_FY26!$E$48:$P$48,Assumptions!$E$62:$P$62,"<="&Assumptions!$C$10) -> (32,000) | D26: =B26-C26 -> (2,004) | E26: =IF(C26=0,0,D26/ABS(C26)) -> (6.3%) | F26: =PL!$C$38 -> (51,204) | G26: =Budget_FY26!$C$48 -> (48,000) | H26: =F26-G26 -> (3,204) | I26: =IF(G26=0,0,H26/ABS(G26)) -> (6.7%)
A27: Professional fees (finance, legal, audit) | B27: =SUMIFS(PL!$E$39:$AB$39,Assumptions!$E$63:$AB$63,"A") -> (25,670) | C27: =SUMIFS(Budget_FY26!$E$49:$P$49,Assumptions!$E$62:$P$62,"<="&Assumptions!$C$10) -> (24,000) | D27: =B27-C27 -> (1,670) | E27: =IF(C27=0,0,D27/ABS(C27)) -> (7.0%) | F27: =PL!$C$39 -> (38,470) | G27: =Budget_FY26!$C$49 -> (36,000) | H27: =F27-G27 -> (2,470) | I27: =IF(G27=0,0,H27/ABS(G27)) -> (6.9%)
A28: Insurance | B28: =SUMIFS(PL!$E$40:$AB$40,Assumptions!$E$63:$AB$63,"A") -> (9,200) | C28: =SUMIFS(Budget_FY26!$E$50:$P$50,Assumptions!$E$62:$P$62,"<="&Assumptions!$C$10) -> (9,200) | D28: =B28-C28 -> 0 | E28: =IF(C28=0,0,D28/ABS(C28)) -> 0 | F28: =PL!$C$40 -> (13,800) | G28: =Budget_FY26!$C$50 -> (13,800) | H28: =F28-G28 -> 0 | I28: =IF(G28=0,0,H28/ABS(G28)) -> 0
A29: Travel and entertainment | B29: =SUMIFS(PL!$E$41:$AB$41,Assumptions!$E$63:$AB$63,"A") -> (10,408) | C29: =SUMIFS(Budget_FY26!$E$51:$P$51,Assumptions!$E$62:$P$62,"<="&Assumptions!$C$10) -> (9,600) | D29: =B29-C29 -> (808) | E29: =IF(C29=0,0,D29/ABS(C29)) -> (8.4%) | F29: =PL!$C$41 -> (16,008) | G29: =Budget_FY26!$C$51 -> (14,400) | H29: =F29-G29 -> (1,608) | I29: =IF(G29=0,0,H29/ABS(G29)) -> (11.2%)
A30: Content, creative and PR (non-media) | B30: =SUMIFS(PL!$E$42:$AB$42,Assumptions!$E$63:$AB$63,"A") -> (47,685) | C30: =SUMIFS(Budget_FY26!$E$52:$P$52,Assumptions!$E$62:$P$62,"<="&Assumptions!$C$10) -> (40,000) | D30: =B30-C30 -> (7,685) | E30: =IF(C30=0,0,D30/ABS(C30)) -> (19.2%) | F30: =PL!$C$42 -> (69,685) | G30: =Budget_FY26!$C$52 -> (60,000) | H30: =F30-G30 -> (9,685) | I30: =IF(G30=0,0,H30/ABS(G30)) -> (16.1%) | J30: ="Discretionary overrun of EUR "&TEXT(ABS(D30)/1000,"#,##0.0")&"k; no approval owner until the September action." -> Discretionary overrun of EUR 7.7k; no approval owner until the September action.
A31: Customer service (per order) | B31: =SUMIFS(PL!$E$43:$AB$43,Assumptions!$E$63:$AB$63,"A") -> (27,006) | C31: =SUMIFS(Budget_FY26!$E$53:$P$53,Assumptions!$E$62:$P$62,"<="&Assumptions!$C$10) -> (26,793) | D31: =B31-C31 -> (213) | E31: =IF(C31=0,0,D31/ABS(C31)) -> (0.8%) | F31: =PL!$C$43 -> (47,496) | G31: =Budget_FY26!$C$53 -> (46,878) | H31: =F31-G31 -> (618) | I31: =IF(G31=0,0,H31/ABS(G31)) -> (1.3%)
A32: Office and other G&A | B32: =SUMIFS(PL!$E$44:$AB$44,Assumptions!$E$63:$AB$63,"A") -> (14,120) | C32: =SUMIFS(Budget_FY26!$E$54:$P$54,Assumptions!$E$62:$P$62,"<="&Assumptions!$C$10) -> (12,800) | D32: =B32-C32 -> (1,320) | E32: =IF(C32=0,0,D32/ABS(C32)) -> (10.3%) | F32: =PL!$C$44 -> (21,320) | G32: =Budget_FY26!$C$54 -> (19,200) | H32: =F32-G32 -> (2,120) | I32: =IF(G32=0,0,H32/ABS(G32)) -> (11.0%)
A33: Bank charges and FX costs | B33: =SUMIFS(PL!$E$45:$AB$45,Assumptions!$E$63:$AB$63,"A") -> (3,719) | C33: =SUMIFS(Budget_FY26!$E$55:$P$55,Assumptions!$E$62:$P$62,"<="&Assumptions!$C$10) -> (3,931) | D33: =B33-C33 -> 212 | E33: =IF(C33=0,0,D33/ABS(C33)) -> 5.4% | F33: =PL!$C$45 -> (6,546) | G33: =Budget_FY26!$C$55 -> (6,854) | H33: =F33-G33 -> 307 | I33: =IF(G33=0,0,H33/ABS(G33)) -> 4.5%
A34: Recruitment and training | B34: =SUMIFS(PL!$E$46:$AB$46,Assumptions!$E$63:$AB$63,"A") -> (8,270) | C34: =SUMIFS(Budget_FY26!$E$56:$P$56,Assumptions!$E$62:$P$62,"<="&Assumptions!$C$10) -> (5,600) | D34: =B34-C34 -> (2,670) | E34: =IF(C34=0,0,D34/ABS(C34)) -> (47.7%) | F34: =PL!$C$46 -> (11,870) | G34: =Budget_FY26!$C$56 -> (8,400) | H34: =F34-G34 -> (3,470) | I34: =IF(G34=0,0,H34/ABS(G34)) -> (41.3%) | J34: ="Two unbudgeted searches; EUR "&TEXT(ABS(D34)/1000,"#,##0.0")&"k over." -> Two unbudgeted searches; EUR 2.7k over.
A35: TOTAL OPERATING EXPENSES | B35: =SUMIFS(PL!$E$47:$AB$47,Assumptions!$E$63:$AB$63,"A") -> (627,361) | C35: =SUMIFS(Budget_FY26!$E$57:$P$57,Assumptions!$E$62:$P$62,"<="&Assumptions!$C$10) -> (607,824) | D35: =B35-C35 -> (19,537) | E35: =IF(C35=0,0,D35/ABS(C35)) -> (3.2%) | F35: =PL!$C$47 -> (973,779) | G35: =Budget_FY26!$C$57 -> (935,432) | H35: =F35-G35 -> (38,347) | I35: =IF(G35=0,0,H35/ABS(G35)) -> (4.1%)
A36: EBITDA | B36: =SUMIFS(PL!$E$48:$AB$48,Assumptions!$E$63:$AB$63,"A") -> 19,895 | C36: =SUMIFS(Budget_FY26!$E$58:$P$58,Assumptions!$E$62:$P$62,"<="&Assumptions!$C$10) -> 172,743 | D36: =B36-C36 -> (152,848) | E36: =IF(C36=0,0,D36/ABS(C36)) -> (88.5%) | F36: =PL!$C$48 -> 136,386 | G36: =Budget_FY26!$C$58 -> 421,072 | H36: =F36-G36 -> (284,686) | I36: =IF(G36=0,0,H36/ABS(G36)) -> (67.6%) | J36: ="EUR "&TEXT(ABS(D36)/1000,"#,##0")&"k "&IF(D36<0,"behind","ahead of")&" budget YTD; EUR "&TEXT(ABS(H36)/1000,"#,##0")&"k on the full year." -> EUR 153k behind budget YTD; EUR 285k on the full year.
A37: EBITDA % | B37: =IF(B14=0,0,B36/B14) -> 0.8% | C37: =IF(C14=0,0,C36/C14) -> 6.6% | D37: =B37-C37 -> (5.8%) | F37: =IF(F14=0,0,F36/F14) -> 3.2% | G37: =IF(G14=0,0,G36/G14) -> 9.2% | H37: =F37-G37 -> (6.1%)
A38: NET PROFIT | B38: =SUMIFS(PL!$E$58:$AB$58,Assumptions!$E$63:$AB$63,"A") -> (19,817) | C38: =SUMIFS(Budget_FY26!$E$63:$P$63,Assumptions!$E$62:$P$62,"<="&Assumptions!$C$10) -> 109,952 | D38: =B38-C38 -> (129,769) | E38: =IF(C38=0,0,D38/ABS(C38)) -> (118.0%) | F38: =PL!$C$58 -> 62,634 | G38: =Budget_FY26!$C$63 -> 297,085 | H38: =F38-G38 -> (234,450) | I38: =IF(G38=0,0,H38/ABS(G38)) -> (78.9%)
A39: BALANCES AT THE LAST ACTUAL MONTH (YTD columns) AND AT DEC-26 (FY columns)
A40: Cash at bank | B40: =INDEX(BS!$E$9:$AB$9,1,Assumptions!$C$10) -> 391,452 | C40: =INDEX(Budget_FY26!$E$65:$P$65,1,Assumptions!$C$10) -> 438,000 | D40: =B40-C40 -> (46,548) | E40: =IF(C40=0,0,D40/ABS(C40)) -> (10.6%) | F40: =BS!$C$9 -> 611,228 | G40: =Budget_FY26!$C$65 -> 548,000 | H40: =F40-G40 -> 63,228 | I40: =IF(G40=0,0,H40/ABS(G40)) -> 11.5% | J40: ="December cash includes EUR "&TEXT(BS!C22/1000,"#,##0")&"k of Q4 VAT paid in January." -> December cash includes EUR 242k of Q4 VAT paid in January.
A41: Inventory on hand, net | B41: =INDEX(BS!$E$11:$AB$11,1,Assumptions!$C$10)+INDEX(BS!$E$12:$AB$12,1,Assumptions!$C$10) -> 383,199 | C41: =INDEX(Budget_FY26!$E$66:$P$66,1,Assumptions!$C$10) -> 520,000 | D41: =B41-C41 -> (136,801) | E41: =IF(C41=0,0,D41/ABS(C41)) -> (26.3%) | F41: =BS!$C$11+BS!$C$12 -> 435,690 | G41: =Budget_FY26!$C$66 -> 505,000 | H41: =F41-G41 -> (69,310) | I41: =IF(G41=0,0,H41/ABS(G41)) -> (13.7%) | J41: ="Below budget because stock was run down after Q2, not because of better buying; Tableware and Storage remain overstocked." -> Below budget because stock was run down after Q2, not because of better buying; Tableware and Storage remain overstocked.
A42: Marketplace and payment receivables | B42: =INDEX(BS!$E$10:$AB$10,1,Assumptions!$C$10) -> 105,117 | C42: =INDEX(Budget_FY26!$E$67:$P$67,1,Assumptions!$C$10) -> 114,000 | D42: =B42-C42 -> (8,883) | E42: =IF(C42=0,0,D42/ABS(C42)) -> (7.8%) | F42: =BS!$C$10 -> 182,243 | G42: =Budget_FY26!$C$67 -> 178,000 | H42: =F42-G42 -> 4,243 | I42: =IF(G42=0,0,H42/ABS(G42)) -> 2.4%
A44: YTD NET REVENUE BRIDGE BY CHANNEL: VOLUME (UNITS) AND PRICE / MIX EFFECTS
A45: Channel | B45: Actual units YTD | C45: Budget units YTD | D45: Actual net revenue per unit | E45: Budget net revenue per unit | F45: Volume effect | G45: Price and mix effect | H45: Total variance | I45: Check vs P&L variance
A46: Shopify EU (DTC) | B46: =SUMIFS(Channel_PL!$E$10:$AB$10,Assumptions!$E$63:$AB$63,"A") -> 20,921 | C46: =SUMIFS(Budget_FY26!$E$15:$P$15,Assumptions!$E$62:$P$62,"<="&Assumptions!$C$10) -> 22,356 | D46: =IF(B46=0,0,B11/B46) -> 54.92 | E46: =IF(C46=0,0,C11/C46) -> 54.81 | F46: =(B46-C46)*E46 -> (78,659) | G46: =B46*(D46-E46) -> 2,281 | H46: =F46+G46 -> (76,378) | I46: =ROUND(H46-D11,0) -> 0
A47: Amazon EU (FBA) | B47: =SUMIFS(Channel_PL!$E$48:$AB$48,Assumptions!$E$63:$AB$63,"A") -> 21,560 | C47: =SUMIFS(Budget_FY26!$E$16:$P$16,Assumptions!$E$62:$P$62,"<="&Assumptions!$C$10) -> 22,356 | D47: =IF(B47=0,0,B12/B47) -> 48.42 | E47: =IF(C47=0,0,C12/C47) -> 49.57 | F47: =(B47-C47)*E47 -> (39,454) | G47: =B47*(D47-E47) -> (24,715) | H47: =F47+G47 -> (64,169) | I47: =ROUND(H47-D12,0) -> 0
A48: Walmart US (WFS) | B48: =SUMIFS(Channel_PL!$E$82:$AB$82,Assumptions!$E$63:$AB$63,"A") -> 4,213 | C48: =SUMIFS(Budget_FY26!$E$17:$P$17,Assumptions!$E$62:$P$62,"<="&Assumptions!$C$10) -> 6,264 | D48: =IF(B48=0,0,B13/B48) -> 55.25 | E48: =IF(C48=0,0,C13/C48) -> 45.83 | F48: =(B48-C48)*E48 -> (94,004) | G48: =B48*(D48-E48) -> 39,661 | H48: =F48+G48 -> (54,343) | I48: =ROUND(H48-D13,0) -> 0
A49: CHANNEL REVENUE VARIANCE | B49: =SUM(B46:B48) -> 46,694 | C49: =SUM(C46:C48) -> 50,976 | F49: =SUM(F46:F48) -> (212,117) | G49: =SUM(G46:G48) -> 17,228 | H49: =SUM(H46:H48) -> (194,890) | I49: =SUM(I46:I48) -> 0
A50: Refund provision adjustment vs budget | H50: =SUMIFS(PL!$E$13:$AB$13,Assumptions!$E$63:$AB$63,"A") -> 7,187.69
A51: FINANCIAL NET REVENUE VARIANCE | H51: =H49+H50 -> (187,701.99) | I51: =ROUND(H51-D14,2) -> 0.00
A53: Volume and price/mix explain channel revenue. The separate refund provision adjustment completes the bridge to financial net revenue.

Sheet Scenarios
A1: =Assumptions!$C$6 -> Alderway Home B.V. (fictional demonstration company)
A2: SCENARIO COMPARISON: BASE, DOWNSIDE (WORST) AND UPSIDE (BEST)
A3: Columns C to E hold snapshot values written by running the full model under each scenario (run date in B5). Column F is live for the scenario selected on Assumptions and must equal its snapshot column (check in G). Drivers below are live links to Assumptions.
A5: Snapshot run date | B5: 13-Sep-2026
A6: Selected scenario (live) | B6: =Assumptions!$C$12 -> Base
A8: Metric | B8: Unit | C8: Base | D8: Downside | E8: Upside | F8: Live (selected) | G8: Check: live less snapshot
A9: FY2026 net revenue (outlook) | B9: EUR | C9: 4,310,521 | D9: 4,158,848 | E9: 4,398,801 | F9: =PL!$C$14 -> 4,310,521 | G9: =ROUND(F9-INDEX(C9:E9,1,Assumptions!$C$11),0) -> 0
A10: FY2027 net revenue | B10: EUR | C10: 5,610,599 | D10: 4,477,777 | E10: 6,375,944 | F10: =PL!$D$14 -> 5,610,599 | G10: =ROUND(F10-INDEX(C10:E10,1,Assumptions!$C$11),0) -> 0
A11: FY2026 gross margin % | B11: % | C11: 62.9% | D11: 62.1% | E11: 63.4% | F11: =PL!$C$20 -> 62.9% | G11: =ROUND(F11-INDEX(C11:E11,1,Assumptions!$C$11),0) -> 0
A12: FY2026 CM2 | B12: EUR | C12: 1,110,164 | D12: 954,766 | E12: 1,197,256 | F12: =PL!$C$32 -> 1,110,164 | G12: =ROUND(F12-INDEX(C12:E12,1,Assumptions!$C$11),0) -> 0
A13: FY2026 CM2 % | B13: % | C13: 25.8% | D13: 23.0% | E13: 27.2% | F13: =PL!$C$33 -> 25.8% | G13: =ROUND(F13-INDEX(C13:E13,1,Assumptions!$C$11),0) -> 0
A14: FY2026 operating expenses | B14: EUR | C14: (973,779) | D14: (951,630) | E14: (976,478) | F14: =PL!$C$47 -> (973,779) | G14: =ROUND(F14-INDEX(C14:E14,1,Assumptions!$C$11),0) -> 0
A15: FY2026 EBITDA | B15: EUR | C15: 136,386 | D15: 3,136 | E15: 220,777 | F15: =PL!$C$48 -> 136,386 | G15: =ROUND(F15-INDEX(C15:E15,1,Assumptions!$C$11),0) -> 0
A16: FY2026 EBITDA % | B16: % | C16: 3.2% | D16: 0.1% | E16: 5.0% | F16: =PL!$C$49 -> 3.2% | G16: =ROUND(F16-INDEX(C16:E16,1,Assumptions!$C$11),0) -> 0
A17: FY2026 net profit | B17: EUR | C17: 62,634 | D17: (55,924) | E17: 130,992 | F17: =PL!$C$58 -> 62,634 | G17: =ROUND(F17-INDEX(C17:E17,1,Assumptions!$C$11),0) -> 0
A18: FY2027 EBITDA | B18: EUR | C18: 238,866 | D18: (262,565) | E18: 676,761 | F18: =PL!$D$48 -> 238,866 | G18: =ROUND(F18-INDEX(C18:E18,1,Assumptions!$C$11),0) -> 0
A19: FY2027 net profit | B19: EUR | C19: 140,896 | D19: (327,486) | E19: 467,585 | F19: =PL!$D$58 -> 140,896 | G19: =ROUND(F19-INDEX(C19:E19,1,Assumptions!$C$11),0) -> 0
A20: Cash at 31-Dec-26 | B20: EUR | C20: 611,228 | D20: 486,357 | E20: 664,522 | F20: =BS!$C$9 -> 611,228 | G20: =ROUND(F20-INDEX(C20:E20,1,Assumptions!$C$11),0) -> 0
A21: Cash at 31-Dec-27 | B21: EUR | C21: 346,148 | D21: (86,197) | E21: 674,795 | F21: =BS!$D$9 -> 346,148 | G21: =ROUND(F21-INDEX(C21:E21,1,Assumptions!$C$11),0) -> 0
A22: Lowest month-end cash, Sep-26 to Dec-27 | B22: EUR | C22: 1,825 | D22: (214,907) | E22: 171,993 | F22: =MIN(BS!M9:AB9) -> 1,825 | G22: =ROUND(F22-INDEX(C22:E22,1,Assumptions!$C$11),0) -> 0
A23: Month of the lowest cash | B23: month | C23: 2027-10-31 | D23: 2027-10-31 | E23: 2027-10-31 | F23: =INDEX(Assumptions!M$61:AB$61,1,MATCH(F22,BS!M9:AB9,0)) -> 2027-10-31 | G23: =IF(F23=INDEX(C23:E23,1,Assumptions!$C$11),0,1) -> 0
A24: Peak funding need vs the minimum cash buffer (negative = shortfall) | B24: EUR | C24: (148,175) | D24: (364,907) | E24: 21,993 | F24: =F22-Assumptions!$C$13 -> (148,175) | G24: =ROUND(F24-INDEX(C24:E24,1,Assumptions!$C$11),0) -> 0
A25: Inventory on hand, net, at 31-Dec-26 | B25: EUR | C25: 435,690 | D25: 396,016 | E25: 457,799 | F25: =BS!$C$11+BS!$C$12 -> 435,690 | G25: =ROUND(F25-INDEX(C25:E25,1,Assumptions!$C$11),0) -> 0
A26: Marketplace receivables at 31-Dec-26 | B26: EUR | C26: 182,243 | D26: 198,926 | E26: 196,935 | F26: =BS!$C$10 -> 182,243 | G26: =ROUND(F26-INDEX(C26:E26,1,Assumptions!$C$11),0) -> 0
A27: Net working capital at 31-Dec-26 | B27: EUR | C27: 483,699 | D27: 475,320 | E27: 514,797 | F27: =BS!$C$40 -> 483,699 | G27: =ROUND(F27-INDEX(C27:E27,1,Assumptions!$C$11),0) -> 0
A28: VAT payable at 31-Dec-26 | B28: EUR | C28: 241,871 | D28: 221,479 | E28: 252,884 | F28: =BS!$C$22 -> 241,871 | G28: =ROUND(F28-INDEX(C28:E28,1,Assumptions!$C$11),0) -> 0
A29: FY2027 CM2 % | B29: % | C29: 24.8% | D29: 16.3% | E29: 28.9% | F29: =PL!$D$33 -> 24.8% | G29: =ROUND(F29-INDEX(C29:E29,1,Assumptions!$C$11),0) -> 0
A30: FY2027 EBITDA % | B30: % | C30: 4.3% | D30: (5.9%) | E30: 10.6% | F30: =PL!$D$49 -> 4.3% | G30: =ROUND(F30-INDEX(C30:E30,1,Assumptions!$C$11),0) -> 0
A31: Total of check column (must be zero) | G31: =SUM(G9:G30) -> 0
A33: KEY DRIVERS BY SCENARIO (live links to Assumptions)
A34: =Assumptions!A78 -> Shopify unit volume growth vs deseasonalised run-rate (annualised) | B34: =Assumptions!B78 -> 0 | C34: =Assumptions!C78 -> 22.0% | D34: =Assumptions!D78 -> 5.0% | E34: =Assumptions!E78 -> 32.0% | F34: =Assumptions!F78 -> 22.0%
A35: =Assumptions!A79 -> Amazon unit volume growth vs run-rate (annualised) | B35: =Assumptions!B79 -> 0 | C35: =Assumptions!C79 -> 28.0% | D35: =Assumptions!D79 -> 10.0% | E35: =Assumptions!E79 -> 38.0% | F35: =Assumptions!F79 -> 28.0%
A36: =Assumptions!A80 -> Walmart unit volume growth vs run-rate (annualised) | B36: =Assumptions!B80 -> 0 | C36: =Assumptions!C80 -> 70.0% | D36: =Assumptions!D80 -> 25.0% | E36: =Assumptions!E80 -> 110.0% | F36: =Assumptions!F80 -> 70.0%
A37: =Assumptions!A81 -> Shopify gross unit price change (annualised) | B37: =Assumptions!B81 -> 0 | C37: =Assumptions!C81 -> 3.0% | D37: =Assumptions!D81 -> 0 | E37: =Assumptions!E81 -> 4.0% | F37: =Assumptions!F81 -> 3.0%
A38: =Assumptions!A84 -> Shopify discounts as share of gross sales | B38: =Assumptions!B84 -> 0 | C38: =Assumptions!C84 -> 8.5% | D38: =Assumptions!D84 -> 10.0% | E38: =Assumptions!E84 -> 7.5% | F38: =Assumptions!F84 -> 8.5%
A39: =Assumptions!A87 -> Shopify refunds and returns as share of gross sales | B39: =Assumptions!B87 -> 0 | C39: =Assumptions!C87 -> 6.5% | D39: =Assumptions!D87 -> 8.0% | E39: =Assumptions!E87 -> 5.5% | F39: =Assumptions!F87 -> 6.5%
A40: =Assumptions!A88 -> Amazon refunds and returns as share of gross sales | B40: =Assumptions!B88 -> 0 | C40: =Assumptions!C88 -> 7.5% | D40: =Assumptions!D88 -> 9.0% | E40: =Assumptions!E88 -> 7.0% | F40: =Assumptions!F88 -> 7.5%
A41: =Assumptions!A94 -> Landed unit cost inflation (annualised) | B41: =Assumptions!B94 -> 0 | C41: =Assumptions!C94 -> 3.0% | D41: =Assumptions!D94 -> 7.0% | E41: =Assumptions!E94 -> 1.0% | F41: =Assumptions!F94 -> 3.0%
A42: =Assumptions!A95 -> Returned units resellable and recovered to stock | B42: =Assumptions!B95 -> 0 | C42: =Assumptions!C95 -> 65.0% | D42: =Assumptions!D95 -> 55.0% | E42: =Assumptions!E95 -> 70.0% | F42: =Assumptions!F95 -> 65.0%
A43: =Assumptions!A98 -> FBA fulfilment fee per unit | B43: =Assumptions!B98 -> EUR | C43: =Assumptions!C98 -> 5.40 | D43: =Assumptions!D98 -> 5.65 | E43: =Assumptions!E98 -> 5.35 | F43: =Assumptions!F98 -> 5.40
A44: =Assumptions!A107 -> Carrier cost per Shopify order | B44: =Assumptions!B107 -> EUR | C44: =Assumptions!C107 -> 6.35 | D44: =Assumptions!D107 -> 6.80 | E44: =Assumptions!E107 -> 6.20 | F44: =Assumptions!F107 -> 6.35
A45: =Assumptions!A109 -> Shopify paid media (Meta, Google) as share of net revenue | B45: =Assumptions!B109 -> 0 | C45: =Assumptions!C109 -> 19.0% | D45: =Assumptions!D109 -> 23.0% | E45: =Assumptions!E109 -> 17.0% | F45: =Assumptions!F109 -> 19.0%
A46: =Assumptions!A110 -> Amazon advertising as share of net revenue | B46: =Assumptions!B110 -> 0 | C46: =Assumptions!C110 -> 9.5% | D46: =Assumptions!D110 -> 11.5% | E46: =Assumptions!E110 -> 8.5% | F46: =Assumptions!F110 -> 9.5%
A47: =Assumptions!A111 -> Walmart Connect advertising as share of net revenue | B47: =Assumptions!B111 -> 0 | C47: =Assumptions!C111 -> 12.0% | D47: =Assumptions!D111 -> 15.0% | E47: =Assumptions!E111 -> 10.0% | F47: =Assumptions!F111 -> 12.0%
A48: =Assumptions!A114 -> Amazon settlement cycle plus reserve | B48: =Assumptions!B114 -> days | C48: =Assumptions!C114 -> 21 | D48: =Assumptions!D114 -> 28 | E48: =Assumptions!E114 -> 21 | F48: =Assumptions!F114 -> 21
A49: =Assumptions!A116 -> Inventory purchasing policy: target forward days of cover | B49: =Assumptions!B116 -> days | C49: =Assumptions!C116 -> 75 | D49: =Assumptions!D116 -> 65 | E49: =Assumptions!E116 -> 80 | F49: =Assumptions!F116 -> 75
A50: =Assumptions!A117 -> Discretionary opex factor (contractors, travel, content, recruitment) | B50: =Assumptions!B117 -> x | C50: =Assumptions!C117 -> 1.00 | D50: =Assumptions!D117 -> 0.90 | E50: =Assumptions!E117 -> 1.05 | F50: =Assumptions!F117 -> 1.00
A51: =Assumptions!A118 -> Planned hires proceed (1 = yes, 0 = frozen) | B51: =Assumptions!B118 -> flag | C51: =Assumptions!C118 -> 1 | D51: =Assumptions!D118 -> 0 | E51: =Assumptions!E118 -> 1 | F51: =Assumptions!F118 -> 1
A52: =Assumptions!A119 -> USD per EUR, forecast months | B52: =Assumptions!B119 -> rate | C52: =Assumptions!C119 -> 1.1000 | D52: =Assumptions!D119 -> 1.1600 | E52: =Assumptions!E119 -> 1.0600 | F52: =Assumptions!F119 -> 1.1000
A54: How to refresh the snapshots: set Assumptions!C11 to 1, 2 and 3 in turn, let the model recalculate, and paste the live column F as values into C, D and E. The check column proves the snapshot for the selected scenario is current.

Sheet Cash_13W
A1: =Assumptions!$C$6 -> Alderway Home B.V. (fictional demonstration company)
A2: 13-WEEK CASH FORECAST, DIRECT METHOD (EUR)
A3: Weeks ending Friday 18-Sep-26 to Friday 11-Dec-26. Opening cash = Aug-26 ledger cash plus actual movements 1 to 11 Sep (column C, per bank). Each line phases its monthly model amount (columns D to G) into weeks with the timing rule in column B; the closing cash at 11-Dec plus the remaining December flows reconciles to the monthly balance sheet.
A5: Line | B5: Timing rule | C5: Actual 1-11 Sep | D5: Sep-26 monthly model | E5: Oct-26 monthly model | F5: Nov-26 monthly model | G5: Dec-26 monthly model | H5: W1 | I5: W2 | J5: W3 | K5: W4 | L5: W5 | M5: W6 | N5: W7 | O5: W8 | P5: W9 | Q5: W10 | R5: W11 | S5: W12 | T5: W13 | U5: Total 13 weeks | W5: Share of December inside the window | X5: December flows after 11-Dec
A6: Week ending (Friday) | H6: 2026-09-18 | I6: =H6+7 -> 2026-09-25 | J6: =I6+7 -> 2026-10-02 | K6: =J6+7 -> 2026-10-09 | L6: =K6+7 -> 2026-10-16 | M6: =L6+7 -> 2026-10-23 | N6: =M6+7 -> 2026-10-30 | O6: =N6+7 -> 2026-11-06 | P6: =O6+7 -> 2026-11-13 | Q6: =P6+7 -> 2026-11-20 | R6: =Q6+7 -> 2026-11-27 | S6: =R6+7 -> 2026-12-04 | T6: =S6+7 -> 2026-12-11
A7: Week starting (Saturday) | B7: opening as at | C7: 2026-09-11 | H7: =H6-6 -> 2026-09-12 | I7: =I6-6 -> 2026-09-19 | J7: =J6-6 -> 2026-09-26 | K7: =K6-6 -> 2026-10-03 | L7: =L6-6 -> 2026-10-10 | M7: =M6-6 -> 2026-10-17 | N7: =N6-6 -> 2026-10-24 | O7: =O6-6 -> 2026-10-31 | P7: =P6-6 -> 2026-11-07 | Q7: =Q6-6 -> 2026-11-14 | R7: =R6-6 -> 2026-11-21 | S7: =S6-6 -> 2026-11-28 | T7: =T6-6 -> 2026-12-05
A8: Month of week end | H8: =EOMONTH(H6,0) -> 2026-09-30 | I8: =EOMONTH(I6,0) -> 2026-09-30 | J8: =EOMONTH(J6,0) -> 2026-10-31 | K8: =EOMONTH(K6,0) -> 2026-10-31 | L8: =EOMONTH(L6,0) -> 2026-10-31 | M8: =EOMONTH(M6,0) -> 2026-10-31 | N8: =EOMONTH(N6,0) -> 2026-10-31 | O8: =EOMONTH(O6,0) -> 2026-11-30 | P8: =EOMONTH(P6,0) -> 2026-11-30 | Q8: =EOMONTH(Q6,0) -> 2026-11-30 | R8: =EOMONTH(R6,0) -> 2026-11-30 | S8: =EOMONTH(S6,0) -> 2026-12-31 | T8: =EOMONTH(T6,0) -> 2026-12-31
A10: PHASING WEIGHTS BY RULE AND MONTH (helper rows)
A11: days: share of Sep-26 (days of the week in the month / denominator) | H11: =MAX(0,MIN(H$6,Assumptions!M$61)-MAX(H$7,DATE(2026,9,1),$C$7+1)+1)/(Assumptions!M$61-$C$7) -> 0.368 | I11: =MAX(0,MIN(I$6,Assumptions!M$61)-MAX(I$7,DATE(2026,9,1),$C$7+1)+1)/(Assumptions!M$61-$C$7) -> 0.368 | J11: =MAX(0,MIN(J$6,Assumptions!M$61)-MAX(J$7,DATE(2026,9,1),$C$7+1)+1)/(Assumptions!M$61-$C$7) -> 0.263 | K11: =MAX(0,MIN(K$6,Assumptions!M$61)-MAX(K$7,DATE(2026,9,1),$C$7+1)+1)/(Assumptions!M$61-$C$7) -> 0.000 | L11: =MAX(0,MIN(L$6,Assumptions!M$61)-MAX(L$7,DATE(2026,9,1),$C$7+1)+1)/(Assumptions!M$61-$C$7) -> 0.000 | M11: =MAX(0,MIN(M$6,Assumptions!M$61)-MAX(M$7,DATE(2026,9,1),$C$7+1)+1)/(Assumptions!M$61-$C$7) -> 0.000 | N11: =MAX(0,MIN(N$6,Assumptions!M$61)-MAX(N$7,DATE(2026,9,1),$C$7+1)+1)/(Assumptions!M$61-$C$7) -> 0.000 | O11: =MAX(0,MIN(O$6,Assumptions!M$61)-MAX(O$7,DATE(2026,9,1),$C$7+1)+1)/(Assumptions!M$61-$C$7) -> 0.000 | P11: =MAX(0,MIN(P$6,Assumptions!M$61)-MAX(P$7,DATE(2026,9,1),$C$7+1)+1)/(Assumptions!M$61-$C$7) -> 0.000 | Q11: =MAX(0,MIN(Q$6,Assumptions!M$61)-MAX(Q$7,DATE(2026,9,1),$C$7+1)+1)/(Assumptions!M$61-$C$7) -> 0.000 | R11: =MAX(0,MIN(R$6,Assumptions!M$61)-MAX(R$7,DATE(2026,9,1),$C$7+1)+1)/(Assumptions!M$61-$C$7) -> 0.000 | S11: =MAX(0,MIN(S$6,Assumptions!M$61)-MAX(S$7,DATE(2026,9,1),$C$7+1)+1)/(Assumptions!M$61-$C$7) -> 0.000 | T11: =MAX(0,MIN(T$6,Assumptions!M$61)-MAX(T$7,DATE(2026,9,1),$C$7+1)+1)/(Assumptions!M$61-$C$7) -> 0.000 | U11: =SUM(H11:T11) -> 1.000
A12: days: share of Oct-26 (days of the week in the month / denominator) | H12: =MAX(0,MIN(H$6,Assumptions!N$61)-MAX(H$7,DATE(2026,10,1),$C$7+1)+1)/DAY(Assumptions!N$61) -> 0.000 | I12: =MAX(0,MIN(I$6,Assumptions!N$61)-MAX(I$7,DATE(2026,10,1),$C$7+1)+1)/DAY(Assumptions!N$61) -> 0.000 | J12: =MAX(0,MIN(J$6,Assumptions!N$61)-MAX(J$7,DATE(2026,10,1),$C$7+1)+1)/DAY(Assumptions!N$61) -> 0.065 | K12: =MAX(0,MIN(K$6,Assumptions!N$61)-MAX(K$7,DATE(2026,10,1),$C$7+1)+1)/DAY(Assumptions!N$61) -> 0.226 | L12: =MAX(0,MIN(L$6,Assumptions!N$61)-MAX(L$7,DATE(2026,10,1),$C$7+1)+1)/DAY(Assumptions!N$61) -> 0.226 | M12: =MAX(0,MIN(M$6,Assumptions!N$61)-MAX(M$7,DATE(2026,10,1),$C$7+1)+1)/DAY(Assumptions!N$61) -> 0.226 | N12: =MAX(0,MIN(N$6,Assumptions!N$61)-MAX(N$7,DATE(2026,10,1),$C$7+1)+1)/DAY(Assumptions!N$61) -> 0.226 | O12: =MAX(0,MIN(O$6,Assumptions!N$61)-MAX(O$7,DATE(2026,10,1),$C$7+1)+1)/DAY(Assumptions!N$61) -> 0.032 | P12: =MAX(0,MIN(P$6,Assumptions!N$61)-MAX(P$7,DATE(2026,10,1),$C$7+1)+1)/DAY(Assumptions!N$61) -> 0.000 | Q12: =MAX(0,MIN(Q$6,Assumptions!N$61)-MAX(Q$7,DATE(2026,10,1),$C$7+1)+1)/DAY(Assumptions!N$61) -> 0.000 | R12: =MAX(0,MIN(R$6,Assumptions!N$61)-MAX(R$7,DATE(2026,10,1),$C$7+1)+1)/DAY(Assumptions!N$61) -> 0.000 | S12: =MAX(0,MIN(S$6,Assumptions!N$61)-MAX(S$7,DATE(2026,10,1),$C$7+1)+1)/DAY(Assumptions!N$61) -> 0.000 | T12: =MAX(0,MIN(T$6,Assumptions!N$61)-MAX(T$7,DATE(2026,10,1),$C$7+1)+1)/DAY(Assumptions!N$61) -> 0.000 | U12: =SUM(H12:T12) -> 1.000
A13: days: share of Nov-26 (days of the week in the month / denominator) | H13: =MAX(0,MIN(H$6,Assumptions!O$61)-MAX(H$7,DATE(2026,11,1),$C$7+1)+1)/DAY(Assumptions!O$61) -> 0.000 | I13: =MAX(0,MIN(I$6,Assumptions!O$61)-MAX(I$7,DATE(2026,11,1),$C$7+1)+1)/DAY(Assumptions!O$61) -> 0.000 | J13: =MAX(0,MIN(J$6,Assumptions!O$61)-MAX(J$7,DATE(2026,11,1),$C$7+1)+1)/DAY(Assumptions!O$61) -> 0.000 | K13: =MAX(0,MIN(K$6,Assumptions!O$61)-MAX(K$7,DATE(2026,11,1),$C$7+1)+1)/DAY(Assumptions!O$61) -> 0.000 | L13: =MAX(0,MIN(L$6,Assumptions!O$61)-MAX(L$7,DATE(2026,11,1),$C$7+1)+1)/DAY(Assumptions!O$61) -> 0.000 | M13: =MAX(0,MIN(M$6,Assumptions!O$61)-MAX(M$7,DATE(2026,11,1),$C$7+1)+1)/DAY(Assumptions!O$61) -> 0.000 | N13: =MAX(0,MIN(N$6,Assumptions!O$61)-MAX(N$7,DATE(2026,11,1),$C$7+1)+1)/DAY(Assumptions!O$61) -> 0.000 | O13: =MAX(0,MIN(O$6,Assumptions!O$61)-MAX(O$7,DATE(2026,11,1),$C$7+1)+1)/DAY(Assumptions!O$61) -> 0.200 | P13: =MAX(0,MIN(P$6,Assumptions!O$61)-MAX(P$7,DATE(2026,11,1),$C$7+1)+1)/DAY(Assumptions!O$61) -> 0.233 | Q13: =MAX(0,MIN(Q$6,Assumptions!O$61)-MAX(Q$7,DATE(2026,11,1),$C$7+1)+1)/DAY(Assumptions!O$61) -> 0.233 | R13: =MAX(0,MIN(R$6,Assumptions!O$61)-MAX(R$7,DATE(2026,11,1),$C$7+1)+1)/DAY(Assumptions!O$61) -> 0.233 | S13: =MAX(0,MIN(S$6,Assumptions!O$61)-MAX(S$7,DATE(2026,11,1),$C$7+1)+1)/DAY(Assumptions!O$61) -> 0.100 | T13: =MAX(0,MIN(T$6,Assumptions!O$61)-MAX(T$7,DATE(2026,11,1),$C$7+1)+1)/DAY(Assumptions!O$61) -> 0.000 | U13: =SUM(H13:T13) -> 1.000
A14: days: share of Dec-26 (days of the week in the month / denominator) | H14: =MAX(0,MIN(H$6,Assumptions!P$61)-MAX(H$7,DATE(2026,12,1),$C$7+1)+1)/DAY(Assumptions!P$61) -> 0.000 | I14: =MAX(0,MIN(I$6,Assumptions!P$61)-MAX(I$7,DATE(2026,12,1),$C$7+1)+1)/DAY(Assumptions!P$61) -> 0.000 | J14: =MAX(0,MIN(J$6,Assumptions!P$61)-MAX(J$7,DATE(2026,12,1),$C$7+1)+1)/DAY(Assumptions!P$61) -> 0.000 | K14: =MAX(0,MIN(K$6,Assumptions!P$61)-MAX(K$7,DATE(2026,12,1),$C$7+1)+1)/DAY(Assumptions!P$61) -> 0.000 | L14: =MAX(0,MIN(L$6,Assumptions!P$61)-MAX(L$7,DATE(2026,12,1),$C$7+1)+1)/DAY(Assumptions!P$61) -> 0.000 | M14: =MAX(0,MIN(M$6,Assumptions!P$61)-MAX(M$7,DATE(2026,12,1),$C$7+1)+1)/DAY(Assumptions!P$61) -> 0.000 | N14: =MAX(0,MIN(N$6,Assumptions!P$61)-MAX(N$7,DATE(2026,12,1),$C$7+1)+1)/DAY(Assumptions!P$61) -> 0.000 | O14: =MAX(0,MIN(O$6,Assumptions!P$61)-MAX(O$7,DATE(2026,12,1),$C$7+1)+1)/DAY(Assumptions!P$61) -> 0.000 | P14: =MAX(0,MIN(P$6,Assumptions!P$61)-MAX(P$7,DATE(2026,12,1),$C$7+1)+1)/DAY(Assumptions!P$61) -> 0.000 | Q14: =MAX(0,MIN(Q$6,Assumptions!P$61)-MAX(Q$7,DATE(2026,12,1),$C$7+1)+1)/DAY(Assumptions!P$61) -> 0.000 | R14: =MAX(0,MIN(R$6,Assumptions!P$61)-MAX(R$7,DATE(2026,12,1),$C$7+1)+1)/DAY(Assumptions!P$61) -> 0.000 | S14: =MAX(0,MIN(S$6,Assumptions!P$61)-MAX(S$7,DATE(2026,12,1),$C$7+1)+1)/DAY(Assumptions!P$61) -> 0.129 | T14: =MAX(0,MIN(T$6,Assumptions!P$61)-MAX(T$7,DATE(2026,12,1),$C$7+1)+1)/DAY(Assumptions!P$61) -> 0.226 | U14: =SUM(H14:T14) -> 0.355
A15: Amazon settlement date in the week (blank = no settlement; 14-day cycle, Tuesdays) | H15: 2026-09-15 | J15: 2026-09-29 | L15: 2026-10-13 | N15: 2026-10-27 | P15: 2026-11-10 | R15: 2026-11-24 | T15: 2026-12-08
A16: Walmart settlement date in the week (14-day cycle, Thursdays) | H16: 2026-09-17 | J16: 2026-10-01 | L16: 2026-10-15 | N16: 2026-10-29 | P16: 2026-11-12 | R16: 2026-11-26 | T16: 2026-12-10
A17: Settlements per month (Amazon) | D17: 3 | E17: 2 | F17: 2 | G17: 2
A18: Settlements per month (Walmart) | D18: 2 | E18: 3 | F18: 2 | G18: 2
A19: Settlements received before the opening date (Amazon, Walmart) | B19: D = Amazon, E = Walmart | D19: 1 | E19: 1
A20: Amazon settlement: share of Sep-26 (flag / settlements in the month; Sep counts only settlements after the opening date) | H20: =IF(AND(H$15<>"",EOMONTH(H$15,0)=Assumptions!M$61),1/(D$17-D$19),0) -> 0.500 | I20: =IF(AND(I$15<>"",EOMONTH(I$15,0)=Assumptions!M$61),1/(D$17-D$19),0) -> 0.000 | J20: =IF(AND(J$15<>"",EOMONTH(J$15,0)=Assumptions!M$61),1/(D$17-D$19),0) -> 0.500 | K20: =IF(AND(K$15<>"",EOMONTH(K$15,0)=Assumptions!M$61),1/(D$17-D$19),0) -> 0.000 | L20: =IF(AND(L$15<>"",EOMONTH(L$15,0)=Assumptions!M$61),1/(D$17-D$19),0) -> 0.000 | M20: =IF(AND(M$15<>"",EOMONTH(M$15,0)=Assumptions!M$61),1/(D$17-D$19),0) -> 0.000 | N20: =IF(AND(N$15<>"",EOMONTH(N$15,0)=Assumptions!M$61),1/(D$17-D$19),0) -> 0.000 | O20: =IF(AND(O$15<>"",EOMONTH(O$15,0)=Assumptions!M$61),1/(D$17-D$19),0) -> 0.000 | P20: =IF(AND(P$15<>"",EOMONTH(P$15,0)=Assumptions!M$61),1/(D$17-D$19),0) -> 0.000 | Q20: =IF(AND(Q$15<>"",EOMONTH(Q$15,0)=Assumptions!M$61),1/(D$17-D$19),0) -> 0.000 | R20: =IF(AND(R$15<>"",EOMONTH(R$15,0)=Assumptions!M$61),1/(D$17-D$19),0) -> 0.000 | S20: =IF(AND(S$15<>"",EOMONTH(S$15,0)=Assumptions!M$61),1/(D$17-D$19),0) -> 0.000 | T20: =IF(AND(T$15<>"",EOMONTH(T$15,0)=Assumptions!M$61),1/(D$17-D$19),0) -> 0.000 | U20: =SUM(H20:T20) -> 1.000
A21: Amazon settlement: share of Oct-26 (flag / settlements in the month) | H21: =IF(AND(H$15<>"",EOMONTH(H$15,0)=Assumptions!N$61),1/E$17,0) -> 0.000 | I21: =IF(AND(I$15<>"",EOMONTH(I$15,0)=Assumptions!N$61),1/E$17,0) -> 0.000 | J21: =IF(AND(J$15<>"",EOMONTH(J$15,0)=Assumptions!N$61),1/E$17,0) -> 0.000 | K21: =IF(AND(K$15<>"",EOMONTH(K$15,0)=Assumptions!N$61),1/E$17,0) -> 0.000 | L21: =IF(AND(L$15<>"",EOMONTH(L$15,0)=Assumptions!N$61),1/E$17,0) -> 0.500 | M21: =IF(AND(M$15<>"",EOMONTH(M$15,0)=Assumptions!N$61),1/E$17,0) -> 0.000 | N21: =IF(AND(N$15<>"",EOMONTH(N$15,0)=Assumptions!N$61),1/E$17,0) -> 0.500 | O21: =IF(AND(O$15<>"",EOMONTH(O$15,0)=Assumptions!N$61),1/E$17,0) -> 0.000 | P21: =IF(AND(P$15<>"",EOMONTH(P$15,0)=Assumptions!N$61),1/E$17,0) -> 0.000 | Q21: =IF(AND(Q$15<>"",EOMONTH(Q$15,0)=Assumptions!N$61),1/E$17,0) -> 0.000 | R21: =IF(AND(R$15<>"",EOMONTH(R$15,0)=Assumptions!N$61),1/E$17,0) -> 0.000 | S21: =IF(AND(S$15<>"",EOMONTH(S$15,0)=Assumptions!N$61),1/E$17,0) -> 0.000 | T21: =IF(AND(T$15<>"",EOMONTH(T$15,0)=Assumptions!N$61),1/E$17,0) -> 0.000 | U21: =SUM(H21:T21) -> 1.000
A22: Amazon settlement: share of Nov-26 (flag / settlements in the month) | H22: =IF(AND(H$15<>"",EOMONTH(H$15,0)=Assumptions!O$61),1/F$17,0) -> 0.000 | I22: =IF(AND(I$15<>"",EOMONTH(I$15,0)=Assumptions!O$61),1/F$17,0) -> 0.000 | J22: =IF(AND(J$15<>"",EOMONTH(J$15,0)=Assumptions!O$61),1/F$17,0) -> 0.000 | K22: =IF(AND(K$15<>"",EOMONTH(K$15,0)=Assumptions!O$61),1/F$17,0) -> 0.000 | L22: =IF(AND(L$15<>"",EOMONTH(L$15,0)=Assumptions!O$61),1/F$17,0) -> 0.000 | M22: =IF(AND(M$15<>"",EOMONTH(M$15,0)=Assumptions!O$61),1/F$17,0) -> 0.000 | N22: =IF(AND(N$15<>"",EOMONTH(N$15,0)=Assumptions!O$61),1/F$17,0) -> 0.000 | O22: =IF(AND(O$15<>"",EOMONTH(O$15,0)=Assumptions!O$61),1/F$17,0) -> 0.000 | P22: =IF(AND(P$15<>"",EOMONTH(P$15,0)=Assumptions!O$61),1/F$17,0) -> 0.500 | Q22: =IF(AND(Q$15<>"",EOMONTH(Q$15,0)=Assumptions!O$61),1/F$17,0) -> 0.000 | R22: =IF(AND(R$15<>"",EOMONTH(R$15,0)=Assumptions!O$61),1/F$17,0) -> 0.500 | S22: =IF(AND(S$15<>"",EOMONTH(S$15,0)=Assumptions!O$61),1/F$17,0) -> 0.000 | T22: =IF(AND(T$15<>"",EOMONTH(T$15,0)=Assumptions!O$61),1/F$17,0) -> 0.000 | U22: =SUM(H22:T22) -> 1.000
A23: Amazon settlement: share of Dec-26 (flag / settlements in the month) | H23: =IF(AND(H$15<>"",EOMONTH(H$15,0)=Assumptions!P$61),1/G$17,0) -> 0.000 | I23: =IF(AND(I$15<>"",EOMONTH(I$15,0)=Assumptions!P$61),1/G$17,0) -> 0.000 | J23: =IF(AND(J$15<>"",EOMONTH(J$15,0)=Assumptions!P$61),1/G$17,0) -> 0.000 | K23: =IF(AND(K$15<>"",EOMONTH(K$15,0)=Assumptions!P$61),1/G$17,0) -> 0.000 | L23: =IF(AND(L$15<>"",EOMONTH(L$15,0)=Assumptions!P$61),1/G$17,0) -> 0.000 | M23: =IF(AND(M$15<>"",EOMONTH(M$15,0)=Assumptions!P$61),1/G$17,0) -> 0.000 | N23: =IF(AND(N$15<>"",EOMONTH(N$15,0)=Assumptions!P$61),1/G$17,0) -> 0.000 | O23: =IF(AND(O$15<>"",EOMONTH(O$15,0)=Assumptions!P$61),1/G$17,0) -> 0.000 | P23: =IF(AND(P$15<>"",EOMONTH(P$15,0)=Assumptions!P$61),1/G$17,0) -> 0.000 | Q23: =IF(AND(Q$15<>"",EOMONTH(Q$15,0)=Assumptions!P$61),1/G$17,0) -> 0.000 | R23: =IF(AND(R$15<>"",EOMONTH(R$15,0)=Assumptions!P$61),1/G$17,0) -> 0.000 | S23: =IF(AND(S$15<>"",EOMONTH(S$15,0)=Assumptions!P$61),1/G$17,0) -> 0.000 | T23: =IF(AND(T$15<>"",EOMONTH(T$15,0)=Assumptions!P$61),1/G$17,0) -> 0.500 | U23: =SUM(H23:T23) -> 0.500
A24: Walmart settlement: share of Sep-26 (flag / settlements in the month; Sep counts only settlements after the opening date) | H24: =IF(AND(H$16<>"",EOMONTH(H$16,0)=Assumptions!M$61),1/(D$18-E$19),0) -> 1.000 | I24: =IF(AND(I$16<>"",EOMONTH(I$16,0)=Assumptions!M$61),1/(D$18-E$19),0) -> 0.000 | J24: =IF(AND(J$16<>"",EOMONTH(J$16,0)=Assumptions!M$61),1/(D$18-E$19),0) -> 0.000 | K24: =IF(AND(K$16<>"",EOMONTH(K$16,0)=Assumptions!M$61),1/(D$18-E$19),0) -> 0.000 | L24: =IF(AND(L$16<>"",EOMONTH(L$16,0)=Assumptions!M$61),1/(D$18-E$19),0) -> 0.000 | M24: =IF(AND(M$16<>"",EOMONTH(M$16,0)=Assumptions!M$61),1/(D$18-E$19),0) -> 0.000 | N24: =IF(AND(N$16<>"",EOMONTH(N$16,0)=Assumptions!M$61),1/(D$18-E$19),0) -> 0.000 | O24: =IF(AND(O$16<>"",EOMONTH(O$16,0)=Assumptions!M$61),1/(D$18-E$19),0) -> 0.000 | P24: =IF(AND(P$16<>"",EOMONTH(P$16,0)=Assumptions!M$61),1/(D$18-E$19),0) -> 0.000 | Q24: =IF(AND(Q$16<>"",EOMONTH(Q$16,0)=Assumptions!M$61),1/(D$18-E$19),0) -> 0.000 | R24: =IF(AND(R$16<>"",EOMONTH(R$16,0)=Assumptions!M$61),1/(D$18-E$19),0) -> 0.000 | S24: =IF(AND(S$16<>"",EOMONTH(S$16,0)=Assumptions!M$61),1/(D$18-E$19),0) -> 0.000 | T24: =IF(AND(T$16<>"",EOMONTH(T$16,0)=Assumptions!M$61),1/(D$18-E$19),0) -> 0.000 | U24: =SUM(H24:T24) -> 1.000
A25: Walmart settlement: share of Oct-26 (flag / settlements in the month) | H25: =IF(AND(H$16<>"",EOMONTH(H$16,0)=Assumptions!N$61),1/E$18,0) -> 0.000 | I25: =IF(AND(I$16<>"",EOMONTH(I$16,0)=Assumptions!N$61),1/E$18,0) -> 0.000 | J25: =IF(AND(J$16<>"",EOMONTH(J$16,0)=Assumptions!N$61),1/E$18,0) -> 0.333 | K25: =IF(AND(K$16<>"",EOMONTH(K$16,0)=Assumptions!N$61),1/E$18,0) -> 0.000 | L25: =IF(AND(L$16<>"",EOMONTH(L$16,0)=Assumptions!N$61),1/E$18,0) -> 0.333 | M25: =IF(AND(M$16<>"",EOMONTH(M$16,0)=Assumptions!N$61),1/E$18,0) -> 0.000 | N25: =IF(AND(N$16<>"",EOMONTH(N$16,0)=Assumptions!N$61),1/E$18,0) -> 0.333 | O25: =IF(AND(O$16<>"",EOMONTH(O$16,0)=Assumptions!N$61),1/E$18,0) -> 0.000 | P25: =IF(AND(P$16<>"",EOMONTH(P$16,0)=Assumptions!N$61),1/E$18,0) -> 0.000 | Q25: =IF(AND(Q$16<>"",EOMONTH(Q$16,0)=Assumptions!N$61),1/E$18,0) -> 0.000 | R25: =IF(AND(R$16<>"",EOMONTH(R$16,0)=Assumptions!N$61),1/E$18,0) -> 0.000 | S25: =IF(AND(S$16<>"",EOMONTH(S$16,0)=Assumptions!N$61),1/E$18,0) -> 0.000 | T25: =IF(AND(T$16<>"",EOMONTH(T$16,0)=Assumptions!N$61),1/E$18,0) -> 0.000 | U25: =SUM(H25:T25) -> 1.000
A26: Walmart settlement: share of Nov-26 (flag / settlements in the month) | H26: =IF(AND(H$16<>"",EOMONTH(H$16,0)=Assumptions!O$61),1/F$18,0) -> 0.000 | I26: =IF(AND(I$16<>"",EOMONTH(I$16,0)=Assumptions!O$61),1/F$18,0) -> 0.000 | J26: =IF(AND(J$16<>"",EOMONTH(J$16,0)=Assumptions!O$61),1/F$18,0) -> 0.000 | K26: =IF(AND(K$16<>"",EOMONTH(K$16,0)=Assumptions!O$61),1/F$18,0) -> 0.000 | L26: =IF(AND(L$16<>"",EOMONTH(L$16,0)=Assumptions!O$61),1/F$18,0) -> 0.000 | M26: =IF(AND(M$16<>"",EOMONTH(M$16,0)=Assumptions!O$61),1/F$18,0) -> 0.000 | N26: =IF(AND(N$16<>"",EOMONTH(N$16,0)=Assumptions!O$61),1/F$18,0) -> 0.000 | O26: =IF(AND(O$16<>"",EOMONTH(O$16,0)=Assumptions!O$61),1/F$18,0) -> 0.000 | P26: =IF(AND(P$16<>"",EOMONTH(P$16,0)=Assumptions!O$61),1/F$18,0) -> 0.500 | Q26: =IF(AND(Q$16<>"",EOMONTH(Q$16,0)=Assumptions!O$61),1/F$18,0) -> 0.000 | R26: =IF(AND(R$16<>"",EOMONTH(R$16,0)=Assumptions!O$61),1/F$18,0) -> 0.500 | S26: =IF(AND(S$16<>"",EOMONTH(S$16,0)=Assumptions!O$61),1/F$18,0) -> 0.000 | T26: =IF(AND(T$16<>"",EOMONTH(T$16,0)=Assumptions!O$61),1/F$18,0) -> 0.000 | U26: =SUM(H26:T26) -> 1.000
A27: Walmart settlement: share of Dec-26 (flag / settlements in the month) | H27: =IF(AND(H$16<>"",EOMONTH(H$16,0)=Assumptions!P$61),1/G$18,0) -> 0.000 | I27: =IF(AND(I$16<>"",EOMONTH(I$16,0)=Assumptions!P$61),1/G$18,0) -> 0.000 | J27: =IF(AND(J$16<>"",EOMONTH(J$16,0)=Assumptions!P$61),1/G$18,0) -> 0.000 | K27: =IF(AND(K$16<>"",EOMONTH(K$16,0)=Assumptions!P$61),1/G$18,0) -> 0.000 | L27: =IF(AND(L$16<>"",EOMONTH(L$16,0)=Assumptions!P$61),1/G$18,0) -> 0.000 | M27: =IF(AND(M$16<>"",EOMONTH(M$16,0)=Assumptions!P$61),1/G$18,0) -> 0.000 | N27: =IF(AND(N$16<>"",EOMONTH(N$16,0)=Assumptions!P$61),1/G$18,0) -> 0.000 | O27: =IF(AND(O$16<>"",EOMONTH(O$16,0)=Assumptions!P$61),1/G$18,0) -> 0.000 | P27: =IF(AND(P$16<>"",EOMONTH(P$16,0)=Assumptions!P$61),1/G$18,0) -> 0.000 | Q27: =IF(AND(Q$16<>"",EOMONTH(Q$16,0)=Assumptions!P$61),1/G$18,0) -> 0.000 | R27: =IF(AND(R$16<>"",EOMONTH(R$16,0)=Assumptions!P$61),1/G$18,0) -> 0.000 | S27: =IF(AND(S$16<>"",EOMONTH(S$16,0)=Assumptions!P$61),1/G$18,0) -> 0.000 | T27: =IF(AND(T$16<>"",EOMONTH(T$16,0)=Assumptions!P$61),1/G$18,0) -> 0.500 | U27: =SUM(H27:T27) -> 0.500
A28: 1st of the month: Sep-26 falls in the week (1/0), only after the opening date | H28: =IF(AND(DATE(2026,9,1)>=H$7,DATE(2026,9,1)<=H$6,DATE(2026,9,1)>$C$7),1,0) -> 0.000 | I28: =IF(AND(DATE(2026,9,1)>=I$7,DATE(2026,9,1)<=I$6,DATE(2026,9,1)>$C$7),1,0) -> 0.000 | J28: =IF(AND(DATE(2026,9,1)>=J$7,DATE(2026,9,1)<=J$6,DATE(2026,9,1)>$C$7),1,0) -> 0.000 | K28: =IF(AND(DATE(2026,9,1)>=K$7,DATE(2026,9,1)<=K$6,DATE(2026,9,1)>$C$7),1,0) -> 0.000 | L28: =IF(AND(DATE(2026,9,1)>=L$7,DATE(2026,9,1)<=L$6,DATE(2026,9,1)>$C$7),1,0) -> 0.000 | M28: =IF(AND(DATE(2026,9,1)>=M$7,DATE(2026,9,1)<=M$6,DATE(2026,9,1)>$C$7),1,0) -> 0.000 | N28: =IF(AND(DATE(2026,9,1)>=N$7,DATE(2026,9,1)<=N$6,DATE(2026,9,1)>$C$7),1,0) -> 0.000 | O28: =IF(AND(DATE(2026,9,1)>=O$7,DATE(2026,9,1)<=O$6,DATE(2026,9,1)>$C$7),1,0) -> 0.000 | P28: =IF(AND(DATE(2026,9,1)>=P$7,DATE(2026,9,1)<=P$6,DATE(2026,9,1)>$C$7),1,0) -> 0.000 | Q28: =IF(AND(DATE(2026,9,1)>=Q$7,DATE(2026,9,1)<=Q$6,DATE(2026,9,1)>$C$7),1,0) -> 0.000 | R28: =IF(AND(DATE(2026,9,1)>=R$7,DATE(2026,9,1)<=R$6,DATE(2026,9,1)>$C$7),1,0) -> 0.000 | S28: =IF(AND(DATE(2026,9,1)>=S$7,DATE(2026,9,1)<=S$6,DATE(2026,9,1)>$C$7),1,0) -> 0.000 | T28: =IF(AND(DATE(2026,9,1)>=T$7,DATE(2026,9,1)<=T$6,DATE(2026,9,1)>$C$7),1,0) -> 0.000 | U28: =SUM(H28:T28) -> 0.000
A29: 1st of the month: Oct-26 falls in the week (1/0), only after the opening date | H29: =IF(AND(DATE(2026,10,1)>=H$7,DATE(2026,10,1)<=H$6,DATE(2026,10,1)>$C$7),1,0) -> 0.000 | I29: =IF(AND(DATE(2026,10,1)>=I$7,DATE(2026,10,1)<=I$6,DATE(2026,10,1)>$C$7),1,0) -> 0.000 | J29: =IF(AND(DATE(2026,10,1)>=J$7,DATE(2026,10,1)<=J$6,DATE(2026,10,1)>$C$7),1,0) -> 1.000 | K29: =IF(AND(DATE(2026,10,1)>=K$7,DATE(2026,10,1)<=K$6,DATE(2026,10,1)>$C$7),1,0) -> 0.000 | L29: =IF(AND(DATE(2026,10,1)>=L$7,DATE(2026,10,1)<=L$6,DATE(2026,10,1)>$C$7),1,0) -> 0.000 | M29: =IF(AND(DATE(2026,10,1)>=M$7,DATE(2026,10,1)<=M$6,DATE(2026,10,1)>$C$7),1,0) -> 0.000 | N29: =IF(AND(DATE(2026,10,1)>=N$7,DATE(2026,10,1)<=N$6,DATE(2026,10,1)>$C$7),1,0) -> 0.000 | O29: =IF(AND(DATE(2026,10,1)>=O$7,DATE(2026,10,1)<=O$6,DATE(2026,10,1)>$C$7),1,0) -> 0.000 | P29: =IF(AND(DATE(2026,10,1)>=P$7,DATE(2026,10,1)<=P$6,DATE(2026,10,1)>$C$7),1,0) -> 0.000 | Q29: =IF(AND(DATE(2026,10,1)>=Q$7,DATE(2026,10,1)<=Q$6,DATE(2026,10,1)>$C$7),1,0) -> 0.000 | R29: =IF(AND(DATE(2026,10,1)>=R$7,DATE(2026,10,1)<=R$6,DATE(2026,10,1)>$C$7),1,0) -> 0.000 | S29: =IF(AND(DATE(2026,10,1)>=S$7,DATE(2026,10,1)<=S$6,DATE(2026,10,1)>$C$7),1,0) -> 0.000 | T29: =IF(AND(DATE(2026,10,1)>=T$7,DATE(2026,10,1)<=T$6,DATE(2026,10,1)>$C$7),1,0) -> 0.000 | U29: =SUM(H29:T29) -> 1.000
A30: 1st of the month: Nov-26 falls in the week (1/0), only after the opening date | H30: =IF(AND(DATE(2026,11,1)>=H$7,DATE(2026,11,1)<=H$6,DATE(2026,11,1)>$C$7),1,0) -> 0.000 | I30: =IF(AND(DATE(2026,11,1)>=I$7,DATE(2026,11,1)<=I$6,DATE(2026,11,1)>$C$7),1,0) -> 0.000 | J30: =IF(AND(DATE(2026,11,1)>=J$7,DATE(2026,11,1)<=J$6,DATE(2026,11,1)>$C$7),1,0) -> 0.000 | K30: =IF(AND(DATE(2026,11,1)>=K$7,DATE(2026,11,1)<=K$6,DATE(2026,11,1)>$C$7),1,0) -> 0.000 | L30: =IF(AND(DATE(2026,11,1)>=L$7,DATE(2026,11,1)<=L$6,DATE(2026,11,1)>$C$7),1,0) -> 0.000 | M30: =IF(AND(DATE(2026,11,1)>=M$7,DATE(2026,11,1)<=M$6,DATE(2026,11,1)>$C$7),1,0) -> 0.000 | N30: =IF(AND(DATE(2026,11,1)>=N$7,DATE(2026,11,1)<=N$6,DATE(2026,11,1)>$C$7),1,0) -> 0.000 | O30: =IF(AND(DATE(2026,11,1)>=O$7,DATE(2026,11,1)<=O$6,DATE(2026,11,1)>$C$7),1,0) -> 1.000 | P30: =IF(AND(DATE(2026,11,1)>=P$7,DATE(2026,11,1)<=P$6,DATE(2026,11,1)>$C$7),1,0) -> 0.000 | Q30: =IF(AND(DATE(2026,11,1)>=Q$7,DATE(2026,11,1)<=Q$6,DATE(2026,11,1)>$C$7),1,0) -> 0.000 | R30: =IF(AND(DATE(2026,11,1)>=R$7,DATE(2026,11,1)<=R$6,DATE(2026,11,1)>$C$7),1,0) -> 0.000 | S30: =IF(AND(DATE(2026,11,1)>=S$7,DATE(2026,11,1)<=S$6,DATE(2026,11,1)>$C$7),1,0) -> 0.000 | T30: =IF(AND(DATE(2026,11,1)>=T$7,DATE(2026,11,1)<=T$6,DATE(2026,11,1)>$C$7),1,0) -> 0.000 | U30: =SUM(H30:T30) -> 1.000
A31: 1st of the month: Dec-26 falls in the week (1/0), only after the opening date | H31: =IF(AND(DATE(2026,12,1)>=H$7,DATE(2026,12,1)<=H$6,DATE(2026,12,1)>$C$7),1,0) -> 0.000 | I31: =IF(AND(DATE(2026,12,1)>=I$7,DATE(2026,12,1)<=I$6,DATE(2026,12,1)>$C$7),1,0) -> 0.000 | J31: =IF(AND(DATE(2026,12,1)>=J$7,DATE(2026,12,1)<=J$6,DATE(2026,12,1)>$C$7),1,0) -> 0.000 | K31: =IF(AND(DATE(2026,12,1)>=K$7,DATE(2026,12,1)<=K$6,DATE(2026,12,1)>$C$7),1,0) -> 0.000 | L31: =IF(AND(DATE(2026,12,1)>=L$7,DATE(2026,12,1)<=L$6,DATE(2026,12,1)>$C$7),1,0) -> 0.000 | M31: =IF(AND(DATE(2026,12,1)>=M$7,DATE(2026,12,1)<=M$6,DATE(2026,12,1)>$C$7),1,0) -> 0.000 | N31: =IF(AND(DATE(2026,12,1)>=N$7,DATE(2026,12,1)<=N$6,DATE(2026,12,1)>$C$7),1,0) -> 0.000 | O31: =IF(AND(DATE(2026,12,1)>=O$7,DATE(2026,12,1)<=O$6,DATE(2026,12,1)>$C$7),1,0) -> 0.000 | P31: =IF(AND(DATE(2026,12,1)>=P$7,DATE(2026,12,1)<=P$6,DATE(2026,12,1)>$C$7),1,0) -> 0.000 | Q31: =IF(AND(DATE(2026,12,1)>=Q$7,DATE(2026,12,1)<=Q$6,DATE(2026,12,1)>$C$7),1,0) -> 0.000 | R31: =IF(AND(DATE(2026,12,1)>=R$7,DATE(2026,12,1)<=R$6,DATE(2026,12,1)>$C$7),1,0) -> 0.000 | S31: =IF(AND(DATE(2026,12,1)>=S$7,DATE(2026,12,1)<=S$6,DATE(2026,12,1)>$C$7),1,0) -> 1.000 | T31: =IF(AND(DATE(2026,12,1)>=T$7,DATE(2026,12,1)<=T$6,DATE(2026,12,1)>$C$7),1,0) -> 0.000 | U31: =SUM(H31:T31) -> 1.000
A32: 15th of the month: Sep-26 falls in the week (1/0), only after the opening date | H32: =IF(AND(DATE(2026,9,15)>=H$7,DATE(2026,9,15)<=H$6,DATE(2026,9,15)>$C$7),1,0) -> 1.000 | I32: =IF(AND(DATE(2026,9,15)>=I$7,DATE(2026,9,15)<=I$6,DATE(2026,9,15)>$C$7),1,0) -> 0.000 | J32: =IF(AND(DATE(2026,9,15)>=J$7,DATE(2026,9,15)<=J$6,DATE(2026,9,15)>$C$7),1,0) -> 0.000 | K32: =IF(AND(DATE(2026,9,15)>=K$7,DATE(2026,9,15)<=K$6,DATE(2026,9,15)>$C$7),1,0) -> 0.000 | L32: =IF(AND(DATE(2026,9,15)>=L$7,DATE(2026,9,15)<=L$6,DATE(2026,9,15)>$C$7),1,0) -> 0.000 | M32: =IF(AND(DATE(2026,9,15)>=M$7,DATE(2026,9,15)<=M$6,DATE(2026,9,15)>$C$7),1,0) -> 0.000 | N32: =IF(AND(DATE(2026,9,15)>=N$7,DATE(2026,9,15)<=N$6,DATE(2026,9,15)>$C$7),1,0) -> 0.000 | O32: =IF(AND(DATE(2026,9,15)>=O$7,DATE(2026,9,15)<=O$6,DATE(2026,9,15)>$C$7),1,0) -> 0.000 | P32: =IF(AND(DATE(2026,9,15)>=P$7,DATE(2026,9,15)<=P$6,DATE(2026,9,15)>$C$7),1,0) -> 0.000 | Q32: =IF(AND(DATE(2026,9,15)>=Q$7,DATE(2026,9,15)<=Q$6,DATE(2026,9,15)>$C$7),1,0) -> 0.000 | R32: =IF(AND(DATE(2026,9,15)>=R$7,DATE(2026,9,15)<=R$6,DATE(2026,9,15)>$C$7),1,0) -> 0.000 | S32: =IF(AND(DATE(2026,9,15)>=S$7,DATE(2026,9,15)<=S$6,DATE(2026,9,15)>$C$7),1,0) -> 0.000 | T32: =IF(AND(DATE(2026,9,15)>=T$7,DATE(2026,9,15)<=T$6,DATE(2026,9,15)>$C$7),1,0) -> 0.000 | U32: =SUM(H32:T32) -> 1.000
A33: 15th of the month: Oct-26 falls in the week (1/0), only after the opening date | H33: =IF(AND(DATE(2026,10,15)>=H$7,DATE(2026,10,15)<=H$6,DATE(2026,10,15)>$C$7),1,0) -> 0.000 | I33: =IF(AND(DATE(2026,10,15)>=I$7,DATE(2026,10,15)<=I$6,DATE(2026,10,15)>$C$7),1,0) -> 0.000 | J33: =IF(AND(DATE(2026,10,15)>=J$7,DATE(2026,10,15)<=J$6,DATE(2026,10,15)>$C$7),1,0) -> 0.000 | K33: =IF(AND(DATE(2026,10,15)>=K$7,DATE(2026,10,15)<=K$6,DATE(2026,10,15)>$C$7),1,0) -> 0.000 | L33: =IF(AND(DATE(2026,10,15)>=L$7,DATE(2026,10,15)<=L$6,DATE(2026,10,15)>$C$7),1,0) -> 1.000 | M33: =IF(AND(DATE(2026,10,15)>=M$7,DATE(2026,10,15)<=M$6,DATE(2026,10,15)>$C$7),1,0) -> 0.000 | N33: =IF(AND(DATE(2026,10,15)>=N$7,DATE(2026,10,15)<=N$6,DATE(2026,10,15)>$C$7),1,0) -> 0.000 | O33: =IF(AND(DATE(2026,10,15)>=O$7,DATE(2026,10,15)<=O$6,DATE(2026,10,15)>$C$7),1,0) -> 0.000 | P33: =IF(AND(DATE(2026,10,15)>=P$7,DATE(2026,10,15)<=P$6,DATE(2026,10,15)>$C$7),1,0) -> 0.000 | Q33: =IF(AND(DATE(2026,10,15)>=Q$7,DATE(2026,10,15)<=Q$6,DATE(2026,10,15)>$C$7),1,0) -> 0.000 | R33: =IF(AND(DATE(2026,10,15)>=R$7,DATE(2026,10,15)<=R$6,DATE(2026,10,15)>$C$7),1,0) -> 0.000 | S33: =IF(AND(DATE(2026,10,15)>=S$7,DATE(2026,10,15)<=S$6,DATE(2026,10,15)>$C$7),1,0) -> 0.000 | T33: =IF(AND(DATE(2026,10,15)>=T$7,DATE(2026,10,15)<=T$6,DATE(2026,10,15)>$C$7),1,0) -> 0.000 | U33: =SUM(H33:T33) -> 1.000
A34: 15th of the month: Nov-26 falls in the week (1/0), only after the opening date | H34: =IF(AND(DATE(2026,11,15)>=H$7,DATE(2026,11,15)<=H$6,DATE(2026,11,15)>$C$7),1,0) -> 0.000 | I34: =IF(AND(DATE(2026,11,15)>=I$7,DATE(2026,11,15)<=I$6,DATE(2026,11,15)>$C$7),1,0) -> 0.000 | J34: =IF(AND(DATE(2026,11,15)>=J$7,DATE(2026,11,15)<=J$6,DATE(2026,11,15)>$C$7),1,0) -> 0.000 | K34: =IF(AND(DATE(2026,11,15)>=K$7,DATE(2026,11,15)<=K$6,DATE(2026,11,15)>$C$7),1,0) -> 0.000 | L34: =IF(AND(DATE(2026,11,15)>=L$7,DATE(2026,11,15)<=L$6,DATE(2026,11,15)>$C$7),1,0) -> 0.000 | M34: =IF(AND(DATE(2026,11,15)>=M$7,DATE(2026,11,15)<=M$6,DATE(2026,11,15)>$C$7),1,0) -> 0.000 | N34: =IF(AND(DATE(2026,11,15)>=N$7,DATE(2026,11,15)<=N$6,DATE(2026,11,15)>$C$7),1,0) -> 0.000 | O34: =IF(AND(DATE(2026,11,15)>=O$7,DATE(2026,11,15)<=O$6,DATE(2026,11,15)>$C$7),1,0) -> 0.000 | P34: =IF(AND(DATE(2026,11,15)>=P$7,DATE(2026,11,15)<=P$6,DATE(2026,11,15)>$C$7),1,0) -> 0.000 | Q34: =IF(AND(DATE(2026,11,15)>=Q$7,DATE(2026,11,15)<=Q$6,DATE(2026,11,15)>$C$7),1,0) -> 1.000 | R34: =IF(AND(DATE(2026,11,15)>=R$7,DATE(2026,11,15)<=R$6,DATE(2026,11,15)>$C$7),1,0) -> 0.000 | S34: =IF(AND(DATE(2026,11,15)>=S$7,DATE(2026,11,15)<=S$6,DATE(2026,11,15)>$C$7),1,0) -> 0.000 | T34: =IF(AND(DATE(2026,11,15)>=T$7,DATE(2026,11,15)<=T$6,DATE(2026,11,15)>$C$7),1,0) -> 0.000 | U34: =SUM(H34:T34) -> 1.000
A35: 15th of the month: Dec-26 falls in the week (1/0), only after the opening date | H35: =IF(AND(DATE(2026,12,15)>=H$7,DATE(2026,12,15)<=H$6,DATE(2026,12,15)>$C$7),1,0) -> 0.000 | I35: =IF(AND(DATE(2026,12,15)>=I$7,DATE(2026,12,15)<=I$6,DATE(2026,12,15)>$C$7),1,0) -> 0.000 | J35: =IF(AND(DATE(2026,12,15)>=J$7,DATE(2026,12,15)<=J$6,DATE(2026,12,15)>$C$7),1,0) -> 0.000 | K35: =IF(AND(DATE(2026,12,15)>=K$7,DATE(2026,12,15)<=K$6,DATE(2026,12,15)>$C$7),1,0) -> 0.000 | L35: =IF(AND(DATE(2026,12,15)>=L$7,DATE(2026,12,15)<=L$6,DATE(2026,12,15)>$C$7),1,0) -> 0.000 | M35: =IF(AND(DATE(2026,12,15)>=M$7,DATE(2026,12,15)<=M$6,DATE(2026,12,15)>$C$7),1,0) -> 0.000 | N35: =IF(AND(DATE(2026,12,15)>=N$7,DATE(2026,12,15)<=N$6,DATE(2026,12,15)>$C$7),1,0) -> 0.000 | O35: =IF(AND(DATE(2026,12,15)>=O$7,DATE(2026,12,15)<=O$6,DATE(2026,12,15)>$C$7),1,0) -> 0.000 | P35: =IF(AND(DATE(2026,12,15)>=P$7,DATE(2026,12,15)<=P$6,DATE(2026,12,15)>$C$7),1,0) -> 0.000 | Q35: =IF(AND(DATE(2026,12,15)>=Q$7,DATE(2026,12,15)<=Q$6,DATE(2026,12,15)>$C$7),1,0) -> 0.000 | R35: =IF(AND(DATE(2026,12,15)>=R$7,DATE(2026,12,15)<=R$6,DATE(2026,12,15)>$C$7),1,0) -> 0.000 | S35: =IF(AND(DATE(2026,12,15)>=S$7,DATE(2026,12,15)<=S$6,DATE(2026,12,15)>$C$7),1,0) -> 0.000 | T35: =IF(AND(DATE(2026,12,15)>=T$7,DATE(2026,12,15)<=T$6,DATE(2026,12,15)>$C$7),1,0) -> 0.000 | U35: =SUM(H35:T35) -> 0.000
A36: 25th of the month: Sep-26 falls in the week (1/0), only after the opening date | H36: =IF(AND(DATE(2026,9,25)>=H$7,DATE(2026,9,25)<=H$6,DATE(2026,9,25)>$C$7),1,0) -> 0.000 | I36: =IF(AND(DATE(2026,9,25)>=I$7,DATE(2026,9,25)<=I$6,DATE(2026,9,25)>$C$7),1,0) -> 1.000 | J36: =IF(AND(DATE(2026,9,25)>=J$7,DATE(2026,9,25)<=J$6,DATE(2026,9,25)>$C$7),1,0) -> 0.000 | K36: =IF(AND(DATE(2026,9,25)>=K$7,DATE(2026,9,25)<=K$6,DATE(2026,9,25)>$C$7),1,0) -> 0.000 | L36: =IF(AND(DATE(2026,9,25)>=L$7,DATE(2026,9,25)<=L$6,DATE(2026,9,25)>$C$7),1,0) -> 0.000 | M36: =IF(AND(DATE(2026,9,25)>=M$7,DATE(2026,9,25)<=M$6,DATE(2026,9,25)>$C$7),1,0) -> 0.000 | N36: =IF(AND(DATE(2026,9,25)>=N$7,DATE(2026,9,25)<=N$6,DATE(2026,9,25)>$C$7),1,0) -> 0.000 | O36: =IF(AND(DATE(2026,9,25)>=O$7,DATE(2026,9,25)<=O$6,DATE(2026,9,25)>$C$7),1,0) -> 0.000 | P36: =IF(AND(DATE(2026,9,25)>=P$7,DATE(2026,9,25)<=P$6,DATE(2026,9,25)>$C$7),1,0) -> 0.000 | Q36: =IF(AND(DATE(2026,9,25)>=Q$7,DATE(2026,9,25)<=Q$6,DATE(2026,9,25)>$C$7),1,0) -> 0.000 | R36: =IF(AND(DATE(2026,9,25)>=R$7,DATE(2026,9,25)<=R$6,DATE(2026,9,25)>$C$7),1,0) -> 0.000 | S36: =IF(AND(DATE(2026,9,25)>=S$7,DATE(2026,9,25)<=S$6,DATE(2026,9,25)>$C$7),1,0) -> 0.000 | T36: =IF(AND(DATE(2026,9,25)>=T$7,DATE(2026,9,25)<=T$6,DATE(2026,9,25)>$C$7),1,0) -> 0.000 | U36: =SUM(H36:T36) -> 1.000
A37: 25th of the month: Oct-26 falls in the week (1/0), only after the opening date | H37: =IF(AND(DATE(2026,10,25)>=H$7,DATE(2026,10,25)<=H$6,DATE(2026,10,25)>$C$7),1,0) -> 0.000 | I37: =IF(AND(DATE(2026,10,25)>=I$7,DATE(2026,10,25)<=I$6,DATE(2026,10,25)>$C$7),1,0) -> 0.000 | J37: =IF(AND(DATE(2026,10,25)>=J$7,DATE(2026,10,25)<=J$6,DATE(2026,10,25)>$C$7),1,0) -> 0.000 | K37: =IF(AND(DATE(2026,10,25)>=K$7,DATE(2026,10,25)<=K$6,DATE(2026,10,25)>$C$7),1,0) -> 0.000 | L37: =IF(AND(DATE(2026,10,25)>=L$7,DATE(2026,10,25)<=L$6,DATE(2026,10,25)>$C$7),1,0) -> 0.000 | M37: =IF(AND(DATE(2026,10,25)>=M$7,DATE(2026,10,25)<=M$6,DATE(2026,10,25)>$C$7),1,0) -> 0.000 | N37: =IF(AND(DATE(2026,10,25)>=N$7,DATE(2026,10,25)<=N$6,DATE(2026,10,25)>$C$7),1,0) -> 1.000 | O37: =IF(AND(DATE(2026,10,25)>=O$7,DATE(2026,10,25)<=O$6,DATE(2026,10,25)>$C$7),1,0) -> 0.000 | P37: =IF(AND(DATE(2026,10,25)>=P$7,DATE(2026,10,25)<=P$6,DATE(2026,10,25)>$C$7),1,0) -> 0.000 | Q37: =IF(AND(DATE(2026,10,25)>=Q$7,DATE(2026,10,25)<=Q$6,DATE(2026,10,25)>$C$7),1,0) -> 0.000 | R37: =IF(AND(DATE(2026,10,25)>=R$7,DATE(2026,10,25)<=R$6,DATE(2026,10,25)>$C$7),1,0) -> 0.000 | S37: =IF(AND(DATE(2026,10,25)>=S$7,DATE(2026,10,25)<=S$6,DATE(2026,10,25)>$C$7),1,0) -> 0.000 | T37: =IF(AND(DATE(2026,10,25)>=T$7,DATE(2026,10,25)<=T$6,DATE(2026,10,25)>$C$7),1,0) -> 0.000 | U37: =SUM(H37:T37) -> 1.000
A38: 25th of the month: Nov-26 falls in the week (1/0), only after the opening date | H38: =IF(AND(DATE(2026,11,25)>=H$7,DATE(2026,11,25)<=H$6,DATE(2026,11,25)>$C$7),1,0) -> 0.000 | I38: =IF(AND(DATE(2026,11,25)>=I$7,DATE(2026,11,25)<=I$6,DATE(2026,11,25)>$C$7),1,0) -> 0.000 | J38: =IF(AND(DATE(2026,11,25)>=J$7,DATE(2026,11,25)<=J$6,DATE(2026,11,25)>$C$7),1,0) -> 0.000 | K38: =IF(AND(DATE(2026,11,25)>=K$7,DATE(2026,11,25)<=K$6,DATE(2026,11,25)>$C$7),1,0) -> 0.000 | L38: =IF(AND(DATE(2026,11,25)>=L$7,DATE(2026,11,25)<=L$6,DATE(2026,11,25)>$C$7),1,0) -> 0.000 | M38: =IF(AND(DATE(2026,11,25)>=M$7,DATE(2026,11,25)<=M$6,DATE(2026,11,25)>$C$7),1,0) -> 0.000 | N38: =IF(AND(DATE(2026,11,25)>=N$7,DATE(2026,11,25)<=N$6,DATE(2026,11,25)>$C$7),1,0) -> 0.000 | O38: =IF(AND(DATE(2026,11,25)>=O$7,DATE(2026,11,25)<=O$6,DATE(2026,11,25)>$C$7),1,0) -> 0.000 | P38: =IF(AND(DATE(2026,11,25)>=P$7,DATE(2026,11,25)<=P$6,DATE(2026,11,25)>$C$7),1,0) -> 0.000 | Q38: =IF(AND(DATE(2026,11,25)>=Q$7,DATE(2026,11,25)<=Q$6,DATE(2026,11,25)>$C$7),1,0) -> 0.000 | R38: =IF(AND(DATE(2026,11,25)>=R$7,DATE(2026,11,25)<=R$6,DATE(2026,11,25)>$C$7),1,0) -> 1.000 | S38: =IF(AND(DATE(2026,11,25)>=S$7,DATE(2026,11,25)<=S$6,DATE(2026,11,25)>$C$7),1,0) -> 0.000 | T38: =IF(AND(DATE(2026,11,25)>=T$7,DATE(2026,11,25)<=T$6,DATE(2026,11,25)>$C$7),1,0) -> 0.000 | U38: =SUM(H38:T38) -> 1.000
A39: 25th of the month: Dec-26 falls in the week (1/0), only after the opening date | H39: =IF(AND(DATE(2026,12,25)>=H$7,DATE(2026,12,25)<=H$6,DATE(2026,12,25)>$C$7),1,0) -> 0.000 | I39: =IF(AND(DATE(2026,12,25)>=I$7,DATE(2026,12,25)<=I$6,DATE(2026,12,25)>$C$7),1,0) -> 0.000 | J39: =IF(AND(DATE(2026,12,25)>=J$7,DATE(2026,12,25)<=J$6,DATE(2026,12,25)>$C$7),1,0) -> 0.000 | K39: =IF(AND(DATE(2026,12,25)>=K$7,DATE(2026,12,25)<=K$6,DATE(2026,12,25)>$C$7),1,0) -> 0.000 | L39: =IF(AND(DATE(2026,12,25)>=L$7,DATE(2026,12,25)<=L$6,DATE(2026,12,25)>$C$7),1,0) -> 0.000 | M39: =IF(AND(DATE(2026,12,25)>=M$7,DATE(2026,12,25)<=M$6,DATE(2026,12,25)>$C$7),1,0) -> 0.000 | N39: =IF(AND(DATE(2026,12,25)>=N$7,DATE(2026,12,25)<=N$6,DATE(2026,12,25)>$C$7),1,0) -> 0.000 | O39: =IF(AND(DATE(2026,12,25)>=O$7,DATE(2026,12,25)<=O$6,DATE(2026,12,25)>$C$7),1,0) -> 0.000 | P39: =IF(AND(DATE(2026,12,25)>=P$7,DATE(2026,12,25)<=P$6,DATE(2026,12,25)>$C$7),1,0) -> 0.000 | Q39: =IF(AND(DATE(2026,12,25)>=Q$7,DATE(2026,12,25)<=Q$6,DATE(2026,12,25)>$C$7),1,0) -> 0.000 | R39: =IF(AND(DATE(2026,12,25)>=R$7,DATE(2026,12,25)<=R$6,DATE(2026,12,25)>$C$7),1,0) -> 0.000 | S39: =IF(AND(DATE(2026,12,25)>=S$7,DATE(2026,12,25)<=S$6,DATE(2026,12,25)>$C$7),1,0) -> 0.000 | T39: =IF(AND(DATE(2026,12,25)>=T$7,DATE(2026,12,25)<=T$6,DATE(2026,12,25)>$C$7),1,0) -> 0.000 | U39: =SUM(H39:T39) -> 0.000
A40: last day of the month: Sep-26 falls in the week (1/0), only after the opening date | H40: =IF(AND(Assumptions!M$61>=H$7,Assumptions!M$61<=H$6,Assumptions!M$61>$C$7),1,0) -> 0.000 | I40: =IF(AND(Assumptions!M$61>=I$7,Assumptions!M$61<=I$6,Assumptions!M$61>$C$7),1,0) -> 0.000 | J40: =IF(AND(Assumptions!M$61>=J$7,Assumptions!M$61<=J$6,Assumptions!M$61>$C$7),1,0) -> 1.000 | K40: =IF(AND(Assumptions!M$61>=K$7,Assumptions!M$61<=K$6,Assumptions!M$61>$C$7),1,0) -> 0.000 | L40: =IF(AND(Assumptions!M$61>=L$7,Assumptions!M$61<=L$6,Assumptions!M$61>$C$7),1,0) -> 0.000 | M40: =IF(AND(Assumptions!M$61>=M$7,Assumptions!M$61<=M$6,Assumptions!M$61>$C$7),1,0) -> 0.000 | N40: =IF(AND(Assumptions!M$61>=N$7,Assumptions!M$61<=N$6,Assumptions!M$61>$C$7),1,0) -> 0.000 | O40: =IF(AND(Assumptions!M$61>=O$7,Assumptions!M$61<=O$6,Assumptions!M$61>$C$7),1,0) -> 0.000 | P40: =IF(AND(Assumptions!M$61>=P$7,Assumptions!M$61<=P$6,Assumptions!M$61>$C$7),1,0) -> 0.000 | Q40: =IF(AND(Assumptions!M$61>=Q$7,Assumptions!M$61<=Q$6,Assumptions!M$61>$C$7),1,0) -> 0.000 | R40: =IF(AND(Assumptions!M$61>=R$7,Assumptions!M$61<=R$6,Assumptions!M$61>$C$7),1,0) -> 0.000 | S40: =IF(AND(Assumptions!M$61>=S$7,Assumptions!M$61<=S$6,Assumptions!M$61>$C$7),1,0) -> 0.000 | T40: =IF(AND(Assumptions!M$61>=T$7,Assumptions!M$61<=T$6,Assumptions!M$61>$C$7),1,0) -> 0.000 | U40: =SUM(H40:T40) -> 1.000
A41: last day of the month: Oct-26 falls in the week (1/0), only after the opening date | H41: =IF(AND(Assumptions!N$61>=H$7,Assumptions!N$61<=H$6,Assumptions!N$61>$C$7),1,0) -> 0.000 | I41: =IF(AND(Assumptions!N$61>=I$7,Assumptions!N$61<=I$6,Assumptions!N$61>$C$7),1,0) -> 0.000 | J41: =IF(AND(Assumptions!N$61>=J$7,Assumptions!N$61<=J$6,Assumptions!N$61>$C$7),1,0) -> 0.000 | K41: =IF(AND(Assumptions!N$61>=K$7,Assumptions!N$61<=K$6,Assumptions!N$61>$C$7),1,0) -> 0.000 | L41: =IF(AND(Assumptions!N$61>=L$7,Assumptions!N$61<=L$6,Assumptions!N$61>$C$7),1,0) -> 0.000 | M41: =IF(AND(Assumptions!N$61>=M$7,Assumptions!N$61<=M$6,Assumptions!N$61>$C$7),1,0) -> 0.000 | N41: =IF(AND(Assumptions!N$61>=N$7,Assumptions!N$61<=N$6,Assumptions!N$61>$C$7),1,0) -> 0.000 | O41: =IF(AND(Assumptions!N$61>=O$7,Assumptions!N$61<=O$6,Assumptions!N$61>$C$7),1,0) -> 1.000 | P41: =IF(AND(Assumptions!N$61>=P$7,Assumptions!N$61<=P$6,Assumptions!N$61>$C$7),1,0) -> 0.000 | Q41: =IF(AND(Assumptions!N$61>=Q$7,Assumptions!N$61<=Q$6,Assumptions!N$61>$C$7),1,0) -> 0.000 | R41: =IF(AND(Assumptions!N$61>=R$7,Assumptions!N$61<=R$6,Assumptions!N$61>$C$7),1,0) -> 0.000 | S41: =IF(AND(Assumptions!N$61>=S$7,Assumptions!N$61<=S$6,Assumptions!N$61>$C$7),1,0) -> 0.000 | T41: =IF(AND(Assumptions!N$61>=T$7,Assumptions!N$61<=T$6,Assumptions!N$61>$C$7),1,0) -> 0.000 | U41: =SUM(H41:T41) -> 1.000
A42: last day of the month: Nov-26 falls in the week (1/0), only after the opening date | H42: =IF(AND(Assumptions!O$61>=H$7,Assumptions!O$61<=H$6,Assumptions!O$61>$C$7),1,0) -> 0.000 | I42: =IF(AND(Assumptions!O$61>=I$7,Assumptions!O$61<=I$6,Assumptions!O$61>$C$7),1,0) -> 0.000 | J42: =IF(AND(Assumptions!O$61>=J$7,Assumptions!O$61<=J$6,Assumptions!O$61>$C$7),1,0) -> 0.000 | K42: =IF(AND(Assumptions!O$61>=K$7,Assumptions!O$61<=K$6,Assumptions!O$61>$C$7),1,0) -> 0.000 | L42: =IF(AND(Assumptions!O$61>=L$7,Assumptions!O$61<=L$6,Assumptions!O$61>$C$7),1,0) -> 0.000 | M42: =IF(AND(Assumptions!O$61>=M$7,Assumptions!O$61<=M$6,Assumptions!O$61>$C$7),1,0) -> 0.000 | N42: =IF(AND(Assumptions!O$61>=N$7,Assumptions!O$61<=N$6,Assumptions!O$61>$C$7),1,0) -> 0.000 | O42: =IF(AND(Assumptions!O$61>=O$7,Assumptions!O$61<=O$6,Assumptions!O$61>$C$7),1,0) -> 0.000 | P42: =IF(AND(Assumptions!O$61>=P$7,Assumptions!O$61<=P$6,Assumptions!O$61>$C$7),1,0) -> 0.000 | Q42: =IF(AND(Assumptions!O$61>=Q$7,Assumptions!O$61<=Q$6,Assumptions!O$61>$C$7),1,0) -> 0.000 | R42: =IF(AND(Assumptions!O$61>=R$7,Assumptions!O$61<=R$6,Assumptions!O$61>$C$7),1,0) -> 0.000 | S42: =IF(AND(Assumptions!O$61>=S$7,Assumptions!O$61<=S$6,Assumptions!O$61>$C$7),1,0) -> 1.000 | T42: =IF(AND(Assumptions!O$61>=T$7,Assumptions!O$61<=T$6,Assumptions!O$61>$C$7),1,0) -> 0.000 | U42: =SUM(H42:T42) -> 1.000
A43: last day of the month: Dec-26 falls in the week (1/0), only after the opening date | H43: =IF(AND(Assumptions!P$61>=H$7,Assumptions!P$61<=H$6,Assumptions!P$61>$C$7),1,0) -> 0.000 | I43: =IF(AND(Assumptions!P$61>=I$7,Assumptions!P$61<=I$6,Assumptions!P$61>$C$7),1,0) -> 0.000 | J43: =IF(AND(Assumptions!P$61>=J$7,Assumptions!P$61<=J$6,Assumptions!P$61>$C$7),1,0) -> 0.000 | K43: =IF(AND(Assumptions!P$61>=K$7,Assumptions!P$61<=K$6,Assumptions!P$61>$C$7),1,0) -> 0.000 | L43: =IF(AND(Assumptions!P$61>=L$7,Assumptions!P$61<=L$6,Assumptions!P$61>$C$7),1,0) -> 0.000 | M43: =IF(AND(Assumptions!P$61>=M$7,Assumptions!P$61<=M$6,Assumptions!P$61>$C$7),1,0) -> 0.000 | N43: =IF(AND(Assumptions!P$61>=N$7,Assumptions!P$61<=N$6,Assumptions!P$61>$C$7),1,0) -> 0.000 | O43: =IF(AND(Assumptions!P$61>=O$7,Assumptions!P$61<=O$6,Assumptions!P$61>$C$7),1,0) -> 0.000 | P43: =IF(AND(Assumptions!P$61>=P$7,Assumptions!P$61<=P$6,Assumptions!P$61>$C$7),1,0) -> 0.000 | Q43: =IF(AND(Assumptions!P$61>=Q$7,Assumptions!P$61<=Q$6,Assumptions!P$61>$C$7),1,0) -> 0.000 | R43: =IF(AND(Assumptions!P$61>=R$7,Assumptions!P$61<=R$6,Assumptions!P$61>$C$7),1,0) -> 0.000 | S43: =IF(AND(Assumptions!P$61>=S$7,Assumptions!P$61<=S$6,Assumptions!P$61>$C$7),1,0) -> 0.000 | T43: =IF(AND(Assumptions!P$61>=T$7,Assumptions!P$61<=T$6,Assumptions!P$61>$C$7),1,0) -> 0.000 | U43: =SUM(H43:T43) -> 0.000
A44: VAT payment date (Q3 return and OSS) | D44: 2026-10-31
A45: VAT: payment date falls in the week | H45: =IF(AND($D$44>=H$7,$D$44<=H$6),1,0) -> 0.000 | I45: =IF(AND($D$44>=I$7,$D$44<=I$6),1,0) -> 0.000 | J45: =IF(AND($D$44>=J$7,$D$44<=J$6),1,0) -> 0.000 | K45: =IF(AND($D$44>=K$7,$D$44<=K$6),1,0) -> 0.000 | L45: =IF(AND($D$44>=L$7,$D$44<=L$6),1,0) -> 0.000 | M45: =IF(AND($D$44>=M$7,$D$44<=M$6),1,0) -> 0.000 | N45: =IF(AND($D$44>=N$7,$D$44<=N$6),1,0) -> 0.000 | O45: =IF(AND($D$44>=O$7,$D$44<=O$6),1,0) -> 1.000 | P45: =IF(AND($D$44>=P$7,$D$44<=P$6),1,0) -> 0.000 | Q45: =IF(AND($D$44>=Q$7,$D$44<=Q$6),1,0) -> 0.000 | R45: =IF(AND($D$44>=R$7,$D$44<=R$6),1,0) -> 0.000 | S45: =IF(AND($D$44>=S$7,$D$44<=S$6),1,0) -> 0.000 | T45: =IF(AND($D$44>=T$7,$D$44<=T$6),1,0) -> 0.000 | U45: =SUM(H45:T45) -> 1.000
A47: RECEIPTS
A48: Shopify Payments payouts | B48: calendar days | C48: 68,491 | D48: =-Settlements!M15 -> 186,793 | E48: =-Settlements!N15 -> 216,345 | F48: =-Settlements!O15 -> 303,917 | G48: =-Settlements!P15 -> 284,015 | H48: =(D48-$C48)*H$11+E48*H$12+F48*H$13+G48*H$14 -> 43,585 | I48: =(D48-$C48)*I$11+E48*I$12+F48*I$13+G48*I$14 -> 43,585 | J48: =(D48-$C48)*J$11+E48*J$12+F48*J$13+G48*J$14 -> 45,090 | K48: =(D48-$C48)*K$11+E48*K$12+F48*K$13+G48*K$14 -> 48,852 | L48: =(D48-$C48)*L$11+E48*L$12+F48*L$13+G48*L$14 -> 48,852 | M48: =(D48-$C48)*M$11+E48*M$12+F48*M$13+G48*M$14 -> 48,852 | N48: =(D48-$C48)*N$11+E48*N$12+F48*N$13+G48*N$14 -> 48,852 | O48: =(D48-$C48)*O$11+E48*O$12+F48*O$13+G48*O$14 -> 67,762 | P48: =(D48-$C48)*P$11+E48*P$12+F48*P$13+G48*P$14 -> 70,914 | Q48: =(D48-$C48)*Q$11+E48*Q$12+F48*Q$13+G48*Q$14 -> 70,914 | R48: =(D48-$C48)*R$11+E48*R$12+F48*R$13+G48*R$14 -> 70,914 | S48: =(D48-$C48)*S$11+E48*S$12+F48*S$13+G48*S$14 -> 67,039 | T48: =(D48-$C48)*T$11+E48*T$12+F48*T$13+G48*T$14 -> 64,132 | U48: =SUM(H48:T48) -> 739,343 | V48: =SUM(H$14:T$14) -> 0.355 | W48: =G48*(1-V48) -> 183,235
A49: Amazon settlements (biweekly, Tuesday) | B49: Amazon settlement dates | C49: 34,036 | D49: =-Settlements!M26 -> 102,108 | E49: =-Settlements!N26 -> 129,806 | F49: =-Settlements!O26 -> 152,729 | G49: =-Settlements!P26 -> 196,128 | H49: =(D49-$C49)*H$20+E49*H$21+F49*H$22+G49*H$23 -> 34,036 | I49: =(D49-$C49)*I$20+E49*I$21+F49*I$22+G49*I$23 -> 0 | J49: =(D49-$C49)*J$20+E49*J$21+F49*J$22+G49*J$23 -> 34,036 | K49: =(D49-$C49)*K$20+E49*K$21+F49*K$22+G49*K$23 -> 0 | L49: =(D49-$C49)*L$20+E49*L$21+F49*L$22+G49*L$23 -> 64,903 | M49: =(D49-$C49)*M$20+E49*M$21+F49*M$22+G49*M$23 -> 0 | N49: =(D49-$C49)*N$20+E49*N$21+F49*N$22+G49*N$23 -> 64,903 | O49: =(D49-$C49)*O$20+E49*O$21+F49*O$22+G49*O$23 -> 0 | P49: =(D49-$C49)*P$20+E49*P$21+F49*P$22+G49*P$23 -> 76,365 | Q49: =(D49-$C49)*Q$20+E49*Q$21+F49*Q$22+G49*Q$23 -> 0 | R49: =(D49-$C49)*R$20+E49*R$21+F49*R$22+G49*R$23 -> 76,365 | S49: =(D49-$C49)*S$20+E49*S$21+F49*S$22+G49*S$23 -> 0 | T49: =(D49-$C49)*T$20+E49*T$21+F49*T$22+G49*T$23 -> 98,064 | U49: =SUM(H49:T49) -> 448,672 | V49: =SUM(H$23:T$23) -> 0.500 | W49: =G49*(1-V49) -> 98,064
A50: Walmart settlements (biweekly, Thursday) | B50: Walmart settlement dates | C50: 14,541 | D50: =-Settlements!M37 -> 29,083 | E50: =-Settlements!N37 -> 30,205 | F50: =-Settlements!O37 -> 35,858 | G50: =-Settlements!P37 -> 49,850 | H50: =(D50-$C50)*H$24+E50*H$25+F50*H$26+G50*H$27 -> 14,542 | I50: =(D50-$C50)*I$24+E50*I$25+F50*I$26+G50*I$27 -> 0 | J50: =(D50-$C50)*J$24+E50*J$25+F50*J$26+G50*J$27 -> 10,068 | K50: =(D50-$C50)*K$24+E50*K$25+F50*K$26+G50*K$27 -> 0 | L50: =(D50-$C50)*L$24+E50*L$25+F50*L$26+G50*L$27 -> 10,068 | M50: =(D50-$C50)*M$24+E50*M$25+F50*M$26+G50*M$27 -> 0 | N50: =(D50-$C50)*N$24+E50*N$25+F50*N$26+G50*N$27 -> 10,068 | O50: =(D50-$C50)*O$24+E50*O$25+F50*O$26+G50*O$27 -> 0 | P50: =(D50-$C50)*P$24+E50*P$25+F50*P$26+G50*P$27 -> 17,929 | Q50: =(D50-$C50)*Q$24+E50*Q$25+F50*Q$26+G50*Q$27 -> 0 | R50: =(D50-$C50)*R$24+E50*R$25+F50*R$26+G50*R$27 -> 17,929 | S50: =(D50-$C50)*S$24+E50*S$25+F50*S$26+G50*S$27 -> 0 | T50: =(D50-$C50)*T$24+E50*T$25+F50*T$26+G50*T$27 -> 24,925 | U50: =SUM(H50:T50) -> 105,530 | V50: =SUM(H$27:T$27) -> 0.500 | W50: =G50*(1-V50) -> 24,925
A51: TOTAL RECEIPTS | B51: n/a | C51: =C48+C49+C50 -> 117,068 | D51: =D48+D49+D50 -> 317,984 | E51: =E48+E49+E50 -> 376,356 | F51: =F48+F49+F50 -> 492,504 | G51: =G48+G49+G50 -> 529,992 | H51: =H48+H49+H50 -> 92,163 | I51: =I48+I49+I50 -> 43,585 | J51: =J48+J49+J50 -> 89,194 | K51: =K48+K49+K50 -> 48,852 | L51: =L48+L49+L50 -> 123,823 | M51: =M48+M49+M50 -> 48,852 | N51: =N48+N49+N50 -> 123,823 | O51: =O48+O49+O50 -> 67,762 | P51: =P48+P49+P50 -> 165,208 | Q51: =Q48+Q49+Q50 -> 70,914 | R51: =R48+R49+R50 -> 165,208 | S51: =S48+S49+S50 -> 67,039 | T51: =T48+T49+T50 -> 187,121 | U51: =SUM(H51:T51) -> 1,293,544
A52: PAYMENTS
A53: Committed purchase orders: deposits and balances on register dates | B53: register due dates | C53: =-(SUMIFS(Purchase_Orders!$G$6:$G$24,Purchase_Orders!$H$6:$H$24,">="&DATE(2026,9,1),Purchase_Orders!$H$6:$H$24,"<="&$C$7)+SUMIFS(Purchase_Orders!$J$6:$J$24,Purchase_Orders!$K$6:$K$24,">="&DATE(2026,9,1),Purchase_Orders!$K$6:$K$24,"<="&$C$7)) -> -99400 | D53: =-(SUMIFS(Purchase_Orders!$G$6:$G$24,Purchase_Orders!$P$6:$P$24,Assumptions!M$61)+SUMIFS(Purchase_Orders!$J$6:$J$24,Purchase_Orders!$Q$6:$Q$24,Assumptions!M$61)) -> (206,200) | E53: =-(SUMIFS(Purchase_Orders!$G$6:$G$24,Purchase_Orders!$P$6:$P$24,Assumptions!N$61)+SUMIFS(Purchase_Orders!$J$6:$J$24,Purchase_Orders!$Q$6:$Q$24,Assumptions!N$61)) -> (37,600) | F53: =-(SUMIFS(Purchase_Orders!$G$6:$G$24,Purchase_Orders!$P$6:$P$24,Assumptions!O$61)+SUMIFS(Purchase_Orders!$J$6:$J$24,Purchase_Orders!$Q$6:$Q$24,Assumptions!O$61)) -> (68,600) | G53: =-(SUMIFS(Purchase_Orders!$G$6:$G$24,Purchase_Orders!$P$6:$P$24,Assumptions!P$61)+SUMIFS(Purchase_Orders!$J$6:$J$24,Purchase_Orders!$Q$6:$Q$24,Assumptions!P$61)) -> (42,000) | H53: =-(SUMIFS(Purchase_Orders!$G$6:$G$24,Purchase_Orders!$H$6:$H$24,">="&H$7,Purchase_Orders!$H$6:$H$24,"<="&H$6)+SUMIFS(Purchase_Orders!$J$6:$J$24,Purchase_Orders!$K$6:$K$24,">="&H$7,Purchase_Orders!$K$6:$K$24,"<="&H$6)) -> (34,000) | I53: =-(SUMIFS(Purchase_Orders!$G$6:$G$24,Purchase_Orders!$H$6:$H$24,">="&I$7,Purchase_Orders!$H$6:$H$24,"<="&I$6)+SUMIFS(Purchase_Orders!$J$6:$J$24,Purchase_Orders!$K$6:$K$24,">="&I$7,Purchase_Orders!$K$6:$K$24,"<="&I$6)) -> (29,400) | J53: =-(SUMIFS(Purchase_Orders!$G$6:$G$24,Purchase_Orders!$H$6:$H$24,">="&J$7,Purchase_Orders!$H$6:$H$24,"<="&J$6)+SUMIFS(Purchase_Orders!$J$6:$J$24,Purchase_Orders!$K$6:$K$24,">="&J$7,Purchase_Orders!$K$6:$K$24,"<="&J$6)) -> (43,400) | K53: =-(SUMIFS(Purchase_Orders!$G$6:$G$24,Purchase_Orders!$H$6:$H$24,">="&K$7,Purchase_Orders!$H$6:$H$24,"<="&K$6)+SUMIFS(Purchase_Orders!$J$6:$J$24,Purchase_Orders!$K$6:$K$24,">="&K$7,Purchase_Orders!$K$6:$K$24,"<="&K$6)) -> 0 | L53: =-(SUMIFS(Purchase_Orders!$G$6:$G$24,Purchase_Orders!$H$6:$H$24,">="&L$7,Purchase_Orders!$H$6:$H$24,"<="&L$6)+SUMIFS(Purchase_Orders!$J$6:$J$24,Purchase_Orders!$K$6:$K$24,">="&L$7,Purchase_Orders!$K$6:$K$24,"<="&L$6)) -> (18,000) | M53: =-(SUMIFS(Purchase_Orders!$G$6:$G$24,Purchase_Orders!$H$6:$H$24,">="&M$7,Purchase_Orders!$H$6:$H$24,"<="&M$6)+SUMIFS(Purchase_Orders!$J$6:$J$24,Purchase_Orders!$K$6:$K$24,">="&M$7,Purchase_Orders!$K$6:$K$24,"<="&M$6)) -> (19,600) | N53: =-(SUMIFS(Purchase_Orders!$G$6:$G$24,Purchase_Orders!$H$6:$H$24,">="&N$7,Purchase_Orders!$H$6:$H$24,"<="&N$6)+SUMIFS(Purchase_Orders!$J$6:$J$24,Purchase_Orders!$K$6:$K$24,">="&N$7,Purchase_Orders!$K$6:$K$24,"<="&N$6)) -> 0 | O53: =-(SUMIFS(Purchase_Orders!$G$6:$G$24,Purchase_Orders!$H$6:$H$24,">="&O$7,Purchase_Orders!$H$6:$H$24,"<="&O$6)+SUMIFS(Purchase_Orders!$J$6:$J$24,Purchase_Orders!$K$6:$K$24,">="&O$7,Purchase_Orders!$K$6:$K$24,"<="&O$6)) -> 0 | P53: =-(SUMIFS(Purchase_Orders!$G$6:$G$24,Purchase_Orders!$H$6:$H$24,">="&P$7,Purchase_Orders!$H$6:$H$24,"<="&P$6)+SUMIFS(Purchase_Orders!$J$6:$J$24,Purchase_Orders!$K$6:$K$24,">="&P$7,Purchase_Orders!$K$6:$K$24,"<="&P$6)) -> 0 | Q53: =-(SUMIFS(Purchase_Orders!$G$6:$G$24,Purchase_Orders!$H$6:$H$24,">="&Q$7,Purchase_Orders!$H$6:$H$24,"<="&Q$6)+SUMIFS(Purchase_Orders!$J$6:$J$24,Purchase_Orders!$K$6:$K$24,">="&Q$7,Purchase_Orders!$K$6:$K$24,"<="&Q$6)) -> 0 | R53: =-(SUMIFS(Purchase_Orders!$G$6:$G$24,Purchase_Orders!$H$6:$H$24,">="&R$7,Purchase_Orders!$H$6:$H$24,"<="&R$6)+SUMIFS(Purchase_Orders!$J$6:$J$24,Purchase_Orders!$K$6:$K$24,">="&R$7,Purchase_Orders!$K$6:$K$24,"<="&R$6)) -> (68,600) | S53: =-(SUMIFS(Purchase_Orders!$G$6:$G$24,Purchase_Orders!$H$6:$H$24,">="&S$7,Purchase_Orders!$H$6:$H$24,"<="&S$6)+SUMIFS(Purchase_Orders!$J$6:$J$24,Purchase_Orders!$K$6:$K$24,">="&S$7,Purchase_Orders!$K$6:$K$24,"<="&S$6)) -> 0 | T53: =-(SUMIFS(Purchase_Orders!$G$6:$G$24,Purchase_Orders!$H$6:$H$24,">="&T$7,Purchase_Orders!$H$6:$H$24,"<="&T$6)+SUMIFS(Purchase_Orders!$J$6:$J$24,Purchase_Orders!$K$6:$K$24,">="&T$7,Purchase_Orders!$K$6:$K$24,"<="&T$6)) -> 0 | U53: =SUM(H53:T53) -> (213,000) | V53: =IF(G53=0,0,1-W53/G53) -> 0.000 | W53: =-(SUMIFS(Purchase_Orders!$G$6:$G$24,Purchase_Orders!$H$6:$H$24,">"&T$6,Purchase_Orders!$P$6:$P$24,Assumptions!P$61)+SUMIFS(Purchase_Orders!$J$6:$J$24,Purchase_Orders!$K$6:$K$24,">"&T$6,Purchase_Orders!$Q$6:$Q$24,Assumptions!P$61)) -> (42,000)
A54: Uncommitted purchases required by the inventory policy | B54: calendar days | C54: (11,628) | D54: =-(Inventory!M96+Inventory!M97) -> (31,711) | E54: =-(Inventory!N96+Inventory!N97) -> (13,911) | F54: =-(Inventory!O96+Inventory!O97) -> (86,965) | G54: =-(Inventory!P96+Inventory!P97) -> (66,319) | H54: =(D54-$C54)*H$11+E54*H$12+F54*H$13+G54*H$14 -> (7,399) | I54: =(D54-$C54)*I$11+E54*I$12+F54*I$13+G54*I$14 -> (7,399) | J54: =(D54-$C54)*J$11+E54*J$12+F54*J$13+G54*J$14 -> (6,183) | K54: =(D54-$C54)*K$11+E54*K$12+F54*K$13+G54*K$14 -> (3,141) | L54: =(D54-$C54)*L$11+E54*L$12+F54*L$13+G54*L$14 -> (3,141) | M54: =(D54-$C54)*M$11+E54*M$12+F54*M$13+G54*M$14 -> (3,141) | N54: =(D54-$C54)*N$11+E54*N$12+F54*N$13+G54*N$14 -> (3,141) | O54: =(D54-$C54)*O$11+E54*O$12+F54*O$13+G54*O$14 -> (17,842) | P54: =(D54-$C54)*P$11+E54*P$12+F54*P$13+G54*P$14 -> (20,292) | Q54: =(D54-$C54)*Q$11+E54*Q$12+F54*Q$13+G54*Q$14 -> (20,292) | R54: =(D54-$C54)*R$11+E54*R$12+F54*R$13+G54*R$14 -> (20,292) | S54: =(D54-$C54)*S$11+E54*S$12+F54*S$13+G54*S$14 -> (17,254) | T54: =(D54-$C54)*T$11+E54*T$12+F54*T$13+G54*T$14 -> (14,975) | U54: =SUM(H54:T54) -> (144,491) | V54: =SUM(H$14:T$14) -> 0.355 | W54: =G54*(1-V54) -> (42,786)
A55: Logistics and fulfilment suppliers | B55: calendar days | C55: (11,511) | D55: =AP_Schedule!M12 -> (31,394) | E55: =AP_Schedule!N12 -> (65,685) | F55: =AP_Schedule!O12 -> (78,252) | G55: =AP_Schedule!P12 -> (55,746) | H55: =(D55-$C55)*H$11+E55*H$12+F55*H$13+G55*H$14 -> (7,325) | I55: =(D55-$C55)*I$11+E55*I$12+F55*I$13+G55*I$14 -> (7,325) | J55: =(D55-$C55)*J$11+E55*J$12+F55*J$13+G55*J$14 -> (9,470) | K55: =(D55-$C55)*K$11+E55*K$12+F55*K$13+G55*K$14 -> (14,832) | L55: =(D55-$C55)*L$11+E55*L$12+F55*L$13+G55*L$14 -> (14,832) | M55: =(D55-$C55)*M$11+E55*M$12+F55*M$13+G55*M$14 -> (14,832) | N55: =(D55-$C55)*N$11+E55*N$12+F55*N$13+G55*N$14 -> (14,832) | O55: =(D55-$C55)*O$11+E55*O$12+F55*O$13+G55*O$14 -> (17,769) | P55: =(D55-$C55)*P$11+E55*P$12+F55*P$13+G55*P$14 -> (18,259) | Q55: =(D55-$C55)*Q$11+E55*Q$12+F55*Q$13+G55*Q$14 -> (18,259) | R55: =(D55-$C55)*R$11+E55*R$12+F55*R$13+G55*R$14 -> (18,259) | S55: =(D55-$C55)*S$11+E55*S$12+F55*S$13+G55*S$14 -> (15,018) | T55: =(D55-$C55)*T$11+E55*T$12+F55*T$13+G55*T$14 -> (12,588) | U55: =SUM(H55:T55) -> (183,600) | V55: =SUM(H$14:T$14) -> 0.355 | W55: =G55*(1-V55) -> (35,965)
A56: Meta and Google | B56: calendar days | C56: (10,930) | D56: =AP_Schedule!M20 -> (29,808) | E56: =AP_Schedule!N20 -> (34,134) | F56: =AP_Schedule!O20 -> (45,241) | G56: =AP_Schedule!P20 -> (47,539) | H56: =(D56-$C56)*H$11+E56*H$12+F56*H$13+G56*H$14 -> (6,955) | I56: =(D56-$C56)*I$11+E56*I$12+F56*I$13+G56*I$14 -> (6,955) | J56: =(D56-$C56)*J$11+E56*J$12+F56*J$13+G56*J$14 -> (7,170) | K56: =(D56-$C56)*K$11+E56*K$12+F56*K$13+G56*K$14 -> (7,708) | L56: =(D56-$C56)*L$11+E56*L$12+F56*L$13+G56*L$14 -> (7,708) | M56: =(D56-$C56)*M$11+E56*M$12+F56*M$13+G56*M$14 -> (7,708) | N56: =(D56-$C56)*N$11+E56*N$12+F56*N$13+G56*N$14 -> (7,708) | O56: =(D56-$C56)*O$11+E56*O$12+F56*O$13+G56*O$14 -> (10,149) | P56: =(D56-$C56)*P$11+E56*P$12+F56*P$13+G56*P$14 -> (10,556) | Q56: =(D56-$C56)*Q$11+E56*Q$12+F56*Q$13+G56*Q$14 -> (10,556) | R56: =(D56-$C56)*R$11+E56*R$12+F56*R$13+G56*R$14 -> (10,556) | S56: =(D56-$C56)*S$11+E56*S$12+F56*S$13+G56*S$14 -> (10,658) | T56: =(D56-$C56)*T$11+E56*T$12+F56*T$13+G56*T$14 -> (10,735) | U56: =SUM(H56:T56) -> (115,122) | V56: =SUM(H$14:T$14) -> 0.355 | W56: =G56*(1-V56) -> (30,670)
A57: Other opex suppliers (rent, software, fees, services) | B57: calendar days | C57: (13,608) | D57: =AP_Schedule!M28 -> (37,113) | E57: =AP_Schedule!N28 -> (36,449) | F57: =AP_Schedule!O28 -> (35,439) | G57: =AP_Schedule!P28 -> (39,121) | H57: =(D57-$C57)*H$11+E57*H$12+F57*H$13+G57*H$14 -> (8,660) | I57: =(D57-$C57)*I$11+E57*I$12+F57*I$13+G57*I$14 -> (8,660) | J57: =(D57-$C57)*J$11+E57*J$12+F57*J$13+G57*J$14 -> (8,537) | K57: =(D57-$C57)*K$11+E57*K$12+F57*K$13+G57*K$14 -> (8,230) | L57: =(D57-$C57)*L$11+E57*L$12+F57*L$13+G57*L$14 -> (8,230) | M57: =(D57-$C57)*M$11+E57*M$12+F57*M$13+G57*M$14 -> (8,230) | N57: =(D57-$C57)*N$11+E57*N$12+F57*N$13+G57*N$14 -> (8,230) | O57: =(D57-$C57)*O$11+E57*O$12+F57*O$13+G57*O$14 -> (8,264) | P57: =(D57-$C57)*P$11+E57*P$12+F57*P$13+G57*P$14 -> (8,269) | Q57: =(D57-$C57)*Q$11+E57*Q$12+F57*Q$13+G57*Q$14 -> (8,269) | R57: =(D57-$C57)*R$11+E57*R$12+F57*R$13+G57*R$14 -> (8,269) | S57: =(D57-$C57)*S$11+E57*S$12+F57*S$13+G57*S$14 -> (8,592) | T57: =(D57-$C57)*T$11+E57*T$12+F57*T$13+G57*T$14 -> (8,834) | U57: =SUM(H57:T57) -> (109,274) | V57: =SUM(H$14:T$14) -> 0.355 | W57: =G57*(1-V57) -> (25,239)
A58: Net salaries (25th) | B58: 25th of month | C58: 0 | D58: =-Opex!M58 -> (33,184) | E58: =-Opex!N58 -> (35,020) | F58: =-Opex!O58 -> (37,876) | G58: =-Opex!P58 -> (37,876) | H58: =(D58-$C58)*H$36+E58*H$37+F58*H$38+G58*H$39 -> 0 | I58: =(D58-$C58)*I$36+E58*I$37+F58*I$38+G58*I$39 -> (33,184) | J58: =(D58-$C58)*J$36+E58*J$37+F58*J$38+G58*J$39 -> 0 | K58: =(D58-$C58)*K$36+E58*K$37+F58*K$38+G58*K$39 -> 0 | L58: =(D58-$C58)*L$36+E58*L$37+F58*L$38+G58*L$39 -> 0 | M58: =(D58-$C58)*M$36+E58*M$37+F58*M$38+G58*M$39 -> 0 | N58: =(D58-$C58)*N$36+E58*N$37+F58*N$38+G58*N$39 -> (35,020) | O58: =(D58-$C58)*O$36+E58*O$37+F58*O$38+G58*O$39 -> 0 | P58: =(D58-$C58)*P$36+E58*P$37+F58*P$38+G58*P$39 -> 0 | Q58: =(D58-$C58)*Q$36+E58*Q$37+F58*Q$38+G58*Q$39 -> 0 | R58: =(D58-$C58)*R$36+E58*R$37+F58*R$38+G58*R$39 -> (37,876) | S58: =(D58-$C58)*S$36+E58*S$37+F58*S$38+G58*S$39 -> 0 | T58: =(D58-$C58)*T$36+E58*T$37+F58*T$38+G58*T$39 -> 0 | U58: =SUM(H58:T58) -> (106,080) | V58: =SUM(H$39:T$39) -> 0.000 | W58: =G58*(1-V58) -> (37,876)
A59: Wage tax and social charges (last day of the month) | B59: month end | C59: 0 | D59: =Opex!M56 -> (15,328) | E59: =Opex!N56 -> (15,616) | F59: =Opex!O56 -> (16,480) | G59: =Opex!P56 -> (17,824) | H59: =(D59-$C59)*H$40+E59*H$41+F59*H$42+G59*H$43 -> 0 | I59: =(D59-$C59)*I$40+E59*I$41+F59*I$42+G59*I$43 -> 0 | J59: =(D59-$C59)*J$40+E59*J$41+F59*J$42+G59*J$43 -> (15,328) | K59: =(D59-$C59)*K$40+E59*K$41+F59*K$42+G59*K$43 -> 0 | L59: =(D59-$C59)*L$40+E59*L$41+F59*L$42+G59*L$43 -> 0 | M59: =(D59-$C59)*M$40+E59*M$41+F59*M$42+G59*M$43 -> 0 | N59: =(D59-$C59)*N$40+E59*N$41+F59*N$42+G59*N$43 -> 0 | O59: =(D59-$C59)*O$40+E59*O$41+F59*O$42+G59*O$43 -> (15,616) | P59: =(D59-$C59)*P$40+E59*P$41+F59*P$42+G59*P$43 -> 0 | Q59: =(D59-$C59)*Q$40+E59*Q$41+F59*Q$42+G59*Q$43 -> 0 | R59: =(D59-$C59)*R$40+E59*R$41+F59*R$42+G59*R$43 -> 0 | S59: =(D59-$C59)*S$40+E59*S$41+F59*S$42+G59*S$43 -> (16,480) | T59: =(D59-$C59)*T$40+E59*T$41+F59*T$42+G59*T$43 -> 0 | U59: =SUM(H59:T59) -> (47,424) | V59: =SUM(H$43:T$43) -> 0.000 | W59: =G59*(1-V59) -> (17,824)
A60: VAT: Q3 return and OSS | B60: VAT due date | C60: 0 | D60: =VAT!M21 -> 0 | E60: =VAT!N21 -> (149,858) | F60: =VAT!O21 -> 0 | G60: =VAT!P21 -> 0 | H60: =E60*H$45 -> 0 | I60: =E60*I$45 -> 0 | J60: =E60*J$45 -> 0 | K60: =E60*K$45 -> 0 | L60: =E60*L$45 -> 0 | M60: =E60*M$45 -> 0 | N60: =E60*N$45 -> 0 | O60: =E60*O$45 -> (149,858) | P60: =E60*P$45 -> 0 | Q60: =E60*Q$45 -> 0 | R60: =E60*R$45 -> 0 | S60: =E60*S$45 -> 0 | T60: =E60*T$45 -> 0 | U60: =SUM(H60:T60) -> (149,858) | V60: 0.000 | W60: =G60 -> 0
A61: Term loan instalment (1st) | B61: 1st of month (Sep paid before opening) | C61: =D61 -> (9,672) | D61: =-Debt!M18 -> (9,672) | E61: =-Debt!N18 -> (9,672) | F61: =-Debt!O18 -> (9,672) | G61: =-Debt!P18 -> (9,672) | H61: =(D61-$C61)*H$28+E61*H$29+F61*H$30+G61*H$31 -> 0 | I61: =(D61-$C61)*I$28+E61*I$29+F61*I$30+G61*I$31 -> 0 | J61: =(D61-$C61)*J$28+E61*J$29+F61*J$30+G61*J$31 -> (9,672) | K61: =(D61-$C61)*K$28+E61*K$29+F61*K$30+G61*K$31 -> 0 | L61: =(D61-$C61)*L$28+E61*L$29+F61*L$30+G61*L$31 -> 0 | M61: =(D61-$C61)*M$28+E61*M$29+F61*M$30+G61*M$31 -> 0 | N61: =(D61-$C61)*N$28+E61*N$29+F61*N$30+G61*N$31 -> 0 | O61: =(D61-$C61)*O$28+E61*O$29+F61*O$30+G61*O$31 -> (9,672) | P61: =(D61-$C61)*P$28+E61*P$29+F61*P$30+G61*P$31 -> 0 | Q61: =(D61-$C61)*Q$28+E61*Q$29+F61*Q$30+G61*Q$31 -> 0 | R61: =(D61-$C61)*R$28+E61*R$29+F61*R$30+G61*R$31 -> 0 | S61: =(D61-$C61)*S$28+E61*S$29+F61*S$30+G61*S$31 -> (9,672) | T61: =(D61-$C61)*T$28+E61*T$29+F61*T$30+G61*T$31 -> 0 | U61: =SUM(H61:T61) -> (29,015) | V61: =SUM(H$31:T$31) -> 1.000 | W61: =G61*(1-V61) -> 0
A62: Capex, VAT-inclusive | B62: calendar days | C62: (666) | D62: =-Fixed_Assets!M27*(1+Assumptions!$C$19*Assumptions!$C$25) -> (1,815) | E62: =-Fixed_Assets!N27*(1+Assumptions!$C$19*Assumptions!$C$25) -> (1,815) | F62: =-Fixed_Assets!O27*(1+Assumptions!$C$19*Assumptions!$C$25) -> (1,815) | G62: =-Fixed_Assets!P27*(1+Assumptions!$C$19*Assumptions!$C$25) -> (1,815) | H62: =(D62-$C62)*H$11+E62*H$12+F62*H$13+G62*H$14 -> (423) | I62: =(D62-$C62)*I$11+E62*I$12+F62*I$13+G62*I$14 -> (423) | J62: =(D62-$C62)*J$11+E62*J$12+F62*J$13+G62*J$14 -> (419) | K62: =(D62-$C62)*K$11+E62*K$12+F62*K$13+G62*K$14 -> (410) | L62: =(D62-$C62)*L$11+E62*L$12+F62*L$13+G62*L$14 -> (410) | M62: =(D62-$C62)*M$11+E62*M$12+F62*M$13+G62*M$14 -> (410) | N62: =(D62-$C62)*N$11+E62*N$12+F62*N$13+G62*N$14 -> (410) | O62: =(D62-$C62)*O$11+E62*O$12+F62*O$13+G62*O$14 -> (422) | P62: =(D62-$C62)*P$11+E62*P$12+F62*P$13+G62*P$14 -> (424) | Q62: =(D62-$C62)*Q$11+E62*Q$12+F62*Q$13+G62*Q$14 -> (424) | R62: =(D62-$C62)*R$11+E62*R$12+F62*R$13+G62*R$14 -> (424) | S62: =(D62-$C62)*S$11+E62*S$12+F62*S$13+G62*S$14 -> (416) | T62: =(D62-$C62)*T$11+E62*T$12+F62*T$13+G62*T$14 -> (410) | U62: =SUM(H62:T62) -> (5,423) | V62: =SUM(H$14:T$14) -> 0.355 | W62: =G62*(1-V62) -> (1,171)
A63: Bank charges | B63: calendar days | C63: (194) | D63: =-Opex!M49 -> (530) | E63: =-Opex!N49 -> (615) | F63: =-Opex!O49 -> (888) | G63: =-Opex!P49 -> (794) | H63: =(D63-$C63)*H$11+E63*H$12+F63*H$13+G63*H$14 -> (124) | I63: =(D63-$C63)*I$11+E63*I$12+F63*I$13+G63*I$14 -> (124) | J63: =(D63-$C63)*J$11+E63*J$12+F63*J$13+G63*J$14 -> (128) | K63: =(D63-$C63)*K$11+E63*K$12+F63*K$13+G63*K$14 -> (139) | L63: =(D63-$C63)*L$11+E63*L$12+F63*L$13+G63*L$14 -> (139) | M63: =(D63-$C63)*M$11+E63*M$12+F63*M$13+G63*M$14 -> (139) | N63: =(D63-$C63)*N$11+E63*N$12+F63*N$13+G63*N$14 -> (139) | O63: =(D63-$C63)*O$11+E63*O$12+F63*O$13+G63*O$14 -> (197) | P63: =(D63-$C63)*P$11+E63*P$12+F63*P$13+G63*P$14 -> (207) | Q63: =(D63-$C63)*Q$11+E63*Q$12+F63*Q$13+G63*Q$14 -> (207) | R63: =(D63-$C63)*R$11+E63*R$12+F63*R$13+G63*R$14 -> (207) | S63: =(D63-$C63)*S$11+E63*S$12+F63*S$13+G63*S$14 -> (191) | T63: =(D63-$C63)*T$11+E63*T$12+F63*T$13+G63*T$14 -> (179) | U63: =SUM(H63:T63) -> (2,121) | V63: =SUM(H$14:T$14) -> 0.355 | W63: =G63*(1-V63) -> (512)
A64: Corporate income tax: nil in this forecast window | B64: n/a | C64: 0 | D64: 0 | E64: 0 | F64: 0 | G64: 0 | H64: 0 | I64: 0 | J64: 0 | K64: 0 | L64: 0 | M64: 0 | N64: 0 | O64: 0 | P64: 0 | Q64: 0 | R64: 0 | S64: 0 | T64: 0 | U64: 0 | V64: 0.000 | W64: 0
A65: TOTAL PAYMENTS | B65: n/a | C65: =C53+C54+C55+C56+C57+C58+C59+C60+C61+C62+C63 -> (157,609) | D65: =D53+D54+D55+D56+D57+D58+D59+D60+D61+D62+D63+D64 -> (396,755) | E65: =E53+E54+E55+E56+E57+E58+E59+E60+E61+E62+E63+E64 -> (400,374) | F65: =F53+F54+F55+F56+F57+F58+F59+F60+F61+F62+F63+F64 -> (381,226) | G65: =G53+G54+G55+G56+G57+G58+G59+G60+G61+G62+G63+G64 -> (318,705) | H65: =H53+H54+H55+H56+H57+H58+H59+H60+H61+H62+H63+H64 -> (64,887) | I65: =I53+I54+I55+I56+I57+I58+I59+I60+I61+I62+I63+I64 -> (93,471) | J65: =J53+J54+J55+J56+J57+J58+J59+J60+J61+J62+J63+J64 -> (100,307) | K65: =K53+K54+K55+K56+K57+K58+K59+K60+K61+K62+K63+K64 -> (34,460) | L65: =L53+L54+L55+L56+L57+L58+L59+L60+L61+L62+L63+L64 -> (52,460) | M65: =M53+M54+M55+M56+M57+M58+M59+M60+M61+M62+M63+M64 -> (54,060) | N65: =N53+N54+N55+N56+N57+N58+N59+N60+N61+N62+N63+N64 -> (69,480) | O65: =O53+O54+O55+O56+O57+O58+O59+O60+O61+O62+O63+O64 -> (229,788) | P65: =P53+P54+P55+P56+P57+P58+P59+P60+P61+P62+P63+P64 -> (58,006) | Q65: =Q53+Q54+Q55+Q56+Q57+Q58+Q59+Q60+Q61+Q62+Q63+Q64 -> (58,006) | R65: =R53+R54+R55+R56+R57+R58+R59+R60+R61+R62+R63+R64 -> (164,482) | S65: =S53+S54+S55+S56+S57+S58+S59+S60+S61+S62+S63+S64 -> (78,280) | T65: =T53+T54+T55+T56+T57+T58+T59+T60+T61+T62+T63+T64 -> (47,721) | U65: =SUM(H65:T65) -> (1,105,408)
A66: CASH
A67: NET CASH FLOW FOR THE WEEK | B67: n/a | C67: =C51+C65 -> (40,541) | D67: =D51+D65 -> (78,771) | E67: =E51+E65 -> (24,018) | F67: =F51+F65 -> 111,278 | G67: =G51+G65 -> 211,287 | H67: =H51+H65 -> 27,276 | I67: =I51+I65 -> (49,886) | J67: =J51+J65 -> (11,113) | K67: =K51+K65 -> 14,392 | L67: =L51+L65 -> 71,364 | M67: =M51+M65 -> (5,208) | N67: =N51+N65 -> 54,344 | O67: =O51+O65 -> (162,026) | P67: =P51+P65 -> 107,201 | Q67: =Q51+Q65 -> 12,908 | R67: =R51+R65 -> 725 | S67: =S51+S65 -> (11,242) | T67: =T51+T65 -> 139,401 | U67: =SUM(H67:T67) -> 188,137
A68: Opening cash | B68: ledger + actual to date | C68: =INDEX(BS!$E$9:$AB$9,1,Assumptions!$C$10)+C67 -> 350,912 | H68: =C68 -> 350,912 | I68: =H69 -> 378,188 | J68: =I69 -> 328,303 | K68: =J69 -> 317,190 | L68: =K69 -> 331,582 | M68: =L69 -> 402,946 | N68: =M69 -> 397,738 | O68: =N69 -> 452,082 | P68: =O69 -> 290,055 | Q68: =P69 -> 397,256 | R68: =Q69 -> 410,164 | S68: =R69 -> 410,889 | T68: =S69 -> 399,648
A69: CLOSING CASH | H69: =H68+H67 -> 378,188 | I69: =I68+I67 -> 328,303 | J69: =J68+J67 -> 317,190 | K69: =K68+K67 -> 331,582 | L69: =L68+L67 -> 402,946 | M69: =M68+M67 -> 397,738 | N69: =N68+N67 -> 452,082 | O69: =O68+O67 -> 290,055 | P69: =P68+P67 -> 397,256 | Q69: =Q68+Q67 -> 410,164 | R69: =R68+R67 -> 410,889 | S69: =S68+S67 -> 399,648 | T69: =T68+T67 -> 539,048
A71: CASH CONTROL
A72: Minimum cash buffer (board policy) | B72: Assumptions | H72: =Assumptions!$C$13 -> 150,000 | I72: =Assumptions!$C$13 -> 150,000 | J72: =Assumptions!$C$13 -> 150,000 | K72: =Assumptions!$C$13 -> 150,000 | L72: =Assumptions!$C$13 -> 150,000 | M72: =Assumptions!$C$13 -> 150,000 | N72: =Assumptions!$C$13 -> 150,000 | O72: =Assumptions!$C$13 -> 150,000 | P72: =Assumptions!$C$13 -> 150,000 | Q72: =Assumptions!$C$13 -> 150,000 | R72: =Assumptions!$C$13 -> 150,000 | S72: =Assumptions!$C$13 -> 150,000 | T72: =Assumptions!$C$13 -> 150,000
A73: HEADROOM / (SHORTFALL) VS BUFFER | H73: =H69-H72 -> 228,188 | I73: =I69-I72 -> 178,303 | J73: =J69-J72 -> 167,190 | K73: =K69-K72 -> 181,582 | L73: =L69-L72 -> 252,946 | M73: =M69-M72 -> 247,738 | N73: =N69-N72 -> 302,082 | O73: =O69-O72 -> 140,055 | P73: =P69-P72 -> 247,256 | Q73: =Q69-Q72 -> 260,164 | R73: =R69-R72 -> 260,889 | S73: =S69-S72 -> 249,648 | T73: =T69-T72 -> 389,048
A74: Status | H74: =IF(H69<0,"NEGATIVE",IF(H73<0,"BELOW BUFFER","OK")) -> OK | I74: =IF(I69<0,"NEGATIVE",IF(I73<0,"BELOW BUFFER","OK")) -> OK | J74: =IF(J69<0,"NEGATIVE",IF(J73<0,"BELOW BUFFER","OK")) -> OK | K74: =IF(K69<0,"NEGATIVE",IF(K73<0,"BELOW BUFFER","OK")) -> OK | L74: =IF(L69<0,"NEGATIVE",IF(L73<0,"BELOW BUFFER","OK")) -> OK | M74: =IF(M69<0,"NEGATIVE",IF(M73<0,"BELOW BUFFER","OK")) -> OK | N74: =IF(N69<0,"NEGATIVE",IF(N73<0,"BELOW BUFFER","OK")) -> OK | O74: =IF(O69<0,"NEGATIVE",IF(O73<0,"BELOW BUFFER","OK")) -> OK | P74: =IF(P69<0,"NEGATIVE",IF(P73<0,"BELOW BUFFER","OK")) -> OK | Q74: =IF(Q69<0,"NEGATIVE",IF(Q73<0,"BELOW BUFFER","OK")) -> OK | R74: =IF(R69<0,"NEGATIVE",IF(R73<0,"BELOW BUFFER","OK")) -> OK | S74: =IF(S69<0,"NEGATIVE",IF(S73<0,"BELOW BUFFER","OK")) -> OK | T74: =IF(T69<0,"NEGATIVE",IF(T73<0,"BELOW BUFFER","OK")) -> OK
A75: Lowest weekly closing cash in the 13 weeks | C75: =MIN(H69:T69) -> 290,055
A76: Week ending of the low point | C76: =INDEX(H$6:T$6,1,MATCH(MIN(H69:T69),H69:T69,0)) -> 2026-11-06
A77: Shortfall vs buffer at the low point (negative = action needed) | C77: =MIN(H73:T73) -> 140,055
A78: Undrawn revolving facility available | C78: =Assumptions!$C$14 -> 150,000
A79: Facility headroom after covering the low-point shortfall | C79: =Assumptions!$C$14+MIN(0,MIN(H73:T73)) -> 150,000
A81: RECONCILIATION TO THE MONTHLY MODEL
A82: Closing cash at the end of week 13 (11-Dec-26) | C82: =T69 -> 539,048
A83: Add: December flows after 11-Dec (column W, by line) | C83: =SUM(W48:W64) -> 72,180
A84: Implied cash at 31-Dec-26 | C84: =C82+C83 -> 611,228
A85: Cash at 31-Dec-26 per the monthly balance sheet | C85: =BS!P9 -> 611,228
A86: CHECK: difference (must be zero) | C86: =ROUND(C84-C85,2) -> 0
A88: LEVERS IF THE LOW POINT BREACHES THE BUFFER, IN ORDER
A89: 1. Evaluate a draw on the assumed undrawn facility. Confirm availability, covenants, draw conditions, interest and fees; borrowing is not automatically included in these cash balances.
A90: 2. Defer the uncommitted policy purchases by two weeks: the policy line above moves out of the trough week; committed PO balances cannot move without supplier agreement.
A91: 3. Ask Amazon for a reserve review: the model holds roughly 7 days of reserve inside the 21-day lag; each day released is one day of Amazon settlement accrued.
A92: 4. Evaluate longer paid-media terms or a card statement cycle, subject to provider terms and credit availability. Re-time the schedule and include card repayment and fees before relying on the benefit.
